Workbook

Sheet Forside 2018
A1: Resultatliste Oslo Cup 2017
A2: Etter 4 av 8 renn
A5: - Oslo Cup arrangeres av Oslo Skikrets i samarbeid med IRS, Heming, Ready, Njård, HSIL og Kjelsås
A6: - 8 renn, arrangert av de samarbeidende klubbene, inngår i Oslo Cup
A7: - Det konkurreres i separate årsklasser, J11, G11, J12 og G12
A8: - Sammenlagtresultatene beregnes med World Cup poeng + deltakerpoeng.
A9: - De fire beste resultatene er tellende sammenlagt, men alle deltakerpoengene teller med i totalresultatet
A10: - Premiering av de tre beste sammenlagt i hver klasse
A13: Poengsystem:
A14: - World Cup poeng for plasseringer (100 poeng for seier, 80 for andre plass osv).
A15: - De fire beste resultatene er tellende i sammendraget
A16: - Det gis 5 deltakerpoeng pr. renn, uanhengig av resultat og om resultatet er tellende i sammendraget
A19: Forklaring på overskriften i resultatlistene:
A20: - Plass = plassering i rennet
A21: - Res. = resultatpoeng etter World Cup skala
A22: - Del. = deltakerpoeng, 5 poeng for deltakelse
A23: - Tot. = totalpoeng for rennet, sum av resultatpoeng og deltakerpoeng
A24: - Resultater/poeng som ikke er tellende for de som har kjørt flere enn fire renn er markert/skravert med grått

Sheet J11 2018
A1: Resultatliste Oslo Cup 2018 - Jenter 11 år
A2: ='Forside 2018'!A2 -> Etter 4 av 8 renn
H3: IRS Rennet | I3: Ljan Rennet | J3: Njård Rennet | K3: Ready Rennet | L3: Telenor Arena Cup | M3: Euro-tecfarten | N3: Oslo Alpinfestival SL | O3: Oslo Alpinfestival SSL | R3: IRS Rennet | S3: Ljan Rennet | T3: Njård Rennet | U3: Ready Rennet | V3: Telenor Arena Cup | W3: Euro-tecfarten | X3: Oslo Alpinfestival SL | Y3: Oslo Alpinfestival SSL | AA3: --------IRS Rennet---------- | AF3: ----------Ljan Rennet--------- | AK3: --------Njård Rennet---------- | AP3: --------Ready Rennet--------- | AU3: -----Telenor Arena Cup---- | AZ3: ------Euro-tecfarten-------- | BE3: ---Oslo Alpinfestival SL--- | BJ3: ---Oslo Alpinfestival SSL---
F4: Antall | H4: 2016-02-04 | I4: 2016-02-05 | J4: 2016-02-10 | K4: 2016-02-11 | L4: 2016-02-15 | M4: 2016-03-01 | N4: 2017-03-11 | O4: 2016-03-12 | Q4: Poeng | R4: 2016-02-04 | S4: 2016-02-05 | T4: 2016-02-10 | U4: 2016-02-11 | V4: 2016-02-15 | W4: 2016-03-01 | X4: 2017-03-11 | Y4: 2016-03-12 | AB4: --------Poeng-------- | AG4: --------Poeng-------- | AL4: -------Poeng--------- | AQ4: -------Poeng--------- | AV4: -------Poeng--------- | BA4: -------Poeng--------- | BF4: -------Poeng--------- | BK4: -------Poeng--------- | BQ4: Løpere med | BR4: Løpere med | BS4: Løpere med | BT4: Løpere med | BU4: Løpere med | BV4: Løpere med | BW4: Løpere med | BX4: Løpere med
A5: Plass | B5: Etternavn | C5: Fornavn | D5: Klubb | E5: Poeng | F5: renn | H5: ------------------------------Plassering i rennene--------------------------------- | Q5: brutto | R5: ----------------Resultatpoeng hvis mer enn 4 renn---------------- | AA5: Plass | AB5: Res. | AC5: Del. | AD5: Tot. | AF5: Plass | AG5: Res. | AH5: Del. | AI5: Tot. | AK5: Plass | AL5: Res. | AM5: Del. | AN5: Tot. | AP5: Plass | AQ5: Res. | AR5: Del. | AS5: Tot. | AU5: Plass | AV5: Res. | AW5: Del. | AX5: Tot. | AZ5: Plass | BA5: Res. | BB5: Del. | BC5: Tot. | BE5: Plass | BF5: Res. | BG5: Del. | BH5: Tot. | BJ5: Plass | BK5: Res. | BL5: Del. | BM5: Tot. | BO5: Plass | BP5: Poeng | BQ5: 8 renn | BR5: 7 renn | BS5: 6 renn | BT5: 5 renn | BU5: 4 renn | BV5: 3 renn | BW5: 2 renn | BX5: kun 1 renn
A6: =IF(E6<E5,BO6,A5) -> 1 | B6: Schei | C6: Julie Haakaas | D6: IRS | E6: =Q6 -> 299 | F6: =(IF(AC6=5,1,0)+IF(AH6=5,1,0)+IF(AM6=5,1,0)+IF(AR6=5,1,0)+IF(AW6=5,1,0)+IF(BA6=5,1,0)+IF(BG6=5,1,0)+IF(BL6=5,1,0)) -> 4 | H6: =IF(AA6="","",AA6) -> 1 | I6: =IF(AF6="","",AF6) -> 1 | J6: =IF(AK6="","",AK6) -> 4 | K6: =IF(AP6="","",AP6) -> 9 | L6: =IF(AU6="","",AU6) ->  | M6: =IF(AZ6="","",AZ6) ->  | N6: =IF(BE6="","",BE6) ->  | O6: =IF(BJ6="","",BJ6) ->  | Q6: =AD6+AI6+AN6+AS6+AX6+BC6+BH6 -> 299 | R6: =IF($F6>=5,IF(AB6="","",AB6),"") ->  | S6: =IF($F6>=5,IF(AG6="","",AG6),"") ->  | T6: =IF($F6>=5,IF(AL6="","",AL6),"") ->  | U6: =IF($F6>=5,IF(AQ6="","",AQ6),"") ->  | V6: =IF($F6>=5,IF(AV6="","",AV6),"") ->  | W6: =IF($F6>=5,IF(BA6="","",BA6),"") ->  | X6: =IF($F6>=5,IF(BF6="","",BF6),"") ->  | Y6: =IF($F6>=5,IF(BK6="","",BK6),"") ->  | AA6: 1 | AB6: =IF(ISNUMBER(AA6),(VLOOKUP(AA6,$BO$6:$BP$50,2)),0) -> 100 | AC6: =IF(AA6<>"",5,0) -> 5 | AD6: =AB6+AC6 -> 105 | AF6: 1 | AG6: =IF(ISNUMBER(AF6),(VLOOKUP(AF6,$BO$6:$BP$50,2)),0) -> 100 | AH6: =IF(AF6<>"",5,0) -> 5 | AI6: =AG6+AH6 -> 105 | AK6: 4 | AL6: =IF(ISNUMBER(AK6),(VLOOKUP(AK6,$BO$6:$BP$50,2)),0) -> 50 | AM6: =IF(AK6<>"",5,0) -> 5 | AN6: =AL6+AM6 -> 55 | AP6: 9 | AQ6: =IF(ISNUMBER(AP6),(VLOOKUP(AP6,$BO$6:$BP$50,2)),0) -> 29 | AR6: =IF(AP6<>"",5,0) -> 5 | AS6: =AQ6+AR6 -> 34 | AV6: =IF(ISNUMBER(AU6),(VLOOKUP(AU6,$BO$6:$BP$50,2)),0) -> 0 | AW6: =IF(AU6<>"",5,0) -> 0 | AX6: =AV6+AW6 -> 0 | BA6: =IF(ISNUMBER(AZ6),(VLOOKUP(AZ6,$BO$6:$BP$50,2)),0) -> 0 | BB6: =IF(AZ6<>"",5,0) -> 0 | BC6: =BA6+BB6 -> 0 | BF6: =IF(ISNUMBER(BE6),(VLOOKUP(BE6,$BO$6:$BP$50,2)),0) -> 0 | BG6: =IF(BE6<>"",5,0) -> 0 | BH6: =BF6+BG6 -> 0 | BK6: =IF(ISNUMBER(BJ6),(VLOOKUP(BJ6,$BO$6:$BP$50,2)),0) -> 0 | BL6: =IF(BJ6<>"",5,0) -> 0 | BM6: =BK6+BL6 -> 0 | BO6: 1 | BP6: 100 | BQ6: =IF($F6=8,1,0) -> 0 | BR6: =IF($F6=7,1,0) -> 0 | BS6: =IF($F6=6,1,0) -> 0 | BT6: =IF($F6=5,1,0) -> 0 | BU6: =IF($F6=4,1,0) -> 1 | BV6: =IF($F6=3,1,0) -> 0 | BW6: =IF($F6=2,1,0) -> 0 | BX6: =IF($F6=1,1,0) -> 0
A7: 2 | B7: Grøndalen | C7: Eira Marie | D7: Ljan | E7: 257 | F7: 4 | H7: 2 | I7: 2 | J7: 8 | K7: 5 | Q7: 257 | AA7: 2 | AB7: 80 | AC7: 5 | AD7: 85 | AF7: 2 | AG7: 80 | AH7: 5 | AI7: 85 | AK7: 8 | AL7: 32 | AM7: 5 | AN7: 37 | AP7: 5 | AQ7: 45 | AR7: 5 | AS7: 50 | AV7: 0 | AW7: 0 | AX7: 0 | BA7: 0 | BB7: 0 | BC7: 0 | BF7: 0 | BG7: 0 | BH7: 0 | BK7: 0 | BL7: 0 | BM7: 0 | BO7: 2 | BP7: 80 | BQ7: =IF($F7=8,1,0) -> 0 | BR7: 0 | BS7: 0 | BT7: 0 | BU7: 1 | BV7: 0 | BW7: 0 | BX7: 0
A8: 3 | B8: Sande | C8: Malene Louise Gaunt | D8: Heming | E8: 210 | F8: 2 | J8: 1 | K8: 1 | Q8: 210 | AB8: 0 | AC8: 0 | AD8: 0 | AG8: 0 | AH8: 0 | AI8: 0 | AK8: 1 | AL8: 100 | AM8: 5 | AN8: 105 | AP8: 1 | AQ8: 100 | AR8: 5 | AS8: 105 | AV8: 0 | AW8: 0 | AX8: 0 | BA8: 0 | BB8: 0 | BC8: 0 | BF8: 0 | BG8: 0 | BH8: 0 | BK8: 0 | BL8: 0 | BM8: 0 | BO8: 3 | BP8: 60 | BQ8: 0 | BR8: 0 | BS8: 0 | BT8: 0 | BU8: 0 | BV8: 0 | BW8: 1 | BX8: 0
A9: 4 | B9: Elmenhorst-Larsen | C9: Sina | D9: Ready | E9: 170 | F9: 3 | H9: 3 | J9: 5 | K9: 4 | Q9: 170 | AA9: 3 | AB9: 60 | AC9: 5 | AD9: 65 | AG9: 0 | AH9: 0 | AI9: 0 | AK9: 5 | AL9: 45 | AM9: 5 | AN9: 50 | AP9: 4 | AQ9: 50 | AR9: 5 | AS9: 55 | AV9: 0 | AW9: 0 | AX9: 0 | BA9: 0 | BB9: 0 | BC9: 0 | BF9: 0 | BG9: 0 | BH9: 0 | BK9: 0 | BL9: 0 | BM9: 0 | BO9: 4 | BP9: 50 | BQ9: 0 | BR9: 0 | BS9: 0 | BT9: 0 | BU9: 0 | BV9: 1 | BW9: 0 | BX9: 0
A10: 4 | B10: Grobstok | C10: Emilie Smedsrud | D10: Ready | E10: 170 | F10: 2 | J10: 2 | K10: 2 | Q10: 170 | AB10: 0 | AC10: 0 | AD10: 0 | AG10: 0 | AH10: 0 | AI10: 0 | AK10: 2 | AL10: 80 | AM10: 5 | AN10: 85 | AP10: 2 | AQ10: 80 | AR10: 5 | AS10: 85 | AV10: 0 | AW10: 0 | AX10: 0 | BA10: 0 | BB10: 0 | BC10: 0 | BF10: 0 | BG10: 0 | BH10: 0 | BK10: 0 | BL10: 0 | BM10: 0 | BO10: 5 | BP10: 45 | BQ10: 0 | BR10: 0 | BS10: 0 | BT10: 0 | BU10: 0 | BV10: 0 | BW10: 1 | BX10: 0
A11: 6 | B11: Bjørland | C11: Vilde | D11: Heming | E11: 110 | F11: 2 | H11: 4 | I11: 4 | Q11: 110 | AA11: 4 | AB11: 50 | AC11: 5 | AD11: 55 | AF11: 4 | AG11: 50 | AH11: 5 | AI11: 55 | AL11: 0 | AM11: 0 | AN11: 0 | AQ11: 0 | AR11: 0 | AS11: 0 | AV11: 0 | AW11: 0 | AX11: 0 | BA11: 0 | BB11: 0 | BC11: 0 | BF11: 0 | BG11: 0 | BH11: 0 | BK11: 0 | BL11: 0 | BM11: 0 | BO11: 6 | BP11: 40 | BQ11: 0 | BR11: 0 | BS11: 0 | BT11: 0 | BU11: 0 | BV11: 0 | BW11: 1 | BX11: 0
A12: 6 | B12: Semmelmann | C12: Ellisif Marie | D12: Heming | E12: 110 | F12: 2 | J12: 6 | K12: 3 | Q12: 110 | AB12: 0 | AC12: 0 | AD12: 0 | AG12: 0 | AH12: 0 | AI12: 0 | AK12: 6 | AL12: 40 | AM12: 5 | AN12: 45 | AP12: 3 | AQ12: 60 | AR12: 5 | AS12: 65 | AV12: 0 | AW12: 0 | AX12: 0 | BA12: 0 | BB12: 0 | BC12: 0 | BF12: 0 | BG12: 0 | BH12: 0 | BK12: 0 | BL12: 0 | BM12: 0 | BO12: 7 | BP12: 36 | BQ12: 0 | BR12: 0 | BS12: 0 | BT12: 0 | BU12: 0 | BV12: 0 | BW12: 1 | BX12: 0
A13: 8 | B13: Borge-Andersen | C13: Felin | D13: Heming | E13: 82 | F13: 2 | J13: 7 | K13: 7 | Q13: 82 | AB13: 0 | AC13: 0 | AD13: 0 | AG13: 0 | AH13: 0 | AI13: 0 | AK13: 7 | AL13: 36 | AM13: 5 | AN13: 41 | AP13: 7 | AQ13: 36 | AR13: 5 | AS13: 41 | AV13: 0 | AW13: 0 | AX13: 0 | BA13: 0 | BB13: 0 | BC13: 0 | BF13: 0 | BG13: 0 | BH13: 0 | BK13: 0 | BL13: 0 | BM13: 0 | BO13: 8 | BP13: 32 | BQ13: 0 | BR13: 0 | BS13: 0 | BT13: 0 | BU13: 0 | BV13: 0 | BW13: 1 | BX13: 0
A14: 9 | B14: Ingebrigtsen | C14: Nora Haugmoen | D14: Heming | E14: 79 | F14: 2 | J14: 9 | K14: 6 | Q14: 79 | AB14: 0 | AC14: 0 | AD14: 0 | AG14: 0 | AH14: 0 | AI14: 0 | AK14: 9 | AL14: 29 | AM14: 5 | AN14: 34 | AP14: 6 | AQ14: 40 | AR14: 5 | AS14: 45 | AV14: 0 | AW14: 0 | AX14: 0 | BA14: 0 | BB14: 0 | BC14: 0 | BF14: 0 | BG14: 0 | BH14: 0 | BK14: 0 | BL14: 0 | BM14: 0 | BO14: 9 | BP14: 29 | BQ14: 0 | BR14: 0 | BS14: 0 | BT14: 0 | BU14: 0 | BV14: 0 | BW14: 1 | BX14: 0
A15: 10 | B15: Riiber | C15: Kristiane | D15: Heming | E15: 68 | F15: 2 | J15: 10 | K15: 8 | Q15: 68 | AB15: 0 | AC15: 0 | AD15: 0 | AG15: 0 | AH15: 0 | AI15: 0 | AK15: 10 | AL15: 26 | AM15: 5 | AN15: 31 | AP15: 8 | AQ15: 32 | AR15: 5 | AS15: 37 | AV15: 0 | AW15: 0 | AX15: 0 | BA15: 0 | BB15: 0 | BC15: 0 | BF15: 0 | BG15: 0 | BH15: 0 | BK15: 0 | BL15: 0 | BM15: 0 | BO15: 10 | BP15: 26 | BQ15: 0 | BR15: 0 | BS15: 0 | BT15: 0 | BU15: 0 | BV15: 0 | BW15: 1 | BX15: 0
A16: 11 | B16: Dahl | C16: Olea | D16: Ljan | E16: 65 | F16: 1 | I16: 3 | Q16: 65 | AB16: 0 | AC16: 0 | AD16: 0 | AF16: 3 | AG16: 60 | AH16: 5 | AI16: 65 | AL16: 0 | AM16: 0 | AN16: 0 | AQ16: 0 | AR16: 0 | AS16: 0 | AV16: 0 | AW16: 0 | AX16: 0 | BA16: 0 | BB16: 0 | BC16: 0 | BF16: 0 | BG16: 0 | BH16: 0 | BK16: 0 | BL16: 0 | BM16: 0 | BO16: 11 | BP16: 24 | BQ16: 0 | BR16: 0 | BS16: 0 | BT16: 0 | BU16: 0 | BV16: 0 | BW16: 0 | BX16: 1
A17: 11 | B17: Holter | C17: Vilde Emilie | D17: Ullensaker | E17: 65 | F17: 1 | J17: 3 | Q17: 65 | AB17: 0 | AC17: 0 | AD17: 0 | AG17: 0 | AH17: 0 | AI17: 0 | AK17: 3 | AL17: 60 | AM17: 5 | AN17: 65 | AQ17: 0 | AR17: 0 | AS17: 0 | AV17: 0 | AW17: 0 | AX17: 0 | BA17: 0 | BB17: 0 | BC17: 0 | BF17: 0 | BG17: 0 | BH17: 0 | BK17: 0 | BL17: 0 | BM17: 0 | BO17: 12 | BP17: 22 | BQ17: 0 | BR17: 0 | BS17: 0 | BT17: 0 | BU17: 0 | BV17: 0 | BW17: 0 | BX17: 1
A18: 13 | B18: Braathen | C18: Elisabeth Texnæs | D18: Heming | E18: 56 | F18: 2 | J18: 12 | K18: 11 | Q18: 56 | AB18: 0 | AC18: 0 | AD18: 0 | AG18: 0 | AH18: 0 | AI18: 0 | AK18: 12 | AL18: 22 | AM18: 5 | AN18: 27 | AP18: 11 | AQ18: 24 | AR18: 5 | AS18: 29 | AV18: 0 | AW18: 0 | AX18: 0 | BA18: 0 | BB18: 0 | BC18: 0 | BF18: 0 | BG18: 0 | BH18: 0 | BK18: 0 | BL18: 0 | BM18: 0 | BO18: 13 | BP18: 20 | BQ18: 0 | BR18: =IF($F17=7,1,0) -> 0 | BS18: =IF($F17=6,1,0) -> 0 | BT18: =IF($F17=5,1,0) -> 0 | BU18: =IF($F17=4,1,0) -> 0 | BV18: =IF($F17=3,1,0) -> 0 | BW18: =IF($F17=2,1,0) -> 0 | BX18: =IF($F17=1,1,0) -> 1
A19: 13 | B19: Eskeland | C19: Helen Olivia | D19: Heming | E19: 56 | F19: 2 | J19: 13 | K19: 10 | Q19: 56 | AB19: 0 | AC19: 0 | AD19: 0 | AG19: 0 | AH19: 0 | AI19: 0 | AK19: 13 | AL19: 20 | AM19: 5 | AN19: 25 | AP19: 10 | AQ19: 26 | AR19: 5 | AS19: 31 | AV19: 0 | AW19: 0 | AX19: 0 | BA19: 0 | BB19: 0 | BC19: 0 | BF19: 0 | BG19: 0 | BH19: 0 | BK19: 0 | BL19: 0 | BM19: 0 | BO19: 14 | BP19: 18 | BQ19: 0 | BR19: =IF($F18=7,1,0) -> 0 | BS19: =IF($F18=6,1,0) -> 0 | BT19: =IF($F18=5,1,0) -> 0 | BU19: =IF($F18=4,1,0) -> 0 | BV19: =IF($F18=3,1,0) -> 0 | BW19: =IF($F18=2,1,0) -> 1 | BX19: =IF($F18=1,1,0) -> 0
A20: 15 | B20: Heggelund | C20: Hedda Ramstad | D20: Ullensaker | E20: 55 | F20: 2 | H20: 5 | I20: dsq | Q20: 55 | AA20: 5 | AB20: 45 | AC20: 5 | AD20: 50 | AF20: dsq | AG20: 0 | AH20: 5 | AI20: 5 | AL20: 0 | AM20: 0 | AN20: 0 | AQ20: 0 | AR20: 0 | AS20: 0 | AV20: 0 | AW20: 0 | AX20: 0 | BA20: 0 | BB20: 0 | BC20: 0 | BF20: 0 | BG20: 0 | BH20: 0 | BK20: 0 | BL20: 0 | BM20: 0 | BO20: 15 | BP20: 16 | BQ20: 0 | BR20: =IF($F19=7,1,0) -> 0 | BS20: =IF($F19=6,1,0) -> 0 | BT20: =IF($F19=5,1,0) -> 0 | BU20: =IF($F19=4,1,0) -> 0 | BV20: =IF($F19=3,1,0) -> 0 | BW20: =IF($F19=2,1,0) -> 1 | BX20: =IF($F19=1,1,0) -> 0
A21: 16 | B21: Ardem | C21: Emilie Caroline | D21: Kjelsås | E21: 48 | F21: 2 | J21: 15 | K21: 12 | Q21: 48 | AB21: 0 | AC21: 0 | AD21: 0 | AG21: 0 | AH21: 0 | AI21: 0 | AK21: 15 | AL21: 16 | AM21: 5 | AN21: 21 | AP21: 12 | AQ21: 22 | AR21: 5 | AS21: 27 | AV21: 0 | AW21: 0 | AX21: 0 | BA21: 0 | BB21: 0 | BC21: 0 | BF21: 0 | BG21: 0 | BH21: 0 | BK21: 0 | BL21: 0 | BM21: 0 | BO21: 16 | BP21: 15 | BQ21: 0 | BR21: =IF($F19=7,1,0) -> 0 | BS21: =IF($F19=6,1,0) -> 0 | BT21: =IF($F19=5,1,0) -> 0 | BU21: =IF($F19=4,1,0) -> 0 | BV21: =IF($F19=3,1,0) -> 0 | BW21: =IF($F19=2,1,0) -> 1 | BX21: =IF($F19=1,1,0) -> 0
A22: 16 | B22: Rivelsrud | C22: Matilde Sofia | D22: Heming | E22: 48 | F22: 2 | J22: 14 | K22: 13 | Q22: 48 | AB22: 0 | AC22: 0 | AD22: 0 | AG22: 0 | AH22: 0 | AI22: 0 | AK22: 14 | AL22: 18 | AM22: 5 | AN22: 23 | AP22: 13 | AQ22: 20 | AR22: 5 | AS22: 25 | AV22: 0 | AW22: 0 | AX22: 0 | BA22: 0 | BB22: 0 | BC22: 0 | BF22: 0 | BG22: 0 | BH22: 0 | BK22: 0 | BL22: 0 | BM22: 0 | BO22: 17 | BP22: 14 | BQ22: 0 | BR22: 0 | BS22: 0 | BT22: 0 | BU22: 0 | BV22: 0 | BW22: 1 | BX22: 0
A23: 16 | B23: Roll | C23: Celine Amelie Engebretsen | D23: Ready | E23: 48 | F23: 2 | J23: 11 | K23: 17 | Q23: =AD23+AI23+AN23+AS23+AX23+BC23+BH23 -> 48 | AB23: 0 | AC23: 0 | AD23: 0 | AG23: 0 | AH23: 0 | AI23: 0 | AK23: 11 | AL23: 24 | AM23: 5 | AN23: 29 | AP23: 17 | AQ23: 14 | AR23: 5 | AS23: 19 | AV23: 0 | AW23: 0 | AX23: 0 | BA23: 0 | BB23: 0 | BC23: 0 | BF23: 0 | BG23: 0 | BH23: 0 | BK23: 0 | BL23: 0 | BM23: 0 | BO23: 18 | BP23: 13 | BQ23: 0 | BR23: 0 | BS23: 0 | BT23: 0 | BU23: 0 | BV23: 0 | BW23: 1 | BX23: 0
A24: 19 | B24: Hovdenak | C24: Selma Stenersen | D24: Njård | E24: 38 | F24: 2 | J24: 18 | K24: 16 | Q24: 38 | AB24: 0 | AC24: 0 | AD24: 0 | AG24: 0 | AH24: 0 | AI24: 0 | AK24: 18 | AL24: 13 | AM24: 5 | AN24: 18 | AP24: 16 | AQ24: 15 | AR24: 5 | AS24: 20 | AV24: 0 | AW24: 0 | AX24: 0 | BA24: 0 | BB24: 0 | BC24: 0 | BF24: 0 | BG24: 0 | BH24: 0 | BK24: 0 | BL24: 0 | BM24: 0 | BO24: 19 | BP24: 12 | BQ24: 0 | BR24: 0 | BS24: 0 | BT24: 0 | BU24: 0 | BV24: 0 | BW24: 1 | BX24: 0
A25: 20 | B25: Danielsen | C25: Hedvig Aabel | D25: Heming | E25: 35 | F25: 2 | J25: 19 | K25: 18 | M25: =IF(AZ25="","",AZ25) ->  | N25: =IF(BE25="","",BE25) ->  | O25: =IF(BJ25="","",BJ25) ->  | Q25: 35 | V25: =IF($F25>=5,IF(AV25="","",AV25),"") ->  | W25: =IF($F25>=5,IF(BA25="","",BA25),"") ->  | X25: =IF($F25>=5,IF(BF25="","",BF25),"") ->  | Y25: =IF($F25>=5,IF(BK25="","",BK25),"") ->  | AB25: 0 | AC25: 0 | AD25: 0 | AG25: 0 | AH25: 0 | AI25: 0 | AK25: 19 | AL25: 12 | AM25: 5 | AN25: 17 | AP25: 18 | AQ25: 13 | AR25: 5 | AS25: 18 | AV25: 0 | AW25: 0 | AX25: 0 | BA25: 0 | BB25: 0 | BC25: 0 | BF25: 0 | BG25: 0 | BH25: 0 | BK25: 0 | BL25: 0 | BM25: 0 | BO25: 20 | BP25: 11 | BQ25: 0 | BR25: 0 | BS25: 0 | BT25: 0 | BU25: 0 | BV25: 0 | BW25: 1 | BX25: 0
A26: 21 | B26: Kristoffersen | C26: Kajsa Dahl | D26: Ready | E26: 33 | F26: 2 | J26: 20 | K26: 19 | Q26: 33 | V26: =IF($F26>=5,IF(AV26="","",AV26),"") ->  | W26: =IF($F26>=5,IF(BA26="","",BA26),"") ->  | X26: =IF($F26>=5,IF(BF26="","",BF26),"") ->  | Y26: =IF($F26>=5,IF(BK26="","",BK26),"") ->  | AB26: 0 | AC26: 0 | AD26: 0 | AG26: 0 | AH26: 0 | AI26: 0 | AK26: 20 | AL26: 11 | AM26: 5 | AN26: 16 | AP26: 19 | AQ26: 12 | AR26: 5 | AS26: 17 | AV26: 0 | AW26: 0 | AX26: 0 | BA26: 0 | BB26: 0 | BC26: 0 | BF26: 0 | BG26: 0 | BH26: 0 | BK26: 0 | BL26: 0 | BM26: 0 | BO26: 21 | BP26: 10 | BQ26: 0 | BR26: 0 | BS26: 0 | BT26: 0 | BU26: 0 | BV26: 0 | BW26: 1 | BX26: 0
A27: 22 | B27: Wilhelmsen | C27: Victoria Pandher | D27: Ready | E27: 28 | F27: 2 | J27: dnf | K27: 14 | Q27: 28 | AB27: 0 | AC27: 0 | AD27: 0 | AG27: 0 | AH27: 0 | AI27: 0 | AK27: dnf | AL27: 0 | AM27: 5 | AN27: 5 | AP27: 14 | AQ27: 18 | AR27: 5 | AS27: 23 | AV27: 0 | AW27: 0 | AX27: 0 | BA27: 0 | BB27: 0 | BC27: 0 | BF27: 0 | BG27: 0 | BH27: 0 | BK27: 0 | BL27: 0 | BM27: 0 | BO27: 22 | BP27: 9 | BQ27: 0 | BR27: 0 | BS27: 0 | BT27: 0 | BU27: 0 | BV27: 0 | BW27: 1 | BX27: 0
A28: 23 | B28: Kolbjørnsrud | C28: Ingrid | D28: Kjelsås | E28: 24 | F28: 2 | J28: 17 | K28: dnf | M28: =IF(AZ28="","",AZ28) ->  | N28: =IF(BE28="","",BE28) ->  | O28: =IF(BJ28="","",BJ28) ->  | Q28: 24 | AB28: 0 | AC28: 0 | AD28: 0 | AG28: 0 | AH28: 0 | AI28: 0 | AK28: 17 | AL28: 14 | AM28: 5 | AN28: 19 | AP28: dnf | AQ28: 0 | AR28: 5 | AS28: 5 | AV28: 0 | AW28: 0 | AX28: 0 | BA28: 0 | BB28: 0 | BC28: 0 | BF28: 0 | BG28: 0 | BH28: 0 | BK28: 0 | BL28: 0 | BM28: 0 | BO28: 23 | BP28: 8 | BQ28: 0 | BR28: =IF($F23=7,1,0) -> 0 | BS28: =IF($F23=6,1,0) -> 0 | BT28: =IF($F23=5,1,0) -> 0 | BU28: =IF($F23=4,1,0) -> 0 | BV28: =IF($F23=3,1,0) -> 0 | BW28: =IF($F23=2,1,0) -> 1 | BX28: =IF($F23=1,1,0) -> 0
A29: 24 | B29: Christiansen | C29: Aleksandra | D29: Try | E29: 21 | F29: 1 | K29: 15 | Q29: 21 | AB29: 0 | AC29: 0 | AD29: 0 | AG29: 0 | AH29: 0 | AI29: 0 | AL29: 0 | AM29: 0 | AN29: 0 | AP29: 15 | AQ29: 16 | AR29: 5 | AS29: 21 | AV29: 0 | AW29: 0 | AX29: 0 | BA29: 0 | BB29: 0 | BC29: 0 | BF29: 0 | BG29: 0 | BH29: 0 | BK29: 0 | BL29: 0 | BM29: 0 | BO29: 24 | BP29: 7 | BQ29: 0 | BR29: =IF($F24=7,1,0) -> 0 | BS29: =IF($F24=6,1,0) -> 0 | BT29: =IF($F24=5,1,0) -> 0 | BU29: =IF($F24=4,1,0) -> 0 | BV29: =IF($F24=3,1,0) -> 0 | BW29: =IF($F24=2,1,0) -> 1 | BX29: =IF($F24=1,1,0) -> 0
A30: 25 | B30: Karlstrøm | C30: Tomine | D30: Heming | E30: 20 | F30: 1 | J30: 16 | Q30: 20 | AB30: 0 | AC30: 0 | AD30: 0 | AG30: 0 | AH30: 0 | AI30: 0 | AK30: 16 | AL30: 15 | AM30: 5 | AN30: 20 | AQ30: 0 | AR30: 0 | AS30: 0 | AV30: 0 | AW30: 0 | AX30: 0 | BA30: 0 | BB30: 0 | BC30: 0 | BF30: 0 | BG30: 0 | BH30: 0 | BK30: 0 | BL30: 0 | BM30: 0 | BO30: 25 | BP30: 6 | BQ30: 0 | BR30: =IF($F25=7,1,0) -> 0 | BS30: =IF($F25=6,1,0) -> 0 | BT30: =IF($F25=5,1,0) -> 0 | BU30: =IF($F25=4,1,0) -> 0 | BV30: =IF($F25=3,1,0) -> 0 | BW30: =IF($F25=2,1,0) -> 1 | BX30: =IF($F25=1,1,0) -> 0
A31: 26 | B31: Gras | C31: Anais | D31: Ljan | E31: 5 | F31: 1 | I31: dsq | Q31: 5 | AB31: 0 | AC31: 0 | AD31: 0 | AF31: dsq | AG31: 0 | AH31: 5 | AI31: 5 | AL31: 0 | AM31: 0 | AN31: 0 | AQ31: 0 | AR31: 0 | AS31: 0 | AV31: 0 | AW31: 0 | AX31: 0 | BA31: 0 | BB31: 0 | BC31: 0 | BF31: 0 | BG31: 0 | BH31: 0 | BK31: 0 | BL31: 0 | BM31: 0 | BO31: 26 | BP31: 5 | BQ31: 0 | BR31: =IF($F25=7,1,0) -> 0 | BS31: =IF($F25=6,1,0) -> 0 | BT31: =IF($F25=5,1,0) -> 0 | BU31: =IF($F25=4,1,0) -> 0 | BV31: =IF($F25=3,1,0) -> 0 | BW31: =IF($F25=2,1,0) -> 1 | BX31: =IF($F25=1,1,0) -> 0
A32: 27 | E32: 0 | F32: 0 | Q32: 0 | AB32: 0 | AC32: 0 | AD32: 0 | AG32: 0 | AH32: 0 | AI32: 0 | AL32: 0 | AM32: 0 | AN32: 0 | AQ32: 0 | AR32: 0 | AS32: 0 | AV32: 0 | AW32: 0 | AX32: 0 | BA32: 0 | BB32: 0 | BC32: 0 | BF32: 0 | BG32: 0 | BH32: 0 | BK32: 0 | BL32: 0 | BM32: 0 | BO32: 27 | BP32: 4 | BQ32: 0 | BR32: =IF($F26=7,1,0) -> 0 | BS32: =IF($F26=6,1,0) -> 0 | BT32: =IF($F26=5,1,0) -> 0 | BU32: =IF($F26=4,1,0) -> 0 | BV32: =IF($F26=3,1,0) -> 0 | BW32: =IF($F26=2,1,0) -> 1 | BX32: =IF($F26=1,1,0) -> 0
A33: 27 | E33: 0 | F33: 0 | Q33: 0 | AB33: 0 | AC33: 0 | AD33: 0 | AG33: 0 | AH33: 0 | AI33: 0 | AL33: 0 | AM33: 0 | AN33: 0 | AQ33: 0 | AR33: 0 | AS33: 0 | AV33: 0 | AW33: 0 | AX33: 0 | BA33: 0 | BB33: 0 | BC33: 0 | BF33: 0 | BG33: 0 | BH33: 0 | BK33: 0 | BL33: 0 | BM33: 0 | BO33: 28 | BP33: 3 | BQ33: 0 | BR33: 0 | BS33: 0 | BT33: 0 | BU33: 0 | BV33: 0 | BW33: 1 | BX33: 0
A34: 27 | E34: 0 | F34: 0 | Q34: 0 | AB34: 0 | AC34: 0 | AD34: 0 | AG34: 0 | AH34: 0 | AI34: 0 | AL34: 0 | AM34: 0 | AN34: 0 | AQ34: 0 | AR34: 0 | AS34: 0 | AV34: 0 | AW34: 0 | AX34: 0 | BA34: 0 | BB34: 0 | BC34: 0 | BF34: 0 | BG34: 0 | BH34: 0 | BK34: 0 | BL34: 0 | BM34: 0 | BO34: 29 | BP34: 2 | BQ34: 0 | BR34: 0 | BS34: 0 | BT34: 0 | BU34: 0 | BV34: 0 | BW34: 1 | BX34: 0
A35: 27 | E35: 0 | F35: 0 | Q35: 0 | AB35: 0 | AC35: 0 | AD35: 0 | AG35: 0 | AH35: 0 | AI35: 0 | AL35: 0 | AM35: 0 | AN35: 0 | AQ35: 0 | AR35: 0 | AS35: 0 | AV35: 0 | AW35: 0 | AX35: 0 | BA35: 0 | BB35: 0 | BC35: 0 | BF35: 0 | BG35: 0 | BH35: 0 | BK35: 0 | BL35: 0 | BM35: 0 | BO35: 30 | BP35: 1 | BQ35: 0 | BR35: =IF($F26=7,1,0) -> 0 | BS35: =IF($F26=6,1,0) -> 0 | BT35: =IF($F26=5,1,0) -> 0 | BU35: =IF($F26=4,1,0) -> 0 | BV35: =IF($F26=3,1,0) -> 0 | BW35: =IF($F26=2,1,0) -> 1 | BX35: =IF($F26=1,1,0) -> 0
A36: 27 | E36: 0 | F36: 0 | Q36: 0 | AB36: 0 | AC36: 0 | AD36: 0 | AG36: 0 | AH36: 0 | AI36: 0 | AL36: 0 | AM36: 0 | AN36: 0 | AQ36: 0 | AR36: 0 | AS36: 0 | AV36: 0 | AW36: 0 | AX36: 0 | BA36: 0 | BB36: 0 | BC36: 0 | BF36: 0 | BG36: 0 | BH36: 0 | BK36: 0 | BL36: 0 | BM36: 0 | BO36: 31 | BP36: 0 | BQ36: 0 | BR36: 0 | BS36: 0 | BT36: 0 | BU36: 0 | BV36: 0 | BW36: 1 | BX36: 0
A37: 27 | E37: 0 | F37: 0 | M37: =IF(AU37="","",AU37) ->  | N37: =IF(AZ37="","",AZ37) ->  | O37: =IF(BE37="","",BE37) ->  | Q37: 0 | R37: =IF($F28>=5,IF(AB37="","",AB37),"") ->  | S37: =IF($F28>=5,IF(AG37="","",AG37),"") ->  | T37: =IF($F28>=5,IF(AL37="","",AL37),"") ->  | U37: =IF($F28>=5,IF(AQ37="","",AQ37),"") ->  | W37: =IF($F28>=5,IF(AV37="","",AV37),"") ->  | X37: =IF($F28>=5,IF(BA37="","",BA37),"") ->  | Y37: =IF($F28>=5,IF(BF37="","",BF37),"") ->  | AB37: 0 | AC37: 0 | AD37: 0 | AG37: 0 | AH37: 0 | AI37: 0 | AL37: 0 | AM37: 0 | AN37: 0 | AQ37: 0 | AR37: 0 | AS37: 0 | AV37: 0 | AW37: 0 | AX37: 0 | BA37: 0 | BB37: 0 | BC37: 0 | BF37: 0 | BG37: 0 | BH37: 0 | BK37: 0 | BL37: 0 | BM37: 0 | BO37: 32 | BP37: 0 | BQ37: 0 | BR37: 0 | BS37: 0 | BT37: 0 | BU37: 0 | BV37: 0 | BW37: 1 | BX37: 0
A38: 27 | E38: 0 | F38: 0 | M38: =IF(AU38="","",AU38) ->  | N38: =IF(AZ38="","",AZ38) ->  | O38: =IF(BE38="","",BE38) ->  | Q38: 0 | R38: =IF($F29>=5,IF(AB38="","",AB38),"") ->  | S38: =IF($F29>=5,IF(AG38="","",AG38),"") ->  | T38: =IF($F29>=5,IF(AL38="","",AL38),"") ->  | W38: =IF($F29>=5,IF(AV38="","",AV38),"") ->  | X38: =IF($F29>=5,IF(BA38="","",BA38),"") ->  | Y38: =IF($F29>=5,IF(BF38="","",BF38),"") ->  | AB38: 0 | AC38: 0 | AD38: 0 | AG38: 0 | AH38: 0 | AI38: 0 | AL38: 0 | AM38: 0 | AN38: 0 | AQ38: 0 | AR38: 0 | AS38: 0 | AV38: 0 | AW38: 0 | AX38: 0 | BA38: 0 | BB38: 0 | BC38: 0 | BF38: 0 | BG38: 0 | BH38: 0 | BK38: 0 | BL38: 0 | BM38: 0 | BO38: 33 | BP38: 0 | BQ38: 0 | BR38: 0 | BS38: 0 | BT38: 0 | BU38: 0 | BV38: 0 | BW38: 0 | BX38: 1
A39: 27 | E39: 0 | F39: 0 | M39: =IF(AU39="","",AU39) ->  | N39: =IF(AZ39="","",AZ39) ->  | O39: =IF(BE39="","",BE39) ->  | Q39: 0 | R39: =IF($F30>=5,IF(AB39="","",AB39),"") ->  | S39: =IF($F30>=5,IF(AG39="","",AG39),"") ->  | T39: =IF($F30>=5,IF(AL39="","",AL39),"") ->  | W39: =IF($F30>=5,IF(AV39="","",AV39),"") ->  | X39: =IF($F30>=5,IF(BA39="","",BA39),"") ->  | Y39: =IF($F30>=5,IF(BF39="","",BF39),"") ->  | AB39: 0 | AC39: 0 | AD39: 0 | AG39: 0 | AH39: 0 | AI39: 0 | AL39: 0 | AM39: 0 | AN39: 0 | AQ39: 0 | AR39: 0 | AS39: 0 | AV39: 0 | AW39: 0 | AX39: 0 | BA39: 0 | BB39: 0 | BC39: 0 | BF39: 0 | BG39: 0 | BH39: 0 | BK39: 0 | BL39: 0 | BM39: 0 | BO39: 34 | BP39: 0 | BQ39: 0 | BR39: 0 | BS39: 0 | BT39: 0 | BU39: 0 | BV39: 0 | BW39: 0 | BX39: 1
A40: 27 | E40: 0 | F40: 0 | M40: =IF(AU40="","",AU40) ->  | N40: =IF(AZ40="","",AZ40) ->  | O40: =IF(BE40="","",BE40) ->  | Q40: 0 | R40: =IF($F31>=5,IF(AB40="","",AB40),"") ->  | S40: =IF($F31>=5,IF(AG40="","",AG40),"") ->  | T40: =IF($F31>=5,IF(AL40="","",AL40),"") ->  | W40: =IF($F31>=5,IF(AV40="","",AV40),"") ->  | X40: =IF($F31>=5,IF(BA40="","",BA40),"") ->  | Y40: =IF($F31>=5,IF(BF40="","",BF40),"") ->  | AB40: 0 | AC40: 0 | AD40: 0 | AG40: 0 | AH40: 0 | AI40: 0 | AL40: 0 | AM40: 0 | AN40: 0 | AQ40: 0 | AR40: 0 | AS40: 0 | AV40: 0 | AW40: 0 | AX40: 0 | BA40: 0 | BB40: 0 | BC40: 0 | BF40: 0 | BG40: 0 | BH40: 0 | BK40: 0 | BL40: 0 | BM40: 0 | BO40: 35 | BP40: 0 | BQ40: 0 | BR40: 0 | BS40: 0 | BT40: 0 | BU40: 0 | BV40: 0 | BW40: 0 | BX40: 1
A41: 27 | E41: 0 | F41: 0 | M41: =IF(AU41="","",AU41) ->  | N41: =IF(AZ41="","",AZ41) ->  | O41: =IF(BE41="","",BE41) ->  | Q41: 0 | R41: =IF($F32>=5,IF(AB41="","",AB41),"") ->  | S41: =IF($F32>=5,IF(AG41="","",AG41),"") ->  | T41: =IF($F32>=5,IF(AL41="","",AL41),"") ->  | W41: =IF($F32>=5,IF(AV41="","",AV41),"") ->  | X41: =IF($F32>=5,IF(BA41="","",BA41),"") ->  | Y41: =IF($F32>=5,IF(BF41="","",BF41),"") ->  | AB41: 0 | AC41: 0 | AD41: 0 | AG41: 0 | AH41: 0 | AI41: 0 | AL41: 0 | AM41: 0 | AN41: 0 | AQ41: 0 | AR41: 0 | AS41: 0 | AV41: 0 | AW41: 0 | AX41: 0 | BA41: 0 | BB41: 0 | BC41: 0 | BF41: 0 | BG41: 0 | BH41: 0 | BK41: 0 | BL41: 0 | BM41: 0 | BO41: 36 | BP41: 0 | BQ41: 0 | BR41: 0 | BS41: 0 | BT41: 0 | BU41: 0 | BV41: 0 | BW41: 0 | BX41: 0
H42: =IF(AA42="","",AA42) ->  | I42: =IF(AF42="","",AF42) ->  | J42: =IF(AK42="","",AK42) ->  | K42: =IF(AP42="","",AP42) ->  | L42: =IF(AU42="","",AU42) ->  | M42: =IF(AU42="","",AU42) ->  | N42: =IF(AZ42="","",AZ42) ->  | O42: =IF(BE42="","",BE42) ->  | Q42: =AD42+AI42+AN42+AS42+AX42+BC42+BH42 -> 0 | R42: =IF($F33>=5,IF(AB42="","",AB42),"") ->  | S42: =IF($F33>=5,IF(AG42="","",AG42),"") ->  | T42: =IF($F33>=5,IF(AL42="","",AL42),"") ->  | U42: =IF($F33>=5,IF(AQ42="","",AQ42),"") ->  | W42: =IF($F33>=5,IF(AV42="","",AV42),"") ->  | X42: =IF($F33>=5,IF(BA42="","",BA42),"") ->  | Y42: =IF($F33>=5,IF(BF42="","",BF42),"") ->  | AB42: =IF(ISNUMBER(AA42),(VLOOKUP(AA42,$BO$6:$BP$50,2)),0) -> 0 | AC42: =IF(AA42<>"",5,0) -> 0 | AD42: =AB42+AC42 -> 0 | AG42: =IF(ISNUMBER(AF42),(VLOOKUP(AF42,$BO$6:$BP$50,2)),0) -> 0 | AH42: =IF(AF42<>"",5,0) -> 0 | AI42: =AG42+AH42 -> 0 | AL42: =IF(ISNUMBER(AK42),(VLOOKUP(AK42,$BO$6:$BP$50,2)),0) -> 0 | AM42: =IF(AK42<>"",5,0) -> 0 | AN42: =AL42+AM42 -> 0 | AQ42: =IF(ISNUMBER(AP42),(VLOOKUP(AP42,$BO$6:$BP$50,2)),0) -> 0 | AR42: =IF(AP42<>"",5,0) -> 0 | AS42: =AQ42+AR42 -> 0 | AV42: =IF(ISNUMBER(AU42),(VLOOKUP(AU42,$BO$6:$BP$50,2)),0) -> 0 | AW42: =IF(AU42<>"",5,0) -> 0 | AX42: =AV42+AW42 -> 0 | BA42: =IF(ISNUMBER(AZ42),(VLOOKUP(AZ42,$BO$6:$BP$50,2)),0) -> 0 | BB42: =IF(AZ42<>"",5,0) -> 0 | BC42: =BA42+BB42 -> 0 | BF42: =IF(ISNUMBER(BE42),(VLOOKUP(BE42,$BO$6:$BP$50,2)),0) -> 0 | BG42: =IF(BE42<>"",5,0) -> 0 | BH42: =BF42+BG42 -> 0 | BK42: =IF(ISNUMBER(BJ42),(VLOOKUP(BJ42,$BO$6:$BP$50,2)),0) -> 0 | BL42: =IF(BJ42<>"",5,0) -> 0 | BM42: =BK42+BL42 -> 0 | BO42: 37 | BP42: 0 | BQ42: 0 | BR42: 0 | BS42: 0 | BT42: 0 | BU42: 0 | BV42: 0 | BW42: 0 | BX42: 0
Q43: 0 | AB43: 0 | AC43: 0 | AD43: 0 | AG43: 0 | AH43: 0 | AI43: 0 | AL43: 0 | AM43: 0 | AN43: 0 | AQ43: 0 | AR43: 0 | AS43: 0 | AV43: 0 | AW43: 0 | AX43: 0 | BA43: 0 | BB43: 0 | BC43: 0 | BF43: 0 | BG43: 0 | BH43: 0 | BK43: 0 | BL43: 0 | BM43: 0 | BO43: 38 | BP43: 0 | BQ43: 0 | BR43: 0 | BS43: 0 | BT43: 0 | BU43: 0 | BV43: 0 | BW43: 0 | BX43: 0
Q44: 0 | AB44: 0 | AC44: 0 | AD44: 0 | AG44: 0 | AH44: 0 | AI44: 0 | AL44: 0 | AM44: 0 | AN44: 0 | AQ44: 0 | AR44: 0 | AS44: 0 | AV44: 0 | AW44: 0 | AX44: 0 | BA44: 0 | BB44: 0 | BC44: 0 | BF44: 0 | BG44: 0 | BH44: 0 | BK44: 0 | BL44: 0 | BM44: 0 | BO44: 39 | BP44: 0 | BQ44: 0 | BR44: 0 | BS44: 0 | BT44: 0 | BU44: 0 | BV44: 0 | BW44: 0 | BX44: 0
Q45: 0 | AB45: 0 | AC45: 0 | AD45: 0 | AG45: 0 | AH45: 0 | AI45: 0 | AL45: 0 | AM45: 0 | AN45: 0 | AQ45: 0 | AR45: 0 | AS45: 0 | AV45: 0 | AW45: 0 | AX45: 0 | BA45: 0 | BB45: 0 | BC45: 0 | BF45: 0 | BG45: 0 | BH45: 0 | BK45: 0 | BL45: 0 | BM45: 0 | BO45: 40 | BP45: 0 | BQ45: 0 | BR45: 0 | BS45: 0 | BT45: 0 | BU45: 0 | BV45: 0 | BW45: 0 | BX45: 0
Q46: 0 | AB46: 0 | AC46: 0 | AD46: 0 | AG46: 0 | AH46: 0 | AI46: 0 | AL46: 0 | AM46: 0 | AN46: 0 | AQ46: 0 | AR46: 0 | AS46: 0 | AV46: 0 | AW46: 0 | AX46: 0 | BA46: 0 | BB46: 0 | BC46: 0 | BF46: 0 | BG46: 0 | BH46: 0 | BK46: 0 | BL46: 0 | BM46: 0 | BO46: 41 | BP46: 0 | BQ46: 0 | BR46: 0 | BS46: 0 | BT46: 0 | BU46: 0 | BV46: 0 | BW46: 0 | BX46: 0
Q47: 0 | AB47: 0 | AC47: 0 | AD47: 0 | AG47: 0 | AH47: 0 | AI47: 0 | AL47: 0 | AM47: 0 | AN47: 0 | AQ47: 0 | AR47: 0 | AS47: 0 | AV47: 0 | AW47: 0 | AX47: 0 | BA47: 0 | BB47: 0 | BC47: 0 | BF47: 0 | BG47: 0 | BH47: 0 | BK47: 0 | BL47: 0 | BM47: 0 | BO47: 42 | BP47: 0 | BQ47: 0 | BR47: 0 | BS47: 0 | BT47: 0 | BU47: 0 | BV47: 0 | BW47: 0 | BX47: 0
Q48: 0 | AB48: 0 | AC48: 0 | AD48: 0 | AG48: 0 | AH48: 0 | AI48: 0 | AL48: 0 | AM48: 0 | AN48: 0 | AQ48: 0 | AR48: 0 | AS48: 0 | AV48: 0 | AW48: 0 | AX48: 0 | BA48: 0 | BB48: 0 | BC48: 0 | BF48: 0 | BG48: 0 | BH48: 0 | BK48: 0 | BL48: 0 | BM48: 0 | BO48: 43 | BP48: 0 | BQ48: 0 | BR48: 0 | BS48: 0 | BT48: 0 | BU48: 0 | BV48: 0 | BW48: 0 | BX48: 0
Q49: 0 | AB49: 0 | AC49: 0 | AD49: 0 | AG49: 0 | AH49: 0 | AI49: 0 | AL49: 0 | AM49: 0 | AN49: 0 | AQ49: 0 | AR49: 0 | AS49: 0 | AV49: 0 | AW49: 0 | AX49: 0 | BA49: 0 | BB49: 0 | BC49: 0 | BF49: 0 | BG49: 0 | BH49: 0 | BK49: 0 | BL49: 0 | BM49: 0 | BO49: 44 | BP49: 0 | BQ49: 0 | BR49: 0 | BS49: 0 | BT49: 0 | BU49: 0 | BV49: 0 | BW49: 0 | BX49: 0
Q50: 0 | AI50: 0 | AN50: 0 | AS50: 0 | AX50: 0 | BC50: 0 | BH50: 0 | BM50: 0 | BO50: 45 | BP50: 0 | BQ50: 0 | BR50: 0 | BS50: 0 | BT50: 0 | BU50: 0 | BV50: 0 | BW50: 0 | BX50: 0
Q51: 0 | AI51: 0 | AN51: 0 | AS51: 0 | AX51: 0 | BC51: 0 | BH51: 0 | BM51: 0 | BO51: 46 | BP51: 0 | BQ51: 0 | BR51: =IF($F42=7,1,0) -> 0 | BS51: 0 | BT51: 0 | BU51: 0 | BV51: 0 | BW51: 0 | BX51: 0
Q52: 0 | AI52: 0 | AN52: 0 | AS52: 0 | AX52: 0 | BC52: 0 | BH52: 0 | BM52: 0 | BO52: 47 | BP52: 0 | BQ52: 0 | BR52: 0 | BS52: 0 | BT52: 0 | BU52: 0 | BV52: 0 | BW52: 0 | BX52: 0
BO53: 48 | BP53: 0

Sheet G11 2018
A1: Resultatliste Oslo Cup 2018 - Gutter 11 år
A2: ='Forside 2018'!A2 -> Etter 4 av 8 renn
H3: IRS Rennet | I3: Ljan Rennet | J3: Njård Rennet | K3: Ready Rennet | L3: Telenor Arena Cup | M3: Euro-tecfarten | N3: Oslo Alpinfestival SL | O3: Oslo Alpinfestival SSL | R3: IRS Rennet | S3: Ljan Rennet | T3: Njård Rennet | U3: Ready Rennet | V3: Telenor Arena Cup | W3: Euro-tecfarten | X3: Oslo Alpinfestival SL | Y3: Oslo Alpinfestival SSL | AA3: --------IRS Rennet---------- | AF3: ----------Ljan Rennet--------- | AK3: --------Njård Rennet---------- | AP3: --------Ready Rennet--------- | AU3: -----Telenor Arena Cup---- | AZ3: ------Euro-tecfarten-------- | BE3: ---Oslo Alpinfestival SL--- | BJ3: ---Oslo Alpinfestival SSL---
F4: Antall | H4: 2016-02-04 | I4: 2016-02-05 | J4: 2016-02-10 | K4: 2016-02-11 | L4: 2016-02-15 | M4: 2016-03-01 | N4: 2017-03-11 | O4: 2016-03-12 | Q4: Poeng | R4: 2016-02-04 | S4: 2016-02-05 | T4: 2016-02-10 | U4: 2016-02-11 | V4: 2016-02-15 | W4: 2016-03-01 | X4: 2017-03-11 | Y4: 2016-03-12 | AB4: --------Poeng-------- | AG4: --------Poeng-------- | AL4: -------Poeng--------- | AQ4: -------Poeng--------- | AV4: -------Poeng--------- | BA4: -------Poeng--------- | BF4: -------Poeng--------- | BK4: -------Poeng--------- | BQ4: Løpere med | BR4: Løpere med | BS4: Løpere med | BT4: Løpere med | BU4: Løpere med | BV4: Løpere med | BW4: Løpere med | BX4: Løpere med
A5: Plass | B5: Etternavn | C5: Fornavn | D5: Klubb | E5: Poeng | F5: renn | H5: ------------------------------Plassering i rennene--------------------------------- | Q5: brutto | R5: ----------------Resultatpoeng hvis mer enn 4 renn---------------- | AA5: Plass | AB5: Res. | AC5: Del. | AD5: Tot. | AF5: Plass | AG5: Res. | AH5: Del. | AI5: Tot. | AK5: Plass | AL5: Res. | AM5: Del. | AN5: Tot. | AP5: Plass | AQ5: Res. | AR5: Del. | AS5: Tot. | AU5: Plass | AV5: Res. | AW5: Del. | AX5: Tot. | AZ5: Plass | BA5: Res. | BB5: Del. | BC5: Tot. | BE5: Plass | BF5: Res. | BG5: Del. | BH5: Tot. | BJ5: Plass | BK5: Res. | BL5: Del. | BM5: Tot. | BO5: Plass | BP5: Poeng | BQ5: 8 renn | BR5: 7 renn | BS5: 6 renn | BT5: 5 renn | BU5: 4 renn | BV5: 3 renn | BW5: 2 renn | BX5: kun 1 renn
A6: =IF(E6<E5,BO6,A5) -> 1 | B6: Danielsen | C6: Didrik Heggelund | D6: Ullensaker | E6: =Q6 -> 380 | F6: =(IF(AC6=5,1,0)+IF(AH6=5,1,0)+IF(AM6=5,1,0)+IF(AR6=5,1,0)+IF(AW6=5,1,0)+IF(BA6=5,1,0)+IF(BG6=5,1,0)+IF(BL6=5,1,0)) -> 4 | H6: =IF(AA6="","",AA6) -> 1 | I6: =IF(AF6="","",AF6) -> 1 | J6: =IF(AK6="","",AK6) -> 2 | K6: =IF(AP6="","",AP6) -> 2 | L6: =IF(AU6="","",AU6) ->  | M6: =IF(AZ6="","",AZ6) ->  | N6: =IF(BE6="","",BE6) ->  | O6: =IF(BJ6="","",BJ6) ->  | Q6: =AD6+AI6+AN6+AS6+AX6+BC6+BH6 -> 380 | R6: =IF($F6>=5,IF(AB6="","",AB6),"") ->  | S6: =IF($F6>=5,IF(AG6="","",AG6),"") ->  | T6: =IF($F6>=5,IF(AL6="","",AL6),"") ->  | U6: =IF($F6>=5,IF(AQ6="","",AQ6),"") ->  | V6: =IF($F6>=5,IF(AV6="","",AV6),"") ->  | W6: =IF($F6>=5,IF(BA6="","",BA6),"") ->  | X6: =IF($F6>=5,IF(BF6="","",BF6),"") ->  | Y6: =IF($F6>=5,IF(BK6="","",BK6),"") ->  | AA6: 1 | AB6: =IF(ISNUMBER(AA6),(VLOOKUP(AA6,$BO$6:$BP$50,2)),0) -> 100 | AC6: =IF(AA6<>"",5,0) -> 5 | AD6: =AB6+AC6 -> 105 | AF6: 1 | AG6: =IF(ISNUMBER(AF6),(VLOOKUP(AF6,$BO$6:$BP$50,2)),0) -> 100 | AH6: =IF(AF6<>"",5,0) -> 5 | AI6: =AG6+AH6 -> 105 | AK6: 2 | AL6: =IF(ISNUMBER(AK6),(VLOOKUP(AK6,$BO$6:$BP$50,2)),0) -> 80 | AM6: =IF(AK6<>"",5,0) -> 5 | AN6: =AL6+AM6 -> 85 | AP6: 2 | AQ6: =IF(ISNUMBER(AP6),(VLOOKUP(AP6,$BO$6:$BP$50,2)),0) -> 80 | AR6: =IF(AP6<>"",5,0) -> 5 | AS6: =AQ6+AR6 -> 85 | AV6: =IF(ISNUMBER(AU6),(VLOOKUP(AU6,$BO$6:$BP$50,2)),0) -> 0 | AW6: =IF(AU6<>"",5,0) -> 0 | AX6: =AV6+AW6 -> 0 | BA6: =IF(ISNUMBER(AZ6),(VLOOKUP(AZ6,$BO$6:$BP$50,2)),0) -> 0 | BB6: =IF(AZ6<>"",5,0) -> 0 | BC6: =BA6+BB6 -> 0 | BF6: =IF(ISNUMBER(BE6),(VLOOKUP(BE6,$BO$6:$BP$50,2)),0) -> 0 | BG6: =IF(BE6<>"",5,0) -> 0 | BH6: =BF6+BG6 -> 0 | BK6: =IF(ISNUMBER(BJ6),(VLOOKUP(BJ6,$BO$6:$BP$50,2)),0) -> 0 | BL6: =IF(BJ6<>"",5,0) -> 0 | BM6: =BK6+BL6 -> 0 | BO6: 1 | BP6: 100 | BQ6: =IF($F6=8,1,0) -> 0 | BR6: =IF($F6=7,1,0) -> 0 | BS6: =IF($F6=6,1,0) -> 0 | BT6: =IF($F6=5,1,0) -> 0 | BU6: =IF($F6=4,1,0) -> 1 | BV6: =IF($F6=3,1,0) -> 0 | BW6: =IF($F6=2,1,0) -> 0 | BX6: =IF($F6=1,1,0) -> 0
A7: =IF(E7<E6,BO7,A6) -> 2 | B7: Øslebø | C7: Kristoffer | D7: Ready | E7: =Q7 -> 240 | F7: =(IF(AC7=5,1,0)+IF(AH7=5,1,0)+IF(AM7=5,1,0)+IF(AR7=5,1,0)+IF(AW7=5,1,0)+IF(BA7=5,1,0)+IF(BG7=5,1,0)+IF(BL7=5,1,0)) -> 4 | H7: =IF(AA7="","",AA7) -> 3 | I7: =IF(AF7="","",AF7) -> 3 | J7: =IF(AK7="","",AK7) -> 4 | K7: =IF(AP7="","",AP7) -> 4 | L7: =IF(AU7="","",AU7) ->  | M7: =IF(AZ7="","",AZ7) ->  | N7: =IF(BE7="","",BE7) ->  | O7: =IF(BJ7="","",BJ7) ->  | Q7: =AD7+AI7+AN7+AS7+AX7+BC7+BH7 -> 240 | R7: =IF($F7>=5,IF(AB7="","",AB7),"") ->  | S7: =IF($F7>=5,IF(AG7="","",AG7),"") ->  | T7: =IF($F7>=5,IF(AL7="","",AL7),"") ->  | U7: =IF($F7>=5,IF(AQ7="","",AQ7),"") ->  | V7: =IF($F7>=5,IF(AV7="","",AV7),"") ->  | W7: =IF($F7>=5,IF(BA7="","",BA7),"") ->  | X7: =IF($F7>=5,IF(BF7="","",BF7),"") ->  | Y7: =IF($F7>=5,IF(BK7="","",BK7),"") ->  | AA7: 3 | AB7: =IF(ISNUMBER(AA7),(VLOOKUP(AA7,$BO$6:$BP$50,2)),0) -> 60 | AC7: =IF(AA7<>"",5,0) -> 5 | AD7: =AB7+AC7 -> 65 | AF7: 3 | AG7: =IF(ISNUMBER(AF7),(VLOOKUP(AF7,$BO$6:$BP$50,2)),0) -> 60 | AH7: =IF(AF7<>"",5,0) -> 5 | AI7: =AG7+AH7 -> 65 | AK7: 4 | AL7: =IF(ISNUMBER(AK7),(VLOOKUP(AK7,$BO$6:$BP$50,2)),0) -> 50 | AM7: =IF(AK7<>"",5,0) -> 5 | AN7: =AL7+AM7 -> 55 | AP7: 4 | AQ7: =IF(ISNUMBER(AP7),(VLOOKUP(AP7,$BO$6:$BP$50,2)),0) -> 50 | AR7: =IF(AP7<>"",5,0) -> 5 | AS7: =AQ7+AR7 -> 55 | AV7: =IF(ISNUMBER(AU7),(VLOOKUP(AU7,$BO$6:$BP$50,2)),0) -> 0 | AW7: =IF(AU7<>"",5,0) -> 0 | AX7: =AV7+AW7 -> 0 | BA7: =IF(ISNUMBER(AZ7),(VLOOKUP(AZ7,$BO$6:$BP$50,2)),0) -> 0 | BB7: =IF(AZ7<>"",5,0) -> 0 | BC7: =BA7+BB7 -> 0 | BF7: =IF(ISNUMBER(BE7),(VLOOKUP(BE7,$BO$6:$BP$50,2)),0) -> 0 | BG7: =IF(BE7<>"",5,0) -> 0 | BH7: =BF7+BG7 -> 0 | BK7: =IF(ISNUMBER(BJ7),(VLOOKUP(BJ7,$BO$6:$BP$50,2)),0) -> 0 | BL7: =IF(BJ7<>"",5,0) -> 0 | BM7: =BK7+BL7 -> 0 | BO7: 2 | BP7: 80 | BQ7: =IF($F7=8,1,0) -> 0 | BR7: 0 | BS7: 0 | BT7: 0 | BU7: 1 | BV7: 0 | BW7: 0 | BX7: 0
A8: =IF(E8<E7,BO8,A7) -> 3 | B8: Lien | C8: Johan Oscar | D8: Heming | E8: =Q8 -> 210 | F8: =(IF(AC8=5,1,0)+IF(AH8=5,1,0)+IF(AM8=5,1,0)+IF(AR8=5,1,0)+IF(AW8=5,1,0)+IF(BA8=5,1,0)+IF(BG8=5,1,0)+IF(BL8=5,1,0)) -> 4 | H8: =IF(AA8="","",AA8) -> 5 | I8: =IF(AF8="","",AF8) -> 5 | J8: =IF(AK8="","",AK8) -> 1 | K8: =IF(AP8="","",AP8) -> dnf | L8: =IF(AU8="","",AU8) ->  | M8: =IF(AZ8="","",AZ8) ->  | N8: =IF(BE8="","",BE8) ->  | O8: =IF(BJ8="","",BJ8) ->  | Q8: =AD8+AI8+AN8+AS8+AX8+BC8+BH8 -> 210 | R8: =IF($F8>=5,IF(AB8="","",AB8),"") ->  | S8: =IF($F8>=5,IF(AG8="","",AG8),"") ->  | T8: =IF($F8>=5,IF(AL8="","",AL8),"") ->  | U8: =IF($F8>=5,IF(AQ8="","",AQ8),"") ->  | V8: =IF($F8>=5,IF(AV8="","",AV8),"") ->  | W8: =IF($F8>=5,IF(BA8="","",BA8),"") ->  | X8: =IF($F8>=5,IF(BF8="","",BF8),"") ->  | Y8: =IF($F8>=5,IF(BK8="","",BK8),"") ->  | AA8: 5 | AB8: =IF(ISNUMBER(AA8),(VLOOKUP(AA8,$BO$6:$BP$50,2)),0) -> 45 | AC8: =IF(AA8<>"",5,0) -> 5 | AD8: =AB8+AC8 -> 50 | AF8: 5 | AG8: =IF(ISNUMBER(AF8),(VLOOKUP(AF8,$BO$6:$BP$50,2)),0) -> 45 | AH8: =IF(AF8<>"",5,0) -> 5 | AI8: =AG8+AH8 -> 50 | AK8: 1 | AL8: =IF(ISNUMBER(AK8),(VLOOKUP(AK8,$BO$6:$BP$50,2)),0) -> 100 | AM8: =IF(AK8<>"",5,0) -> 5 | AN8: =AL8+AM8 -> 105 | AP8: dnf | AQ8: =IF(ISNUMBER(AP8),(VLOOKUP(AP8,$BO$6:$BP$50,2)),0) -> 0 | AR8: =IF(AP8<>"",5,0) -> 5 | AS8: =AQ8+AR8 -> 5 | AV8: =IF(ISNUMBER(AU8),(VLOOKUP(AU8,$BO$6:$BP$50,2)),0) -> 0 | AW8: =IF(AU8<>"",5,0) -> 0 | AX8: =AV8+AW8 -> 0 | BA8: =IF(ISNUMBER(AZ8),(VLOOKUP(AZ8,$BO$6:$BP$50,2)),0) -> 0 | BB8: =IF(AZ8<>"",5,0) -> 0 | BC8: =BA8+BB8 -> 0 | BF8: =IF(ISNUMBER(BE8),(VLOOKUP(BE8,$BO$6:$BP$50,2)),0) -> 0 | BG8: =IF(BE8<>"",5,0) -> 0 | BH8: =BF8+BG8 -> 0 | BK8: =IF(ISNUMBER(BJ8),(VLOOKUP(BJ8,$BO$6:$BP$50,2)),0) -> 0 | BL8: =IF(BJ8<>"",5,0) -> 0 | BM8: =BK8+BL8 -> 0 | BO8: 3 | BP8: 60 | BQ8: 0 | BR8: 0 | BS8: 0 | BT8: 0 | BU8: 1 | BV8: 0 | BW8: 0 | BX8: 0
A9: =IF(E9<E8,BO9,A8) -> 4 | B9: Hagen | C9: Storm | D9: Kjelsås | E9: =Q9 -> 191 | F9: =(IF(AC9=5,1,0)+IF(AH9=5,1,0)+IF(AM9=5,1,0)+IF(AR9=5,1,0)+IF(AW9=5,1,0)+IF(BA9=5,1,0)+IF(BG9=5,1,0)+IF(BL9=5,1,0)) -> 3 | H9: =IF(AA9="","",AA9) ->  | I9: =IF(AF9="","",AF9) -> 2 | J9: =IF(AK9="","",AK9) -> 7 | K9: =IF(AP9="","",AP9) -> 3 | L9: =IF(AU9="","",AU9) ->  | M9: =IF(AZ9="","",AZ9) ->  | N9: =IF(BE9="","",BE9) ->  | O9: =IF(BJ9="","",BJ9) ->  | Q9: =AD9+AI9+AN9+AS9+AX9+BC9+BH9 -> 191 | R9: =IF($F9>=5,IF(AB9="","",AB9),"") ->  | S9: =IF($F9>=5,IF(AG9="","",AG9),"") ->  | T9: =IF($F9>=5,IF(AL9="","",AL9),"") ->  | U9: =IF($F9>=5,IF(AQ9="","",AQ9),"") ->  | V9: =IF($F9>=5,IF(AV9="","",AV9),"") ->  | W9: =IF($F9>=5,IF(BA9="","",BA9),"") ->  | X9: =IF($F9>=5,IF(BF9="","",BF9),"") ->  | Y9: =IF($F9>=5,IF(BK9="","",BK9),"") ->  | AB9: =IF(ISNUMBER(AA9),(VLOOKUP(AA9,$BO$6:$BP$50,2)),0) -> 0 | AC9: =IF(AA9<>"",5,0) -> 0 | AD9: =AB9+AC9 -> 0 | AF9: 2 | AG9: =IF(ISNUMBER(AF9),(VLOOKUP(AF9,$BO$6:$BP$50,2)),0) -> 80 | AH9: =IF(AF9<>"",5,0) -> 5 | AI9: =AG9+AH9 -> 85 | AK9: 7 | AL9: =IF(ISNUMBER(AK9),(VLOOKUP(AK9,$BO$6:$BP$50,2)),0) -> 36 | AM9: =IF(AK9<>"",5,0) -> 5 | AN9: =AL9+AM9 -> 41 | AP9: 3 | AQ9: =IF(ISNUMBER(AP9),(VLOOKUP(AP9,$BO$6:$BP$50,2)),0) -> 60 | AR9: =IF(AP9<>"",5,0) -> 5 | AS9: =AQ9+AR9 -> 65 | AV9: =IF(ISNUMBER(AU9),(VLOOKUP(AU9,$BO$6:$BP$50,2)),0) -> 0 | AW9: =IF(AU9<>"",5,0) -> 0 | AX9: =AV9+AW9 -> 0 | BA9: =IF(ISNUMBER(AZ9),(VLOOKUP(AZ9,$BO$6:$BP$50,2)),0) -> 0 | BB9: =IF(AZ9<>"",5,0) -> 0 | BC9: =BA9+BB9 -> 0 | BF9: =IF(ISNUMBER(BE9),(VLOOKUP(BE9,$BO$6:$BP$50,2)),0) -> 0 | BG9: =IF(BE9<>"",5,0) -> 0 | BH9: =BF9+BG9 -> 0 | BK9: =IF(ISNUMBER(BJ9),(VLOOKUP(BJ9,$BO$6:$BP$50,2)),0) -> 0 | BL9: =IF(BJ9<>"",5,0) -> 0 | BM9: =BK9+BL9 -> 0 | BO9: 4 | BP9: 50 | BQ9: 0 | BR9: 0 | BS9: 0 | BT9: 0 | BU9: 0 | BV9: 1 | BW9: 0 | BX9: 0
A10: =IF(E10<E9,BO10,A9) -> 5 | B10: Hemminghytt | C10: Fredrik | D10: Lommedalen | E10: =Q10 -> 172 | F10: =(IF(AC10=5,1,0)+IF(AH10=5,1,0)+IF(AM10=5,1,0)+IF(AR10=5,1,0)+IF(AW10=5,1,0)+IF(BA10=5,1,0)+IF(BG10=5,1,0)+IF(BL10=5,1,0)) -> 3 | H10: =IF(AA10="","",AA10) -> 2 | I10: =IF(AF10="","",AF10) ->  | J10: =IF(AK10="","",AK10) -> 8 | K10: =IF(AP10="","",AP10) -> 5 | L10: =IF(AU10="","",AU10) ->  | M10: =IF(AZ10="","",AZ10) ->  | N10: =IF(BE10="","",BE10) ->  | O10: =IF(BJ10="","",BJ10) ->  | Q10: =AD10+AI10+AN10+AS10+AX10+BC10+BH10 -> 172 | R10: =IF($F10>=5,IF(AB10="","",AB10),"") ->  | S10: =IF($F10>=5,IF(AG10="","",AG10),"") ->  | T10: =IF($F10>=5,IF(AL10="","",AL10),"") ->  | U10: =IF($F10>=5,IF(AQ10="","",AQ10),"") ->  | V10: =IF($F10>=5,IF(AV10="","",AV10),"") ->  | W10: =IF($F10>=5,IF(BA10="","",BA10),"") ->  | X10: =IF($F10>=5,IF(BF10="","",BF10),"") ->  | Y10: =IF($F10>=5,IF(BK10="","",BK10),"") ->  | AA10: 2 | AB10: =IF(ISNUMBER(AA10),(VLOOKUP(AA10,$BO$6:$BP$50,2)),0) -> 80 | AC10: =IF(AA10<>"",5,0) -> 5 | AD10: =AB10+AC10 -> 85 | AG10: =IF(ISNUMBER(AF10),(VLOOKUP(AF10,$BO$6:$BP$50,2)),0) -> 0 | AH10: =IF(AF10<>"",5,0) -> 0 | AI10: =AG10+AH10 -> 0 | AK10: 8 | AL10: =IF(ISNUMBER(AK10),(VLOOKUP(AK10,$BO$6:$BP$50,2)),0) -> 32 | AM10: =IF(AK10<>"",5,0) -> 5 | AN10: =AL10+AM10 -> 37 | AP10: 5 | AQ10: =IF(ISNUMBER(AP10),(VLOOKUP(AP10,$BO$6:$BP$50,2)),0) -> 45 | AR10: =IF(AP10<>"",5,0) -> 5 | AS10: =AQ10+AR10 -> 50 | AV10: =IF(ISNUMBER(AU10),(VLOOKUP(AU10,$BO$6:$BP$50,2)),0) -> 0 | AW10: =IF(AU10<>"",5,0) -> 0 | AX10: =AV10+AW10 -> 0 | BA10: =IF(ISNUMBER(AZ10),(VLOOKUP(AZ10,$BO$6:$BP$50,2)),0) -> 0 | BB10: =IF(AZ10<>"",5,0) -> 0 | BC10: =BA10+BB10 -> 0 | BF10: =IF(ISNUMBER(BE10),(VLOOKUP(BE10,$BO$6:$BP$50,2)),0) -> 0 | BG10: =IF(BE10<>"",5,0) -> 0 | BH10: =BF10+BG10 -> 0 | BK10: =IF(ISNUMBER(BJ10),(VLOOKUP(BJ10,$BO$6:$BP$50,2)),0) -> 0 | BL10: =IF(BJ10<>"",5,0) -> 0 | BM10: =BK10+BL10 -> 0 | BO10: 5 | BP10: 45 | BQ10: 0 | BR10: 0 | BS10: 0 | BT10: 0 | BU10: 0 | BV10: 1 | BW10: 0 | BX10: 0
A11: =IF(E11<E10,BO11,A10) -> 6 | B11: Foss | C11: Philip | D11: Heming | E11: =Q11 -> 150 | F11: =(IF(AC11=5,1,0)+IF(AH11=5,1,0)+IF(AM11=5,1,0)+IF(AR11=5,1,0)+IF(AW11=5,1,0)+IF(BA11=5,1,0)+IF(BG11=5,1,0)+IF(BL11=5,1,0)) -> 2 | H11: =IF(AA11="","",AA11) ->  | I11: =IF(AF11="","",AF11) ->  | J11: =IF(AK11="","",AK11) -> 6 | K11: =IF(AP11="","",AP11) -> 1 | L11: =IF(AU11="","",AU11) ->  | M11: =IF(AZ11="","",AZ11) ->  | N11: =IF(BE11="","",BE11) ->  | O11: =IF(BJ11="","",BJ11) ->  | Q11: =AD11+AI11+AN11+AS11+AX11+BC11+BH11 -> 150 | R11: =IF($F11>=5,IF(AB11="","",AB11),"") ->  | S11: =IF($F11>=5,IF(AG11="","",AG11),"") ->  | T11: =IF($F11>=5,IF(AL11="","",AL11),"") ->  | U11: =IF($F11>=5,IF(AQ11="","",AQ11),"") ->  | V11: =IF($F11>=5,IF(AV11="","",AV11),"") ->  | W11: =IF($F11>=5,IF(BA11="","",BA11),"") ->  | X11: =IF($F11>=5,IF(BF11="","",BF11),"") ->  | Y11: =IF($F11>=5,IF(BK11="","",BK11),"") ->  | AB11: =IF(ISNUMBER(AA11),(VLOOKUP(AA11,$BO$6:$BP$50,2)),0) -> 0 | AC11: =IF(AA11<>"",5,0) -> 0 | AD11: =AB11+AC11 -> 0 | AG11: =IF(ISNUMBER(AF11),(VLOOKUP(AF11,$BO$6:$BP$50,2)),0) -> 0 | AH11: =IF(AF11<>"",5,0) -> 0 | AI11: =AG11+AH11 -> 0 | AK11: 6 | AL11: =IF(ISNUMBER(AK11),(VLOOKUP(AK11,$BO$6:$BP$50,2)),0) -> 40 | AM11: =IF(AK11<>"",5,0) -> 5 | AN11: =AL11+AM11 -> 45 | AP11: 1 | AQ11: =IF(ISNUMBER(AP11),(VLOOKUP(AP11,$BO$6:$BP$50,2)),0) -> 100 | AR11: =IF(AP11<>"",5,0) -> 5 | AS11: =AQ11+AR11 -> 105 | AV11: =IF(ISNUMBER(AU11),(VLOOKUP(AU11,$BO$6:$BP$50,2)),0) -> 0 | AW11: =IF(AU11<>"",5,0) -> 0 | AX11: =AV11+AW11 -> 0 | BA11: =IF(ISNUMBER(AZ11),(VLOOKUP(AZ11,$BO$6:$BP$50,2)),0) -> 0 | BB11: =IF(AZ11<>"",5,0) -> 0 | BC11: =BA11+BB11 -> 0 | BF11: =IF(ISNUMBER(BE11),(VLOOKUP(BE11,$BO$6:$BP$50,2)),0) -> 0 | BG11: =IF(BE11<>"",5,0) -> 0 | BH11: =BF11+BG11 -> 0 | BK11: =IF(ISNUMBER(BJ11),(VLOOKUP(BJ11,$BO$6:$BP$50,2)),0) -> 0 | BL11: =IF(BJ11<>"",5,0) -> 0 | BM11: =BK11+BL11 -> 0 | BO11: 6 | BP11: 40 | BQ11: 0 | BR11: 0 | BS11: 0 | BT11: 0 | BU11: 0 | BV11: 0 | BW11: 1 | BX11: 0
A12: =IF(E12<E11,BO12,A11) -> 7 | B12: Røkke | C12: Lukas Thulin | D12: IRS | E12: =Q12 -> 148 | F12: =(IF(AC12=5,1,0)+IF(AH12=5,1,0)+IF(AM12=5,1,0)+IF(AR12=5,1,0)+IF(AW12=5,1,0)+IF(BA12=5,1,0)+IF(BG12=5,1,0)+IF(BL12=5,1,0)) -> 4 | H12: =IF(AA12="","",AA12) -> 4 | I12: =IF(AF12="","",AF12) -> 8 | J12: =IF(AK12="","",AK12) -> 17 | K12: =IF(AP12="","",AP12) -> 8 | L12: =IF(AU12="","",AU12) ->  | M12: =IF(AZ12="","",AZ12) ->  | N12: =IF(BE12="","",BE12) ->  | O12: =IF(BJ12="","",BJ12) ->  | Q12: =AD12+AI12+AN12+AS12+AX12+BC12+BH12 -> 148 | R12: =IF($F12>=5,IF(AB12="","",AB12),"") ->  | S12: =IF($F12>=5,IF(AG12="","",AG12),"") ->  | T12: =IF($F12>=5,IF(AL12="","",AL12),"") ->  | U12: =IF($F12>=5,IF(AQ12="","",AQ12),"") ->  | V12: =IF($F12>=5,IF(AV12="","",AV12),"") ->  | W12: =IF($F12>=5,IF(BA12="","",BA12),"") ->  | X12: =IF($F12>=5,IF(BF12="","",BF12),"") ->  | Y12: =IF($F12>=5,IF(BK12="","",BK12),"") ->  | AA12: 4 | AB12: =IF(ISNUMBER(AA12),(VLOOKUP(AA12,$BO$6:$BP$50,2)),0) -> 50 | AC12: =IF(AA12<>"",5,0) -> 5 | AD12: =AB12+AC12 -> 55 | AF12: 8 | AG12: =IF(ISNUMBER(AF12),(VLOOKUP(AF12,$BO$6:$BP$50,2)),0) -> 32 | AH12: =IF(AF12<>"",5,0) -> 5 | AI12: =AG12+AH12 -> 37 | AK12: 17 | AL12: =IF(ISNUMBER(AK12),(VLOOKUP(AK12,$BO$6:$BP$50,2)),0) -> 14 | AM12: =IF(AK12<>"",5,0) -> 5 | AN12: =AL12+AM12 -> 19 | AP12: 8 | AQ12: =IF(ISNUMBER(AP12),(VLOOKUP(AP12,$BO$6:$BP$50,2)),0) -> 32 | AR12: =IF(AP12<>"",5,0) -> 5 | AS12: =AQ12+AR12 -> 37 | AV12: =IF(ISNUMBER(AU12),(VLOOKUP(AU12,$BO$6:$BP$50,2)),0) -> 0 | AW12: =IF(AU12<>"",5,0) -> 0 | AX12: =AV12+AW12 -> 0 | BA12: =IF(ISNUMBER(AZ12),(VLOOKUP(AZ12,$BO$6:$BP$50,2)),0) -> 0 | BB12: =IF(AZ12<>"",5,0) -> 0 | BC12: =BA12+BB12 -> 0 | BF12: =IF(ISNUMBER(BE12),(VLOOKUP(BE12,$BO$6:$BP$50,2)),0) -> 0 | BG12: =IF(BE12<>"",5,0) -> 0 | BH12: =BF12+BG12 -> 0 | BK12: =IF(ISNUMBER(BJ12),(VLOOKUP(BJ12,$BO$6:$BP$50,2)),0) -> 0 | BL12: =IF(BJ12<>"",5,0) -> 0 | BM12: =BK12+BL12 -> 0 | BO12: 7 | BP12: 36 | BQ12: 0 | BR12: 0 | BS12: 0 | BT12: 0 | BU12: 1 | BV12: 0 | BW12: 0 | BX12: 0
A13: =IF(E13<E12,BO13,A12) -> 8 | B13: Finne | C13: Peder August | D13: Heming | E13: =Q13 -> 147 | F13: =(IF(AC13=5,1,0)+IF(AH13=5,1,0)+IF(AM13=5,1,0)+IF(AR13=5,1,0)+IF(AW13=5,1,0)+IF(BA13=5,1,0)+IF(BG13=5,1,0)+IF(BL13=5,1,0)) -> 3 | H13: =IF(AA13="","",AA13) -> 8 | I13: =IF(AF13="","",AF13) ->  | J13: =IF(AK13="","",AK13) -> 3 | K13: =IF(AP13="","",AP13) -> 6 | L13: =IF(AU13="","",AU13) ->  | M13: =IF(AZ13="","",AZ13) ->  | N13: =IF(BE13="","",BE13) ->  | O13: =IF(BJ13="","",BJ13) ->  | Q13: =AD13+AI13+AN13+AS13+AX13+BC13+BH13 -> 147 | R13: =IF($F13>=5,IF(AB13="","",AB13),"") ->  | S13: =IF($F13>=5,IF(AG13="","",AG13),"") ->  | T13: =IF($F13>=5,IF(AL13="","",AL13),"") ->  | U13: =IF($F13>=5,IF(AQ13="","",AQ13),"") ->  | W13: =IF($F13>=5,IF(BA13="","",BA13),"") ->  | X13: =IF($F13>=5,IF(BF13="","",BF13),"") ->  | Y13: =IF($F13>=5,IF(BK13="","",BK13),"") ->  | AA13: 8 | AB13: =IF(ISNUMBER(AA13),(VLOOKUP(AA13,$BO$6:$BP$50,2)),0) -> 32 | AC13: =IF(AA13<>"",5,0) -> 5 | AD13: =AB13+AC13 -> 37 | AG13: =IF(ISNUMBER(AF13),(VLOOKUP(AF13,$BO$6:$BP$50,2)),0) -> 0 | AH13: =IF(AF13<>"",5,0) -> 0 | AI13: =AG13+AH13 -> 0 | AK13: 3 | AL13: =IF(ISNUMBER(AK13),(VLOOKUP(AK13,$BO$6:$BP$50,2)),0) -> 60 | AM13: =IF(AK13<>"",5,0) -> 5 | AN13: =AL13+AM13 -> 65 | AP13: 6 | AQ13: =IF(ISNUMBER(AP13),(VLOOKUP(AP13,$BO$6:$BP$50,2)),0) -> 40 | AR13: =IF(AP13<>"",5,0) -> 5 | AS13: =AQ13+AR13 -> 45 | AV13: =IF(ISNUMBER(AU13),(VLOOKUP(AU13,$BO$6:$BP$50,2)),0) -> 0 | AW13: =IF(AU13<>"",5,0) -> 0 | AX13: =AV13+AW13 -> 0 | BA13: =IF(ISNUMBER(AZ13),(VLOOKUP(AZ13,$BO$6:$BP$50,2)),0) -> 0 | BB13: =IF(AZ13<>"",5,0) -> 0 | BC13: =BA13+BB13 -> 0 | BF13: =IF(ISNUMBER(BE13),(VLOOKUP(BE13,$BO$6:$BP$50,2)),0) -> 0 | BG13: =IF(BE13<>"",5,0) -> 0 | BH13: =BF13+BG13 -> 0 | BK13: =IF(ISNUMBER(BJ13),(VLOOKUP(BJ13,$BO$6:$BP$50,2)),0) -> 0 | BL13: =IF(BJ13<>"",5,0) -> 0 | BM13: =BK13+BL13 -> 0 | BO13: 8 | BP13: 32 | BQ13: 0 | BR13: 0 | BS13: 0 | BT13: 0 | BU13: 0 | BV13: 1 | BW13: 0 | BX13: 0
A14: =IF(E14<E13,BO14,A13) -> 9 | B14: Aasdal | C14: BIRK | D14: Ljan | E14: =Q14 -> 123 | F14: =(IF(AC14=5,1,0)+IF(AH14=5,1,0)+IF(AM14=5,1,0)+IF(AR14=5,1,0)+IF(AW14=5,1,0)+IF(BA14=5,1,0)+IF(BG14=5,1,0)+IF(BL14=5,1,0)) -> 3 | H14: =IF(AA14="","",AA14) -> 7 | I14: =IF(AF14="","",AF14) -> 4 | J14: =IF(AK14="","",AK14) -> 12 | K14: =IF(AP14="","",AP14) ->  | L14: =IF(AU14="","",AU14) ->  | M14: =IF(AZ14="","",AZ14) ->  | N14: =IF(BE14="","",BE14) ->  | O14: =IF(BJ14="","",BJ14) ->  | Q14: =AD14+AI14+AN14+AS14+AX14+BC14+BH14 -> 123 | R14: =IF($F14>=5,IF(AB14="","",AB14),"") ->  | S14: =IF($F14>=5,IF(AG14="","",AG14),"") ->  | T14: =IF($F14>=5,IF(AL14="","",AL14),"") ->  | U14: =IF($F14>=5,IF(AQ14="","",AQ14),"") ->  | V14: =IF($F14>=5,IF(AV14="","",AV14),"") ->  | W14: =IF($F14>=5,IF(BA14="","",BA14),"") ->  | X14: =IF($F14>=5,IF(BF14="","",BF14),"") ->  | Y14: =IF($F14>=5,IF(BK14="","",BK14),"") ->  | AA14: 7 | AB14: =IF(ISNUMBER(AA14),(VLOOKUP(AA14,$BO$6:$BP$50,2)),0) -> 36 | AC14: =IF(AA14<>"",5,0) -> 5 | AD14: =AB14+AC14 -> 41 | AF14: 4 | AG14: =IF(ISNUMBER(AF14),(VLOOKUP(AF14,$BO$6:$BP$50,2)),0) -> 50 | AH14: =IF(AF14<>"",5,0) -> 5 | AI14: =AG14+AH14 -> 55 | AK14: 12 | AL14: =IF(ISNUMBER(AK14),(VLOOKUP(AK14,$BO$6:$BP$50,2)),0) -> 22 | AM14: =IF(AK14<>"",5,0) -> 5 | AN14: =AL14+AM14 -> 27 | AQ14: =IF(ISNUMBER(AP14),(VLOOKUP(AP14,$BO$6:$BP$50,2)),0) -> 0 | AR14: =IF(AP14<>"",5,0) -> 0 | AS14: =AQ14+AR14 -> 0 | AV14: =IF(ISNUMBER(AU14),(VLOOKUP(AU14,$BO$6:$BP$50,2)),0) -> 0 | AW14: =IF(AU14<>"",5,0) -> 0 | AX14: =AV14+AW14 -> 0 | BA14: =IF(ISNUMBER(AZ14),(VLOOKUP(AZ14,$BO$6:$BP$50,2)),0) -> 0 | BB14: =IF(AZ14<>"",5,0) -> 0 | BC14: =BA14+BB14 -> 0 | BF14: =IF(ISNUMBER(BE14),(VLOOKUP(BE14,$BO$6:$BP$50,2)),0) -> 0 | BG14: =IF(BE14<>"",5,0) -> 0 | BH14: =BF14+BG14 -> 0 | BK14: =IF(ISNUMBER(BJ14),(VLOOKUP(BJ14,$BO$6:$BP$50,2)),0) -> 0 | BL14: =IF(BJ14<>"",5,0) -> 0 | BM14: =BK14+BL14 -> 0 | BO14: 9 | BP14: 29 | BQ14: 0 | BR14: 0 | BS14: 0 | BT14: 0 | BU14: 0 | BV14: 1 | BW14: 0 | BX14: 0
A15: =IF(E15<E14,BO15,A14) -> 10 | B15: Hartmann | C15: Marius Holm | D15: Ready | E15: =Q15 -> 109 | F15: =(IF(AC15=5,1,0)+IF(AH15=5,1,0)+IF(AM15=5,1,0)+IF(AR15=5,1,0)+IF(AW15=5,1,0)+IF(BA15=5,1,0)+IF(BG15=5,1,0)+IF(BL15=5,1,0)) -> 4 | H15: =IF(AA15="","",AA15) -> 12 | I15: =IF(AF15="","",AF15) -> 6 | J15: =IF(AK15="","",AK15) -> 20 | K15: =IF(AP15="","",AP15) -> 15 | L15: =IF(AU15="","",AU15) ->  | M15: =IF(AZ15="","",AZ15) ->  | N15: =IF(BE15="","",BE15) ->  | O15: =IF(BJ15="","",BJ15) ->  | Q15: =AD15+AI15+AN15+AS15+AX15+BC15+BH15 -> 109 | R15: =IF($F15>=5,IF(AB15="","",AB15),"") ->  | S15: =IF($F15>=5,IF(AG15="","",AG15),"") ->  | T15: =IF($F15>=5,IF(AL15="","",AL15),"") ->  | U15: =IF($F15>=5,IF(AQ15="","",AQ15),"") ->  | V15: =IF($F15>=5,IF(AV15="","",AV15),"") ->  | W15: =IF($F15>=5,IF(BA15="","",BA15),"") ->  | X15: =IF($F15>=5,IF(BF15="","",BF15),"") ->  | Y15: =IF($F15>=5,IF(BK15="","",BK15),"") ->  | AA15: 12 | AB15: =IF(ISNUMBER(AA15),(VLOOKUP(AA15,$BO$6:$BP$50,2)),0) -> 22 | AC15: =IF(AA15<>"",5,0) -> 5 | AD15: =AB15+AC15 -> 27 | AF15: 6 | AG15: =IF(ISNUMBER(AF15),(VLOOKUP(AF15,$BO$6:$BP$50,2)),0) -> 40 | AH15: =IF(AF15<>"",5,0) -> 5 | AI15: =AG15+AH15 -> 45 | AK15: 20 | AL15: =IF(ISNUMBER(AK15),(VLOOKUP(AK15,$BO$6:$BP$50,2)),0) -> 11 | AM15: =IF(AK15<>"",5,0) -> 5 | AN15: =AL15+AM15 -> 16 | AP15: 15 | AQ15: =IF(ISNUMBER(AP15),(VLOOKUP(AP15,$BO$6:$BP$50,2)),0) -> 16 | AR15: =IF(AP15<>"",5,0) -> 5 | AS15: =AQ15+AR15 -> 21 | AV15: =IF(ISNUMBER(AU15),(VLOOKUP(AU15,$BO$6:$BP$50,2)),0) -> 0 | AW15: =IF(AU15<>"",5,0) -> 0 | AX15: =AV15+AW15 -> 0 | BA15: =IF(ISNUMBER(AZ15),(VLOOKUP(AZ15,$BO$6:$BP$50,2)),0) -> 0 | BB15: =IF(AZ15<>"",5,0) -> 0 | BC15: =BA15+BB15 -> 0 | BF15: =IF(ISNUMBER(BE15),(VLOOKUP(BE15,$BO$6:$BP$50,2)),0) -> 0 | BG15: =IF(BE15<>"",5,0) -> 0 | BH15: =BF15+BG15 -> 0 | BK15: =IF(ISNUMBER(BJ15),(VLOOKUP(BJ15,$BO$6:$BP$50,2)),0) -> 0 | BL15: =IF(BJ15<>"",5,0) -> 0 | BM15: =BK15+BL15 -> 0 | BO15: 10 | BP15: 26 | BQ15: 0 | BR15: 0 | BS15: 0 | BT15: 0 | BU15: 1 | BV15: 0 | BW15: 0 | BX15: 0
A16: =IF(E16<E15,BO16,A15) -> 11 | B16: Rehman | C16: Tor Fabian Evert | D16: Ready | E16: =Q16 -> 79 | F16: =(IF(AC16=5,1,0)+IF(AH16=5,1,0)+IF(AM16=5,1,0)+IF(AR16=5,1,0)+IF(AW16=5,1,0)+IF(BA16=5,1,0)+IF(BG16=5,1,0)+IF(BL16=5,1,0)) -> 3 | H16: =IF(AA16="","",AA16) -> 9 | I16: =IF(AF16="","",AF16) ->  | J16: =IF(AK16="","",AK16) -> 18 | K16: =IF(AP16="","",AP16) -> 12 | L16: =IF(AU16="","",AU16) ->  | M16: =IF(AZ16="","",AZ16) ->  | N16: =IF(BE16="","",BE16) ->  | O16: =IF(BJ16="","",BJ16) ->  | Q16: =AD16+AI16+AN16+AS16+AX16+BC16+BH16 -> 79 | R16: =IF($F16>=5,IF(AB16="","",AB16),"") ->  | S16: =IF($F16>=5,IF(AG16="","",AG16),"") ->  | T16: =IF($F16>=5,IF(AL16="","",AL16),"") ->  | U16: =IF($F16>=5,IF(AQ16="","",AQ16),"") ->  | V16: =IF($F16>=5,IF(AV16="","",AV16),"") ->  | W16: =IF($F16>=5,IF(BA16="","",BA16),"") ->  | X16: =IF($F16>=5,IF(BF16="","",BF16),"") ->  | Y16: =IF($F16>=5,IF(BK16="","",BK16),"") ->  | AA16: 9 | AB16: =IF(ISNUMBER(AA16),(VLOOKUP(AA16,$BO$6:$BP$50,2)),0) -> 29 | AC16: =IF(AA16<>"",5,0) -> 5 | AD16: =AB16+AC16 -> 34 | AG16: =IF(ISNUMBER(AF16),(VLOOKUP(AF16,$BO$6:$BP$50,2)),0) -> 0 | AH16: =IF(AF16<>"",5,0) -> 0 | AI16: =AG16+AH16 -> 0 | AK16: 18 | AL16: =IF(ISNUMBER(AK16),(VLOOKUP(AK16,$BO$6:$BP$50,2)),0) -> 13 | AM16: =IF(AK16<>"",5,0) -> 5 | AN16: =AL16+AM16 -> 18 | AP16: 12 | AQ16: =IF(ISNUMBER(AP16),(VLOOKUP(AP16,$BO$6:$BP$50,2)),0) -> 22 | AR16: =IF(AP16<>"",5,0) -> 5 | AS16: =AQ16+AR16 -> 27 | AV16: =IF(ISNUMBER(AU16),(VLOOKUP(AU16,$BO$6:$BP$50,2)),0) -> 0 | AW16: =IF(AU16<>"",5,0) -> 0 | AX16: =AV16+AW16 -> 0 | BA16: =IF(ISNUMBER(AZ16),(VLOOKUP(AZ16,$BO$6:$BP$50,2)),0) -> 0 | BB16: =IF(AZ16<>"",5,0) -> 0 | BC16: =BA16+BB16 -> 0 | BF16: =IF(ISNUMBER(BE16),(VLOOKUP(BE16,$BO$6:$BP$50,2)),0) -> 0 | BG16: =IF(BE16<>"",5,0) -> 0 | BH16: =BF16+BG16 -> 0 | BK16: =IF(ISNUMBER(BJ16),(VLOOKUP(BJ16,$BO$6:$BP$50,2)),0) -> 0 | BL16: =IF(BJ16<>"",5,0) -> 0 | BM16: =BK16+BL16 -> 0 | BO16: 11 | BP16: 24 | BQ16: 0 | BR16: 0 | BS16: 0 | BT16: 0 | BU16: 0 | BV16: 1 | BW16: 0 | BX16: 0
A17: =IF(E17<E16,BO17,A16) -> 12 | B17: Toft | C17: Ola Mostraum | D17: Kjelsås | E17: =Q17 -> 76 | F17: =(IF(AC17=5,1,0)+IF(AH17=5,1,0)+IF(AM17=5,1,0)+IF(AR17=5,1,0)+IF(AW17=5,1,0)+IF(BA17=5,1,0)+IF(BG17=5,1,0)+IF(BL17=5,1,0)) -> 4 | H17: =IF(AA17="","",AA17) -> 10 | I17: =IF(AF17="","",AF17) -> dsq | J17: =IF(AK17="","",AK17) -> 19 | K17: =IF(AP17="","",AP17) -> 14 | L17: =IF(AU17="","",AU17) ->  | M17: =IF(AZ17="","",AZ17) ->  | N17: =IF(BE17="","",BE17) ->  | O17: =IF(BJ17="","",BJ17) ->  | Q17: =AD17+AI17+AN17+AS17+AX17+BC17+BH17 -> 76 | R17: =IF($F17>=5,IF(AB17="","",AB17),"") ->  | S17: =IF($F17>=5,IF(AG17="","",AG17),"") ->  | T17: =IF($F17>=5,IF(AL17="","",AL17),"") ->  | U17: =IF($F17>=5,IF(AQ17="","",AQ17),"") ->  | V17: =IF($F17>=5,IF(AV17="","",AV17),"") ->  | W17: =IF($F17>=5,IF(BA17="","",BA17),"") ->  | X17: =IF($F17>=5,IF(BF17="","",BF17),"") ->  | Y17: =IF($F17>=5,IF(BK17="","",BK17),"") ->  | AA17: 10 | AB17: =IF(ISNUMBER(AA17),(VLOOKUP(AA17,$BO$6:$BP$50,2)),0) -> 26 | AC17: =IF(AA17<>"",5,0) -> 5 | AD17: =AB17+AC17 -> 31 | AF17: dsq | AG17: =IF(ISNUMBER(AF17),(VLOOKUP(AF17,$BO$6:$BP$50,2)),0) -> 0 | AH17: =IF(AF17<>"",5,0) -> 5 | AI17: =AG17+AH17 -> 5 | AK17: 19 | AL17: =IF(ISNUMBER(AK17),(VLOOKUP(AK17,$BO$6:$BP$50,2)),0) -> 12 | AM17: =IF(AK17<>"",5,0) -> 5 | AN17: =AL17+AM17 -> 17 | AP17: 14 | AQ17: =IF(ISNUMBER(AP17),(VLOOKUP(AP17,$BO$6:$BP$50,2)),0) -> 18 | AR17: =IF(AP17<>"",5,0) -> 5 | AS17: =AQ17+AR17 -> 23 | AV17: =IF(ISNUMBER(AU17),(VLOOKUP(AU17,$BO$6:$BP$50,2)),0) -> 0 | AW17: =IF(AU17<>"",5,0) -> 0 | AX17: =AV17+AW17 -> 0 | BA17: =IF(ISNUMBER(AZ17),(VLOOKUP(AZ17,$BO$6:$BP$50,2)),0) -> 0 | BB17: =IF(AZ17<>"",5,0) -> 0 | BC17: =BA17+BB17 -> 0 | BF17: =IF(ISNUMBER(BE17),(VLOOKUP(BE17,$BO$6:$BP$50,2)),0) -> 0 | BG17: =IF(BE17<>"",5,0) -> 0 | BH17: =BF17+BG17 -> 0 | BK17: =IF(ISNUMBER(BJ17),(VLOOKUP(BJ17,$BO$6:$BP$50,2)),0) -> 0 | BL17: =IF(BJ17<>"",5,0) -> 0 | BM17: =BK17+BL17 -> 0 | BO17: 12 | BP17: 22 | BQ17: 0 | BR17: 0 | BS17: 0 | BT17: 0 | BU17: 1 | BV17: 0 | BW17: 0 | BX17: 0
A18: =IF(E18<E17,BO18,A17) -> 13 | B18: Tschudi-Nytvedt | C18: Sebastian | D18: Heming | E18: =Q18 -> 75 | F18: =(IF(AC18=5,1,0)+IF(AH18=5,1,0)+IF(AM18=5,1,0)+IF(AR18=5,1,0)+IF(AW18=5,1,0)+IF(BA18=5,1,0)+IF(BG18=5,1,0)+IF(BL18=5,1,0)) -> 2 | H18: =IF(AA18="","",AA18) ->  | I18: =IF(AF18="","",AF18) ->  | J18: =IF(AK18="","",AK18) -> 9 | K18: =IF(AP18="","",AP18) -> 7 | L18: =IF(AU18="","",AU18) ->  | M18: =IF(AU18="","",AU18) ->  | N18: =IF(AZ18="","",AZ18) ->  | O18: =IF(BE18="","",BE18) ->  | Q18: =AD18+AI18+AN18+AS18+AX18+BC18+BH18 -> 75 | AB18: =IF(ISNUMBER(AA18),(VLOOKUP(AA18,$BO$6:$BP$50,2)),0) -> 0 | AC18: =IF(AA18<>"",5,0) -> 0 | AD18: =AB18+AC18 -> 0 | AG18: =IF(ISNUMBER(AF18),(VLOOKUP(AF18,$BO$6:$BP$50,2)),0) -> 0 | AH18: =IF(AF18<>"",5,0) -> 0 | AI18: =AG18+AH18 -> 0 | AK18: 9 | AL18: =IF(ISNUMBER(AK18),(VLOOKUP(AK18,$BO$6:$BP$50,2)),0) -> 29 | AM18: =IF(AK18<>"",5,0) -> 5 | AN18: =AL18+AM18 -> 34 | AP18: 7 | AQ18: =IF(ISNUMBER(AP18),(VLOOKUP(AP18,$BO$6:$BP$50,2)),0) -> 36 | AR18: =IF(AP18<>"",5,0) -> 5 | AS18: =AQ18+AR18 -> 41 | AV18: =IF(ISNUMBER(AU18),(VLOOKUP(AU18,$BO$6:$BP$50,2)),0) -> 0 | AW18: =IF(AU18<>"",5,0) -> 0 | AX18: =AV18+AW18 -> 0 | BA18: =IF(ISNUMBER(AZ18),(VLOOKUP(AZ18,$BO$6:$BP$50,2)),0) -> 0 | BB18: =IF(AZ18<>"",5,0) -> 0 | BC18: =BA18+BB18 -> 0 | BF18: =IF(ISNUMBER(BE18),(VLOOKUP(BE18,$BO$6:$BP$50,2)),0) -> 0 | BG18: =IF(BE18<>"",5,0) -> 0 | BH18: =BF18+BG18 -> 0 | BK18: =IF(ISNUMBER(BJ18),(VLOOKUP(BJ18,$BO$6:$BP$50,2)),0) -> 0 | BL18: =IF(BJ18<>"",5,0) -> 0 | BM18: =BK18+BL18 -> 0 | BO18: 13 | BP18: 20 | BQ18: 0 | BR18: =IF($F17=7,1,0) -> 0 | BS18: =IF($F17=6,1,0) -> 0 | BT18: =IF($F17=5,1,0) -> 0 | BU18: =IF($F17=4,1,0) -> 1 | BV18: =IF($F17=3,1,0) -> 0 | BW18: =IF($F17=2,1,0) -> 0 | BX18: =IF($F17=1,1,0) -> 0
A19: =IF(E19<E18,BO19,A18) -> 14 | B19: Burum-Auensen | C19: Jan Nicolas | D19: Njård | E19: =Q19 -> 69 | F19: =(IF(AC19=5,1,0)+IF(AH19=5,1,0)+IF(AM19=5,1,0)+IF(AR19=5,1,0)+IF(AW19=5,1,0)+IF(BA19=5,1,0)+IF(BG19=5,1,0)+IF(BL19=5,1,0)) -> 3 | H19: =IF(AA19="","",AA19) -> 15 | I19: =IF(AF19="","",AF19) ->  | J19: =IF(AK19="","",AK19) -> 14 | K19: =IF(AP19="","",AP19) -> 13 | L19: =IF(AU19="","",AU19) ->  | M19: =IF(AU19="","",AU19) ->  | N19: =IF(AZ19="","",AZ19) ->  | O19: =IF(BE19="","",BE19) ->  | Q19: =AD19+AI19+AN19+AS19+AX19+BC19+BH19 -> 69 | AA19: 15 | AB19: =IF(ISNUMBER(AA19),(VLOOKUP(AA19,$BO$6:$BP$50,2)),0) -> 16 | AC19: =IF(AA19<>"",5,0) -> 5 | AD19: =AB19+AC19 -> 21 | AG19: =IF(ISNUMBER(AF19),(VLOOKUP(AF19,$BO$6:$BP$50,2)),0) -> 0 | AH19: =IF(AF19<>"",5,0) -> 0 | AI19: =AG19+AH19 -> 0 | AK19: 14 | AL19: =IF(ISNUMBER(AK19),(VLOOKUP(AK19,$BO$6:$BP$50,2)),0) -> 18 | AM19: =IF(AK19<>"",5,0) -> 5 | AN19: =AL19+AM19 -> 23 | AP19: 13 | AQ19: =IF(ISNUMBER(AP19),(VLOOKUP(AP19,$BO$6:$BP$50,2)),0) -> 20 | AR19: =IF(AP19<>"",5,0) -> 5 | AS19: =AQ19+AR19 -> 25 | AV19: =IF(ISNUMBER(AU19),(VLOOKUP(AU19,$BO$6:$BP$50,2)),0) -> 0 | AW19: =IF(AU19<>"",5,0) -> 0 | AX19: =AV19+AW19 -> 0 | BA19: =IF(ISNUMBER(AZ19),(VLOOKUP(AZ19,$BO$6:$BP$50,2)),0) -> 0 | BB19: =IF(AZ19<>"",5,0) -> 0 | BC19: =BA19+BB19 -> 0 | BF19: =IF(ISNUMBER(BE19),(VLOOKUP(BE19,$BO$6:$BP$50,2)),0) -> 0 | BG19: =IF(BE19<>"",5,0) -> 0 | BH19: =BF19+BG19 -> 0 | BK19: =IF(ISNUMBER(BJ19),(VLOOKUP(BJ19,$BO$6:$BP$50,2)),0) -> 0 | BL19: =IF(BJ19<>"",5,0) -> 0 | BM19: =BK19+BL19 -> 0 | BO19: 14 | BP19: 18 | BQ19: 0 | BR19: =IF($F18=7,1,0) -> 0 | BS19: =IF($F18=6,1,0) -> 0 | BT19: =IF($F18=5,1,0) -> 0 | BU19: =IF($F18=4,1,0) -> 0 | BV19: =IF($F18=3,1,0) -> 0 | BW19: =IF($F18=2,1,0) -> 1 | BX19: =IF($F18=1,1,0) -> 0
A20: =IF(E20<E19,BO20,A19) -> 15 | B20: Lysgård | C20: Sebastian | D20: Try | E20: =Q20 -> 68 | F20: =(IF(AC20=5,1,0)+IF(AH20=5,1,0)+IF(AM20=5,1,0)+IF(AR20=5,1,0)+IF(AW20=5,1,0)+IF(BA20=5,1,0)+IF(BG20=5,1,0)+IF(BL20=5,1,0)) -> 4 | H20: =IF(AA20="","",AA20) -> 16 | I20: =IF(AF20="","",AF20) -> dsq | J20: =IF(AK20="","",AK20) -> 22 | K20: =IF(AP20="","",AP20) -> 11 | L20: =IF(AU20="","",AU20) ->  | Q20: =AD20+AI20+AN20+AS20+AX20+BC20+BH20 -> 68 | AA20: 16 | AB20: =IF(ISNUMBER(AA20),(VLOOKUP(AA20,$BO$6:$BP$50,2)),0) -> 15 | AC20: =IF(AA20<>"",5,0) -> 5 | AD20: =AB20+AC20 -> 20 | AF20: dsq | AG20: =IF(ISNUMBER(AF20),(VLOOKUP(AF20,$BO$6:$BP$50,2)),0) -> 0 | AH20: =IF(AF20<>"",5,0) -> 5 | AI20: =AG20+AH20 -> 5 | AK20: 22 | AL20: =IF(ISNUMBER(AK20),(VLOOKUP(AK20,$BO$6:$BP$50,2)),0) -> 9 | AM20: =IF(AK20<>"",5,0) -> 5 | AN20: =AL20+AM20 -> 14 | AP20: 11 | AQ20: =IF(ISNUMBER(AP20),(VLOOKUP(AP20,$BO$6:$BP$50,2)),0) -> 24 | AR20: =IF(AP20<>"",5,0) -> 5 | AS20: =AQ20+AR20 -> 29 | AV20: =IF(ISNUMBER(AU20),(VLOOKUP(AU20,$BO$6:$BP$50,2)),0) -> 0 | AW20: =IF(AU20<>"",5,0) -> 0 | AX20: =AV20+AW20 -> 0 | BA20: =IF(ISNUMBER(AZ20),(VLOOKUP(AZ20,$BO$6:$BP$50,2)),0) -> 0 | BB20: =IF(AZ20<>"",5,0) -> 0 | BC20: =BA20+BB20 -> 0 | BF20: =IF(ISNUMBER(BE20),(VLOOKUP(BE20,$BO$6:$BP$50,2)),0) -> 0 | BG20: =IF(BE20<>"",5,0) -> 0 | BH20: =BF20+BG20 -> 0 | BK20: =IF(ISNUMBER(BJ20),(VLOOKUP(BJ20,$BO$6:$BP$50,2)),0) -> 0 | BL20: =IF(BJ20<>"",5,0) -> 0 | BM20: =BK20+BL20 -> 0 | BO20: 15 | BP20: 16 | BQ20: 0 | BR20: =IF($F19=7,1,0) -> 0 | BS20: =IF($F19=6,1,0) -> 0 | BT20: =IF($F19=5,1,0) -> 0 | BU20: =IF($F19=4,1,0) -> 0 | BV20: =IF($F19=3,1,0) -> 1 | BW20: =IF($F19=2,1,0) -> 0 | BX20: =IF($F19=1,1,0) -> 0
A21: =IF(E21<E20,BO21,A20) -> 16 | B21: Hole | C21: Henrik Grøthe | D21: IRS | E21: =Q21 -> 64 | F21: =(IF(AC21=5,1,0)+IF(AH21=5,1,0)+IF(AM21=5,1,0)+IF(AR21=5,1,0)+IF(AW21=5,1,0)+IF(BA21=5,1,0)+IF(BG21=5,1,0)+IF(BL21=5,1,0)) -> 2 | H21: =IF(AA21="","",AA21) -> 14 | I21: =IF(AF21="","",AF21) -> 7 | J21: =IF(AK21="","",AK21) ->  | K21: =IF(AP21="","",AP21) ->  | L21: =IF(AU21="","",AU21) ->  | Q21: =AD21+AI21+AN21+AS21+AX21+BC21+BH21 -> 64 | AA21: 14 | AB21: =IF(ISNUMBER(AA21),(VLOOKUP(AA21,$BO$6:$BP$50,2)),0) -> 18 | AC21: =IF(AA21<>"",5,0) -> 5 | AD21: =AB21+AC21 -> 23 | AF21: 7 | AG21: =IF(ISNUMBER(AF21),(VLOOKUP(AF21,$BO$6:$BP$50,2)),0) -> 36 | AH21: =IF(AF21<>"",5,0) -> 5 | AI21: =AG21+AH21 -> 41 | AL21: =IF(ISNUMBER(AK21),(VLOOKUP(AK21,$BO$6:$BP$50,2)),0) -> 0 | AM21: =IF(AK21<>"",5,0) -> 0 | AN21: =AL21+AM21 -> 0 | AQ21: =IF(ISNUMBER(AP21),(VLOOKUP(AP21,$BO$6:$BP$50,2)),0) -> 0 | AR21: =IF(AP21<>"",5,0) -> 0 | AS21: =AQ21+AR21 -> 0 | AV21: =IF(ISNUMBER(AU21),(VLOOKUP(AU21,$BO$6:$BP$50,2)),0) -> 0 | AW21: =IF(AU21<>"",5,0) -> 0 | AX21: =AV21+AW21 -> 0 | BA21: =IF(ISNUMBER(AZ21),(VLOOKUP(AZ21,$BO$6:$BP$50,2)),0) -> 0 | BB21: =IF(AZ21<>"",5,0) -> 0 | BC21: =BA21+BB21 -> 0 | BF21: =IF(ISNUMBER(BE21),(VLOOKUP(BE21,$BO$6:$BP$50,2)),0) -> 0 | BG21: =IF(BE21<>"",5,0) -> 0 | BH21: =BF21+BG21 -> 0 | BK21: =IF(ISNUMBER(BJ21),(VLOOKUP(BJ21,$BO$6:$BP$50,2)),0) -> 0 | BL21: =IF(BJ21<>"",5,0) -> 0 | BM21: =BK21+BL21 -> 0 | BO21: 16 | BP21: 15 | BQ21: 0 | BR21: =IF($F19=7,1,0) -> 0 | BS21: =IF($F19=6,1,0) -> 0 | BT21: =IF($F19=5,1,0) -> 0 | BU21: =IF($F19=4,1,0) -> 0 | BV21: =IF($F19=3,1,0) -> 1 | BW21: =IF($F19=2,1,0) -> 0 | BX21: =IF($F19=1,1,0) -> 0
A22: =IF(E22<E21,BO22,A21) -> 16 | B22: Johnsen | C22: Christian Hjallum | D22: Heming | E22: =Q22 -> 64 | F22: =(IF(AC22=5,1,0)+IF(AH22=5,1,0)+IF(AM22=5,1,0)+IF(AR22=5,1,0)+IF(AW22=5,1,0)+IF(BA22=5,1,0)+IF(BG22=5,1,0)+IF(BL22=5,1,0)) -> 3 | H22: =IF(AA22="","",AA22) -> dsq | I22: =IF(AF22="","",AF22) ->  | J22: =IF(AK22="","",AK22) -> 13 | K22: =IF(AP22="","",AP22) -> 9 | L22: =IF(AU22="","",AU22) ->  | Q22: =AD22+AI22+AN22+AS22+AX22+BC22+BH22 -> 64 | AA22: dsq | AB22: =IF(ISNUMBER(AA22),(VLOOKUP(AA22,$BO$6:$BP$50,2)),0) -> 0 | AC22: =IF(AA22<>"",5,0) -> 5 | AD22: =AB22+AC22 -> 5 | AG22: =IF(ISNUMBER(AF22),(VLOOKUP(AF22,$BO$6:$BP$50,2)),0) -> 0 | AH22: =IF(AF22<>"",5,0) -> 0 | AI22: =AG22+AH22 -> 0 | AK22: 13 | AL22: =IF(ISNUMBER(AK22),(VLOOKUP(AK22,$BO$6:$BP$50,2)),0) -> 20 | AM22: =IF(AK22<>"",5,0) -> 5 | AN22: =AL22+AM22 -> 25 | AP22: 9 | AQ22: =IF(ISNUMBER(AP22),(VLOOKUP(AP22,$BO$6:$BP$50,2)),0) -> 29 | AR22: =IF(AP22<>"",5,0) -> 5 | AS22: =AQ22+AR22 -> 34 | AV22: =IF(ISNUMBER(AU22),(VLOOKUP(AU22,$BO$6:$BP$50,2)),0) -> 0 | AW22: =IF(AU22<>"",5,0) -> 0 | AX22: =AV22+AW22 -> 0 | BA22: =IF(ISNUMBER(AZ22),(VLOOKUP(AZ22,$BO$6:$BP$50,2)),0) -> 0 | BB22: =IF(AZ22<>"",5,0) -> 0 | BC22: =BA22+BB22 -> 0 | BF22: =IF(ISNUMBER(BE22),(VLOOKUP(BE22,$BO$6:$BP$50,2)),0) -> 0 | BG22: =IF(BE22<>"",5,0) -> 0 | BH22: =BF22+BG22 -> 0 | BK22: =IF(ISNUMBER(BJ22),(VLOOKUP(BJ22,$BO$6:$BP$50,2)),0) -> 0 | BL22: =IF(BJ22<>"",5,0) -> 0 | BM22: =BK22+BL22 -> 0 | BO22: 17 | BP22: 14 | BQ22: 0 | BR22: 0 | BS22: 0 | BT22: 0 | BU22: 1 | BV22: 0 | BW22: 0 | BX22: 0
A23: =IF(E23<E22,BO23,A22) -> 18 | B23: Kildal | C23: Peder Risøe | D23: Heming | E23: =Q23 -> 62 | F23: =(IF(AC23=5,1,0)+IF(AH23=5,1,0)+IF(AM23=5,1,0)+IF(AR23=5,1,0)+IF(AW23=5,1,0)+IF(BA23=5,1,0)+IF(BG23=5,1,0)+IF(BL23=5,1,0)) -> 2 | H23: =IF(AA23="","",AA23) ->  | I23: =IF(AF23="","",AF23) ->  | J23: =IF(AK23="","",AK23) -> 10 | K23: =IF(AP23="","",AP23) -> 10 | L23: =IF(AU23="","",AU23) ->  | Q23: =AD23+AI23+AN23+AS23+AX23+BC23+BH23 -> 62 | AB23: =IF(ISNUMBER(AA23),(VLOOKUP(AA23,$BO$6:$BP$50,2)),0) -> 0 | AC23: =IF(AA23<>"",5,0) -> 0 | AD23: =AB23+AC23 -> 0 | AG23: =IF(ISNUMBER(AF23),(VLOOKUP(AF23,$BO$6:$BP$50,2)),0) -> 0 | AH23: =IF(AF23<>"",5,0) -> 0 | AI23: =AG23+AH23 -> 0 | AK23: 10 | AL23: =IF(ISNUMBER(AK23),(VLOOKUP(AK23,$BO$6:$BP$50,2)),0) -> 26 | AM23: =IF(AK23<>"",5,0) -> 5 | AN23: =AL23+AM23 -> 31 | AP23: 10 | AQ23: =IF(ISNUMBER(AP23),(VLOOKUP(AP23,$BO$6:$BP$50,2)),0) -> 26 | AR23: =IF(AP23<>"",5,0) -> 5 | AS23: =AQ23+AR23 -> 31 | AV23: =IF(ISNUMBER(AU23),(VLOOKUP(AU23,$BO$6:$BP$50,2)),0) -> 0 | AW23: =IF(AU23<>"",5,0) -> 0 | AX23: =AV23+AW23 -> 0 | BA23: =IF(ISNUMBER(AZ23),(VLOOKUP(AZ23,$BO$6:$BP$50,2)),0) -> 0 | BB23: =IF(AZ23<>"",5,0) -> 0 | BC23: =BA23+BB23 -> 0 | BF23: =IF(ISNUMBER(BE23),(VLOOKUP(BE23,$BO$6:$BP$50,2)),0) -> 0 | BG23: =IF(BE23<>"",5,0) -> 0 | BH23: =BF23+BG23 -> 0 | BK23: =IF(ISNUMBER(BJ23),(VLOOKUP(BJ23,$BO$6:$BP$50,2)),0) -> 0 | BL23: =IF(BJ23<>"",5,0) -> 0 | BM23: =BK23+BL23 -> 0 | BO23: 18 | BP23: 13 | BQ23: 0 | BR23: 0 | BS23: 0 | BT23: 0 | BU23: 0 | BV23: 0 | BW23: 1 | BX23: 0
A24: =IF(E24<E23,BO24,A23) -> 19 | B24: Bagstevold | C24: Sindre | D24: Heming | E24: =Q24 -> 50 | F24: =(IF(AC24=5,1,0)+IF(AH24=5,1,0)+IF(AM24=5,1,0)+IF(AR24=5,1,0)+IF(AW24=5,1,0)+IF(BA24=5,1,0)+IF(BG24=5,1,0)+IF(BL24=5,1,0)) -> 1 | H24: =IF(AA24="","",AA24) ->  | I24: =IF(AF24="","",AF24) ->  | J24: =IF(AK24="","",AK24) -> 5 | K24: =IF(AP24="","",AP24) ->  | L24: =IF(AU24="","",AU24) ->  | Q24: =AD24+AI24+AN24+AS24+AX24+BC24+BH24 -> 50 | AB24: =IF(ISNUMBER(AA24),(VLOOKUP(AA24,$BO$6:$BP$50,2)),0) -> 0 | AC24: =IF(AA24<>"",5,0) -> 0 | AD24: =AB24+AC24 -> 0 | AG24: =IF(ISNUMBER(AF24),(VLOOKUP(AF24,$BO$6:$BP$50,2)),0) -> 0 | AH24: =IF(AF24<>"",5,0) -> 0 | AI24: =AG24+AH24 -> 0 | AK24: 5 | AL24: =IF(ISNUMBER(AK24),(VLOOKUP(AK24,$BO$6:$BP$50,2)),0) -> 45 | AM24: =IF(AK24<>"",5,0) -> 5 | AN24: =AL24+AM24 -> 50 | AQ24: =IF(ISNUMBER(AP24),(VLOOKUP(AP24,$BO$6:$BP$50,2)),0) -> 0 | AR24: =IF(AP24<>"",5,0) -> 0 | AS24: =AQ24+AR24 -> 0 | AV24: =IF(ISNUMBER(AU24),(VLOOKUP(AU24,$BO$6:$BP$50,2)),0) -> 0 | AW24: =IF(AU24<>"",5,0) -> 0 | AX24: =AV24+AW24 -> 0 | BA24: =IF(ISNUMBER(AZ24),(VLOOKUP(AZ24,$BO$6:$BP$50,2)),0) -> 0 | BB24: =IF(AZ24<>"",5,0) -> 0 | BC24: =BA24+BB24 -> 0 | BF24: =IF(ISNUMBER(BE24),(VLOOKUP(BE24,$BO$6:$BP$50,2)),0) -> 0 | BG24: =IF(BE24<>"",5,0) -> 0 | BH24: =BF24+BG24 -> 0 | BK24: =IF(ISNUMBER(BJ24),(VLOOKUP(BJ24,$BO$6:$BP$50,2)),0) -> 0 | BL24: =IF(BJ24<>"",5,0) -> 0 | BM24: =BK24+BL24 -> 0 | BO24: 19 | BP24: 12 | BQ24: 0 | BR24: 0 | BS24: 0 | BT24: 0 | BU24: 0 | BV24: 1 | BW24: 0 | BX24: 0
A25: =IF(E25<E24,BO25,A24) -> 20 | B25: Gudem | C25: Matheo | D25: IRS | E25: =Q25 -> 45 | F25: =(IF(AC25=5,1,0)+IF(AH25=5,1,0)+IF(AM25=5,1,0)+IF(AR25=5,1,0)+IF(AW25=5,1,0)+IF(BA25=5,1,0)+IF(BG25=5,1,0)+IF(BL25=5,1,0)) -> 1 | H25: =IF(AA25="","",AA25) -> 6 | I25: =IF(AF25="","",AF25) ->  | J25: =IF(AK25="","",AK25) ->  | K25: =IF(AP25="","",AP25) ->  | L25: =IF(AU25="","",AU25) ->  | Q25: =AD25+AI25+AN25+AS25+AX25+BC25+BH25 -> 45 | AA25: 6 | AB25: =IF(ISNUMBER(AA25),(VLOOKUP(AA25,$BO$6:$BP$50,2)),0) -> 40 | AC25: =IF(AA25<>"",5,0) -> 5 | AD25: =AB25+AC25 -> 45 | AG25: =IF(ISNUMBER(AF25),(VLOOKUP(AF25,$BO$6:$BP$50,2)),0) -> 0 | AH25: =IF(AF25<>"",5,0) -> 0 | AI25: =AG25+AH25 -> 0 | AL25: =IF(ISNUMBER(AK25),(VLOOKUP(AK25,$BO$6:$BP$50,2)),0) -> 0 | AM25: =IF(AK25<>"",5,0) -> 0 | AN25: =AL25+AM25 -> 0 | AQ25: =IF(ISNUMBER(AP25),(VLOOKUP(AP25,$BO$6:$BP$50,2)),0) -> 0 | AR25: =IF(AP25<>"",5,0) -> 0 | AS25: =AQ25+AR25 -> 0 | AV25: =IF(ISNUMBER(AU25),(VLOOKUP(AU25,$BO$6:$BP$50,2)),0) -> 0 | AW25: =IF(AU25<>"",5,0) -> 0 | AX25: =AV25+AW25 -> 0 | BA25: =IF(ISNUMBER(AZ25),(VLOOKUP(AZ25,$BO$6:$BP$50,2)),0) -> 0 | BB25: =IF(AZ25<>"",5,0) -> 0 | BC25: =BA25+BB25 -> 0 | BF25: =IF(ISNUMBER(BE25),(VLOOKUP(BE25,$BO$6:$BP$50,2)),0) -> 0 | BG25: =IF(BE25<>"",5,0) -> 0 | BH25: =BF25+BG25 -> 0 | BK25: =IF(ISNUMBER(BJ25),(VLOOKUP(BJ25,$BO$6:$BP$50,2)),0) -> 0 | BL25: =IF(BJ25<>"",5,0) -> 0 | BM25: =BK25+BL25 -> 0 | BO25: 20 | BP25: 11 | BQ25: 0 | BR25: 0 | BS25: 0 | BT25: 0 | BU25: 0 | BV25: 0 | BW25: 1 | BX25: 0
A26: =IF(E26<E25,BO26,A25) -> 21 | B26: Helgerud | C26: Christoffer Teistum | D26: Ljan | E26: =Q26 -> 38 | F26: =(IF(AC26=5,1,0)+IF(AH26=5,1,0)+IF(AM26=5,1,0)+IF(AR26=5,1,0)+IF(AW26=5,1,0)+IF(BA26=5,1,0)+IF(BG26=5,1,0)+IF(BL26=5,1,0)) -> 2 | H26: =IF(AA26="","",AA26) ->  | I26: =IF(AF26="","",AF26) ->  | J26: =IF(AK26="","",AK26) -> 16 | K26: =IF(AP26="","",AP26) -> 18 | L26: =IF(AU26="","",AU26) ->  | Q26: =AD26+AI26+AN26+AS26+AX26+BC26+BH26 -> 38 | AB26: =IF(ISNUMBER(AA26),(VLOOKUP(AA26,$BO$6:$BP$50,2)),0) -> 0 | AC26: =IF(AA26<>"",5,0) -> 0 | AD26: =AB26+AC26 -> 0 | AG26: =IF(ISNUMBER(AF26),(VLOOKUP(AF26,$BO$6:$BP$50,2)),0) -> 0 | AH26: =IF(AF26<>"",5,0) -> 0 | AI26: =AG26+AH26 -> 0 | AK26: 16 | AL26: =IF(ISNUMBER(AK26),(VLOOKUP(AK26,$BO$6:$BP$50,2)),0) -> 15 | AM26: =IF(AK26<>"",5,0) -> 5 | AN26: =AL26+AM26 -> 20 | AP26: 18 | AQ26: =IF(ISNUMBER(AP26),(VLOOKUP(AP26,$BO$6:$BP$50,2)),0) -> 13 | AR26: =IF(AP26<>"",5,0) -> 5 | AS26: =AQ26+AR26 -> 18 | AV26: =IF(ISNUMBER(AU26),(VLOOKUP(AU26,$BO$6:$BP$50,2)),0) -> 0 | AW26: =IF(AU26<>"",5,0) -> 0 | AX26: =AV26+AW26 -> 0 | BA26: =IF(ISNUMBER(AZ26),(VLOOKUP(AZ26,$BO$6:$BP$50,2)),0) -> 0 | BB26: =IF(AZ26<>"",5,0) -> 0 | BC26: =BA26+BB26 -> 0 | BF26: =IF(ISNUMBER(BE26),(VLOOKUP(BE26,$BO$6:$BP$50,2)),0) -> 0 | BG26: =IF(BE26<>"",5,0) -> 0 | BH26: =BF26+BG26 -> 0 | BK26: =IF(ISNUMBER(BJ26),(VLOOKUP(BJ26,$BO$6:$BP$50,2)),0) -> 0 | BL26: =IF(BJ26<>"",5,0) -> 0 | BM26: =BK26+BL26 -> 0 | BO26: 21 | BP26: 10 | BQ26: 0 | BR26: 0 | BS26: 0 | BT26: 0 | BU26: 0 | BV26: 0 | BW26: 0 | BX26: 1
A27: =IF(E27<E26,BO27,A26) -> 22 | B27: Christiansen | C27: Victor | D27: IRS | E27: =Q27 -> 29 | F27: =(IF(AC27=5,1,0)+IF(AH27=5,1,0)+IF(AM27=5,1,0)+IF(AR27=5,1,0)+IF(AW27=5,1,0)+IF(BA27=5,1,0)+IF(BG27=5,1,0)+IF(BL27=5,1,0)) -> 1 | H27: =IF(AA27="","",AA27) -> 11 | I27: =IF(AF27="","",AF27) ->  | J27: =IF(AK27="","",AK27) ->  | K27: =IF(AP27="","",AP27) ->  | L27: =IF(AU27="","",AU27) ->  | Q27: =AD27+AI27+AN27+AS27+AX27+BC27+BH27 -> 29 | AA27: 11 | AB27: =IF(ISNUMBER(AA27),(VLOOKUP(AA27,$BO$6:$BP$50,2)),0) -> 24 | AC27: =IF(AA27<>"",5,0) -> 5 | AD27: =AB27+AC27 -> 29 | AG27: =IF(ISNUMBER(AF27),(VLOOKUP(AF27,$BO$6:$BP$50,2)),0) -> 0 | AH27: =IF(AF27<>"",5,0) -> 0 | AI27: =AG27+AH27 -> 0 | AL27: =IF(ISNUMBER(AK27),(VLOOKUP(AK27,$BO$6:$BP$50,2)),0) -> 0 | AM27: =IF(AK27<>"",5,0) -> 0 | AN27: =AL27+AM27 -> 0 | AQ27: =IF(ISNUMBER(AP27),(VLOOKUP(AP27,$BO$6:$BP$50,2)),0) -> 0 | AR27: =IF(AP27<>"",5,0) -> 0 | AS27: =AQ27+AR27 -> 0 | AV27: =IF(ISNUMBER(AU27),(VLOOKUP(AU27,$BO$6:$BP$50,2)),0) -> 0 | AW27: =IF(AU27<>"",5,0) -> 0 | AX27: =AV27+AW27 -> 0 | BA27: =IF(ISNUMBER(AZ27),(VLOOKUP(AZ27,$BO$6:$BP$50,2)),0) -> 0 | BB27: =IF(AZ27<>"",5,0) -> 0 | BC27: =BA27+BB27 -> 0 | BF27: =IF(ISNUMBER(BE27),(VLOOKUP(BE27,$BO$6:$BP$50,2)),0) -> 0 | BG27: =IF(BE27<>"",5,0) -> 0 | BH27: =BF27+BG27 -> 0 | BK27: =IF(ISNUMBER(BJ27),(VLOOKUP(BJ27,$BO$6:$BP$50,2)),0) -> 0 | BL27: =IF(BJ27<>"",5,0) -> 0 | BM27: =BK27+BL27 -> 0 | BO27: 22 | BP27: 9 | BQ27: 0 | BR27: 0 | BS27: 0 | BT27: 0 | BU27: 0 | BV27: 0 | BW27: 0 | BX27: 1
A28: =IF(E28<E27,BO28,A27) -> 22 | B28: Malling | C28: Michael de Vibe | D28: Heming | E28: =Q28 -> 29 | F28: =(IF(AC28=5,1,0)+IF(AH28=5,1,0)+IF(AM28=5,1,0)+IF(AR28=5,1,0)+IF(AW28=5,1,0)+IF(BA28=5,1,0)+IF(BG28=5,1,0)+IF(BL28=5,1,0)) -> 1 | H28: =IF(AA28="","",AA28) ->  | I28: =IF(AF28="","",AF28) ->  | J28: =IF(AK28="","",AK28) -> 11 | K28: =IF(AP28="","",AP28) ->  | L28: =IF(AU28="","",AU28) ->  | Q28: =AD28+AI28+AN28+AS28+AX28+BC28+BH28 -> 29 | AB28: =IF(ISNUMBER(AA28),(VLOOKUP(AA28,$BO$6:$BP$50,2)),0) -> 0 | AC28: =IF(AA28<>"",5,0) -> 0 | AD28: =AB28+AC28 -> 0 | AG28: =IF(ISNUMBER(AF28),(VLOOKUP(AF28,$BO$6:$BP$50,2)),0) -> 0 | AH28: =IF(AF28<>"",5,0) -> 0 | AI28: =AG28+AH28 -> 0 | AK28: 11 | AL28: =IF(ISNUMBER(AK28),(VLOOKUP(AK28,$BO$6:$BP$50,2)),0) -> 24 | AM28: =IF(AK28<>"",5,0) -> 5 | AN28: =AL28+AM28 -> 29 | AQ28: =IF(ISNUMBER(AP28),(VLOOKUP(AP28,$BO$6:$BP$50,2)),0) -> 0 | AR28: =IF(AP28<>"",5,0) -> 0 | AS28: =AQ28+AR28 -> 0 | AV28: =IF(ISNUMBER(AU28),(VLOOKUP(AU28,$BO$6:$BP$50,2)),0) -> 0 | AW28: =IF(AU28<>"",5,0) -> 0 | AX28: =AV28+AW28 -> 0 | BA28: =IF(ISNUMBER(AZ28),(VLOOKUP(AZ28,$BO$6:$BP$50,2)),0) -> 0 | BB28: =IF(AZ28<>"",5,0) -> 0 | BC28: =BA28+BB28 -> 0 | BF28: =IF(ISNUMBER(BE28),(VLOOKUP(BE28,$BO$6:$BP$50,2)),0) -> 0 | BG28: =IF(BE28<>"",5,0) -> 0 | BH28: =BF28+BG28 -> 0 | BK28: =IF(ISNUMBER(BJ28),(VLOOKUP(BJ28,$BO$6:$BP$50,2)),0) -> 0 | BL28: =IF(BJ28<>"",5,0) -> 0 | BM28: =BK28+BL28 -> 0 | BO28: 23 | BP28: 8 | BQ28: 0 | BR28: =IF($F23=7,1,0) -> 0 | BS28: =IF($F23=6,1,0) -> 0 | BT28: =IF($F23=5,1,0) -> 0 | BU28: =IF($F23=4,1,0) -> 0 | BV28: =IF($F23=3,1,0) -> 0 | BW28: =IF($F23=2,1,0) -> 1 | BX28: =IF($F23=1,1,0) -> 0
A29: =IF(E29<E28,BO29,A28) -> 24 | B29: Øksnes | C29: Håkon Eiksund | D29: Kjelsås | E29: =Q29 -> 25 | F29: =(IF(AC29=5,1,0)+IF(AH29=5,1,0)+IF(AM29=5,1,0)+IF(AR29=5,1,0)+IF(AW29=5,1,0)+IF(BA29=5,1,0)+IF(BG29=5,1,0)+IF(BL29=5,1,0)) -> 1 | H29: =IF(AA29="","",AA29) -> 13 | I29: =IF(AF29="","",AF29) ->  | J29: =IF(AK29="","",AK29) ->  | K29: =IF(AP29="","",AP29) ->  | L29: =IF(AU29="","",AU29) ->  | Q29: =AD29+AI29+AN29+AS29+AX29+BC29+BH29 -> 25 | AA29: 13 | AB29: =IF(ISNUMBER(AA29),(VLOOKUP(AA29,$BO$6:$BP$50,2)),0) -> 20 | AC29: =IF(AA29<>"",5,0) -> 5 | AD29: =AB29+AC29 -> 25 | AG29: =IF(ISNUMBER(AF29),(VLOOKUP(AF29,$BO$6:$BP$50,2)),0) -> 0 | AH29: =IF(AF29<>"",5,0) -> 0 | AI29: =AG29+AH29 -> 0 | AL29: =IF(ISNUMBER(AK29),(VLOOKUP(AK29,$BO$6:$BP$50,2)),0) -> 0 | AM29: =IF(AK29<>"",5,0) -> 0 | AN29: =AL29+AM29 -> 0 | AQ29: =IF(ISNUMBER(AP29),(VLOOKUP(AP29,$BO$6:$BP$50,2)),0) -> 0 | AR29: =IF(AP29<>"",5,0) -> 0 | AS29: =AQ29+AR29 -> 0 | AV29: =IF(ISNUMBER(AU29),(VLOOKUP(AU29,$BO$6:$BP$50,2)),0) -> 0 | AW29: =IF(AU29<>"",5,0) -> 0 | AX29: =AV29+AW29 -> 0 | BA29: =IF(ISNUMBER(AZ29),(VLOOKUP(AZ29,$BO$6:$BP$50,2)),0) -> 0 | BB29: =IF(AZ29<>"",5,0) -> 0 | BC29: =BA29+BB29 -> 0 | BF29: =IF(ISNUMBER(BE29),(VLOOKUP(BE29,$BO$6:$BP$50,2)),0) -> 0 | BG29: =IF(BE29<>"",5,0) -> 0 | BH29: =BF29+BG29 -> 0 | BK29: =IF(ISNUMBER(BJ29),(VLOOKUP(BJ29,$BO$6:$BP$50,2)),0) -> 0 | BL29: =IF(BJ29<>"",5,0) -> 0 | BM29: =BK29+BL29 -> 0 | BO29: 24 | BP29: 7 | BQ29: 0 | BR29: =IF($F24=7,1,0) -> 0 | BS29: =IF($F24=6,1,0) -> 0 | BT29: =IF($F24=5,1,0) -> 0 | BU29: =IF($F24=4,1,0) -> 0 | BV29: =IF($F24=3,1,0) -> 0 | BW29: =IF($F24=2,1,0) -> 0 | BX29: =IF($F24=1,1,0) -> 1
A30: =IF(E30<E29,BO30,A29) -> 25 | B30: Hunstad | C30: Nicolai Christian | D30: Heming | E30: =Q30 -> 21 | F30: =(IF(AC30=5,1,0)+IF(AH30=5,1,0)+IF(AM30=5,1,0)+IF(AR30=5,1,0)+IF(AW30=5,1,0)+IF(BA30=5,1,0)+IF(BG30=5,1,0)+IF(BL30=5,1,0)) -> 1 | H30: =IF(AA30="","",AA30) ->  | I30: =IF(AF30="","",AF30) ->  | J30: =IF(AK30="","",AK30) -> 15 | K30: =IF(AP30="","",AP30) ->  | L30: =IF(AU30="","",AU30) ->  | Q30: =AD30+AI30+AN30+AS30+AX30+BC30+BH30 -> 21 | AB30: =IF(ISNUMBER(AA30),(VLOOKUP(AA30,$BO$6:$BP$50,2)),0) -> 0 | AC30: =IF(AA30<>"",5,0) -> 0 | AD30: =AB30+AC30 -> 0 | AG30: =IF(ISNUMBER(AF30),(VLOOKUP(AF30,$BO$6:$BP$50,2)),0) -> 0 | AH30: =IF(AF30<>"",5,0) -> 0 | AI30: =AG30+AH30 -> 0 | AK30: 15 | AL30: =IF(ISNUMBER(AK30),(VLOOKUP(AK30,$BO$6:$BP$50,2)),0) -> 16 | AM30: =IF(AK30<>"",5,0) -> 5 | AN30: =AL30+AM30 -> 21 | AQ30: =IF(ISNUMBER(AP30),(VLOOKUP(AP30,$BO$6:$BP$50,2)),0) -> 0 | AR30: =IF(AP30<>"",5,0) -> 0 | AS30: =AQ30+AR30 -> 0 | AV30: =IF(ISNUMBER(AU30),(VLOOKUP(AU30,$BO$6:$BP$50,2)),0) -> 0 | AW30: =IF(AU30<>"",5,0) -> 0 | AX30: =AV30+AW30 -> 0 | BA30: =IF(ISNUMBER(AZ30),(VLOOKUP(AZ30,$BO$6:$BP$50,2)),0) -> 0 | BB30: =IF(AZ30<>"",5,0) -> 0 | BC30: =BA30+BB30 -> 0 | BF30: =IF(ISNUMBER(BE30),(VLOOKUP(BE30,$BO$6:$BP$50,2)),0) -> 0 | BG30: =IF(BE30<>"",5,0) -> 0 | BH30: =BF30+BG30 -> 0 | BK30: =IF(ISNUMBER(BJ30),(VLOOKUP(BJ30,$BO$6:$BP$50,2)),0) -> 0 | BL30: =IF(BJ30<>"",5,0) -> 0 | BM30: =BK30+BL30 -> 0 | BO30: 25 | BP30: 6 | BQ30: 0 | BR30: =IF($F25=7,1,0) -> 0 | BS30: =IF($F25=6,1,0) -> 0 | BT30: =IF($F25=5,1,0) -> 0 | BU30: =IF($F25=4,1,0) -> 0 | BV30: =IF($F25=3,1,0) -> 0 | BW30: =IF($F25=2,1,0) -> 0 | BX30: =IF($F25=1,1,0) -> 1
A31: =IF(E31<E30,BO31,A30) -> 26 | B31: Krohn-Oppi | C31: Kristian | D31: Kjelsås | E31: =Q31 -> 20 | F31: =(IF(AC31=5,1,0)+IF(AH31=5,1,0)+IF(AM31=5,1,0)+IF(AR31=5,1,0)+IF(AW31=5,1,0)+IF(BA31=5,1,0)+IF(BG31=5,1,0)+IF(BL31=5,1,0)) -> 1 | H31: =IF(AA31="","",AA31) ->  | I31: =IF(AF31="","",AF31) ->  | J31: =IF(AK31="","",AK31) ->  | K31: =IF(AP31="","",AP31) -> 16 | L31: =IF(AU31="","",AU31) ->  | Q31: =AD31+AI31+AN31+AS31+AX31+BC31+BH31 -> 20 | AB31: =IF(ISNUMBER(AA31),(VLOOKUP(AA31,$BO$6:$BP$50,2)),0) -> 0 | AC31: =IF(AA31<>"",5,0) -> 0 | AD31: =AB31+AC31 -> 0 | AG31: =IF(ISNUMBER(AF31),(VLOOKUP(AF31,$BO$6:$BP$50,2)),0) -> 0 | AH31: =IF(AF31<>"",5,0) -> 0 | AI31: =AG31+AH31 -> 0 | AL31: =IF(ISNUMBER(AK31),(VLOOKUP(AK31,$BO$6:$BP$50,2)),0) -> 0 | AM31: =IF(AK31<>"",5,0) -> 0 | AN31: =AL31+AM31 -> 0 | AP31: 16 | AQ31: =IF(ISNUMBER(AP31),(VLOOKUP(AP31,$BO$6:$BP$50,2)),0) -> 15 | AR31: =IF(AP31<>"",5,0) -> 5 | AS31: =AQ31+AR31 -> 20 | AV31: =IF(ISNUMBER(AU31),(VLOOKUP(AU31,$BO$6:$BP$50,2)),0) -> 0 | AW31: =IF(AU31<>"",5,0) -> 0 | AX31: =AV31+AW31 -> 0 | BA31: =IF(ISNUMBER(AZ31),(VLOOKUP(AZ31,$BO$6:$BP$50,2)),0) -> 0 | BB31: =IF(AZ31<>"",5,0) -> 0 | BC31: =BA31+BB31 -> 0 | BF31: =IF(ISNUMBER(BE31),(VLOOKUP(BE31,$BO$6:$BP$50,2)),0) -> 0 | BG31: =IF(BE31<>"",5,0) -> 0 | BH31: =BF31+BG31 -> 0 | BK31: =IF(ISNUMBER(BJ31),(VLOOKUP(BJ31,$BO$6:$BP$50,2)),0) -> 0 | BL31: =IF(BJ31<>"",5,0) -> 0 | BM31: =BK31+BL31 -> 0 | BO31: 26 | BP31: 5 | BQ31: 0 | BR31: =IF($F25=7,1,0) -> 0 | BS31: =IF($F25=6,1,0) -> 0 | BT31: =IF($F25=5,1,0) -> 0 | BU31: =IF($F25=4,1,0) -> 0 | BV31: =IF($F25=3,1,0) -> 0 | BW31: =IF($F25=2,1,0) -> 0 | BX31: =IF($F25=1,1,0) -> 1
A32: =IF(E32<E31,BO32,A31) -> 27 | B32: Furuholmen | C32: Henrik Sæthre | D32: Heming | E32: =Q32 -> 19 | F32: =(IF(AC32=5,1,0)+IF(AH32=5,1,0)+IF(AM32=5,1,0)+IF(AR32=5,1,0)+IF(AW32=5,1,0)+IF(BA32=5,1,0)+IF(BG32=5,1,0)+IF(BL32=5,1,0)) -> 1 | H32: =IF(AA32="","",AA32) ->  | I32: =IF(AF32="","",AF32) ->  | J32: =IF(AK32="","",AK32) ->  | K32: =IF(AP32="","",AP32) -> 17 | L32: =IF(AU32="","",AU32) ->  | Q32: =AD32+AI32+AN32+AS32+AX32+BC32+BH32 -> 19 | AB32: =IF(ISNUMBER(AA32),(VLOOKUP(AA32,$BO$6:$BP$50,2)),0) -> 0 | AC32: =IF(AA32<>"",5,0) -> 0 | AD32: =AB32+AC32 -> 0 | AG32: =IF(ISNUMBER(AF32),(VLOOKUP(AF32,$BO$6:$BP$50,2)),0) -> 0 | AH32: =IF(AF32<>"",5,0) -> 0 | AI32: =AG32+AH32 -> 0 | AL32: =IF(ISNUMBER(AK32),(VLOOKUP(AK32,$BO$6:$BP$50,2)),0) -> 0 | AM32: =IF(AK32<>"",5,0) -> 0 | AN32: =AL32+AM32 -> 0 | AP32: 17 | AQ32: =IF(ISNUMBER(AP32),(VLOOKUP(AP32,$BO$6:$BP$50,2)),0) -> 14 | AR32: =IF(AP32<>"",5,0) -> 5 | AS32: =AQ32+AR32 -> 19 | AV32: =IF(ISNUMBER(AU32),(VLOOKUP(AU32,$BO$6:$BP$50,2)),0) -> 0 | AW32: =IF(AU32<>"",5,0) -> 0 | AX32: =AV32+AW32 -> 0 | BA32: =IF(ISNUMBER(AZ32),(VLOOKUP(AZ32,$BO$6:$BP$50,2)),0) -> 0 | BB32: =IF(AZ32<>"",5,0) -> 0 | BC32: =BA32+BB32 -> 0 | BF32: =IF(ISNUMBER(BE32),(VLOOKUP(BE32,$BO$6:$BP$50,2)),0) -> 0 | BG32: =IF(BE32<>"",5,0) -> 0 | BH32: =BF32+BG32 -> 0 | BK32: =IF(ISNUMBER(BJ32),(VLOOKUP(BJ32,$BO$6:$BP$50,2)),0) -> 0 | BL32: =IF(BJ32<>"",5,0) -> 0 | BM32: =BK32+BL32 -> 0 | BO32: 27 | BP32: 4 | BQ32: 0 | BR32: =IF($F26=7,1,0) -> 0 | BS32: =IF($F26=6,1,0) -> 0 | BT32: =IF($F26=5,1,0) -> 0 | BU32: =IF($F26=4,1,0) -> 0 | BV32: =IF($F26=3,1,0) -> 0 | BW32: =IF($F26=2,1,0) -> 1 | BX32: =IF($F26=1,1,0) -> 0
A33: =IF(E33<E32,BO33,A32) -> 28 | B33: Daniels | C33: Alfred Axelsen | D33: Kjelsås | E33: =Q33 -> 15 | F33: =(IF(AC33=5,1,0)+IF(AH33=5,1,0)+IF(AM33=5,1,0)+IF(AR33=5,1,0)+IF(AW33=5,1,0)+IF(BA33=5,1,0)+IF(BG33=5,1,0)+IF(BL33=5,1,0)) -> 1 | H33: =IF(AA33="","",AA33) ->  | I33: =IF(AF33="","",AF33) ->  | J33: =IF(AK33="","",AK33) -> 21 | K33: =IF(AP33="","",AP33) ->  | L33: =IF(AU33="","",AU33) ->  | Q33: =AD33+AI33+AN33+AS33+AX33+BC33+BH33 -> 15 | AB33: =IF(ISNUMBER(AA33),(VLOOKUP(AA33,$BO$6:$BP$50,2)),0) -> 0 | AC33: =IF(AA33<>"",5,0) -> 0 | AD33: =AB33+AC33 -> 0 | AG33: =IF(ISNUMBER(AF33),(VLOOKUP(AF33,$BO$6:$BP$50,2)),0) -> 0 | AH33: =IF(AF33<>"",5,0) -> 0 | AI33: =AG33+AH33 -> 0 | AK33: 21 | AL33: =IF(ISNUMBER(AK33),(VLOOKUP(AK33,$BO$6:$BP$50,2)),0) -> 10 | AM33: =IF(AK33<>"",5,0) -> 5 | AN33: =AL33+AM33 -> 15 | AQ33: =IF(ISNUMBER(AP33),(VLOOKUP(AP33,$BO$6:$BP$50,2)),0) -> 0 | AR33: =IF(AP33<>"",5,0) -> 0 | AS33: =AQ33+AR33 -> 0 | AV33: =IF(ISNUMBER(AU33),(VLOOKUP(AU33,$BO$6:$BP$50,2)),0) -> 0 | AW33: =IF(AU33<>"",5,0) -> 0 | AX33: =AV33+AW33 -> 0 | BA33: =IF(ISNUMBER(AZ33),(VLOOKUP(AZ33,$BO$6:$BP$50,2)),0) -> 0 | BB33: =IF(AZ33<>"",5,0) -> 0 | BC33: =BA33+BB33 -> 0 | BF33: =IF(ISNUMBER(BE33),(VLOOKUP(BE33,$BO$6:$BP$50,2)),0) -> 0 | BG33: =IF(BE33<>"",5,0) -> 0 | BH33: =BF33+BG33 -> 0 | BK33: =IF(ISNUMBER(BJ33),(VLOOKUP(BJ33,$BO$6:$BP$50,2)),0) -> 0 | BL33: =IF(BJ33<>"",5,0) -> 0 | BM33: =BK33+BL33 -> 0 | BO33: 28 | BP33: 3 | BQ33: 0 | BR33: 0 | BS33: 0 | BT33: 0 | BU33: 0 | BV33: 0 | BW33: 0 | BX33: 1
A34: =IF(E34<E33,BO34,A33) -> 29 | B34: Axelsen | C34: Alfred | D34: Kjelsås | E34: =Q34 -> 5 | F34: =(IF(AC34=5,1,0)+IF(AH34=5,1,0)+IF(AM34=5,1,0)+IF(AR34=5,1,0)+IF(AW34=5,1,0)+IF(BA34=5,1,0)+IF(BG34=5,1,0)+IF(BL34=5,1,0)) -> 1 | H34: =IF(AA34="","",AA34) ->  | I34: =IF(AF34="","",AF34) -> dsq | J34: =IF(AK34="","",AK34) ->  | K34: =IF(AP34="","",AP34) ->  | L34: =IF(AU34="","",AU34) ->  | Q34: =AD34+AI34+AN34+AS34+AX34+BC34+BH34 -> 5 | AB34: =IF(ISNUMBER(AA34),(VLOOKUP(AA34,$BO$6:$BP$50,2)),0) -> 0 | AC34: =IF(AA34<>"",5,0) -> 0 | AD34: =AB34+AC34 -> 0 | AF34: dsq | AG34: =IF(ISNUMBER(AF34),(VLOOKUP(AF34,$BO$6:$BP$50,2)),0) -> 0 | AH34: =IF(AF34<>"",5,0) -> 5 | AI34: =AG34+AH34 -> 5 | AL34: =IF(ISNUMBER(AK34),(VLOOKUP(AK34,$BO$6:$BP$50,2)),0) -> 0 | AM34: =IF(AK34<>"",5,0) -> 0 | AN34: =AL34+AM34 -> 0 | AQ34: =IF(ISNUMBER(AP34),(VLOOKUP(AP34,$BO$6:$BP$50,2)),0) -> 0 | AR34: =IF(AP34<>"",5,0) -> 0 | AS34: =AQ34+AR34 -> 0 | AV34: =IF(ISNUMBER(AU34),(VLOOKUP(AU34,$BO$6:$BP$50,2)),0) -> 0 | AW34: =IF(AU34<>"",5,0) -> 0 | AX34: =AV34+AW34 -> 0 | BA34: =IF(ISNUMBER(AZ34),(VLOOKUP(AZ34,$BO$6:$BP$50,2)),0) -> 0 | BB34: =IF(AZ34<>"",5,0) -> 0 | BC34: =BA34+BB34 -> 0 | BF34: =IF(ISNUMBER(BE34),(VLOOKUP(BE34,$BO$6:$BP$50,2)),0) -> 0 | BG34: =IF(BE34<>"",5,0) -> 0 | BH34: =BF34+BG34 -> 0 | BK34: =IF(ISNUMBER(BJ34),(VLOOKUP(BJ34,$BO$6:$BP$50,2)),0) -> 0 | BL34: =IF(BJ34<>"",5,0) -> 0 | BM34: =BK34+BL34 -> 0 | BO34: 29 | BP34: 2 | BQ34: 0 | BR34: 0 | BS34: 0 | BT34: 0 | BU34: 0 | BV34: 0 | BW34: 0 | BX34: 1
A35: =IF(E35<E34,BO35,A34) -> 29 | B35: Bøhmer | C35: Knut Fredrik | D35: Heming | E35: =Q35 -> 5 | F35: =(IF(AC35=5,1,0)+IF(AH35=5,1,0)+IF(AM35=5,1,0)+IF(AR35=5,1,0)+IF(AW35=5,1,0)+IF(BA35=5,1,0)+IF(BG35=5,1,0)+IF(BL35=5,1,0)) -> 1 | H35: =IF(AA35="","",AA35) ->  | I35: =IF(AF35="","",AF35) ->  | J35: =IF(AK35="","",AK35) ->  | K35: =IF(AP35="","",AP35) -> dnf | L35: =IF(AU35="","",AU35) ->  | Q35: =AD35+AI35+AN35+AS35+AX35+BC35+BH35 -> 5 | AB35: =IF(ISNUMBER(AA35),(VLOOKUP(AA35,$BO$6:$BP$50,2)),0) -> 0 | AC35: =IF(AA35<>"",5,0) -> 0 | AD35: =AB35+AC35 -> 0 | AG35: =IF(ISNUMBER(AF35),(VLOOKUP(AF35,$BO$6:$BP$50,2)),0) -> 0 | AH35: =IF(AF35<>"",5,0) -> 0 | AI35: =AG35+AH35 -> 0 | AL35: =IF(ISNUMBER(AK35),(VLOOKUP(AK35,$BO$6:$BP$50,2)),0) -> 0 | AM35: =IF(AK35<>"",5,0) -> 0 | AN35: =AL35+AM35 -> 0 | AP35: dnf | AQ35: =IF(ISNUMBER(AP35),(VLOOKUP(AP35,$BO$6:$BP$50,2)),0) -> 0 | AR35: =IF(AP35<>"",5,0) -> 5 | AS35: =AQ35+AR35 -> 5 | AV35: =IF(ISNUMBER(AU35),(VLOOKUP(AU35,$BO$6:$BP$50,2)),0) -> 0 | AW35: =IF(AU35<>"",5,0) -> 0 | AX35: =AV35+AW35 -> 0 | BA35: =IF(ISNUMBER(AZ35),(VLOOKUP(AZ35,$BO$6:$BP$50,2)),0) -> 0 | BB35: =IF(AZ35<>"",5,0) -> 0 | BC35: =BA35+BB35 -> 0 | BF35: =IF(ISNUMBER(BE35),(VLOOKUP(BE35,$BO$6:$BP$50,2)),0) -> 0 | BG35: =IF(BE35<>"",5,0) -> 0 | BH35: =BF35+BG35 -> 0 | BK35: =IF(ISNUMBER(BJ35),(VLOOKUP(BJ35,$BO$6:$BP$50,2)),0) -> 0 | BL35: =IF(BJ35<>"",5,0) -> 0 | BM35: =BK35+BL35 -> 0 | BO35: 30 | BP35: 1 | BQ35: 0 | BR35: =IF($F26=7,1,0) -> 0 | BS35: =IF($F26=6,1,0) -> 0 | BT35: =IF($F26=5,1,0) -> 0 | BU35: =IF($F26=4,1,0) -> 0 | BV35: =IF($F26=3,1,0) -> 0 | BW35: =IF($F26=2,1,0) -> 1 | BX35: =IF($F26=1,1,0) -> 0
A36: =IF(E36<E35,BO36,A35) -> 31 | E36: =Q36 -> 0 | F36: =(IF(AC36=5,1,0)+IF(AH36=5,1,0)+IF(AM36=5,1,0)+IF(AR36=5,1,0)+IF(AW36=5,1,0)+IF(BA36=5,1,0)+IF(BG36=5,1,0)+IF(BL36=5,1,0)) -> 0 | H36: =IF(AA36="","",AA36) ->  | I36: =IF(AF36="","",AF36) ->  | J36: =IF(AK36="","",AK36) ->  | K36: =IF(AP36="","",AP36) ->  | L36: =IF(AU36="","",AU36) ->  | Q36: =AD36+AI36+AN36+AS36+AX36+BC36+BH36 -> 0 | AB36: =IF(ISNUMBER(AA36),(VLOOKUP(AA36,$BO$6:$BP$50,2)),0) -> 0 | AC36: =IF(AA36<>"",5,0) -> 0 | AD36: =AB36+AC36 -> 0 | AG36: =IF(ISNUMBER(AF36),(VLOOKUP(AF36,$BO$6:$BP$50,2)),0) -> 0 | AH36: =IF(AF36<>"",5,0) -> 0 | AI36: =AG36+AH36 -> 0 | AL36: =IF(ISNUMBER(AK36),(VLOOKUP(AK36,$BO$6:$BP$50,2)),0) -> 0 | AM36: =IF(AK36<>"",5,0) -> 0 | AN36: =AL36+AM36 -> 0 | AQ36: =IF(ISNUMBER(AP36),(VLOOKUP(AP36,$BO$6:$BP$50,2)),0) -> 0 | AR36: =IF(AP36<>"",5,0) -> 0 | AS36: =AQ36+AR36 -> 0 | AV36: =IF(ISNUMBER(AU36),(VLOOKUP(AU36,$BO$6:$BP$50,2)),0) -> 0 | AW36: =IF(AU36<>"",5,0) -> 0 | AX36: =AV36+AW36 -> 0 | BA36: =IF(ISNUMBER(AZ36),(VLOOKUP(AZ36,$BO$6:$BP$50,2)),0) -> 0 | BB36: =IF(AZ36<>"",5,0) -> 0 | BC36: =BA36+BB36 -> 0 | BF36: =IF(ISNUMBER(BE36),(VLOOKUP(BE36,$BO$6:$BP$50,2)),0) -> 0 | BG36: =IF(BE36<>"",5,0) -> 0 | BH36: =BF36+BG36 -> 0 | BK36: =IF(ISNUMBER(BJ36),(VLOOKUP(BJ36,$BO$6:$BP$50,2)),0) -> 0 | BL36: =IF(BJ36<>"",5,0) -> 0 | BM36: =BK36+BL36 -> 0 | BO36: 31 | BP36: 0 | BQ36: 0 | BR36: 0 | BS36: 0 | BT36: 0 | BU36: 0 | BV36: 0 | BW36: 0 | BX36: 1
A37: =IF(E37<E36,BO37,A36) -> 31 | E37: =Q37 -> 0 | F37: =(IF(AC37=5,1,0)+IF(AH37=5,1,0)+IF(AM37=5,1,0)+IF(AR37=5,1,0)+IF(AW37=5,1,0)+IF(BA37=5,1,0)+IF(BG37=5,1,0)+IF(BL37=5,1,0)) -> 0 | H37: =IF(AA37="","",AA37) ->  | I37: =IF(AF37="","",AF37) ->  | J37: =IF(AK37="","",AK37) ->  | K37: =IF(AP37="","",AP37) ->  | L37: =IF(AU37="","",AU37) ->  | Q37: =AD37+AI37+AN37+AS37+AX37+BC37+BH37 -> 0 | AB37: =IF(ISNUMBER(AA37),(VLOOKUP(AA37,$BO$6:$BP$50,2)),0) -> 0 | AC37: =IF(AA37<>"",5,0) -> 0 | AD37: =AB37+AC37 -> 0 | AG37: =IF(ISNUMBER(AF37),(VLOOKUP(AF37,$BO$6:$BP$50,2)),0) -> 0 | AH37: =IF(AF37<>"",5,0) -> 0 | AI37: =AG37+AH37 -> 0 | AL37: =IF(ISNUMBER(AK37),(VLOOKUP(AK37,$BO$6:$BP$50,2)),0) -> 0 | AM37: =IF(AK37<>"",5,0) -> 0 | AN37: =AL37+AM37 -> 0 | AQ37: =IF(ISNUMBER(AP37),(VLOOKUP(AP37,$BO$6:$BP$50,2)),0) -> 0 | AR37: =IF(AP37<>"",5,0) -> 0 | AS37: =AQ37+AR37 -> 0 | AV37: =IF(ISNUMBER(AU37),(VLOOKUP(AU37,$BO$6:$BP$50,2)),0) -> 0 | AW37: =IF(AU37<>"",5,0) -> 0 | AX37: =AV37+AW37 -> 0 | BA37: =IF(ISNUMBER(AZ37),(VLOOKUP(AZ37,$BO$6:$BP$50,2)),0) -> 0 | BB37: =IF(AZ37<>"",5,0) -> 0 | BC37: =BA37+BB37 -> 0 | BF37: =IF(ISNUMBER(BE37),(VLOOKUP(BE37,$BO$6:$BP$50,2)),0) -> 0 | BG37: =IF(BE37<>"",5,0) -> 0 | BH37: =BF37+BG37 -> 0 | BK37: =IF(ISNUMBER(BJ37),(VLOOKUP(BJ37,$BO$6:$BP$50,2)),0) -> 0 | BL37: =IF(BJ37<>"",5,0) -> 0 | BM37: =BK37+BL37 -> 0 | BO37: 32 | BP37: 0 | BQ37: 0 | BR37: 0 | BS37: 0 | BT37: 0 | BU37: 0 | BV37: 0 | BW37: 0 | BX37: 1
A38: =IF(E38<E37,BO38,A37) -> 31 | E38: =Q38 -> 0 | F38: =(IF(AC38=5,1,0)+IF(AH38=5,1,0)+IF(AM38=5,1,0)+IF(AR38=5,1,0)+IF(AW38=5,1,0)+IF(BA38=5,1,0)+IF(BG38=5,1,0)+IF(BL38=5,1,0)) -> 0 | H38: =IF(AA38="","",AA38) ->  | I38: =IF(AF38="","",AF38) ->  | J38: =IF(AK38="","",AK38) ->  | K38: =IF(AP38="","",AP38) ->  | L38: =IF(AU38="","",AU38) ->  | Q38: =AD38+AI38+AN38+AS38+AX38+BC38+BH38 -> 0 | AB38: =IF(ISNUMBER(AA38),(VLOOKUP(AA38,$BO$6:$BP$50,2)),0) -> 0 | AC38: =IF(AA38<>"",5,0) -> 0 | AD38: =AB38+AC38 -> 0 | AG38: =IF(ISNUMBER(AF38),(VLOOKUP(AF38,$BO$6:$BP$50,2)),0) -> 0 | AH38: =IF(AF38<>"",5,0) -> 0 | AI38: =AG38+AH38 -> 0 | AL38: =IF(ISNUMBER(AK38),(VLOOKUP(AK38,$BO$6:$BP$50,2)),0) -> 0 | AM38: =IF(AK38<>"",5,0) -> 0 | AN38: =AL38+AM38 -> 0 | AQ38: =IF(ISNUMBER(AP38),(VLOOKUP(AP38,$BO$6:$BP$50,2)),0) -> 0 | AR38: =IF(AP38<>"",5,0) -> 0 | AS38: =AQ38+AR38 -> 0 | AV38: =IF(ISNUMBER(AU38),(VLOOKUP(AU38,$BO$6:$BP$50,2)),0) -> 0 | AW38: =IF(AU38<>"",5,0) -> 0 | AX38: =AV38+AW38 -> 0 | BA38: =IF(ISNUMBER(AZ38),(VLOOKUP(AZ38,$BO$6:$BP$50,2)),0) -> 0 | BB38: =IF(AZ38<>"",5,0) -> 0 | BC38: =BA38+BB38 -> 0 | BF38: =IF(ISNUMBER(BE38),(VLOOKUP(BE38,$BO$6:$BP$50,2)),0) -> 0 | BG38: =IF(BE38<>"",5,0) -> 0 | BH38: =BF38+BG38 -> 0 | BK38: =IF(ISNUMBER(BJ38),(VLOOKUP(BJ38,$BO$6:$BP$50,2)),0) -> 0 | BL38: =IF(BJ38<>"",5,0) -> 0 | BM38: =BK38+BL38 -> 0 | BO38: 33 | BP38: 0 | BQ38: 0 | BR38: 0 | BS38: 0 | BT38: 0 | BU38: 0 | BV38: 0 | BW38: 0 | BX38: 1
A39: =IF(E39<E38,BO39,A38) -> 31 | E39: =Q39 -> 0 | F39: =(IF(AC39=5,1,0)+IF(AH39=5,1,0)+IF(AM39=5,1,0)+IF(AR39=5,1,0)+IF(AW39=5,1,0)+IF(BA39=5,1,0)+IF(BG39=5,1,0)+IF(BL39=5,1,0)) -> 0 | H39: =IF(AA39="","",AA39) ->  | I39: =IF(AF39="","",AF39) ->  | J39: =IF(AK39="","",AK39) ->  | K39: =IF(AP39="","",AP39) ->  | L39: =IF(AU39="","",AU39) ->  | Q39: =AD39+AI39+AN39+AS39+AX39+BC39+BH39 -> 0 | AB39: =IF(ISNUMBER(AA39),(VLOOKUP(AA39,$BO$6:$BP$50,2)),0) -> 0 | AC39: =IF(AA39<>"",5,0) -> 0 | AD39: =AB39+AC39 -> 0 | AG39: =IF(ISNUMBER(AF39),(VLOOKUP(AF39,$BO$6:$BP$50,2)),0) -> 0 | AH39: =IF(AF39<>"",5,0) -> 0 | AI39: =AG39+AH39 -> 0 | AL39: =IF(ISNUMBER(AK39),(VLOOKUP(AK39,$BO$6:$BP$50,2)),0) -> 0 | AM39: =IF(AK39<>"",5,0) -> 0 | AN39: =AL39+AM39 -> 0 | AQ39: =IF(ISNUMBER(AP39),(VLOOKUP(AP39,$BO$6:$BP$50,2)),0) -> 0 | AR39: =IF(AP39<>"",5,0) -> 0 | AS39: =AQ39+AR39 -> 0 | AV39: =IF(ISNUMBER(AU39),(VLOOKUP(AU39,$BO$6:$BP$50,2)),0) -> 0 | AW39: =IF(AU39<>"",5,0) -> 0 | AX39: =AV39+AW39 -> 0 | BA39: =IF(ISNUMBER(AZ39),(VLOOKUP(AZ39,$BO$6:$BP$50,2)),0) -> 0 | BB39: =IF(AZ39<>"",5,0) -> 0 | BC39: =BA39+BB39 -> 0 | BF39: =IF(ISNUMBER(BE39),(VLOOKUP(BE39,$BO$6:$BP$50,2)),0) -> 0 | BG39: =IF(BE39<>"",5,0) -> 0 | BH39: =BF39+BG39 -> 0 | BK39: =IF(ISNUMBER(BJ39),(VLOOKUP(BJ39,$BO$6:$BP$50,2)),0) -> 0 | BL39: =IF(BJ39<>"",5,0) -> 0 | BM39: =BK39+BL39 -> 0 | BO39: 34 | BP39: 0 | BQ39: 0 | BR39: 0 | BS39: 0 | BT39: 0 | BU39: 0 | BV39: 0 | BW39: 0 | BX39: 1
A40: =IF(E40<E39,BO40,A39) -> 31 | E40: =Q40 -> 0 | F40: =(IF(AC40=5,1,0)+IF(AH40=5,1,0)+IF(AM40=5,1,0)+IF(AR40=5,1,0)+IF(AW40=5,1,0)+IF(BA40=5,1,0)+IF(BG40=5,1,0)+IF(BL40=5,1,0)) -> 0 | H40: =IF(AA40="","",AA40) ->  | I40: =IF(AF40="","",AF40) ->  | J40: =IF(AK40="","",AK40) ->  | K40: =IF(AP40="","",AP40) ->  | L40: =IF(AU40="","",AU40) ->  | M40: =IF(AZ40="","",AZ40) ->  | N40: =IF(BE40="","",BE40) ->  | O40: =IF(BJ40="","",BJ40) ->  | Q40: =AD40+AI40+AN40+AS40+AX40+BC40+BH40 -> 0 | R40: =IF($F40>=5,IF(AB40="","",AB40),"") ->  | S40: =IF($F40>=5,IF(AG40="","",AG40),"") ->  | T40: =IF($F40>=5,IF(AL40="","",AL40),"") ->  | U40: =IF($F40>=5,IF(AQ40="","",AQ40),"") ->  | V40: =IF($F40>=5,IF(AV40="","",AV40),"") ->  | W40: =IF($F40>=5,IF(BA40="","",BA40),"") ->  | X40: =IF($F40>=5,IF(BF40="","",BF40),"") ->  | Y40: =IF($F40>=5,IF(BK40="","",BK40),"") ->  | AB40: =IF(ISNUMBER(AA40),(VLOOKUP(AA40,$BO$6:$BP$50,2)),0) -> 0 | AC40: =IF(AA40<>"",5,0) -> 0 | AD40: =AB40+AC40 -> 0 | AG40: =IF(ISNUMBER(AF40),(VLOOKUP(AF40,$BO$6:$BP$50,2)),0) -> 0 | AH40: =IF(AF40<>"",5,0) -> 0 | AI40: =AG40+AH40 -> 0 | AL40: =IF(ISNUMBER(AK40),(VLOOKUP(AK40,$BO$6:$BP$50,2)),0) -> 0 | AM40: =IF(AK40<>"",5,0) -> 0 | AN40: =AL40+AM40 -> 0 | AQ40: =IF(ISNUMBER(AP40),(VLOOKUP(AP40,$BO$6:$BP$50,2)),0) -> 0 | AR40: =IF(AP40<>"",5,0) -> 0 | AS40: =AQ40+AR40 -> 0 | AV40: =IF(ISNUMBER(AU40),(VLOOKUP(AU40,$BO$6:$BP$50,2)),0) -> 0 | AW40: =IF(AU40<>"",5,0) -> 0 | AX40: =AV40+AW40 -> 0 | BA40: =IF(ISNUMBER(AZ40),(VLOOKUP(AZ40,$BO$6:$BP$50,2)),0) -> 0 | BB40: =IF(AZ40<>"",5,0) -> 0 | BC40: =BA40+BB40 -> 0 | BF40: =IF(ISNUMBER(BE40),(VLOOKUP(BE40,$BO$6:$BP$50,2)),0) -> 0 | BG40: =IF(BE40<>"",5,0) -> 0 | BH40: =BF40+BG40 -> 0 | BK40: =IF(ISNUMBER(BJ40),(VLOOKUP(BJ40,$BO$6:$BP$50,2)),0) -> 0 | BL40: =IF(BJ40<>"",5,0) -> 0 | BM40: =BK40+BL40 -> 0 | BO40: 35 | BP40: 0 | BQ40: 0 | BR40: 0 | BS40: 0 | BT40: 0 | BU40: 0 | BV40: 0 | BW40: 0 | BX40: 1
A41: =IF(E41<E40,BO41,A40) -> 31 | E41: =Q41 -> 0 | F41: =(IF(AC41=5,1,0)+IF(AH41=5,1,0)+IF(AM41=5,1,0)+IF(AR41=5,1,0)+IF(AW41=5,1,0)+IF(BA41=5,1,0)+IF(BG41=5,1,0)+IF(BL41=5,1,0)) -> 0 | H41: =IF(AA41="","",AA41) ->  | I41: =IF(AF41="","",AF41) ->  | J41: =IF(AK41="","",AK41) ->  | K41: =IF(AP41="","",AP41) ->  | L41: =IF(AU41="","",AU41) ->  | M41: =IF(AZ41="","",AZ41) ->  | N41: =IF(BE41="","",BE41) ->  | O41: =IF(BJ41="","",BJ41) ->  | Q41: =AD41+AI41+AN41+AS41+AX41+BC41+BH41 -> 0 | R41: =IF($F41>=5,IF(AB41="","",AB41),"") ->  | S41: =IF($F41>=5,IF(AG41="","",AG41),"") ->  | T41: =IF($F41>=5,IF(AL41="","",AL41),"") ->  | U41: =IF($F41>=5,IF(AQ41="","",AQ41),"") ->  | V41: =IF($F41>=5,IF(AV41="","",AV41),"") ->  | W41: =IF($F41>=5,IF(BA41="","",BA41),"") ->  | X41: =IF($F41>=5,IF(BF41="","",BF41),"") ->  | Y41: =IF($F41>=5,IF(BK41="","",BK41),"") ->  | AB41: =IF(ISNUMBER(AA41),(VLOOKUP(AA41,$BO$6:$BP$50,2)),0) -> 0 | AC41: =IF(AA41<>"",5,0) -> 0 | AD41: =AB41+AC41 -> 0 | AG41: =IF(ISNUMBER(AF41),(VLOOKUP(AF41,$BO$6:$BP$50,2)),0) -> 0 | AH41: =IF(AF41<>"",5,0) -> 0 | AI41: =AG41+AH41 -> 0 | AL41: =IF(ISNUMBER(AK41),(VLOOKUP(AK41,$BO$6:$BP$50,2)),0) -> 0 | AM41: =IF(AK41<>"",5,0) -> 0 | AN41: =AL41+AM41 -> 0 | AQ41: =IF(ISNUMBER(AP41),(VLOOKUP(AP41,$BO$6:$BP$50,2)),0) -> 0 | AR41: =IF(AP41<>"",5,0) -> 0 | AS41: =AQ41+AR41 -> 0 | AV41: =IF(ISNUMBER(AU41),(VLOOKUP(AU41,$BO$6:$BP$50,2)),0) -> 0 | AW41: =IF(AU41<>"",5,0) -> 0 | AX41: =AV41+AW41 -> 0 | BA41: =IF(ISNUMBER(AZ41),(VLOOKUP(AZ41,$BO$6:$BP$50,2)),0) -> 0 | BB41: =IF(AZ41<>"",5,0) -> 0 | BC41: =BA41+BB41 -> 0 | BF41: =IF(ISNUMBER(BE41),(VLOOKUP(BE41,$BO$6:$BP$50,2)),0) -> 0 | BG41: =IF(BE41<>"",5,0) -> 0 | BH41: =BF41+BG41 -> 0 | BK41: =IF(ISNUMBER(BJ41),(VLOOKUP(BJ41,$BO$6:$BP$50,2)),0) -> 0 | BL41: =IF(BJ41<>"",5,0) -> 0 | BM41: =BK41+BL41 -> 0 | BO41: 36 | BP41: 0 | BQ41: 0 | BR41: 0 | BS41: 0 | BT41: 0 | BU41: 0 | BV41: 0 | BW41: 0 | BX41: 1
A42: =IF(E42<E41,BO42,A41) -> 31 | E42: =Q42 -> 0 | F42: =(IF(AC42=5,1,0)+IF(AH42=5,1,0)+IF(AM42=5,1,0)+IF(AR42=5,1,0)+IF(AW42=5,1,0)+IF(BA42=5,1,0)+IF(BG42=5,1,0)+IF(BL42=5,1,0)) -> 0 | H42: =IF(AA42="","",AA42) ->  | I42: =IF(AF42="","",AF42) ->  | J42: =IF(AK42="","",AK42) ->  | K42: =IF(AP42="","",AP42) ->  | L42: =IF(AU42="","",AU42) ->  | M42: =IF(AZ42="","",AZ42) ->  | N42: =IF(BE42="","",BE42) ->  | O42: =IF(BJ42="","",BJ42) ->  | Q42: =AD42+AI42+AN42+AS42+AX42+BC42+BH42 -> 0 | R42: =IF($F42>=5,IF(AB42="","",AB42),"") ->  | S42: =IF($F42>=5,IF(AG42="","",AG42),"") ->  | T42: =IF($F42>=5,IF(AL42="","",AL42),"") ->  | U42: =IF($F42>=5,IF(AQ42="","",AQ42),"") ->  | V42: =IF($F42>=5,IF(AV42="","",AV42),"") ->  | W42: =IF($F42>=5,IF(BA42="","",BA42),"") ->  | X42: =IF($F42>=5,IF(BF42="","",BF42),"") ->  | Y42: =IF($F42>=5,IF(BK42="","",BK42),"") ->  | AB42: =IF(ISNUMBER(AA42),(VLOOKUP(AA42,$BO$6:$BP$50,2)),0) -> 0 | AC42: =IF(AA42<>"",5,0) -> 0 | AD42: =AB42+AC42 -> 0 | AG42: =IF(ISNUMBER(AF42),(VLOOKUP(AF42,$BO$6:$BP$50,2)),0) -> 0 | AH42: =IF(AF42<>"",5,0) -> 0 | AI42: =AG42+AH42 -> 0 | AL42: =IF(ISNUMBER(AK42),(VLOOKUP(AK42,$BO$6:$BP$50,2)),0) -> 0 | AM42: =IF(AK42<>"",5,0) -> 0 | AN42: =AL42+AM42 -> 0 | AQ42: =IF(ISNUMBER(AP42),(VLOOKUP(AP42,$BO$6:$BP$50,2)),0) -> 0 | AR42: =IF(AP42<>"",5,0) -> 0 | AS42: =AQ42+AR42 -> 0 | AV42: =IF(ISNUMBER(AU42),(VLOOKUP(AU42,$BO$6:$BP$50,2)),0) -> 0 | AW42: =IF(AU42<>"",5,0) -> 0 | AX42: =AV42+AW42 -> 0 | BA42: =IF(ISNUMBER(AZ42),(VLOOKUP(AZ42,$BO$6:$BP$50,2)),0) -> 0 | BB42: =IF(AZ42<>"",5,0) -> 0 | BC42: =BA42+BB42 -> 0 | BF42: =IF(ISNUMBER(BE42),(VLOOKUP(BE42,$BO$6:$BP$50,2)),0) -> 0 | BG42: =IF(BE42<>"",5,0) -> 0 | BH42: =BF42+BG42 -> 0 | BK42: =IF(ISNUMBER(BJ42),(VLOOKUP(BJ42,$BO$6:$BP$50,2)),0) -> 0 | BL42: =IF(BJ42<>"",5,0) -> 0 | BM42: =BK42+BL42 -> 0 | BO42: 37 | BP42: 0 | BQ42: 0 | BR42: 0 | BS42: 0 | BT42: 0 | BU42: 0 | BV42: 0 | BW42: 0 | BX42: 1
A43: =IF(E43<E42,BO43,A42) -> 31 | E43: =Q43 -> 0 | F43: =(IF(AC43=5,1,0)+IF(AH43=5,1,0)+IF(AM43=5,1,0)+IF(AR43=5,1,0)+IF(AW43=5,1,0)+IF(BA43=5,1,0)+IF(BG43=5,1,0)+IF(BL43=5,1,0)) -> 0 | H43: =IF(AA43="","",AA43) ->  | I43: =IF(AF43="","",AF43) ->  | J43: =IF(AK43="","",AK43) ->  | K43: =IF(AP43="","",AP43) ->  | L43: =IF(AU43="","",AU43) ->  | M43: =IF(AZ43="","",AZ43) ->  | N43: =IF(BE43="","",BE43) ->  | O43: =IF(BJ43="","",BJ43) ->  | Q43: =AD43+AI43+AN43+AS43+AX43+BC43+BH43 -> 0 | R43: =IF($F43>=5,IF(AB43="","",AB43),"") ->  | S43: =IF($F43>=5,IF(AG43="","",AG43),"") ->  | T43: =IF($F43>=5,IF(AL43="","",AL43),"") ->  | U43: =IF($F43>=5,IF(AQ43="","",AQ43),"") ->  | V43: =IF($F43>=5,IF(AV43="","",AV43),"") ->  | W43: =IF($F43>=5,IF(BA43="","",BA43),"") ->  | X43: =IF($F43>=5,IF(BF43="","",BF43),"") ->  | Y43: =IF($F43>=5,IF(BK43="","",BK43),"") ->  | AB43: =IF(ISNUMBER(AA43),(VLOOKUP(AA43,$BO$6:$BP$50,2)),0) -> 0 | AC43: =IF(AA43<>"",5,0) -> 0 | AD43: =AB43+AC43 -> 0 | AG43: =IF(ISNUMBER(AF43),(VLOOKUP(AF43,$BO$6:$BP$50,2)),0) -> 0 | AH43: =IF(AF43<>"",5,0) -> 0 | AI43: =AG43+AH43 -> 0 | AL43: =IF(ISNUMBER(AK43),(VLOOKUP(AK43,$BO$6:$BP$50,2)),0) -> 0 | AM43: =IF(AK43<>"",5,0) -> 0 | AN43: =AL43+AM43 -> 0 | AQ43: =IF(ISNUMBER(AP43),(VLOOKUP(AP43,$BO$6:$BP$50,2)),0) -> 0 | AR43: =IF(AP43<>"",5,0) -> 0 | AS43: =AQ43+AR43 -> 0 | AV43: =IF(ISNUMBER(AU43),(VLOOKUP(AU43,$BO$6:$BP$50,2)),0) -> 0 | AW43: =IF(AU43<>"",5,0) -> 0 | AX43: =AV43+AW43 -> 0 | BA43: =IF(ISNUMBER(AZ43),(VLOOKUP(AZ43,$BO$6:$BP$50,2)),0) -> 0 | BB43: =IF(AZ43<>"",5,0) -> 0 | BC43: =BA43+BB43 -> 0 | BF43: =IF(ISNUMBER(BE43),(VLOOKUP(BE43,$BO$6:$BP$50,2)),0) -> 0 | BG43: =IF(BE43<>"",5,0) -> 0 | BH43: =BF43+BG43 -> 0 | BK43: =IF(ISNUMBER(BJ43),(VLOOKUP(BJ43,$BO$6:$BP$50,2)),0) -> 0 | BL43: =IF(BJ43<>"",5,0) -> 0 | BM43: =BK43+BL43 -> 0 | BO43: 38 | BP43: 0 | BQ43: 0 | BR43: 0 | BS43: 0 | BT43: 0 | BU43: 0 | BV43: 0 | BW43: 0 | BX43: 1
A44: =IF(E44<E43,BO44,A43) -> 31 | E44: =Q44 -> 0 | F44: =(IF(AC44=5,1,0)+IF(AH44=5,1,0)+IF(AM44=5,1,0)+IF(AR44=5,1,0)+IF(AW44=5,1,0)+IF(BA44=5,1,0)+IF(BG44=5,1,0)+IF(BL44=5,1,0)) -> 0 | H44: =IF(AA44="","",AA44) ->  | I44: =IF(AF44="","",AF44) ->  | J44: =IF(AK44="","",AK44) ->  | K44: =IF(AP44="","",AP44) ->  | L44: =IF(AU44="","",AU44) ->  | M44: =IF(AZ44="","",AZ44) ->  | N44: =IF(BE44="","",BE44) ->  | O44: =IF(BJ44="","",BJ44) ->  | Q44: =AD44+AI44+AN44+AS44+AX44+BC44+BH44 -> 0 | R44: =IF($F44>=5,IF(AB44="","",AB44),"") ->  | S44: =IF($F44>=5,IF(AG44="","",AG44),"") ->  | T44: =IF($F44>=5,IF(AL44="","",AL44),"") ->  | U44: =IF($F44>=5,IF(AQ44="","",AQ44),"") ->  | V44: =IF($F44>=5,IF(AV44="","",AV44),"") ->  | W44: =IF($F44>=5,IF(BA44="","",BA44),"") ->  | X44: =IF($F44>=5,IF(BF44="","",BF44),"") ->  | Y44: =IF($F44>=5,IF(BK44="","",BK44),"") ->  | AB44: =IF(ISNUMBER(AA44),(VLOOKUP(AA44,$BO$6:$BP$50,2)),0) -> 0 | AC44: =IF(AA44<>"",5,0) -> 0 | AD44: =AB44+AC44 -> 0 | AG44: =IF(ISNUMBER(AF44),(VLOOKUP(AF44,$BO$6:$BP$50,2)),0) -> 0 | AH44: =IF(AF44<>"",5,0) -> 0 | AI44: =AG44+AH44 -> 0 | AL44: =IF(ISNUMBER(AK44),(VLOOKUP(AK44,$BO$6:$BP$50,2)),0) -> 0 | AM44: =IF(AK44<>"",5,0) -> 0 | AN44: =AL44+AM44 -> 0 | AQ44: =IF(ISNUMBER(AP44),(VLOOKUP(AP44,$BO$6:$BP$50,2)),0) -> 0 | AR44: =IF(AP44<>"",5,0) -> 0 | AS44: =AQ44+AR44 -> 0 | AV44: =IF(ISNUMBER(AU44),(VLOOKUP(AU44,$BO$6:$BP$50,2)),0) -> 0 | AW44: =IF(AU44<>"",5,0) -> 0 | AX44: =AV44+AW44 -> 0 | BA44: =IF(ISNUMBER(AZ44),(VLOOKUP(AZ44,$BO$6:$BP$50,2)),0) -> 0 | BB44: =IF(AZ44<>"",5,0) -> 0 | BC44: =BA44+BB44 -> 0 | BF44: =IF(ISNUMBER(BE44),(VLOOKUP(BE44,$BO$6:$BP$50,2)),0) -> 0 | BG44: =IF(BE44<>"",5,0) -> 0 | BH44: =BF44+BG44 -> 0 | BK44: =IF(ISNUMBER(BJ44),(VLOOKUP(BJ44,$BO$6:$BP$50,2)),0) -> 0 | BL44: =IF(BJ44<>"",5,0) -> 0 | BM44: =BK44+BL44 -> 0 | BO44: 39 | BP44: 0 | BQ44: 0 | BR44: 0 | BS44: 0 | BT44: 0 | BU44: 0 | BV44: 0 | BW44: 0 | BX44: 1
A45: =IF(E45<E44,BO45,A44) -> 31 | E45: =Q45 -> 0 | F45: =(IF(AC45=5,1,0)+IF(AH45=5,1,0)+IF(AM45=5,1,0)+IF(AR45=5,1,0)+IF(AW45=5,1,0)+IF(BA45=5,1,0)+IF(BG45=5,1,0)+IF(BL45=5,1,0)) -> 0 | H45: =IF(AA45="","",AA45) ->  | I45: =IF(AF45="","",AF45) ->  | J45: =IF(AK45="","",AK45) ->  | K45: =IF(AP45="","",AP45) ->  | L45: =IF(AU45="","",AU45) ->  | M45: =IF(AU45="","",AU45) ->  | N45: =IF(AZ45="","",AZ45) ->  | O45: =IF(BE45="","",BE45) ->  | Q45: =AD45+AI45+AN45+AS45+AX45+BC45+BH45 -> 0 | R45: =IF($F36>=5,IF(AB45="","",AB45),"") ->  | S45: =IF($F36>=5,IF(AG45="","",AG45),"") ->  | T45: =IF($F36>=5,IF(AL45="","",AL45),"") ->  | U45: =IF($F36>=5,IF(AQ45="","",AQ45),"") ->  | V45: =IF($F36>=5,IF(AR45="","",AR45),"") ->  | W45: =IF($F36>=5,IF(AV45="","",AV45),"") ->  | X45: =IF($F36>=5,IF(BA45="","",BA45),"") ->  | Y45: =IF($F36>=5,IF(BF45="","",BF45),"") ->  | AB45: =IF(ISNUMBER(AA45),(VLOOKUP(AA45,$BO$6:$BP$50,2)),0) -> 0 | AC45: =IF(AA45<>"",5,0) -> 0 | AD45: =AB45+AC45 -> 0 | AG45: =IF(ISNUMBER(AF45),(VLOOKUP(AF45,$BO$6:$BP$50,2)),0) -> 0 | AH45: =IF(AF45<>"",5,0) -> 0 | AI45: =AG45+AH45 -> 0 | AL45: =IF(ISNUMBER(AK45),(VLOOKUP(AK45,$BO$6:$BP$50,2)),0) -> 0 | AM45: =IF(AK45<>"",5,0) -> 0 | AN45: =AL45+AM45 -> 0 | AQ45: =IF(ISNUMBER(AP45),(VLOOKUP(AP45,$BO$6:$BP$50,2)),0) -> 0 | AR45: =IF(AP45<>"",5,0) -> 0 | AS45: =AQ45+AR45 -> 0 | AV45: =IF(ISNUMBER(AU45),(VLOOKUP(AU45,$BO$6:$BP$50,2)),0) -> 0 | AW45: =IF(AU45<>"",5,0) -> 0 | AX45: =AV45+AW45 -> 0 | BA45: =IF(ISNUMBER(AZ45),(VLOOKUP(AZ45,$BO$6:$BP$50,2)),0) -> 0 | BB45: =IF(AZ45<>"",5,0) -> 0 | BC45: =BA45+BB45 -> 0 | BF45: =IF(ISNUMBER(BE45),(VLOOKUP(BE45,$BO$6:$BP$50,2)),0) -> 0 | BG45: =IF(BE45<>"",5,0) -> 0 | BH45: =BF45+BG45 -> 0 | BK45: =IF(ISNUMBER(BJ45),(VLOOKUP(BJ45,$BO$6:$BP$50,2)),0) -> 0 | BL45: =IF(BJ45<>"",5,0) -> 0 | BM45: =BK45+BL45 -> 0 | BO45: 40 | BP45: 0 | BQ45: 0 | BR45: 0 | BS45: 0 | BT45: 0 | BU45: 0 | BV45: 0 | BW45: 0 | BX45: 0
A46: =IF(E46<E45,BO46,A45) -> 31 | H46: =IF(AA46="","",AA46) ->  | I46: =IF(AF46="","",AF46) ->  | J46: =IF(AK46="","",AK46) ->  | K46: =IF(AP46="","",AP46) ->  | L46: =IF(AU46="","",AU46) ->  | M46: =IF(AU46="","",AU46) ->  | N46: =IF(AZ46="","",AZ46) ->  | O46: =IF(BE46="","",BE46) ->  | Q46: =AD46+AI46+AN46+AS46+AX46+BC46+BH46 -> 0 | R46: =IF($F37>=5,IF(AB46="","",AB46),"") ->  | S46: =IF($F37>=5,IF(AG46="","",AG46),"") ->  | T46: =IF($F37>=5,IF(AL46="","",AL46),"") ->  | U46: =IF($F37>=5,IF(AQ46="","",AQ46),"") ->  | V46: =IF($F37>=5,IF(AR46="","",AR46),"") ->  | W46: =IF($F37>=5,IF(AV46="","",AV46),"") ->  | X46: =IF($F37>=5,IF(BA46="","",BA46),"") ->  | Y46: =IF($F37>=5,IF(BF46="","",BF46),"") ->  | AB46: =IF(ISNUMBER(AA46),(VLOOKUP(AA46,$BO$6:$BP$50,2)),0) -> 0 | AC46: =IF(AA46<>"",5,0) -> 0 | AD46: =AB46+AC46 -> 0 | AG46: =IF(ISNUMBER(AF46),(VLOOKUP(AF46,$BO$6:$BP$50,2)),0) -> 0 | AH46: =IF(AF46<>"",5,0) -> 0 | AI46: =AG46+AH46 -> 0 | AL46: =IF(ISNUMBER(AK46),(VLOOKUP(AK46,$BO$6:$BP$50,2)),0) -> 0 | AM46: =IF(AK46<>"",5,0) -> 0 | AN46: =AL46+AM46 -> 0 | AQ46: =IF(ISNUMBER(AP46),(VLOOKUP(AP46,$BO$6:$BP$50,2)),0) -> 0 | AR46: =IF(AP46<>"",5,0) -> 0 | AS46: =AQ46+AR46 -> 0 | AV46: =IF(ISNUMBER(AU46),(VLOOKUP(AU46,$BO$6:$BP$50,2)),0) -> 0 | AW46: =IF(AU46<>"",5,0) -> 0 | AX46: =AV46+AW46 -> 0 | BA46: =IF(ISNUMBER(AZ46),(VLOOKUP(AZ46,$BO$6:$BP$50,2)),0) -> 0 | BB46: =IF(AZ46<>"",5,0) -> 0 | BC46: =BA46+BB46 -> 0 | BF46: =IF(ISNUMBER(BE46),(VLOOKUP(BE46,$BO$6:$BP$50,2)),0) -> 0 | BG46: =IF(BE46<>"",5,0) -> 0 | BH46: =BF46+BG46 -> 0 | BK46: =IF(ISNUMBER(BJ46),(VLOOKUP(BJ46,$BO$6:$BP$50,2)),0) -> 0 | BL46: =IF(BJ46<>"",5,0) -> 0 | BM46: =BK46+BL46 -> 0 | BO46: 41 | BP46: 0 | BQ46: 0 | BR46: 0 | BS46: 0 | BT46: 0 | BU46: 0 | BV46: 0 | BW46: 0 | BX46: 0
A47: =IF(E47<E46,BO47,A46) -> 31 | H47: =IF(AA47="","",AA47) ->  | I47: =IF(AF47="","",AF47) ->  | J47: =IF(AK47="","",AK47) ->  | K47: =IF(AP47="","",AP47) ->  | L47: =IF(AU47="","",AU47) ->  | M47: =IF(AU47="","",AU47) ->  | N47: =IF(AZ47="","",AZ47) ->  | O47: =IF(BE47="","",BE47) ->  | Q47: =AD47+AI47+AN47+AS47+AX47+BC47+BH47 -> 0 | R47: =IF($F38>=5,IF(AB47="","",AB47),"") ->  | S47: =IF($F38>=5,IF(AG47="","",AG47),"") ->  | T47: =IF($F38>=5,IF(AL47="","",AL47),"") ->  | U47: =IF($F38>=5,IF(AQ47="","",AQ47),"") ->  | V47: =IF($F38>=5,IF(AR47="","",AR47),"") ->  | W47: =IF($F38>=5,IF(AV47="","",AV47),"") ->  | X47: =IF($F38>=5,IF(BA47="","",BA47),"") ->  | Y47: =IF($F38>=5,IF(BF47="","",BF47),"") ->  | AB47: =IF(ISNUMBER(AA47),(VLOOKUP(AA47,$BO$6:$BP$50,2)),0) -> 0 | AC47: =IF(AA47<>"",5,0) -> 0 | AD47: =AB47+AC47 -> 0 | AG47: =IF(ISNUMBER(AF47),(VLOOKUP(AF47,$BO$6:$BP$50,2)),0) -> 0 | AH47: =IF(AF47<>"",5,0) -> 0 | AI47: =AG47+AH47 -> 0 | AL47: =IF(ISNUMBER(AK47),(VLOOKUP(AK47,$BO$6:$BP$50,2)),0) -> 0 | AM47: =IF(AK47<>"",5,0) -> 0 | AN47: =AL47+AM47 -> 0 | AQ47: =IF(ISNUMBER(AP47),(VLOOKUP(AP47,$BO$6:$BP$50,2)),0) -> 0 | AR47: =IF(AP47<>"",5,0) -> 0 | AS47: =AQ47+AR47 -> 0 | AV47: =IF(ISNUMBER(AU47),(VLOOKUP(AU47,$BO$6:$BP$50,2)),0) -> 0 | AW47: =IF(AU47<>"",5,0) -> 0 | AX47: =AV47+AW47 -> 0 | BA47: =IF(ISNUMBER(AZ47),(VLOOKUP(AZ47,$BO$6:$BP$50,2)),0) -> 0 | BB47: =IF(AZ47<>"",5,0) -> 0 | BC47: =BA47+BB47 -> 0 | BF47: =IF(ISNUMBER(BE47),(VLOOKUP(BE47,$BO$6:$BP$50,2)),0) -> 0 | BG47: =IF(BE47<>"",5,0) -> 0 | BH47: =BF47+BG47 -> 0 | BK47: =IF(ISNUMBER(BJ47),(VLOOKUP(BJ47,$BO$6:$BP$50,2)),0) -> 0 | BL47: =IF(BJ47<>"",5,0) -> 0 | BM47: =BK47+BL47 -> 0 | BO47: 42 | BP47: 0 | BQ47: 0 | BR47: 0 | BS47: 0 | BT47: 0 | BU47: 0 | BV47: 0 | BW47: 0 | BX47: 0
A48: =IF(E48<E47,BO48,A47) -> 31 | H48: =IF(AA48="","",AA48) ->  | I48: =IF(AF48="","",AF48) ->  | J48: =IF(AK48="","",AK48) ->  | K48: =IF(AP48="","",AP48) ->  | L48: =IF(AU48="","",AU48) ->  | M48: =IF(AU48="","",AU48) ->  | N48: =IF(AZ48="","",AZ48) ->  | O48: =IF(BE48="","",BE48) ->  | Q48: =AD48+AI48+AN48+AS48+AX48+BC48+BH48 -> 0 | R48: =IF($F39>=5,IF(AB48="","",AB48),"") ->  | S48: =IF($F39>=5,IF(AG48="","",AG48),"") ->  | T48: =IF($F39>=5,IF(AL48="","",AL48),"") ->  | U48: =IF($F39>=5,IF(AQ48="","",AQ48),"") ->  | V48: =IF($F39>=5,IF(AR48="","",AR48),"") ->  | W48: =IF($F39>=5,IF(AV48="","",AV48),"") ->  | X48: =IF($F39>=5,IF(BA48="","",BA48),"") ->  | Y48: =IF($F39>=5,IF(BF48="","",BF48),"") ->  | AB48: =IF(ISNUMBER(AA48),(VLOOKUP(AA48,$BO$6:$BP$50,2)),0) -> 0 | AC48: =IF(AA48<>"",5,0) -> 0 | AD48: =AB48+AC48 -> 0 | AG48: =IF(ISNUMBER(AF48),(VLOOKUP(AF48,$BO$6:$BP$50,2)),0) -> 0 | AH48: =IF(AF48<>"",5,0) -> 0 | AI48: =AG48+AH48 -> 0 | AL48: =IF(ISNUMBER(AK48),(VLOOKUP(AK48,$BO$6:$BP$50,2)),0) -> 0 | AM48: =IF(AK48<>"",5,0) -> 0 | AN48: =AL48+AM48 -> 0 | AQ48: =IF(ISNUMBER(AP48),(VLOOKUP(AP48,$BO$6:$BP$50,2)),0) -> 0 | AR48: =IF(AP48<>"",5,0) -> 0 | AS48: =AQ48+AR48 -> 0 | AV48: =IF(ISNUMBER(AU48),(VLOOKUP(AU48,$BO$6:$BP$50,2)),0) -> 0 | AW48: =IF(AU48<>"",5,0) -> 0 | AX48: =AV48+AW48 -> 0 | BA48: =IF(ISNUMBER(AZ48),(VLOOKUP(AZ48,$BO$6:$BP$50,2)),0) -> 0 | BB48: =IF(AZ48<>"",5,0) -> 0 | BC48: =BA48+BB48 -> 0 | BF48: =IF(ISNUMBER(BE48),(VLOOKUP(BE48,$BO$6:$BP$50,2)),0) -> 0 | BG48: =IF(BE48<>"",5,0) -> 0 | BH48: =BF48+BG48 -> 0 | BK48: =IF(ISNUMBER(BJ48),(VLOOKUP(BJ48,$BO$6:$BP$50,2)),0) -> 0 | BL48: =IF(BJ48<>"",5,0) -> 0 | BM48: =BK48+BL48 -> 0 | BO48: 43 | BP48: 0 | BQ48: 0 | BR48: 0 | BS48: 0 | BT48: 0 | BU48: 0 | BV48: 0 | BW48: 0 | BX48: 0
H49: =IF(AA49="","",AA49) ->  | I49: =IF(AF49="","",AF49) ->  | J49: =IF(AK49="","",AK49) ->  | K49: =IF(AP49="","",AP49) ->  | L49: =IF(AU49="","",AU49) ->  | M49: =IF(AU49="","",AU49) ->  | N49: =IF(AZ49="","",AZ49) ->  | O49: =IF(BE49="","",BE49) ->  | Q49: =AD49+AI49+AN49+AS49+AX49+BC49+BH49 -> 0 | R49: =IF($F40>=5,IF(AB49="","",AB49),"") ->  | S49: =IF($F40>=5,IF(AG49="","",AG49),"") ->  | T49: =IF($F40>=5,IF(AL49="","",AL49),"") ->  | U49: =IF($F40>=5,IF(AQ49="","",AQ49),"") ->  | W49: =IF($F40>=5,IF(AV49="","",AV49),"") ->  | X49: =IF($F40>=5,IF(BA49="","",BA49),"") ->  | Y49: =IF($F40>=5,IF(BF49="","",BF49),"") ->  | AB49: =IF(ISNUMBER(AA49),(VLOOKUP(AA49,$BO$6:$BP$50,2)),0) -> 0 | AC49: =IF(AA49<>"",5,0) -> 0 | AD49: =AB49+AC49 -> 0 | AG49: =IF(ISNUMBER(AF49),(VLOOKUP(AF49,$BO$6:$BP$50,2)),0) -> 0 | AH49: =IF(AF49<>"",5,0) -> 0 | AI49: =AG49+AH49 -> 0 | AL49: =IF(ISNUMBER(AK49),(VLOOKUP(AK49,$BO$6:$BP$50,2)),0) -> 0 | AM49: =IF(AK49<>"",5,0) -> 0 | AN49: =AL49+AM49 -> 0 | AQ49: =IF(ISNUMBER(AP49),(VLOOKUP(AP49,$BO$6:$BP$50,2)),0) -> 0 | AR49: =IF(AP49<>"",5,0) -> 0 | AS49: =AQ49+AR49 -> 0 | AV49: =IF(ISNUMBER(AU49),(VLOOKUP(AU49,$BO$6:$BP$50,2)),0) -> 0 | AW49: =IF(AU49<>"",5,0) -> 0 | AX49: =AV49+AW49 -> 0 | BA49: =IF(ISNUMBER(AZ49),(VLOOKUP(AZ49,$BO$6:$BP$50,2)),0) -> 0 | BB49: =IF(AZ49<>"",5,0) -> 0 | BC49: =BA49+BB49 -> 0 | BF49: =IF(ISNUMBER(BE49),(VLOOKUP(BE49,$BO$6:$BP$50,2)),0) -> 0 | BG49: =IF(BE49<>"",5,0) -> 0 | BH49: =BF49+BG49 -> 0 | BK49: =IF(ISNUMBER(BJ49),(VLOOKUP(BJ49,$BO$6:$BP$50,2)),0) -> 0 | BL49: =IF(BJ49<>"",5,0) -> 0 | BM49: =BK49+BL49 -> 0 | BO49: 44 | BP49: 0 | BQ49: 0 | BR49: 0 | BS49: 0 | BT49: 0 | BU49: 0 | BV49: 0 | BW49: 0 | BX49: 0
Q50: 0 | AI50: 0 | AN50: 0 | AS50: 0 | AX50: 0 | BC50: 0 | BH50: 0 | BM50: 0 | BO50: 45 | BP50: 0 | BQ50: 0 | BR50: 0 | BS50: 0 | BT50: 0 | BU50: 0 | BV50: 0 | BW50: 0 | BX50: 0
Q51: 0 | AI51: 0 | AN51: 0 | AS51: 0 | AX51: 0 | BC51: 0 | BH51: 0 | BM51: 0 | BO51: 46 | BP51: 0 | BQ51: 0 | BR51: =IF($F42=7,1,0) -> 0 | BS51: 0 | BT51: 0 | BU51: 0 | BV51: 0 | BW51: 0 | BX51: 0
Q52: 0 | AI52: 0 | AN52: 0 | AS52: 0 | AX52: 0 | BC52: 0 | BH52: 0 | BM52: 0 | BO52: 47 | BP52: 0 | BQ52: 0 | BR52: 0 | BS52: 0 | BT52: 0 | BU52: 0 | BV52: 0 | BW52: 0 | BX52: 0
BO53: 48 | BP53: 0

Sheet J12 2018
A1: Resultatliste Oslo Cup 2018 - Jenter 12 år
A2: ='Forside 2018'!A2 -> Etter 4 av 8 renn
H3: IRS Rennet | I3: Ljan Rennet | J3: Njård Rennet | K3: Ready Rennet | L3: Telenor Arena Cup | M3: Euro-tecfarten | N3: Oslo Alpinfestival SL | O3: Oslo Alpinfestival SSL | R3: IRS Rennet | S3: Ljan Rennet | T3: Njård Rennet | U3: Ready Rennet | V3: Telenor Arena Cup | W3: Euro-tecfarten | X3: Oslo Alpinfestival SL | Y3: Oslo Alpinfestival SSL | AA3: --------IRS Rennet---------- | AF3: ----------Ljan Rennet--------- | AK3: --------Njård Rennet---------- | AP3: --------Ready Rennet--------- | AU3: -----Telenor Arena Cup---- | AZ3: ------Euro-tecfarten-------- | BE3: ---Oslo Alpinfestival SL--- | BJ3: ---Oslo Alpinfestival SSL---
F4: Antall | H4: 2016-02-04 | I4: 2016-02-05 | J4: 2016-02-10 | K4: 2016-02-11 | L4: 2016-02-15 | M4: 2016-03-01 | N4: 2017-03-11 | O4: 2016-03-12 | Q4: Poeng | R4: 2016-02-04 | S4: 2016-02-05 | T4: 2016-02-10 | U4: 2016-02-11 | V4: 2016-02-15 | W4: 2016-03-01 | X4: 2017-03-11 | Y4: 2016-03-12 | AB4: --------Poeng-------- | AG4: --------Poeng-------- | AL4: -------Poeng--------- | AQ4: -------Poeng--------- | AV4: -------Poeng--------- | BA4: -------Poeng--------- | BF4: -------Poeng--------- | BK4: -------Poeng--------- | BQ4: Løpere med | BR4: Løpere med | BS4: Løpere med | BT4: Løpere med | BU4: Løpere med | BV4: Løpere med | BW4: Løpere med | BX4: Løpere med
A5: Plass | B5: Etternavn | C5: Fornavn | D5: Klubb | E5: Poeng | F5: renn | H5: ------------------------------Plassering i rennene--------------------------------- | Q5: brutto | R5: ----------------Resultatpoeng hvis mer enn 4 renn---------------- | AA5: Plass | AB5: Res. | AC5: Del. | AD5: Tot. | AF5: Plass | AG5: Res. | AH5: Del. | AI5: Tot. | AK5: Plass | AL5: Res. | AM5: Del. | AN5: Tot. | AP5: Plass | AQ5: Res. | AR5: Del. | AS5: Tot. | AU5: Plass | AV5: Res. | AW5: Del. | AX5: Tot. | AZ5: Plass | BA5: Res. | BB5: Del. | BC5: Tot. | BE5: Plass | BF5: Res. | BG5: Del. | BH5: Tot. | BJ5: Plass | BK5: Res. | BL5: Del. | BM5: Tot. | BO5: Plass | BP5: Poeng | BQ5: 8 renn | BR5: 7 renn | BS5: 6 renn | BT5: 5 renn | BU5: 4 renn | BV5: 3 renn | BW5: 2 renn | BX5: kun 1 renn
A6: =IF(E6<E5,BO6,A5) -> 1 | B6: Frederiksen | C6: Charlotte C L | D6: Ready | E6: =Q6 -> 320 | F6: =(IF(AC6=5,1,0)+IF(AH6=5,1,0)+IF(AM6=5,1,0)+IF(AR6=5,1,0)+IF(AW6=5,1,0)+IF(BA6=5,1,0)+IF(BG6=5,1,0)+IF(BL6=5,1,0)) -> 4 | H6: =IF(AA6="","",AA6) -> 2 | I6: =IF(AF6="","",AF6) -> 3 | J6: =IF(AK6="","",AK6) -> 2 | K6: =IF(AP6="","",AP6) -> 2 | L6: =IF(AU6="","",AU6) ->  | M6: =IF(AZ6="","",AZ6) ->  | N6: =IF(BE6="","",BE6) ->  | O6: =IF(BJ6="","",BJ6) ->  | Q6: =AD6+AI6+AN6+AS6+AX6+BC6+BH6 -> 320 | R6: =IF($F6>=5,IF(AB6="","",AB6),"") ->  | S6: =IF($F6>=5,IF(AG6="","",AG6),"") ->  | T6: =IF($F6>=5,IF(AL6="","",AL6),"") ->  | U6: =IF($F6>=5,IF(AQ6="","",AQ6),"") ->  | V6: =IF($F6>=5,IF(AV6="","",AV6),"") ->  | W6: =IF($F6>=5,IF(BA6="","",BA6),"") ->  | X6: =IF($F6>=5,IF(BF6="","",BF6),"") ->  | Y6: =IF($F6>=5,IF(BK6="","",BK6),"") ->  | AA6: 2 | AB6: =IF(ISNUMBER(AA6),(VLOOKUP(AA6,$BO$6:$BP$50,2)),0) -> 80 | AC6: =IF(AA6<>"",5,0) -> 5 | AD6: =AB6+AC6 -> 85 | AF6: 3 | AG6: =IF(ISNUMBER(AF6),(VLOOKUP(AF6,$BO$6:$BP$50,2)),0) -> 60 | AH6: =IF(AF6<>"",5,0) -> 5 | AI6: =AG6+AH6 -> 65 | AK6: 2 | AL6: =IF(ISNUMBER(AK6),(VLOOKUP(AK6,$BO$6:$BP$50,2)),0) -> 80 | AM6: =IF(AK6<>"",5,0) -> 5 | AN6: =AL6+AM6 -> 85 | AP6: 2 | AQ6: =IF(ISNUMBER(AP6),(VLOOKUP(AP6,$BO$6:$BP$50,2)),0) -> 80 | AR6: =IF(AP6<>"",5,0) -> 5 | AS6: =AQ6+AR6 -> 85 | AV6: =IF(ISNUMBER(AU6),(VLOOKUP(AU6,$BO$6:$BP$50,2)),0) -> 0 | AW6: =IF(AU6<>"",5,0) -> 0 | AX6: =AV6+AW6 -> 0 | BA6: =IF(ISNUMBER(AZ6),(VLOOKUP(AZ6,$BO$6:$BP$50,2)),0) -> 0 | BB6: =IF(AZ6<>"",5,0) -> 0 | BC6: =BA6+BB6 -> 0 | BF6: =IF(ISNUMBER(BE6),(VLOOKUP(BE6,$BO$6:$BP$50,2)),0) -> 0 | BG6: =IF(BE6<>"",5,0) -> 0 | BH6: =BF6+BG6 -> 0 | BK6: =IF(ISNUMBER(BJ6),(VLOOKUP(BJ6,$BO$6:$BP$50,2)),0) -> 0 | BL6: =IF(BJ6<>"",5,0) -> 0 | BM6: =BK6+BL6 -> 0 | BO6: 1 | BP6: 100 | BQ6: =IF($F6=8,1,0) -> 0 | BR6: =IF($F6=7,1,0) -> 0 | BS6: =IF($F6=6,1,0) -> 0 | BT6: =IF($F6=5,1,0) -> 0 | BU6: =IF($F6=4,1,0) -> 1 | BV6: =IF($F6=3,1,0) -> 0 | BW6: =IF($F6=2,1,0) -> 0 | BX6: =IF($F6=1,1,0) -> 0
A7: 2 | B7: Rasmussen | C7: Cornelia Nystrøm | D7: Heming | E7: 310 | F7: 4 | H7: 4 | I7: 2 | J7: 3 | K7: 1 | Q7: 310 | AA7: 4 | AB7: 50 | AC7: 5 | AD7: 55 | AF7: 2 | AG7: 80 | AH7: 5 | AI7: 85 | AK7: 3 | AL7: 60 | AM7: 5 | AN7: 65 | AP7: 1 | AQ7: 100 | AR7: 5 | AS7: 105 | AV7: 0 | AW7: 0 | AX7: 0 | BA7: 0 | BB7: 0 | BC7: 0 | BF7: 0 | BG7: 0 | BH7: 0 | BK7: 0 | BL7: 0 | BM7: 0 | BO7: 2 | BP7: 80 | BQ7: =IF($F7=8,1,0) -> 0 | BR7: 0 | BS7: 0 | BT7: 0 | BU7: 1 | BV7: 0 | BW7: 0 | BX7: 0
A8: 3 | B8: Wessel-aas | C8: camilla | D8: Heming | E8: 242 | F8: 4 | H8: 5 | I8: 1 | J8: 8 | K8: 5 | Q8: 242 | AA8: 5 | AB8: 45 | AC8: 5 | AD8: 50 | AF8: 1 | AG8: 100 | AH8: 5 | AI8: 105 | AK8: 8 | AL8: 32 | AM8: 5 | AN8: 37 | AP8: 5 | AQ8: 45 | AR8: 5 | AS8: 50 | AV8: 0 | AW8: 0 | AX8: 0 | BA8: 0 | BB8: 0 | BC8: 0 | BF8: 0 | BG8: 0 | BH8: 0 | BK8: 0 | BL8: 0 | BM8: 0 | BO8: 3 | BP8: 60 | BQ8: 0 | BR8: 0 | BS8: 0 | BT8: 0 | BU8: 1 | BV8: 0 | BW8: 0 | BX8: 0
A9: 4 | B9: Finn-Hansen | C9: Nora | D9: Heming | E9: 230 | F9: 4 | H9: 3 | I9: 4 | J9: 4 | K9: 4 | Q9: 230 | AA9: 3 | AB9: 60 | AC9: 5 | AD9: 65 | AF9: 4 | AG9: 50 | AH9: 5 | AI9: 55 | AK9: 4 | AL9: 50 | AM9: 5 | AN9: 55 | AP9: 4 | AQ9: 50 | AR9: 5 | AS9: 55 | AV9: 0 | AW9: 0 | AX9: 0 | BA9: 0 | BB9: 0 | BC9: 0 | BF9: 0 | BG9: 0 | BH9: 0 | BK9: 0 | BL9: 0 | BM9: 0 | BO9: 4 | BP9: 50 | BQ9: 0 | BR9: 0 | BS9: 0 | BT9: 0 | BU9: 1 | BV9: 0 | BW9: 0 | BX9: 0
A10: 5 | B10: Rasmussen | C10: Maisen Holst | D10: Stabæk | E10: 215 | F10: 3 | H10: 1 | I10: dsq | J10: 1 | Q10: 215 | AA10: 1 | AB10: 100 | AC10: 5 | AD10: 105 | AF10: dsq | AG10: 0 | AH10: 5 | AI10: 5 | AK10: 1 | AL10: 100 | AM10: 5 | AN10: 105 | AQ10: 0 | AR10: 0 | AS10: 0 | AV10: 0 | AW10: 0 | AX10: 0 | BA10: 0 | BB10: 0 | BC10: 0 | BF10: 0 | BG10: 0 | BH10: 0 | BK10: 0 | BL10: 0 | BM10: 0 | BO10: 5 | BP10: 45 | BQ10: 0 | BR10: 0 | BS10: 0 | BT10: 0 | BU10: 0 | BV10: 1 | BW10: 0 | BX10: 0
A11: 6 | B11: Aandahl | C11: Nicola Alexandra | D11: Ready | E11: 194 | F11: 4 | H11: 9 | I11: 5 | J11: 6 | K11: 3 | Q11: 194 | AA11: 9 | AB11: 29 | AC11: 5 | AD11: 34 | AF11: 5 | AG11: 45 | AH11: 5 | AI11: 50 | AK11: 6 | AL11: 40 | AM11: 5 | AN11: 45 | AP11: 3 | AQ11: 60 | AR11: 5 | AS11: 65 | AV11: 0 | AW11: 0 | AX11: 0 | BA11: 0 | BB11: 0 | BC11: 0 | BF11: 0 | BG11: 0 | BH11: 0 | BK11: 0 | BL11: 0 | BM11: 0 | BO11: 6 | BP11: 40 | BQ11: 0 | BR11: 0 | BS11: 0 | BT11: 0 | BU11: 1 | BV11: 0 | BW11: 0 | BX11: 0
A12: 7 | B12: Thorsby | C12: Pernille | D12: Heming | E12: 158 | F12: 4 | H12: 6 | I12: 9 | J12: 9 | K12: 6 | Q12: 158 | AA12: 6 | AB12: 40 | AC12: 5 | AD12: 45 | AF12: 9 | AG12: 29 | AH12: 5 | AI12: 34 | AK12: 9 | AL12: 29 | AM12: 5 | AN12: 34 | AP12: 6 | AQ12: 40 | AR12: 5 | AS12: 45 | AV12: 0 | AW12: 0 | AX12: 0 | BA12: 0 | BB12: 0 | BC12: 0 | BF12: 0 | BG12: 0 | BH12: 0 | BK12: 0 | BL12: 0 | BM12: 0 | BO12: 7 | BP12: 36 | BQ12: 0 | BR12: 0 | BS12: 0 | BT12: 0 | BU12: 1 | BV12: 0 | BW12: 0 | BX12: 0
A13: 8 | B13: Hoel | C13: Hermine Owesen | D13: Heming | E13: 132 | F13: 3 | H13: 7 | I13: 7 | J13: 5 | Q13: 132 | AA13: 7 | AB13: 36 | AC13: 5 | AD13: 41 | AF13: 7 | AG13: 36 | AH13: 5 | AI13: 41 | AK13: 5 | AL13: 45 | AM13: 5 | AN13: 50 | AQ13: 0 | AR13: 0 | AS13: 0 | AV13: 0 | AW13: 0 | AX13: 0 | BA13: 0 | BB13: 0 | BC13: 0 | BF13: 0 | BG13: 0 | BH13: 0 | BK13: 0 | BL13: 0 | BM13: 0 | BO13: 8 | BP13: 32 | BQ13: 0 | BR13: 0 | BS13: 0 | BT13: 0 | BU13: 0 | BV13: 1 | BW13: 0 | BX13: 0
A14: 9 | B14: Alsos | C14: Synne | D14: Ready | E14: 131 | F14: 4 | H14: 8 | I14: 6 | J14: 10 | K14: 18 | Q14: 131 | AA14: 8 | AB14: 32 | AC14: 5 | AD14: 37 | AF14: 6 | AG14: 40 | AH14: 5 | AI14: 45 | AK14: 10 | AL14: 26 | AM14: 5 | AN14: 31 | AP14: 18 | AQ14: 13 | AR14: 5 | AS14: 18 | AV14: 0 | AW14: 0 | AX14: 0 | BA14: 0 | BB14: 0 | BC14: 0 | BF14: 0 | BG14: 0 | BH14: 0 | BK14: 0 | BL14: 0 | BM14: 0 | BO14: 9 | BP14: 29 | BQ14: 0 | BR14: 0 | BS14: 0 | BT14: 0 | BU14: 1 | BV14: 0 | BW14: 0 | BX14: 0
A15: 10 | B15: Brækken | C15: Eili | D15: IRS | E15: 97 | F15: 4 | H15: 14 | I15: 11 | J15: 18 | K15: 12 | Q15: 97 | AA15: 14 | AB15: 18 | AC15: 5 | AD15: 23 | AF15: 11 | AG15: 24 | AH15: 5 | AI15: 29 | AK15: 18 | AL15: 13 | AM15: 5 | AN15: 18 | AP15: 12 | AQ15: 22 | AR15: 5 | AS15: 27 | AV15: 0 | AW15: 0 | AX15: 0 | BA15: 0 | BB15: 0 | BC15: 0 | BF15: 0 | BG15: 0 | BH15: 0 | BK15: 0 | BL15: 0 | BM15: 0 | BO15: 10 | BP15: 26 | BQ15: 0 | BR15: 0 | BS15: 0 | BT15: 0 | BU15: 1 | BV15: 0 | BW15: 0 | BX15: 0
A16: 11 | B16: Bjørnstad | C16: Erika Scheid | D16: IRS | E16: 88 | F16: 4 | H16: 13 | I16: 10 | J16: 23 | K16: 17 | Q16: 88 | AA16: 13 | AB16: 20 | AC16: 5 | AD16: 25 | AF16: 10 | AG16: 26 | AH16: 5 | AI16: 31 | AK16: 23 | AL16: 8 | AM16: 5 | AN16: 13 | AP16: 17 | AQ16: 14 | AR16: 5 | AS16: 19 | AV16: 0 | AW16: 0 | AX16: 0 | BA16: 0 | BB16: 0 | BC16: 0 | BF16: 0 | BG16: 0 | BH16: 0 | BK16: 0 | BL16: 0 | BM16: 0 | BO16: 11 | BP16: 24 | BQ16: 0 | BR16: 0 | BS16: 0 | BT16: 0 | BU16: 1 | BV16: 0 | BW16: 0 | BX16: 0
A17: 12 | B17: Granerud | C17: Cornelie Hemme | D17: Ljan | E17: 80 | F17: 4 | H17: dnf | I17: dsq | J17: 11 | K17: 7 | Q17: 80 | AA17: dnf | AB17: 0 | AC17: 5 | AD17: 5 | AF17: dsq | AG17: 0 | AH17: 5 | AI17: 5 | AK17: 11 | AL17: 24 | AM17: 5 | AN17: 29 | AP17: 7 | AQ17: 36 | AR17: 5 | AS17: 41 | AV17: 0 | AW17: 0 | AX17: 0 | BA17: 0 | BB17: 0 | BC17: 0 | BF17: 0 | BG17: 0 | BH17: 0 | BK17: 0 | BL17: 0 | BM17: 0 | BO17: 12 | BP17: 22 | BQ17: 0 | BR17: 0 | BS17: 0 | BT17: 0 | BU17: 1 | BV17: 0 | BW17: 0 | BX17: 0
A18: 13 | B18: Solheim | C18: Cornelia Margrethe Lysne | D18: Njård | E18: 78 | F18: 3 | H18: 15 | J18: 14 | K18: 9 | Q18: 78 | AA18: 15 | AB18: 16 | AC18: 5 | AD18: 21 | AG18: 0 | AH18: 0 | AI18: 0 | AK18: 14 | AL18: 18 | AM18: 5 | AN18: 23 | AP18: 9 | AQ18: 29 | AR18: 5 | AS18: 34 | AV18: 0 | AW18: 0 | AX18: 0 | BA18: 0 | BB18: 0 | BC18: 0 | BF18: 0 | BG18: 0 | BH18: 0 | BK18: 0 | BL18: 0 | BM18: 0 | BO18: 13 | BP18: 20 | BQ18: 0 | BR18: =IF($F17=7,1,0) -> 0 | BS18: =IF($F17=6,1,0) -> 0 | BT18: =IF($F17=5,1,0) -> 0 | BU18: =IF($F17=4,1,0) -> 1 | BV18: =IF($F17=3,1,0) -> 0 | BW18: =IF($F17=2,1,0) -> 0 | BX18: =IF($F17=1,1,0) -> 0
A19: 14 | B19: Sartz-Lunde | C19: Emily Nell | D19: Heming | E19: 72 | F19: 2 | J19: 7 | K19: 10 | Q19: 72 | AB19: 0 | AC19: 0 | AD19: 0 | AG19: 0 | AH19: 0 | AI19: 0 | AK19: 7 | AL19: 36 | AM19: 5 | AN19: 41 | AP19: 10 | AQ19: 26 | AR19: 5 | AS19: 31 | AV19: 0 | AW19: 0 | AX19: 0 | BA19: 0 | BB19: 0 | BC19: 0 | BF19: 0 | BG19: 0 | BH19: 0 | BK19: 0 | BL19: 0 | BM19: 0 | BO19: 14 | BP19: 18 | BQ19: 0 | BR19: =IF($F18=7,1,0) -> 0 | BS19: =IF($F18=6,1,0) -> 0 | BT19: =IF($F18=5,1,0) -> 0 | BU19: =IF($F18=4,1,0) -> 0 | BV19: =IF($F18=3,1,0) -> 1 | BW19: =IF($F18=2,1,0) -> 0 | BX19: =IF($F18=1,1,0) -> 0
A20: 15 | B20: Horgen | C20: Alexandra Astrup | D20: Heming | E20: 68 | F20: 2 | H20: 10 | I20: 8 | Q20: 68 | AA20: 10 | AB20: 26 | AC20: 5 | AD20: 31 | AF20: 8 | AG20: 32 | AH20: 5 | AI20: 37 | AL20: 0 | AM20: 0 | AN20: 0 | AQ20: 0 | AR20: 0 | AS20: 0 | AV20: 0 | AW20: 0 | AX20: 0 | BA20: 0 | BB20: 0 | BC20: 0 | BF20: 0 | BG20: 0 | BH20: 0 | BK20: 0 | BL20: 0 | BM20: 0 | BO20: 15 | BP20: 16 | BQ20: 0 | BR20: =IF($F19=7,1,0) -> 0 | BS20: =IF($F19=6,1,0) -> 0 | BT20: =IF($F19=5,1,0) -> 0 | BU20: =IF($F19=4,1,0) -> 0 | BV20: =IF($F19=3,1,0) -> 0 | BW20: =IF($F19=2,1,0) -> 1 | BX20: =IF($F19=1,1,0) -> 0
A21: 16 | B21: Solhusløkk | C21: Carina | D21: IRS | E21: 66 | F21: 4 | H21: 18 | I21: 16 | J21: 24 | K21: 20 | Q21: 66 | AA21: 18 | AB21: 13 | AC21: 5 | AD21: 18 | AF21: 16 | AG21: 15 | AH21: 5 | AI21: 20 | AK21: 24 | AL21: 7 | AM21: 5 | AN21: 12 | AP21: 20 | AQ21: 11 | AR21: 5 | AS21: 16 | AV21: 0 | AW21: 0 | AX21: 0 | BA21: 0 | BB21: 0 | BC21: 0 | BF21: 0 | BG21: 0 | BH21: 0 | BK21: 0 | BL21: 0 | BM21: 0 | BO21: 16 | BP21: 15 | BQ21: 0 | BR21: =IF($F19=7,1,0) -> 0 | BS21: =IF($F19=6,1,0) -> 0 | BT21: =IF($F19=5,1,0) -> 0 | BU21: =IF($F19=4,1,0) -> 0 | BV21: =IF($F19=3,1,0) -> 0 | BW21: =IF($F19=2,1,0) -> 1 | BX21: =IF($F19=1,1,0) -> 0
A22: 17 | B22: Norstrand | C22: Nicoline | D22: Heming | E22: 64 | F22: 2 | J22: 12 | K22: 8 | Q22: 64 | V22: =IF($F22>=5,IF(AV22="","",AV22),"") ->  | AB22: 0 | AC22: 0 | AD22: 0 | AG22: 0 | AH22: 0 | AI22: 0 | AK22: 12 | AL22: 22 | AM22: 5 | AN22: 27 | AP22: 8 | AQ22: 32 | AR22: 5 | AS22: 37 | AV22: 0 | AW22: 0 | AX22: 0 | BA22: 0 | BB22: 0 | BC22: 0 | BF22: 0 | BG22: 0 | BH22: 0 | BK22: 0 | BL22: 0 | BM22: 0 | BO22: 17 | BP22: 14 | BQ22: 0 | BR22: 0 | BS22: 0 | BT22: 0 | BU22: 0 | BV22: 0 | BW22: 1 | BX22: 0
A23: 18 | B23: Rustad | C23: PetronellaG | D23: Njård | E23: 59 | F23: 3 | H23: 17 | J23: 19 | K23: 14 | Q23: 59 | AA23: 17 | AB23: 14 | AC23: 5 | AD23: 19 | AG23: 0 | AH23: 0 | AI23: 0 | AK23: 19 | AL23: 12 | AM23: 5 | AN23: 17 | AP23: 14 | AQ23: 18 | AR23: 5 | AS23: 23 | AV23: 0 | AW23: 0 | AX23: 0 | BA23: 0 | BB23: 0 | BC23: 0 | BF23: 0 | BG23: 0 | BH23: 0 | BK23: 0 | BL23: 0 | BM23: 0 | BO23: 18 | BP23: 13 | BQ23: 0 | BR23: 0 | BS23: 0 | BT23: 0 | BU23: 1 | BV23: 0 | BW23: 0 | BX23: 0
A24: 19 | B24: Dynna | C24: Nathalie Østnes | D24: IRS | E24: 54 | F24: 3 | H24: 11 | I24: dsq | K24: 16 | Q24: 54 | AA24: 11 | AB24: 24 | AC24: 5 | AD24: 29 | AF24: dsq | AG24: 0 | AH24: 5 | AI24: 5 | AL24: 0 | AM24: 0 | AN24: 0 | AP24: 16 | AQ24: 15 | AR24: 5 | AS24: 20 | AV24: 0 | AW24: 0 | AX24: 0 | BA24: 0 | BB24: 0 | BC24: 0 | BF24: 0 | BG24: 0 | BH24: 0 | BK24: 0 | BL24: 0 | BM24: 0 | BO24: 19 | BP24: 12 | BQ24: 0 | BR24: 0 | BS24: 0 | BT24: 0 | BU24: 0 | BV24: 0 | BW24: 1 | BX24: 0
A25: 19 | B25: Moen | C25: Magda | D25: Kjelsås | E25: 54 | F25: 3 | I25: dsq | J25: 16 | K25: 11 | Q25: 54 | AB25: 0 | AC25: 0 | AD25: 0 | AF25: dsq | AG25: 0 | AH25: 5 | AI25: 5 | AK25: 16 | AL25: 15 | AM25: 5 | AN25: 20 | AP25: 11 | AQ25: 24 | AR25: 5 | AS25: 29 | AV25: 0 | AW25: 0 | AX25: 0 | BA25: 0 | BB25: 0 | BC25: 0 | BF25: 0 | BG25: 0 | BH25: 0 | BK25: 0 | BL25: 0 | BM25: 0 | BO25: 20 | BP25: 11 | BQ25: 0 | BR25: 0 | BS25: 0 | BT25: 0 | BU25: 0 | BV25: 1 | BW25: 0 | BX25: 0
A26: 21 | B26: Swenson | C26: Lily Aster Larsdatter | D26: Ljan | E26: 51 | F26: 3 | H26: dsq | I26: 13 | K26: 15 | Q26: 51 | AA26: dsq | AB26: 0 | AC26: 5 | AD26: 5 | AF26: 13 | AG26: 20 | AH26: 5 | AI26: 25 | AL26: 0 | AM26: 0 | AN26: 0 | AP26: 15 | AQ26: 16 | AR26: 5 | AS26: 21 | AV26: 0 | AW26: 0 | AX26: 0 | BA26: 0 | BB26: 0 | BC26: 0 | BF26: 0 | BG26: 0 | BH26: 0 | BK26: 0 | BL26: 0 | BM26: 0 | BO26: 21 | BP26: 10 | BQ26: 0 | BR26: 0 | BS26: 0 | BT26: 0 | BU26: 0 | BV26: 1 | BW26: 0 | BX26: 0
A27: 22 | B27: Talen | C27: Henriette Young | D27: Heming | E27: 47 | F27: 2 | H27: 16 | I27: 12 | Q27: 47 | AA27: 16 | AB27: 15 | AC27: 5 | AD27: 20 | AF27: 12 | AG27: 22 | AH27: 5 | AI27: 27 | AL27: 0 | AM27: 0 | AN27: 0 | AQ27: 0 | AR27: 0 | AS27: 0 | AV27: 0 | AW27: 0 | AX27: 0 | BA27: 0 | BB27: 0 | BC27: 0 | BF27: 0 | BG27: 0 | BH27: 0 | BK27: 0 | BL27: 0 | BM27: 0 | BO27: 22 | BP27: 9 | BQ27: 0 | BR27: 0 | BS27: 0 | BT27: 0 | BU27: 0 | BV27: 1 | BW27: 0 | BX27: 0
A28: 23 | B28: Øye | C28: Alva Østnes | D28: IRS | E28: 46 | F28: 2 | H28: 12 | I28: 17 | Q28: 46 | AA28: 12 | AB28: 22 | AC28: 5 | AD28: 27 | AF28: 17 | AG28: 14 | AH28: 5 | AI28: 19 | AL28: 0 | AM28: 0 | AN28: 0 | AQ28: 0 | AR28: 0 | AS28: 0 | AV28: 0 | AW28: 0 | AX28: 0 | BA28: 0 | BB28: 0 | BC28: 0 | BF28: 0 | BG28: 0 | BH28: 0 | BK28: 0 | BL28: 0 | BM28: 0 | BO28: 23 | BP28: 8 | BQ28: 0 | BR28: =IF($F23=7,1,0) -> 0 | BS28: =IF($F23=6,1,0) -> 0 | BT28: =IF($F23=5,1,0) -> 0 | BU28: =IF($F23=4,1,0) -> 0 | BV28: =IF($F23=3,1,0) -> 1 | BW28: =IF($F23=2,1,0) -> 0 | BX28: =IF($F23=1,1,0) -> 0
A29: 24 | B29: Solberg | C29: Erle | D29: Ready | E29: 45 | F29: 3 | H29: dsq | I29: 14 | K29: 19 | Q29: 45 | AA29: dsq | AB29: 0 | AC29: 5 | AD29: 5 | AF29: 14 | AG29: 18 | AH29: 5 | AI29: 23 | AL29: 0 | AM29: 0 | AN29: 0 | AP29: 19 | AQ29: 12 | AR29: 5 | AS29: 17 | AV29: 0 | AW29: 0 | AX29: 0 | BA29: 0 | BB29: 0 | BC29: 0 | BF29: 0 | BG29: 0 | BH29: 0 | BK29: 0 | BL29: 0 | BM29: 0 | BO29: 24 | BP29: 7 | BQ29: 0 | BR29: =IF($F24=7,1,0) -> 0 | BS29: =IF($F24=6,1,0) -> 0 | BT29: =IF($F24=5,1,0) -> 0 | BU29: =IF($F24=4,1,0) -> 0 | BV29: =IF($F24=3,1,0) -> 1 | BW29: =IF($F24=2,1,0) -> 0 | BX29: =IF($F24=1,1,0) -> 0
A30: 25 | B30: Brandi | C30: Philippa | D30: Ready | E30: 36 | F30: 2 | J30: 15 | K30: 21 | M30: =IF(AZ30="","",AZ30) ->  | N30: =IF(BE30="","",BE30) ->  | O30: =IF(BJ30="","",BJ30) ->  | Q30: 36 | R30: =IF($F30>=5,IF(AB30="","",AB30),"") ->  | S30: =IF($F30>=5,IF(AG30="","",AG30),"") ->  | T30: =IF($F30>=5,IF(AL30="","",AL30),"") ->  | U30: =IF($F30>=5,IF(AQ30="","",AQ30),"") ->  | V30: =IF($F30>=5,IF(AV30="","",AV30),"") ->  | W30: =IF($F30>=5,IF(BA30="","",BA30),"") ->  | X30: =IF($F30>=5,IF(BF30="","",BF30),"") ->  | Y30: =IF($F30>=5,IF(BK30="","",BK30),"") ->  | AB30: 0 | AC30: 0 | AD30: 0 | AG30: 0 | AH30: 0 | AI30: 0 | AK30: 15 | AL30: 16 | AM30: 5 | AN30: 21 | AP30: 21 | AQ30: 10 | AR30: 5 | AS30: 15 | AV30: 0 | AW30: 0 | AX30: 0 | BA30: 0 | BB30: 0 | BC30: 0 | BF30: 0 | BG30: 0 | BH30: 0 | BK30: 0 | BL30: 0 | BM30: 0 | BO30: 25 | BP30: 6 | BQ30: 0 | BR30: =IF($F25=7,1,0) -> 0 | BS30: =IF($F25=6,1,0) -> 0 | BT30: =IF($F25=5,1,0) -> 0 | BU30: =IF($F25=4,1,0) -> 0 | BV30: =IF($F25=3,1,0) -> 1 | BW30: =IF($F25=2,1,0) -> 0 | BX30: =IF($F25=1,1,0) -> 0
A31: 26 | B31: Øverby | C31: Erle Christine Nyborg | D31: Njård | E31: 27 | F31: 2 | J31: 22 | K31: 23 | Q31: 27 | AB31: 0 | AC31: 0 | AD31: 0 | AG31: 0 | AH31: 0 | AI31: 0 | AK31: 22 | AL31: 9 | AM31: 5 | AN31: 14 | AP31: 23 | AQ31: 8 | AR31: 5 | AS31: 13 | AV31: 0 | AW31: 0 | AX31: 0 | BA31: 0 | BB31: 0 | BC31: 0 | BF31: 0 | BG31: 0 | BH31: 0 | BK31: 0 | BL31: 0 | BM31: 0 | BO31: 26 | BP31: 5 | BQ31: 0 | BR31: =IF($F25=7,1,0) -> 0 | BS31: =IF($F25=6,1,0) -> 0 | BT31: =IF($F25=5,1,0) -> 0 | BU31: =IF($F25=4,1,0) -> 0 | BV31: =IF($F25=3,1,0) -> 1 | BW31: =IF($F25=2,1,0) -> 0 | BX31: =IF($F25=1,1,0) -> 0
A32: 27 | B32: Bruseth | C32: Sienna Grande | D32: Ullensaker | E32: 25 | F32: 1 | J32: 13 | Q32: 25 | AB32: 0 | AC32: 0 | AD32: 0 | AG32: 0 | AH32: 0 | AI32: 0 | AK32: 13 | AL32: 20 | AM32: 5 | AN32: 25 | AQ32: 0 | AR32: 0 | AS32: 0 | AV32: 0 | AW32: 0 | AX32: 0 | BA32: 0 | BB32: 0 | BC32: 0 | BF32: 0 | BG32: 0 | BH32: 0 | BK32: 0 | BL32: 0 | BM32: 0 | BO32: 27 | BP32: 4 | BQ32: 0 | BR32: =IF($F26=7,1,0) -> 0 | BS32: =IF($F26=6,1,0) -> 0 | BT32: =IF($F26=5,1,0) -> 0 | BU32: =IF($F26=4,1,0) -> 0 | BV32: =IF($F26=3,1,0) -> 1 | BW32: =IF($F26=2,1,0) -> 0 | BX32: =IF($F26=1,1,0) -> 0
A33: 27 | B33: Benjamin-Wormdahl | C33: Sarah Louise | D33: Heming | E33: 25 | F33: 1 | K33: 13 | Q33: 25 | AB33: 0 | AC33: 0 | AD33: 0 | AG33: 0 | AH33: 0 | AI33: 0 | AL33: 0 | AM33: 0 | AN33: 0 | AP33: 13 | AQ33: 20 | AR33: 5 | AS33: 25 | AV33: 0 | AW33: 0 | AX33: 0 | BA33: 0 | BB33: 0 | BC33: 0 | BF33: 0 | BG33: 0 | BH33: 0 | BK33: 0 | BL33: 0 | BM33: 0 | BO33: 28 | BP33: 3 | BQ33: 0 | BR33: 0 | BS33: 0 | BT33: 0 | BU33: 0 | BV33: 0 | BW33: 1 | BX33: 0
A34: 29 | B34: Hurlen | C34: Hermine Erichsen | D34: Njård | E34: 24 | F34: 2 | J34: 26 | K34: 22 | Q34: 24 | AB34: 0 | AC34: 0 | AD34: 0 | AG34: 0 | AH34: 0 | AI34: 0 | AK34: 26 | AL34: 5 | AM34: 5 | AN34: 10 | AP34: 22 | AQ34: 9 | AR34: 5 | AS34: 14 | AV34: 0 | AW34: 0 | AX34: 0 | BA34: 0 | BB34: 0 | BC34: 0 | BF34: 0 | BG34: 0 | BH34: 0 | BK34: 0 | BL34: 0 | BM34: 0 | BO34: 29 | BP34: 2 | BQ34: 0 | BR34: 0 | BS34: 0 | BT34: 0 | BU34: 0 | BV34: 0 | BW34: 1 | BX34: 0
A35: 30 | B35: Rabben | C35: Ella | D35: Ljan | E35: 21 | F35: 1 | I35: 15 | Q35: 21 | AB35: 0 | AC35: 0 | AD35: 0 | AF35: 15 | AG35: 16 | AH35: 5 | AI35: 21 | AL35: 0 | AM35: 0 | AN35: 0 | AQ35: 0 | AR35: 0 | AS35: 0 | AV35: 0 | AW35: 0 | AX35: 0 | BA35: 0 | BB35: 0 | BC35: 0 | BF35: 0 | BG35: 0 | BH35: 0 | BK35: 0 | BL35: 0 | BM35: 0 | BO35: 30 | BP35: 1 | BQ35: 0 | BR35: =IF($F26=7,1,0) -> 0 | BS35: =IF($F26=6,1,0) -> 0 | BT35: =IF($F26=5,1,0) -> 0 | BU35: =IF($F26=4,1,0) -> 0 | BV35: =IF($F26=3,1,0) -> 1 | BW35: =IF($F26=2,1,0) -> 0 | BX35: =IF($F26=1,1,0) -> 0
A36: 31 | B36: Aardal | C36: Mina | D36: NERO | E36: 19 | F36: 1 | J36: 17 | Q36: 19 | AB36: 0 | AC36: 0 | AD36: 0 | AG36: 0 | AH36: 0 | AI36: 0 | AK36: 17 | AL36: 14 | AM36: 5 | AN36: 19 | AQ36: 0 | AR36: 0 | AS36: 0 | AV36: 0 | AW36: 0 | AX36: 0 | BA36: 0 | BB36: 0 | BC36: 0 | BF36: 0 | BG36: 0 | BH36: 0 | BK36: 0 | BL36: 0 | BM36: 0 | BO36: 31 | BP36: 0 | BQ36: 0 | BR36: 0 | BS36: 0 | BT36: 0 | BU36: 0 | BV36: 0 | BW36: 1 | BX36: 0
A37: 32 | B37: Oustad | C37: Mina Foronda | D37: NERO | E37: 16 | F37: 1 | J37: 20 | Q37: 16 | AB37: 0 | AC37: 0 | AD37: 0 | AG37: 0 | AH37: 0 | AI37: 0 | AK37: 20 | AL37: 11 | AM37: 5 | AN37: 16 | AQ37: 0 | AR37: 0 | AS37: 0 | AV37: 0 | AW37: 0 | AX37: 0 | BA37: 0 | BB37: 0 | BC37: 0 | BF37: 0 | BG37: 0 | BH37: 0 | BK37: 0 | BL37: 0 | BM37: 0 | BO37: 32 | BP37: 0 | BQ37: 0 | BR37: 0 | BS37: 0 | BT37: 0 | BU37: 0 | BV37: 0 | BW37: 1 | BX37: 0
A38: 33 | B38: Hystad | C38: Fanny | D38: HSIL | E38: 15 | F38: 1 | J38: 21 | Q38: 15 | AB38: 0 | AC38: 0 | AD38: 0 | AG38: 0 | AH38: 0 | AI38: 0 | AK38: 21 | AL38: 10 | AM38: 5 | AN38: 15 | AQ38: 0 | AR38: 0 | AS38: 0 | AV38: 0 | AW38: 0 | AX38: 0 | BA38: 0 | BB38: 0 | BC38: 0 | BF38: 0 | BG38: 0 | BH38: 0 | BK38: 0 | BL38: 0 | BM38: 0 | BO38: 33 | BP38: 0 | BQ38: 0 | BR38: 0 | BS38: 0 | BT38: 0 | BU38: 0 | BV38: 1 | BW38: 0 | BX38: 0
A39: 34 | B39: Rastad | C39: Julie Christine Høisæter | D39: Njård | E39: 11 | F39: 1 | J39: 25 | Q39: 11 | AB39: 0 | AC39: 0 | AD39: 0 | AG39: 0 | AH39: 0 | AI39: 0 | AK39: 25 | AL39: 6 | AM39: 5 | AN39: 11 | AQ39: 0 | AR39: 0 | AS39: 0 | AV39: 0 | AW39: 0 | AX39: 0 | BA39: 0 | BB39: 0 | BC39: 0 | BF39: 0 | BG39: 0 | BH39: 0 | BK39: 0 | BL39: 0 | BM39: 0 | BO39: 34 | BP39: 0 | BQ39: 0 | BR39: 0 | BS39: 0 | BT39: 0 | BU39: 0 | BV39: 0 | BW39: 1 | BX39: 0
A40: 35 | B40: Beck | C40: Mari | D40: Ullensaker | E40: 5 | F40: 1 | H40: dnf | M40: =IF(AZ40="","",AZ40) ->  | N40: =IF(BE40="","",BE40) ->  | O40: =IF(BJ40="","",BJ40) ->  | Q40: 5 | R40: =IF($F40>=5,IF(AB40="","",AB40),"") ->  | S40: =IF($F40>=5,IF(AG40="","",AG40),"") ->  | T40: =IF($F40>=5,IF(AL40="","",AL40),"") ->  | U40: =IF($F40>=5,IF(AQ40="","",AQ40),"") ->  | V40: =IF($F40>=5,IF(AV40="","",AV40),"") ->  | W40: =IF($F40>=5,IF(BA40="","",BA40),"") ->  | X40: =IF($F40>=5,IF(BF40="","",BF40),"") ->  | AA40: dnf | AB40: 0 | AC40: 5 | AD40: 5 | AG40: 0 | AH40: 0 | AI40: 0 | AL40: 0 | AM40: 0 | AN40: 0 | AQ40: 0 | AR40: 0 | AS40: 0 | AV40: 0 | AW40: 0 | AX40: 0 | BA40: 0 | BB40: 0 | BC40: 0 | BF40: 0 | BG40: 0 | BH40: 0 | BK40: 0 | BL40: 0 | BM40: 0 | BO40: 35 | BP40: 0 | BQ40: 0 | BR40: 0 | BS40: 0 | BT40: 0 | BU40: 0 | BV40: 0 | BW40: 1 | BX40: 0
A41: 36 | E41: 0 | F41: 0 | M41: =IF(AZ41="","",AZ41) ->  | N41: =IF(BE41="","",BE41) ->  | O41: =IF(BJ41="","",BJ41) ->  | Q41: 0 | R41: =IF($F41>=5,IF(AB41="","",AB41),"") ->  | S41: =IF($F41>=5,IF(AG41="","",AG41),"") ->  | T41: =IF($F41>=5,IF(AL41="","",AL41),"") ->  | U41: =IF($F41>=5,IF(AQ41="","",AQ41),"") ->  | V41: =IF($F41>=5,IF(AV41="","",AV41),"") ->  | W41: =IF($F41>=5,IF(BA41="","",BA41),"") ->  | X41: =IF($F41>=5,IF(BF41="","",BF41),"") ->  | Y41: =IF($F41>=5,IF(BK41="","",BK41),"") ->  | AB41: 0 | AC41: 0 | AD41: 0 | AG41: 0 | AH41: 0 | AI41: 0 | AL41: 0 | AM41: 0 | AN41: 0 | AQ41: 0 | AR41: 0 | AS41: 0 | AV41: 0 | AW41: 0 | AX41: 0 | BA41: 0 | BB41: 0 | BC41: 0 | BF41: 0 | BG41: 0 | BH41: 0 | BK41: 0 | BL41: 0 | BM41: 0 | BO41: 36 | BP41: 0 | BQ41: 0 | BR41: 0 | BS41: 0 | BT41: 0 | BU41: 0 | BV41: 0 | BW41: 0 | BX41: 1
A42: 36 | E42: 0 | F42: 0 | M42: =IF(AU42="","",AU42) ->  | N42: =IF(AZ42="","",AZ42) ->  | O42: =IF(BE42="","",BE42) ->  | Q42: 0 | R42: =IF($F33>=5,IF(AB42="","",AB42),"") ->  | S42: =IF($F33>=5,IF(AG42="","",AG42),"") ->  | T42: =IF($F33>=5,IF(AL42="","",AL42),"") ->  | U42: =IF($F33>=5,IF(AQ42="","",AQ42),"") ->  | W42: =IF($F33>=5,IF(AV42="","",AV42),"") ->  | X42: =IF($F33>=5,IF(BA42="","",BA42),"") ->  | Y42: =IF($F33>=5,IF(BF42="","",BF42),"") ->  | AB42: 0 | AC42: 0 | AD42: 0 | AG42: 0 | AH42: 0 | AI42: 0 | AL42: 0 | AM42: 0 | AN42: 0 | AQ42: 0 | AR42: 0 | AS42: 0 | AV42: 0 | AW42: 0 | AX42: 0 | BA42: 0 | BB42: 0 | BC42: 0 | BF42: 0 | BG42: 0 | BH42: 0 | BK42: 0 | BL42: 0 | BM42: 0 | BO42: 37 | BP42: 0 | BQ42: 0 | BR42: 0 | BS42: 0 | BT42: 0 | BU42: 0 | BV42: 0 | BW42: 0 | BX42: 1
A43: 36 | E43: 0 | F43: 0 | Q43: 0 | AB43: 0 | AC43: 0 | AD43: 0 | AG43: 0 | AH43: 0 | AI43: 0 | AL43: 0 | AM43: 0 | AN43: 0 | AQ43: 0 | AR43: 0 | AS43: 0 | AV43: 0 | AW43: 0 | AX43: 0 | BA43: 0 | BB43: 0 | BC43: 0 | BF43: 0 | BG43: 0 | BH43: 0 | BK43: 0 | BL43: 0 | BM43: 0 | BO43: 38 | BP43: 0 | BQ43: 0 | BR43: 0 | BS43: 0 | BT43: 0 | BU43: 0 | BV43: 0 | BW43: 1 | BX43: 0
A44: 36 | E44: 0 | F44: 0 | Q44: 0 | AB44: 0 | AC44: 0 | AD44: 0 | AG44: 0 | AH44: 0 | AI44: 0 | AL44: 0 | AM44: 0 | AN44: 0 | AQ44: 0 | AR44: 0 | AS44: 0 | AV44: 0 | AW44: 0 | AX44: 0 | BA44: 0 | BB44: 0 | BC44: 0 | BF44: 0 | BG44: 0 | BH44: 0 | BK44: 0 | BL44: 0 | BM44: 0 | BO44: 39 | BP44: 0 | BQ44: 0 | BR44: 0 | BS44: 0 | BT44: 0 | BU44: 0 | BV44: 0 | BW44: 0 | BX44: 1
A45: 36 | E45: 0 | F45: 0 | Q45: 0 | AB45: 0 | AC45: 0 | AD45: 0 | AG45: 0 | AH45: 0 | AI45: 0 | AL45: 0 | AM45: 0 | AN45: 0 | AQ45: 0 | AR45: 0 | AS45: 0 | AV45: 0 | AW45: 0 | AX45: 0 | BA45: 0 | BB45: 0 | BC45: 0 | BF45: 0 | BG45: 0 | BH45: 0 | BK45: 0 | BL45: 0 | BM45: 0 | BO45: 40 | BP45: 0 | BQ45: 0 | BR45: 0 | BS45: 0 | BT45: 0 | BU45: 0 | BV45: 0 | BW45: 0 | BX45: 1
A46: 36 | E46: 0 | F46: 0 | Q46: 0 | AB46: 0 | AC46: 0 | AD46: 0 | AG46: 0 | AH46: 0 | AI46: 0 | AL46: 0 | AM46: 0 | AN46: 0 | AQ46: 0 | AR46: 0 | AS46: 0 | AV46: 0 | AW46: 0 | AX46: 0 | BA46: 0 | BB46: 0 | BC46: 0 | BF46: 0 | BG46: 0 | BH46: 0 | BK46: 0 | BL46: 0 | BM46: 0 | BO46: 41 | BP46: 0 | BQ46: 0 | BR46: 0 | BS46: 0 | BT46: 0 | BU46: 0 | BV46: 0 | BW46: 0 | BX46: 1
A47: 36 | E47: 0 | F47: 0 | Q47: 0 | AB47: 0 | AC47: 0 | AD47: 0 | AG47: 0 | AH47: 0 | AI47: 0 | AL47: 0 | AM47: 0 | AN47: 0 | AQ47: 0 | AR47: 0 | AS47: 0 | AV47: 0 | AW47: 0 | AX47: 0 | BA47: 0 | BB47: 0 | BC47: 0 | BF47: 0 | BG47: 0 | BH47: 0 | BK47: 0 | BL47: 0 | BM47: 0 | BO47: 42 | BP47: 0 | BQ47: 0 | BR47: 0 | BS47: 0 | BT47: 0 | BU47: 0 | BV47: 0 | BW47: 0 | BX47: 1
A48: 36 | E48: 0 | F48: 0 | Q48: 0 | AB48: 0 | AC48: 0 | AD48: 0 | AG48: 0 | AH48: 0 | AI48: 0 | AL48: 0 | AM48: 0 | AN48: 0 | AQ48: 0 | AR48: 0 | AS48: 0 | AV48: 0 | AW48: 0 | AX48: 0 | BA48: 0 | BB48: 0 | BC48: 0 | BF48: 0 | BG48: 0 | BH48: 0 | BK48: 0 | BL48: 0 | BM48: 0 | BO48: 43 | BP48: 0 | BQ48: 0 | BR48: 0 | BS48: 0 | BT48: 0 | BU48: 0 | BV48: 0 | BW48: 0 | BX48: 1
H49: =IF(AA49="","",AA49) ->  | I49: =IF(AF49="","",AF49) ->  | J49: =IF(AK49="","",AK49) ->  | K49: =IF(AP49="","",AP49) ->  | L49: =IF(AU49="","",AU49) ->  | M49: =IF(AU49="","",AU49) ->  | N49: =IF(AZ49="","",AZ49) ->  | O49: =IF(BE49="","",BE49) ->  | Q49: =AD49+AI49+AN49+AS49+AX49+BC49+BH49 -> 0 | R49: =IF($F40>=5,IF(AB49="","",AB49),"") ->  | S49: =IF($F40>=5,IF(AG49="","",AG49),"") ->  | T49: =IF($F40>=5,IF(AL49="","",AL49),"") ->  | U49: =IF($F40>=5,IF(AQ49="","",AQ49),"") ->  | W49: =IF($F40>=5,IF(AV49="","",AV49),"") ->  | X49: =IF($F40>=5,IF(BA49="","",BA49),"") ->  | Y49: =IF($F40>=5,IF(BF49="","",BF49),"") ->  | AB49: =IF(ISNUMBER(AA49),(VLOOKUP(AA49,$BO$6:$BP$50,2)),0) -> 0 | AC49: =IF(AA49<>"",5,0) -> 0 | AD49: =AB49+AC49 -> 0 | AG49: =IF(ISNUMBER(AF49),(VLOOKUP(AF49,$BO$6:$BP$50,2)),0) -> 0 | AH49: =IF(AF49<>"",5,0) -> 0 | AI49: =AG49+AH49 -> 0 | AL49: =IF(ISNUMBER(AK49),(VLOOKUP(AK49,$BO$6:$BP$50,2)),0) -> 0 | AM49: =IF(AK49<>"",5,0) -> 0 | AN49: =AL49+AM49 -> 0 | AQ49: =IF(ISNUMBER(AP49),(VLOOKUP(AP49,$BO$6:$BP$50,2)),0) -> 0 | AR49: =IF(AP49<>"",5,0) -> 0 | AS49: =AQ49+AR49 -> 0 | AV49: =IF(ISNUMBER(AU49),(VLOOKUP(AU49,$BO$6:$BP$50,2)),0) -> 0 | AW49: =IF(AU49<>"",5,0) -> 0 | AX49: =AV49+AW49 -> 0 | BA49: =IF(ISNUMBER(AZ49),(VLOOKUP(AZ49,$BO$6:$BP$50,2)),0) -> 0 | BB49: =IF(AZ49<>"",5,0) -> 0 | BC49: =BA49+BB49 -> 0 | BF49: =IF(ISNUMBER(BE49),(VLOOKUP(BE49,$BO$6:$BP$50,2)),0) -> 0 | BG49: =IF(BE49<>"",5,0) -> 0 | BH49: =BF49+BG49 -> 0 | BK49: =IF(ISNUMBER(BJ49),(VLOOKUP(BJ49,$BO$6:$BP$50,2)),0) -> 0 | BL49: =IF(BJ49<>"",5,0) -> 0 | BM49: =BK49+BL49 -> 0 | BO49: 44 | BP49: 0 | BQ49: 0 | BR49: 0 | BS49: 0 | BT49: 0 | BU49: 0 | BV49: 0 | BW49: 0 | BX49: 1
Q50: 0 | AI50: 0 | AN50: 0 | AS50: 0 | AX50: 0 | BC50: 0 | BH50: 0 | BK50: =IF(ISNUMBER(BJ50),(VLOOKUP(BJ50,$BO$6:$BP$50,2)),0) -> 0 | BL50: =IF(BJ50<>"",5,0) -> 0 | BM50: =BK50+BL50 -> 0 | BO50: 45 | BP50: 0 | BQ50: 0 | BR50: 0 | BS50: 0 | BT50: 0 | BU50: 0 | BV50: 0 | BW50: 0 | BX50: 0
Q51: 0 | AI51: 0 | AN51: 0 | AS51: 0 | AX51: 0 | BC51: 0 | BH51: 0 | BK51: 0 | BL51: 0 | BM51: 0 | BO51: 46 | BP51: 0 | BQ51: 0 | BR51: =IF($F42=7,1,0) -> 0 | BS51: 0 | BT51: 0 | BU51: 0 | BV51: 0 | BW51: 0 | BX51: 0
Q52: 0 | AI52: 0 | AN52: 0 | AS52: 0 | AX52: 0 | BC52: 0 | BH52: 0 | BK52: 0 | BL52: 0 | BM52: 0 | BO52: 47 | BP52: 0 | BQ52: 0 | BR52: 0 | BS52: 0 | BT52: 0 | BU52: 0 | BV52: 0 | BW52: 0 | BX52: 0
BK53: 0 | BL53: 0 | BM53: 0 | BO53: 48 | BP53: 0 | BQ53: 0 | BR53: 0 | BS53: 0 | BT53: 0 | BU53: 0 | BV53: 0 | BW53: 0 | BX53: 0

Sheet G12 2018
A1: Resultatliste Oslo Cup 2018 - Gutter 12 år
A2: ='Forside 2018'!A2 -> Etter 4 av 8 renn
H3: IRS Rennet | I3: Ljan Rennet | J3: Njård Rennet | K3: Ready Rennet | L3: Telenor Arena Cup | M3: Euro-tecfarten | N3: Oslo Alpinfestival SL | O3: Oslo Alpinfestival SSL | R3: IRS Rennet | S3: Ljan Rennet | T3: Njård Rennet | U3: Ready Rennet | V3: Telenor Arena Cup | W3: Euro-tecfarten | X3: Oslo Alpinfestival SL | Y3: Oslo Alpinfestival SSL | AA3: --------IRS Rennet---------- | AF3: ----------Ljan Rennet--------- | AK3: --------Njård Rennet---------- | AP3: --------Ready Rennet--------- | AU3: -----Telenor Arena Cup---- | AZ3: ------Euro-tecfarten-------- | BE3: ---Oslo Alpinfestival SL--- | BJ3: ---Oslo Alpinfestival SSL---
F4: Antall | H4: 2016-02-04 | I4: 2016-02-05 | J4: 2016-02-10 | K4: 2016-02-11 | L4: 2016-02-15 | M4: 2016-03-01 | N4: 2017-03-11 | O4: 2016-03-12 | Q4: Poeng | R4: 2016-02-04 | S4: 2016-02-05 | T4: 2016-02-10 | U4: 2016-02-11 | V4: 2016-02-15 | W4: 2016-03-01 | X4: 2017-03-11 | Y4: 2016-03-12 | AB4: --------Poeng-------- | AG4: --------Poeng-------- | AL4: -------Poeng--------- | AQ4: -------Poeng--------- | AV4: -------Poeng--------- | BA4: -------Poeng--------- | BF4: -------Poeng--------- | BK4: -------Poeng--------- | BQ4: Løpere med | BR4: Løpere med | BS4: Løpere med | BT4: Løpere med | BU4: Løpere med | BV4: Løpere med | BW4: Løpere med | BX4: Løpere med
A5: Plass | B5: Etternavn | C5: Fornavn | D5: Klubb | E5: Poeng | F5: renn | H5: ------------------------------Plassering i rennene--------------------------------- | Q5: brutto | R5: ----------------Resultatpoeng hvis mer enn 4 renn---------------- | AA5: Plass | AB5: Res. | AC5: Del. | AD5: Tot. | AF5: Plass | AG5: Res. | AH5: Del. | AI5: Tot. | AK5: Plass | AL5: Res. | AM5: Del. | AN5: Tot. | AP5: Plass | AQ5: Res. | AR5: Del. | AS5: Tot. | AU5: Plass | AV5: Res. | AW5: Del. | AX5: Tot. | AZ5: Plass | BA5: Res. | BB5: Del. | BC5: Tot. | BE5: Plass | BF5: Res. | BG5: Del. | BH5: Tot. | BJ5: Plass | BK5: Res. | BL5: Del. | BM5: Tot. | BO5: Plass | BP5: Poeng | BQ5: 8 renn | BR5: 7 renn | BS5: 6 renn | BT5: 5 renn | BU5: 4 renn | BV5: 3 renn | BW5: 2 renn | BX5: kun 1 renn
A6: =IF(E6<E5,BO6,A5) -> 1 | B6: Polmar | C6: Ola Skaar | D6: Heming | E6: =Q6 -> 309 | F6: =(IF(AC6=5,1,0)+IF(AH6=5,1,0)+IF(AM6=5,1,0)+IF(AR6=5,1,0)+IF(AW6=5,1,0)+IF(BA6=5,1,0)+IF(BG6=5,1,0)+IF(BL6=5,1,0)) -> 4 | H6: =IF(AA6="","",AA6) -> 1 | I6: =IF(AF6="","",AF6) -> 9 | J6: =IF(AK6="","",AK6) -> 3 | K6: =IF(AP6="","",AP6) -> 1 | L6: =IF(AU6="","",AU6) ->  | M6: =IF(AZ6="","",AZ6) ->  | N6: =IF(BE6="","",BE6) ->  | O6: =IF(BJ6="","",BJ6) ->  | Q6: =AD6+AI6+AN6+AS6+AX6+BC6+BH6 -> 309 | R6: =IF($F6>=5,IF(AB6="","",AB6),"") ->  | S6: =IF($F6>=5,IF(AG6="","",AG6),"") ->  | T6: =IF($F6>=5,IF(AL6="","",AL6),"") ->  | U6: =IF($F6>=5,IF(AQ6="","",AQ6),"") ->  | V6: =IF($F6>=5,IF(AV6="","",AV6),"") ->  | W6: =IF($F6>=5,IF(BA6="","",BA6),"") ->  | X6: =IF($F6>=5,IF(BF6="","",BF6),"") ->  | Y6: =IF($F6>=5,IF(BK6="","",BK6),"") ->  | AA6: 1 | AB6: =IF(ISNUMBER(AA6),(VLOOKUP(AA6,$BO$6:$BP$50,2)),0) -> 100 | AC6: =IF(AA6<>"",5,0) -> 5 | AD6: =AB6+AC6 -> 105 | AF6: 9 | AG6: =IF(ISNUMBER(AF6),(VLOOKUP(AF6,$BO$6:$BP$50,2)),0) -> 29 | AH6: =IF(AF6<>"",5,0) -> 5 | AI6: =AG6+AH6 -> 34 | AK6: 3 | AL6: =IF(ISNUMBER(AK6),(VLOOKUP(AK6,$BO$6:$BP$50,2)),0) -> 60 | AM6: =IF(AK6<>"",5,0) -> 5 | AN6: =AL6+AM6 -> 65 | AP6: 1 | AQ6: =IF(ISNUMBER(AP6),(VLOOKUP(AP6,$BO$6:$BP$50,2)),0) -> 100 | AR6: =IF(AP6<>"",5,0) -> 5 | AS6: =AQ6+AR6 -> 105 | AV6: =IF(ISNUMBER(AU6),(VLOOKUP(AU6,$BO$6:$BP$50,2)),0) -> 0 | AW6: =IF(AU6<>"",5,0) -> 0 | AX6: =AV6+AW6 -> 0 | BA6: =IF(ISNUMBER(AZ6),(VLOOKUP(AZ6,$BO$6:$BP$50,2)),0) -> 0 | BB6: =IF(AZ6<>"",5,0) -> 0 | BC6: =BA6+BB6 -> 0 | BF6: =IF(ISNUMBER(BE6),(VLOOKUP(BE6,$BO$6:$BP$50,2)),0) -> 0 | BG6: =IF(BE6<>"",5,0) -> 0 | BH6: =BF6+BG6 -> 0 | BK6: =IF(ISNUMBER(BJ6),(VLOOKUP(BJ6,$BO$6:$BP$50,2)),0) -> 0 | BL6: =IF(BJ6<>"",5,0) -> 0 | BM6: =BK6+BL6 -> 0 | BO6: 1 | BP6: 100 | BQ6: =IF($F6=8,1,0) -> 0 | BR6: =IF($F6=7,1,0) -> 0 | BS6: =IF($F6=6,1,0) -> 0 | BT6: =IF($F6=5,1,0) -> 0 | BU6: =IF($F6=4,1,0) -> 1 | BV6: =IF($F6=3,1,0) -> 0 | BW6: =IF($F6=2,1,0) -> 0 | BX6: =IF($F6=1,1,0) -> 0
A7: 2 | B7: Wroll-Evensen | C7: Mikkel | D7: Heming | E7: 246 | F7: 4 | H7: 4 | I7: 1 | J7: 7 | K7: 6 | Q7: =AD7+AI7+AN7+AS7+AX7+BC7+BH7 -> 246 | AA7: 4 | AB7: 50 | AC7: 5 | AD7: 55 | AF7: 1 | AG7: 100 | AH7: 5 | AI7: 105 | AK7: 7 | AL7: 36 | AM7: 5 | AN7: 41 | AP7: 6 | AQ7: 40 | AR7: 5 | AS7: 45 | AV7: 0 | AW7: 0 | AX7: 0 | BA7: 0 | BB7: 0 | BC7: 0 | BF7: 0 | BG7: 0 | BH7: 0 | BK7: 0 | BL7: 0 | BM7: 0 | BO7: 2 | BP7: 80 | BQ7: =IF($F7=8,1,0) -> 0 | BR7: 0 | BS7: 0 | BT7: 0 | BU7: 1 | BV7: 0 | BW7: 0 | BX7: 0
A8: 3 | B8: Sundborn | C8: William Alexander | D8: Heming | E8: 225 | F8: 4 | H8: 2 | I8: dsq | J8: 5 | K8: 2 | Q8: =AD8+AI8+AN8+AS8+AX8+BC8+BH8 -> 225 | V8: =IF($F8>=5,IF(AV8="","",AV8),"") ->  | AA8: 2 | AB8: 80 | AC8: 5 | AD8: 85 | AF8: dsq | AG8: 0 | AH8: 5 | AI8: 5 | AK8: 5 | AL8: 45 | AM8: 5 | AN8: 50 | AP8: 2 | AQ8: 80 | AR8: 5 | AS8: 85 | AV8: 0 | AW8: 0 | AX8: 0 | BA8: 0 | BB8: 0 | BC8: 0 | BF8: 0 | BG8: 0 | BH8: 0 | BK8: 0 | BL8: 0 | BM8: 0 | BO8: 3 | BP8: 60 | BQ8: 0 | BR8: 0 | BS8: 0 | BT8: 0 | BU8: 1 | BV8: 0 | BW8: 0 | BX8: 0
A9: 4 | B9: Rølles | C9: Axel Friis | D9: Ready | E9: 200 | F9: 4 | H9: 13 | I9: 4 | J9: 4 | K9: 3 | Q9: =AD9+AI9+AN9+AS9+AX9+BC9+BH9 -> 200 | AA9: 13 | AB9: 20 | AC9: 5 | AD9: 25 | AF9: 4 | AG9: 50 | AH9: 5 | AI9: 55 | AK9: 4 | AL9: 50 | AM9: 5 | AN9: 55 | AP9: 3 | AQ9: 60 | AR9: 5 | AS9: 65 | AV9: 0 | AW9: 0 | AX9: 0 | BA9: 0 | BB9: 0 | BC9: 0 | BF9: 0 | BG9: 0 | BH9: 0 | BK9: 0 | BL9: 0 | BM9: 0 | BO9: 4 | BP9: 50 | BQ9: 0 | BR9: 0 | BS9: 0 | BT9: 0 | BU9: 1 | BV9: 0 | BW9: 0 | BX9: 0
A10: 5 | B10: Hiorth | C10: Felix | D10: Heming | E10: 190 | F10: 4 | H10: dsq | I10: 2 | J10: 6 | K10: 4 | Q10: 190 | AA10: dsq | AB10: 0 | AC10: 5 | AD10: 5 | AF10: 2 | AG10: 80 | AH10: 5 | AI10: 85 | AK10: 6 | AL10: 40 | AM10: 5 | AN10: 45 | AP10: 4 | AQ10: 50 | AR10: 5 | AS10: 55 | AV10: 0 | AW10: 0 | AX10: 0 | BA10: 0 | BB10: 0 | BC10: 0 | BF10: 0 | BG10: 0 | BH10: 0 | BK10: 0 | BL10: 0 | BM10: 0 | BO10: 5 | BP10: 45 | BQ10: 0 | BR10: 0 | BS10: 0 | BT10: 0 | BU10: 1 | BV10: 0 | BW10: 0 | BX10: 0
A11: 6 | B11: Brevik | C11: Magnus | D11: Ljan | E11: 171 | F11: 4 | H11: 5 | I11: 3 | J11: 12 | K11: 11 | Q11: 171 | AA11: 5 | AB11: 45 | AC11: 5 | AD11: 50 | AF11: 3 | AG11: 60 | AH11: 5 | AI11: 65 | AK11: 12 | AL11: 22 | AM11: 5 | AN11: 27 | AP11: 11 | AQ11: 24 | AR11: 5 | AS11: 29 | AV11: 0 | AW11: 0 | AX11: 0 | BA11: 0 | BB11: 0 | BC11: 0 | BF11: 0 | BG11: 0 | BH11: 0 | BK11: 0 | BL11: 0 | BM11: 0 | BO11: 6 | BP11: 40 | BQ11: 0 | BR11: 0 | BS11: 0 | BT11: 0 | BU11: 1 | BV11: 0 | BW11: 0 | BX11: 0
A12: 7 | B12: Spone | C12: Fabian | D12: Heming | E12: 167 | F12: 4 | H12: 6 | I12: 5 | J12: 10 | K12: 7 | Q12: 167 | AA12: 6 | AB12: 40 | AC12: 5 | AD12: 45 | AF12: 5 | AG12: 45 | AH12: 5 | AI12: 50 | AK12: 10 | AL12: 26 | AM12: 5 | AN12: 31 | AP12: 7 | AQ12: 36 | AR12: 5 | AS12: 41 | AV12: 0 | AW12: 0 | AX12: 0 | BA12: 0 | BB12: 0 | BC12: 0 | BF12: 0 | BG12: 0 | BH12: 0 | BK12: 0 | BL12: 0 | BM12: 0 | BO12: 7 | BP12: 36 | BQ12: 0 | BR12: 0 | BS12: 0 | BT12: 0 | BU12: 1 | BV12: 0 | BW12: 0 | BX12: 0
A13: 8 | B13: Halvorsen | C13: Mathias Nyhus | D13: Heming | E13: 155 | F13: 4 | H13: 14 | I13: 6 | J13: 8 | K13: 5 | Q13: 155 | AA13: 14 | AB13: 18 | AC13: 5 | AD13: 23 | AF13: 6 | AG13: 40 | AH13: 5 | AI13: 45 | AK13: 8 | AL13: 32 | AM13: 5 | AN13: 37 | AP13: 5 | AQ13: 45 | AR13: 5 | AS13: 50 | AV13: 0 | AW13: 0 | AX13: 0 | BA13: 0 | BB13: 0 | BC13: 0 | BF13: 0 | BG13: 0 | BH13: 0 | BK13: 0 | BL13: 0 | BM13: 0 | BO13: 8 | BP13: 32 | BQ13: 0 | BR13: 0 | BS13: 0 | BT13: 0 | BU13: 1 | BV13: 0 | BW13: 0 | BX13: 0
A14: =IF(E14<E13,BO15,A13) -> 10 | B14: Torpe | C14: Aleksander Berg | D14: Stabæk | E14: 105 | F14: 1 | J14: 1 | M14: =IF(AU14="","",AU14) ->  | N14: =IF(AZ14="","",AZ14) ->  | O14: =IF(BE14="","",BE14) ->  | Q14: 105 | AB14: 0 | AC14: 0 | AD14: 0 | AG14: 0 | AH14: 0 | AI14: 0 | AK14: 1 | AL14: 100 | AM14: 5 | AN14: 105 | AQ14: 0 | AR14: 0 | AS14: 0 | AV14: 0 | AW14: 0 | AX14: 0 | BA14: 0 | BB14: 0 | BC14: 0 | BF14: 0 | BG14: 0 | BH14: 0 | BK14: 0 | BL14: 0 | BM14: 0 | BO14: 9 | BP14: 29 | BQ14: 0 | BR14: 0 | BS14: 0 | BT14: 0 | BU14: 0 | BV14: 0 | BW14: 0 | BX14: 1
A15: 11 | B15: Andersen | C15: Fredrik | D15: NERO | E15: 85 | F15: 1 | J15: 2 | M15: =IF(AU15="","",AU15) ->  | N15: =IF(AZ15="","",AZ15) ->  | O15: =IF(BE15="","",BE15) ->  | Q15: 85 | R15: =IF($F15>=5,IF(AB15="","",AB15),"") ->  | S15: =IF($F15>=5,IF(AG15="","",AG15),"") ->  | T15: =IF($F15>=5,IF(AL15="","",AL15),"") ->  | U15: =IF($F15>=5,IF(AQ15="","",AQ15),"") ->  | V15: =IF($F15>=5,IF(AV15="","",AV15),"") ->  | W15: =IF($F15>=5,IF(BA15="","",BA15),"") ->  | X15: =IF($F15>=5,IF(BF15="","",BF15),"") ->  | Y15: =IF($F15>=5,IF(BK15="","",BK15),"") ->  | AB15: 0 | AC15: 0 | AD15: 0 | AG15: 0 | AH15: 0 | AI15: 0 | AK15: 2 | AL15: 80 | AM15: 5 | AN15: 85 | AQ15: 0 | AR15: 0 | AS15: 0 | AV15: 0 | AW15: 0 | AX15: 0 | BA15: 0 | BB15: 0 | BC15: 0 | BF15: 0 | BG15: 0 | BH15: 0 | BK15: 0 | BL15: 0 | BM15: 0 | BO15: 10 | BP15: 26 | BQ15: 0 | BR15: 0 | BS15: 0 | BT15: 0 | BU15: 0 | BV15: 0 | BW15: 0 | BX15: 1
A16: 12 | B16: Cock | C16: William | D16: Heming | E16: 77 | F16: 3 | H16: 12 | J16: 14 | K16: 12 | M16: =IF(AZ16="","",AZ16) ->  | N16: =IF(BE16="","",BE16) ->  | O16: =IF(BJ16="","",BJ16) ->  | Q16: 77 | AA16: 12 | AB16: 22 | AC16: 5 | AD16: 27 | AG16: 0 | AH16: 0 | AI16: 0 | AK16: 14 | AL16: 18 | AM16: 5 | AN16: 23 | AP16: 12 | AQ16: 22 | AR16: 5 | AS16: 27 | AV16: 0 | AW16: 0 | AX16: 0 | BA16: 0 | BB16: 0 | BC16: 0 | BF16: 0 | BG16: 0 | BH16: 0 | BK16: 0 | BL16: 0 | BM16: 0 | BO16: 11 | BP16: 24 | BQ16: 0 | BR16: 0 | BS16: 0 | BT16: 0 | BU16: 0 | BV16: 1 | BW16: 0 | BX16: 0
A17: 13 | B17: Strauss | C17: Mikkel Bro | D17: Ready | E17: 74 | F17: 3 | H17: 10 | J17: 16 | K17: 14 | Q17: 74 | R17: =IF($F17>=5,IF(AB17="","",AB17),"") ->  | S17: =IF($F17>=5,IF(AG17="","",AG17),"") ->  | T17: =IF($F17>=5,IF(AL17="","",AL17),"") ->  | U17: =IF($F17>=5,IF(AQ17="","",AQ17),"") ->  | V17: =IF($F17>=5,IF(AV17="","",AV17),"") ->  | W17: =IF($F17>=5,IF(BA17="","",BA17),"") ->  | X17: =IF($F17>=5,IF(BF17="","",BF17),"") ->  | Y17: =IF($F17>=5,IF(BK17="","",BK17),"") ->  | AA17: 10 | AB17: 26 | AC17: 5 | AD17: 31 | AG17: 0 | AH17: 0 | AI17: 0 | AK17: 16 | AL17: 15 | AM17: 5 | AN17: 20 | AP17: 14 | AQ17: 18 | AR17: 5 | AS17: 23 | AV17: 0 | AW17: 0 | AX17: 0 | BA17: 0 | BB17: 0 | BC17: 0 | BF17: 0 | BG17: 0 | BH17: 0 | BK17: 0 | BL17: 0 | BM17: 0 | BO17: 12 | BP17: 22 | BQ17: 0 | BR17: 0 | BS17: 0 | BT17: 0 | BU17: 0 | BV17: 1 | BW17: 0 | BX17: 0
A18: 14 | B18: Reiersen | C18: Fredrik Sannes | D18: Ready | E18: 73 | F18: 4 | H18: 11 | I18: 14 | J18: 37 | K18: 20 | Q18: 73 | R18: =IF($F18>=5,IF(AB18="","",AB18),"") ->  | S18: =IF($F18>=5,IF(AG18="","",AG18),"") ->  | T18: =IF($F18>=5,IF(AL18="","",AL18),"") ->  | U18: =IF($F18>=5,IF(AQ18="","",AQ18),"") ->  | V18: =IF($F18>=5,IF(AV18="","",AV18),"") ->  | W18: =IF($F18>=5,IF(BA18="","",BA18),"") ->  | X18: =IF($F18>=5,IF(BF18="","",BF18),"") ->  | Y18: =IF($F18>=5,IF(BK18="","",BK18),"") ->  | AA18: 11 | AB18: 24 | AC18: 5 | AD18: 29 | AF18: 14 | AG18: 18 | AH18: 5 | AI18: 23 | AK18: 37 | AL18: 0 | AM18: 5 | AN18: 5 | AP18: 20 | AQ18: 11 | AR18: 5 | AS18: 16 | AV18: 0 | AW18: 0 | AX18: 0 | BA18: 0 | BB18: 0 | BC18: 0 | BF18: 0 | BG18: 0 | BH18: 0 | BK18: 0 | BL18: 0 | BM18: 0 | BO18: 13 | BP18: 20 | BQ18: 0 | BR18: =IF($F17=7,1,0) -> 0 | BS18: =IF($F17=6,1,0) -> 0 | BT18: =IF($F17=5,1,0) -> 0 | BU18: =IF($F17=4,1,0) -> 0 | BV18: =IF($F17=3,1,0) -> 1 | BW18: =IF($F17=2,1,0) -> 0 | BX18: =IF($F17=1,1,0) -> 0
A19: 15 | B19: Kihle | C19: Jacob | D19: Kjelsås | E19: 72 | F19: 3 | I19: 7 | J19: 18 | K19: 23 | Q19: 72 | R19: =IF($F19>=5,IF(AB19="","",AB19),"") ->  | S19: =IF($F19>=5,IF(AG19="","",AG19),"") ->  | T19: =IF($F19>=5,IF(AL19="","",AL19),"") ->  | U19: =IF($F19>=5,IF(AQ19="","",AQ19),"") ->  | V19: =IF($F19>=5,IF(AV19="","",AV19),"") ->  | W19: =IF($F19>=5,IF(BA19="","",BA19),"") ->  | X19: =IF($F19>=5,IF(BF19="","",BF19),"") ->  | Y19: =IF($F19>=5,IF(BK19="","",BK19),"") ->  | AB19: 0 | AC19: 0 | AD19: 0 | AF19: 7 | AG19: 36 | AH19: 5 | AI19: 41 | AK19: 18 | AL19: 13 | AM19: 5 | AN19: 18 | AP19: 23 | AQ19: 8 | AR19: 5 | AS19: 13 | AV19: 0 | AW19: 0 | AX19: 0 | BA19: 0 | BB19: 0 | BC19: 0 | BF19: 0 | BG19: 0 | BH19: 0 | BK19: 0 | BL19: 0 | BM19: 0 | BO19: 14 | BP19: 18 | BQ19: 0 | BR19: =IF($F18=7,1,0) -> 0 | BS19: =IF($F18=6,1,0) -> 0 | BT19: =IF($F18=5,1,0) -> 0 | BU19: =IF($F18=4,1,0) -> 1 | BV19: =IF($F18=3,1,0) -> 0 | BW19: =IF($F18=2,1,0) -> 0 | BX19: =IF($F18=1,1,0) -> 0
A20: =IF(E20<E19,BO20,A19) -> 15 | B20: Oksvik | C20: Sander August Lein | D20: IRS | E20: 70 | F20: 2 | H20: 3 | I20: dsq | Q20: 70 | R20: =IF($F20>=5,IF(AB20="","",AB20),"") ->  | S20: =IF($F20>=5,IF(AG20="","",AG20),"") ->  | T20: =IF($F20>=5,IF(AL20="","",AL20),"") ->  | U20: =IF($F20>=5,IF(AQ20="","",AQ20),"") ->  | V20: =IF($F20>=5,IF(AV20="","",AV20),"") ->  | W20: =IF($F20>=5,IF(BA20="","",BA20),"") ->  | X20: =IF($F20>=5,IF(BF20="","",BF20),"") ->  | Y20: =IF($F20>=5,IF(BK20="","",BK20),"") ->  | AA20: 3 | AB20: 60 | AC20: 5 | AD20: 65 | AF20: dsq | AG20: 0 | AH20: 5 | AI20: 5 | AL20: 0 | AM20: 0 | AN20: 0 | AQ20: 0 | AR20: 0 | AS20: 0 | AV20: 0 | AW20: 0 | AX20: 0 | BA20: 0 | BB20: 0 | BC20: 0 | BF20: 0 | BG20: 0 | BH20: 0 | BK20: 0 | BL20: 0 | BM20: 0 | BO20: 15 | BP20: 16 | BQ20: 0 | BR20: =IF($F19=7,1,0) -> 0 | BS20: =IF($F19=6,1,0) -> 0 | BT20: =IF($F19=5,1,0) -> 0 | BU20: =IF($F19=4,1,0) -> 0 | BV20: =IF($F19=3,1,0) -> 1 | BW20: =IF($F19=2,1,0) -> 0 | BX20: =IF($F19=1,1,0) -> 0
A21: =IF(E21<E20,BO22,A20) -> 17 | B21: Graff-Sponheim | C21: Felix Leonard | D21: Heming | E21: 68 | F21: 3 | H21: 7 | J21: 17 | K21: 28 | Q21: 68 | R21: =IF($F21>=5,IF(AB21="","",AB21),"") ->  | S21: =IF($F21>=5,IF(AG21="","",AG21),"") ->  | T21: =IF($F21>=5,IF(AL21="","",AL21),"") ->  | U21: =IF($F21>=5,IF(AQ21="","",AQ21),"") ->  | V21: =IF($F21>=5,IF(AV21="","",AV21),"") ->  | W21: =IF($F21>=5,IF(BA21="","",BA21),"") ->  | X21: =IF($F21>=5,IF(BF21="","",BF21),"") ->  | Y21: =IF($F21>=5,IF(BK21="","",BK21),"") ->  | AA21: 7 | AB21: 36 | AC21: 5 | AD21: 41 | AG21: 0 | AH21: 0 | AI21: 0 | AK21: 17 | AL21: 14 | AM21: 5 | AN21: 19 | AP21: 28 | AQ21: 3 | AR21: 5 | AS21: 8 | AV21: 0 | AW21: 0 | AX21: 0 | BA21: 0 | BB21: 0 | BC21: 0 | BF21: 0 | BG21: 0 | BH21: 0 | BK21: 0 | BL21: 0 | BM21: 0 | BO21: 16 | BP21: 15 | BQ21: 0 | BR21: =IF($F19=7,1,0) -> 0 | BS21: =IF($F19=6,1,0) -> 0 | BT21: =IF($F19=5,1,0) -> 0 | BU21: =IF($F19=4,1,0) -> 0 | BV21: =IF($F19=3,1,0) -> 1 | BW21: =IF($F19=2,1,0) -> 0 | BX21: =IF($F19=1,1,0) -> 0
A22: 17 | B22: Lødemel | C22: Espen Alexander | D22: Heming | E22: 68 | F22: 2 | J22: 9 | K22: 9 | M22: =IF(AU22="","",AU22) ->  | N22: =IF(AZ22="","",AZ22) ->  | O22: =IF(BE22="","",BE22) ->  | Q22: 68 | R22: =IF($F13>=5,IF(AB22="","",AB22),"") ->  | S22: =IF($F13>=5,IF(AG22="","",AG22),"") ->  | T22: =IF($F13>=5,IF(AL22="","",AL22),"") ->  | U22: =IF($F13>=5,IF(AQ22="","",AQ22),"") ->  | V22: =IF($F13>=5,IF(AR22="","",AR22),"") ->  | W22: =IF($F13>=5,IF(AV22="","",AV22),"") ->  | X22: =IF($F13>=5,IF(BA22="","",BA22),"") ->  | Y22: =IF($F13>=5,IF(BF22="","",BF22),"") ->  | AB22: 0 | AC22: 0 | AD22: 0 | AG22: 0 | AH22: 0 | AI22: 0 | AK22: 9 | AL22: 29 | AM22: 5 | AN22: 34 | AP22: 9 | AQ22: 29 | AR22: 5 | AS22: 34 | AV22: 0 | AW22: 0 | AX22: 0 | BA22: 0 | BB22: 0 | BC22: 0 | BF22: 0 | BG22: 0 | BH22: 0 | BK22: 0 | BL22: 0 | BM22: 0 | BO22: 17 | BP22: 14 | BQ22: 0 | BR22: 0 | BS22: 0 | BT22: 0 | BU22: 0 | BV22: 0 | BW22: 1 | BX22: 0
A23: 19 | B23: Ekjord | C23: Oskar Gedde-Dahl | D23: Heming | E23: 66 | F23: 2 | J23: 11 | K23: 8 | M23: =IF(AU23="","",AU23) ->  | N23: =IF(AZ23="","",AZ23) ->  | O23: =IF(BE23="","",BE23) ->  | Q23: 66 | R23: =IF($F14>=5,IF(AB23="","",AB23),"") ->  | S23: =IF($F14>=5,IF(AG23="","",AG23),"") ->  | T23: =IF($F14>=5,IF(AL23="","",AL23),"") ->  | U23: =IF($F14>=5,IF(AQ23="","",AQ23),"") ->  | V23: =IF($F14>=5,IF(AR23="","",AR23),"") ->  | W23: =IF($F14>=5,IF(AV23="","",AV23),"") ->  | X23: =IF($F14>=5,IF(BA23="","",BA23),"") ->  | Y23: =IF($F14>=5,IF(BF23="","",BF23),"") ->  | AB23: 0 | AC23: 0 | AD23: 0 | AG23: 0 | AH23: 0 | AI23: 0 | AK23: 11 | AL23: 24 | AM23: 5 | AN23: 29 | AP23: 8 | AQ23: 32 | AR23: 5 | AS23: 37 | AV23: 0 | AW23: 0 | AX23: 0 | BA23: 0 | BB23: 0 | BC23: 0 | BF23: 0 | BG23: 0 | BH23: 0 | BK23: 0 | BL23: 0 | BM23: 0 | BO23: 18 | BP23: 13 | BQ23: 0 | BR23: 0 | BS23: 0 | BT23: 0 | BU23: 0 | BV23: 1 | BW23: 0 | BX23: 0
A24: 20 | B24: Dannevig | C24: Torbjørn | D24: Ready | E24: 64 | F24: 3 | H24: 9 | I24: dsq | K24: 13 | M24: =IF(AZ24="","",AZ24) ->  | N24: =IF(BE24="","",BE24) ->  | O24: =IF(BJ24="","",BJ24) ->  | Q24: 64 | R24: =IF($F24>=5,IF(AB24="","",AB24),"") ->  | S24: =IF($F24>=5,IF(AG24="","",AG24),"") ->  | T24: =IF($F24>=5,IF(AL24="","",AL24),"") ->  | U24: =IF($F24>=5,IF(AQ24="","",AQ24),"") ->  | V24: =IF($F24>=5,IF(AV24="","",AV24),"") ->  | W24: =IF($F24>=5,IF(BA24="","",BA24),"") ->  | X24: =IF($F24>=5,IF(BF24="","",BF24),"") ->  | Y24: =IF($F24>=5,IF(BK24="","",BK24),"") ->  | AA24: 9 | AB24: 29 | AC24: 5 | AD24: 34 | AF24: dsq | AG24: 0 | AH24: 5 | AI24: 5 | AL24: 0 | AM24: 0 | AN24: 0 | AP24: 13 | AQ24: 20 | AR24: 5 | AS24: 25 | AV24: 0 | AW24: 0 | AX24: 0 | BA24: 0 | BB24: 0 | BC24: 0 | BF24: 0 | BG24: 0 | BH24: 0 | BK24: 0 | BL24: 0 | BM24: 0 | BO24: 19 | BP24: 12 | BQ24: 0 | BR24: 0 | BS24: 0 | BT24: 0 | BU24: 0 | BV24: 0 | BW24: 1 | BX24: 0
A25: 21 | B25: Svensen | C25: Felix Granum | D25: Ljan | E25: 62 | F25: 4 | H25: dsq | I25: 13 | J25: 23 | K25: 17 | M25: =IF(AZ25="","",AZ25) ->  | N25: =IF(BE25="","",BE25) ->  | O25: =IF(BJ25="","",BJ25) ->  | Q25: 62 | R25: =IF($F25>=5,IF(AB25="","",AB25),"") ->  | S25: =IF($F25>=5,IF(AG25="","",AG25),"") ->  | T25: =IF($F25>=5,IF(AL25="","",AL25),"") ->  | U25: =IF($F25>=5,IF(AQ25="","",AQ25),"") ->  | V25: =IF($F25>=5,IF(AV25="","",AV25),"") ->  | W25: =IF($F25>=5,IF(BA25="","",BA25),"") ->  | X25: =IF($F25>=5,IF(BF25="","",BF25),"") ->  | Y25: =IF($F25>=5,IF(BK25="","",BK25),"") ->  | AA25: dsq | AB25: 0 | AC25: 5 | AD25: 5 | AF25: 13 | AG25: 20 | AH25: 5 | AI25: 25 | AK25: 23 | AL25: 8 | AM25: 5 | AN25: 13 | AP25: 17 | AQ25: 14 | AR25: 5 | AS25: 19 | AV25: 0 | AW25: 0 | AX25: 0 | BA25: 0 | BB25: 0 | BC25: 0 | BF25: 0 | BG25: 0 | BH25: 0 | BK25: 0 | BL25: 0 | BM25: 0 | BO25: 20 | BP25: 11 | BQ25: 0 | BR25: 0 | BS25: 0 | BT25: 0 | BU25: 0 | BV25: 0 | BW25: 1 | BX25: 0
A26: 22 | B26: Larsen | C26: Bendik Stangebye | D26: Njård | E26: 59 | F26: 4 | H26: 19 | I26: 15 | J26: 27 | K26: 24 | M26: =IF(AZ26="","",AZ26) ->  | N26: =IF(BE26="","",BE26) ->  | O26: =IF(BJ26="","",BJ26) ->  | Q26: 59 | R26: =IF($F26>=5,IF(AB26="","",AB26),"") ->  | S26: =IF($F26>=5,IF(AG26="","",AG26),"") ->  | T26: =IF($F26>=5,IF(AL26="","",AL26),"") ->  | U26: =IF($F26>=5,IF(AQ26="","",AQ26),"") ->  | V26: =IF($F26>=5,IF(AV26="","",AV26),"") ->  | W26: =IF($F26>=5,IF(BA26="","",BA26),"") ->  | X26: =IF($F26>=5,IF(BF26="","",BF26),"") ->  | Y26: =IF($F26>=5,IF(BK26="","",BK26),"") ->  | AA26: 19 | AB26: 12 | AC26: 5 | AD26: 17 | AF26: 15 | AG26: 16 | AH26: 5 | AI26: 21 | AK26: 27 | AL26: 4 | AM26: 5 | AN26: 9 | AP26: 24 | AQ26: 7 | AR26: 5 | AS26: 12 | AV26: 0 | AW26: 0 | AX26: 0 | BA26: 0 | BB26: 0 | BC26: 0 | BF26: 0 | BG26: 0 | BH26: 0 | BK26: 0 | BL26: 0 | BM26: 0 | BO26: 21 | BP26: 10 | BQ26: 0 | BR26: 0 | BS26: 0 | BT26: 0 | BU26: 0 | BV26: 1 | BW26: 0 | BX26: 0
A27: 23 | B27: Astad | C27: Sjur | D27: Kjelsås | E27: 57 | F27: 3 | I27: 10 | J27: 25 | K27: 21 | L27: =IF(AU27="","",AU27) ->  | M27: =IF(AZ27="","",AZ27) ->  | N27: =IF(BE27="","",BE27) ->  | O27: =IF(BJ27="","",BJ27) ->  | Q27: 57 | R27: =IF($F27>=5,IF(AB27="","",AB27),"") ->  | S27: =IF($F27>=5,IF(AG27="","",AG27),"") ->  | T27: =IF($F27>=5,IF(AL27="","",AL27),"") ->  | U27: =IF($F27>=5,IF(AQ27="","",AQ27),"") ->  | V27: =IF($F27>=5,IF(AV27="","",AV27),"") ->  | W27: =IF($F27>=5,IF(BA27="","",BA27),"") ->  | X27: =IF($F27>=5,IF(BF27="","",BF27),"") ->  | Y27: =IF($F27>=5,IF(BK27="","",BK27),"") ->  | AB27: 0 | AC27: 0 | AD27: 0 | AF27: 10 | AG27: 26 | AH27: 5 | AI27: 31 | AK27: 25 | AL27: 6 | AM27: 5 | AN27: 11 | AP27: 21 | AQ27: 10 | AR27: 5 | AS27: 15 | AV27: 0 | AW27: 0 | AX27: 0 | BA27: 0 | BB27: 0 | BC27: 0 | BF27: 0 | BG27: 0 | BH27: 0 | BK27: 0 | BL27: 0 | BM27: 0 | BO27: 22 | BP27: 9 | BQ27: 0 | BR27: 0 | BS27: 0 | BT27: 0 | BU27: 1 | BV27: 0 | BW27: 0 | BX27: 0
A28: 24 | B28: Lødemel | C28: Nikolai | D28: Heming | E28: 56 | F28: 2 | J28: 13 | K28: 10 | Q28: 56 | R28: =IF($F28>=5,IF(AB28="","",AB28),"") ->  | S28: =IF($F28>=5,IF(AG28="","",AG28),"") ->  | T28: =IF($F28>=5,IF(AL28="","",AL28),"") ->  | U28: =IF($F28>=5,IF(AQ28="","",AQ28),"") ->  | V28: =IF($F28>=5,IF(AV28="","",AV28),"") ->  | W28: =IF($F28>=5,IF(BA28="","",BA28),"") ->  | X28: =IF($F28>=5,IF(BF28="","",BF28),"") ->  | Y28: =IF($F28>=5,IF(BK28="","",BK28),"") ->  | AB28: 0 | AC28: 0 | AD28: 0 | AG28: 0 | AH28: 0 | AI28: 0 | AK28: 13 | AL28: 20 | AM28: 5 | AN28: 25 | AP28: 10 | AQ28: 26 | AR28: 5 | AS28: 31 | AV28: 0 | AW28: 0 | AX28: 0 | BA28: 0 | BB28: 0 | BC28: 0 | BF28: 0 | BG28: 0 | BH28: 0 | BK28: 0 | BL28: 0 | BM28: 0 | BO28: 23 | BP28: 8 | BQ28: 0 | BR28: =IF($F23=7,1,0) -> 0 | BS28: =IF($F23=6,1,0) -> 0 | BT28: =IF($F23=5,1,0) -> 0 | BU28: =IF($F23=4,1,0) -> 0 | BV28: =IF($F23=3,1,0) -> 0 | BW28: =IF($F23=2,1,0) -> 1 | BX28: =IF($F23=1,1,0) -> 0
A29: 25 | B29: Hovind | C29: Adrian R. Nuila | D29: Ljan | E29: 55 | F29: 3 | H29: 16 | I29: 11 | J29: 30 | Q29: 55 | AA29: 16 | AB29: 15 | AC29: 5 | AD29: 20 | AF29: 11 | AG29: 24 | AH29: 5 | AI29: 29 | AK29: 30 | AL29: 1 | AM29: 5 | AN29: 6 | AQ29: 0 | AR29: 0 | AS29: 0 | AV29: 0 | AW29: 0 | AX29: 0 | BA29: 0 | BB29: 0 | BC29: 0 | BF29: 0 | BG29: 0 | BH29: 0 | BK29: 0 | BL29: 0 | BM29: 0 | BO29: 24 | BP29: 7 | BQ29: 0 | BR29: =IF($F24=7,1,0) -> 0 | BS29: =IF($F24=6,1,0) -> 0 | BT29: =IF($F24=5,1,0) -> 0 | BU29: =IF($F24=4,1,0) -> 0 | BV29: =IF($F24=3,1,0) -> 1 | BW29: =IF($F24=2,1,0) -> 0 | BX29: =IF($F24=1,1,0) -> 0
A30: 26 | B30: Arnesen | C30: Lukas | D30: Heming | E30: 52 | F30: 3 | I30: 12 | J30: 33 | K30: 16 | Q30: 52 | AB30: 0 | AC30: 0 | AD30: 0 | AF30: 12 | AG30: 22 | AH30: 5 | AI30: 27 | AK30: 33 | AL30: 0 | AM30: 5 | AN30: 5 | AP30: 16 | AQ30: 15 | AR30: 5 | AS30: 20 | AV30: 0 | AW30: 0 | AX30: 0 | BA30: 0 | BB30: 0 | BC30: 0 | BF30: 0 | BG30: 0 | BH30: 0 | BK30: 0 | BL30: 0 | BM30: 0 | BO30: 25 | BP30: 6 | BQ30: 0 | BR30: =IF($F25=7,1,0) -> 0 | BS30: =IF($F25=6,1,0) -> 0 | BT30: =IF($F25=5,1,0) -> 0 | BU30: =IF($F25=4,1,0) -> 1 | BV30: =IF($F25=3,1,0) -> 0 | BW30: =IF($F25=2,1,0) -> 0 | BX30: =IF($F25=1,1,0) -> 0
A31: 27 | B31: Lacoste | C31: Felix Trudeng | D31: Ready | E31: 51 | F31: 4 | H31: 17 | I31: dsq | J31: 26 | K31: 19 | Q31: 51 | AA31: 17 | AB31: 14 | AC31: 5 | AD31: 19 | AF31: dsq | AG31: 0 | AH31: 5 | AI31: 5 | AK31: 26 | AL31: 5 | AM31: 5 | AN31: 10 | AP31: 19 | AQ31: 12 | AR31: 5 | AS31: 17 | AV31: 0 | AW31: 0 | AX31: 0 | BA31: 0 | BB31: 0 | BC31: 0 | BF31: 0 | BG31: 0 | BH31: 0 | BK31: 0 | BL31: 0 | BM31: 0 | BO31: 26 | BP31: 5 | BQ31: 0 | BR31: =IF($F25=7,1,0) -> 0 | BS31: =IF($F25=6,1,0) -> 0 | BT31: =IF($F25=5,1,0) -> 0 | BU31: =IF($F25=4,1,0) -> 1 | BV31: =IF($F25=3,1,0) -> 0 | BW31: =IF($F25=2,1,0) -> 0 | BX31: =IF($F25=1,1,0) -> 0
A32: 28 | B32: Sandengen | C32: Falk Willian | D32: Njård | E32: 44 | F32: 4 | H32: 22 | I32: 16 | J32: 31 | K32: 31 | Q32: 44 | AA32: 22 | AB32: 9 | AC32: 5 | AD32: 14 | AF32: 16 | AG32: 15 | AH32: 5 | AI32: 20 | AK32: 31 | AL32: 0 | AM32: 5 | AN32: 5 | AP32: 31 | AQ32: 0 | AR32: 5 | AS32: 5 | AV32: 0 | AW32: 0 | AX32: 0 | BA32: 0 | BB32: 0 | BC32: 0 | BF32: 0 | BG32: 0 | BH32: 0 | BK32: 0 | BL32: 0 | BM32: 0 | BO32: 27 | BP32: 4 | BQ32: 0 | BR32: =IF($F26=7,1,0) -> 0 | BS32: =IF($F26=6,1,0) -> 0 | BT32: =IF($F26=5,1,0) -> 0 | BU32: =IF($F26=4,1,0) -> 1 | BV32: =IF($F26=3,1,0) -> 0 | BW32: =IF($F26=2,1,0) -> 0 | BX32: =IF($F26=1,1,0) -> 0
A33: 29 | B33: Linna | C33: Simon | D33: Heming | E33: 38 | F33: 2 | J33: 19 | K33: 15 | Q33: 38 | AB33: 0 | AC33: 0 | AD33: 0 | AG33: 0 | AH33: 0 | AI33: 0 | AK33: 19 | AL33: 12 | AM33: 5 | AN33: 17 | AP33: 15 | AQ33: 16 | AR33: 5 | AS33: 21 | AV33: 0 | AW33: 0 | AX33: 0 | BA33: 0 | BB33: 0 | BC33: 0 | BF33: 0 | BG33: 0 | BH33: 0 | BK33: 0 | BL33: 0 | BM33: 0 | BO33: 28 | BP33: 3 | BQ33: 0 | BR33: 0 | BS33: 0 | BT33: 0 | BU33: 0 | BV33: 1 | BW33: 0 | BX33: 0
A34: 30 | B34: Dyrstad | C34: Morten | D34: Kjelsås | E34: 37 | F34: 1 | I34: 8 | Q34: 37 | AB34: 0 | AC34: 0 | AD34: 0 | AF34: 8 | AG34: 32 | AH34: 5 | AI34: 37 | AL34: 0 | AM34: 0 | AN34: 0 | AQ34: 0 | AR34: 0 | AS34: 0 | AV34: 0 | AW34: 0 | AX34: 0 | BA34: 0 | BB34: 0 | BC34: 0 | BF34: 0 | BG34: 0 | BH34: 0 | BK34: 0 | BL34: 0 | BM34: 0 | BO34: 29 | BP34: 2 | BQ34: 0 | BR34: 0 | BS34: 0 | BT34: 0 | BU34: 0 | BV34: 0 | BW34: 1 | BX34: 0
A35: 30 | B35: Rygh | C35: Ole Marius | D35: Ready | E35: 37 | F35: 1 | H35: 8 | Q35: 37 | AA35: 8 | AB35: 32 | AC35: 5 | AD35: 37 | AG35: 0 | AH35: 0 | AI35: 0 | AL35: 0 | AM35: 0 | AN35: 0 | AQ35: 0 | AR35: 0 | AS35: 0 | AV35: 0 | AW35: 0 | AX35: 0 | BA35: 0 | BB35: 0 | BC35: 0 | BF35: 0 | BG35: 0 | BH35: 0 | BK35: 0 | BL35: 0 | BM35: 0 | BO35: 30 | BP35: 1 | BQ35: 0 | BR35: =IF($F26=7,1,0) -> 0 | BS35: =IF($F26=6,1,0) -> 0 | BT35: =IF($F26=5,1,0) -> 0 | BU35: =IF($F26=4,1,0) -> 1 | BV35: =IF($F26=3,1,0) -> 0 | BW35: =IF($F26=2,1,0) -> 0 | BX35: =IF($F26=1,1,0) -> 0
A36: 32 | B36: Enoksen | C36: Elias | D36: IRS | E36: 32 | F36: 2 | H36: 15 | K36: 25 | Q36: 32 | AA36: 15 | AB36: 16 | AC36: 5 | AD36: 21 | AG36: 0 | AH36: 0 | AI36: 0 | AL36: 0 | AM36: 0 | AN36: 0 | AP36: 25 | AQ36: 6 | AR36: 5 | AS36: 11 | AV36: 0 | AW36: 0 | AX36: 0 | BA36: 0 | BB36: 0 | BC36: 0 | BF36: 0 | BG36: 0 | BH36: 0 | BK36: 0 | BL36: 0 | BM36: 0 | BO36: 31 | BP36: 0 | BQ36: 0 | BR36: 0 | BS36: 0 | BT36: 0 | BU36: 0 | BV36: 1 | BW36: 0 | BX36: 0
A37: 33 | B37: Engell | C37: Martin | D37: Kjelsås | E37: 28 | F37: 3 | I37: dsq | J37: 39 | K37: 18 | L37: =IF(AU37="","",AU37) ->  | M37: =IF(AZ37="","",AZ37) ->  | N37: =IF(BE37="","",BE37) ->  | O37: =IF(BJ37="","",BJ37) ->  | Q37: 28 | AB37: 0 | AC37: 0 | AD37: 0 | AF37: dsq | AG37: 0 | AH37: 5 | AI37: 5 | AK37: 39 | AL37: 0 | AM37: 5 | AN37: 5 | AP37: 18 | AQ37: 13 | AR37: 5 | AS37: 18 | AV37: 0 | AW37: 0 | AX37: 0 | BA37: 0 | BB37: 0 | BC37: 0 | BF37: 0 | BG37: 0 | BH37: 0 | BK37: 0 | BL37: 0 | BM37: 0 | BO37: 32 | BP37: 0 | BQ37: 0 | BR37: 0 | BS37: 0 | BT37: 0 | BU37: 0 | BV37: 0 | BW37: 1 | BX37: 0
A38: 33 | B38: Hellerud | C38: Lars | D38: Ullensaker | E38: =Q38 -> 28 | F38: =(IF(AC38=5,1,0)+IF(AH38=5,1,0)+IF(AM38=5,1,0)+IF(AR38=5,1,0)+IF(AW38=5,1,0)+IF(BA38=5,1,0)+IF(BG38=5,1,0)+IF(BL38=5,1,0)) -> 3 | H38: =IF(AA38="","",AA38) -> 23 | I38: =IF(AF38="","",AF38) -> dsq | J38: =IF(AK38="","",AK38) ->  | K38: =IF(AP38="","",AP38) -> 26 | Q38: 28 | AA38: 23 | AB38: =IF(ISNUMBER(AA38),(VLOOKUP(AA38,$BO$6:$BP$50,2)),0) -> 8 | AC38: =IF(AA38<>"",5,0) -> 5 | AD38: =AB38+AC38 -> 13 | AF38: dsq | AG38: =IF(ISNUMBER(AF38),(VLOOKUP(AF38,$BO$6:$BP$50,2)),0) -> 0 | AH38: =IF(AF38<>"",5,0) -> 5 | AI38: =AG38+AH38 -> 5 | AL38: =IF(ISNUMBER(AK38),(VLOOKUP(AK38,$BO$6:$BP$50,2)),0) -> 0 | AM38: =IF(AK38<>"",5,0) -> 0 | AN38: =AL38+AM38 -> 0 | AP38: 26 | AQ38: =IF(ISNUMBER(AP38),(VLOOKUP(AP38,$BO$6:$BP$50,2)),0) -> 5 | AR38: =IF(AP38<>"",5,0) -> 5 | AS38: =AQ38+AR38 -> 10 | AV38: =IF(ISNUMBER(AU38),(VLOOKUP(AU38,$BO$6:$BP$50,2)),0) -> 0 | AW38: =IF(AU38<>"",5,0) -> 0 | AX38: =AV38+AW38 -> 0 | BA38: =IF(ISNUMBER(AZ38),(VLOOKUP(AZ38,$BO$6:$BP$50,2)),0) -> 0 | BB38: =IF(AZ38<>"",5,0) -> 0 | BC38: =BA38+BB38 -> 0 | BF38: =IF(ISNUMBER(BE38),(VLOOKUP(BE38,$BO$6:$BP$50,2)),0) -> 0 | BG38: =IF(BE38<>"",5,0) -> 0 | BH38: =BF38+BG38 -> 0 | BK38: =IF(ISNUMBER(BJ38),(VLOOKUP(BJ38,$BO$6:$BP$50,2)),0) -> 0 | BL38: =IF(BJ38<>"",5,0) -> 0 | BM38: =BK38+BL38 -> 0 | BO38: 33 | BP38: 0 | BQ38: 0 | BR38: 0 | BS38: 0 | BT38: 0 | BU38: 0 | BV38: 1 | BW38: 0 | BX38: 0
A39: 35 | B39: Andersen | C39: Oscar | D39: IRS | E39: 22 | F39: 2 | H39: 21 | K39: 29 | Q39: 22 | AA39: 21 | AB39: 10 | AC39: 5 | AD39: 15 | AG39: 0 | AH39: 0 | AI39: 0 | AL39: 0 | AM39: 0 | AN39: 0 | AP39: 29 | AQ39: 2 | AR39: 5 | AS39: 7 | AV39: 0 | AW39: 0 | AX39: 0 | BA39: 0 | BB39: 0 | BC39: 0 | BF39: 0 | BG39: 0 | BH39: 0 | BK39: 0 | BL39: 0 | BM39: 0 | BO39: 34 | BP39: 0 | BQ39: 0 | BR39: 0 | BS39: 0 | BT39: 0 | BU39: 0 | BV39: 1 | BW39: 0 | BX39: 0
A40: 36 | B40: Horntvedt | C40: Oliver Ragnar | D40: Ljan | E40: 21 | F40: 2 | H40: 20 | I40: dsq | Q40: 21 | AA40: 20 | AB40: 11 | AC40: 5 | AD40: 16 | AF40: dsq | AG40: 0 | AH40: 5 | AI40: 5 | AL40: 0 | AM40: 0 | AN40: 0 | AQ40: 0 | AR40: 0 | AS40: 0 | AV40: 0 | AW40: 0 | AX40: 0 | BA40: 0 | BB40: 0 | BC40: 0 | BF40: 0 | BG40: 0 | BH40: 0 | BK40: 0 | BL40: 0 | BM40: 0 | BO40: 35 | BP40: 0 | BQ40: 0 | BR40: 0 | BS40: 0 | BT40: 0 | BU40: 1 | BV40: 0 | BW40: 0 | BX40: 0
A41: 36 | B41: Heide | C41: William Weedon | D41: Heming | E41: 21 | F41: 1 | J41: 15 | Q41: 21 | AB41: 0 | AC41: 0 | AD41: 0 | AG41: 0 | AH41: 0 | AI41: 0 | AK41: 15 | AL41: 16 | AM41: 5 | AN41: 21 | AQ41: 0 | AR41: 0 | AS41: 0 | AV41: 0 | AW41: 0 | AX41: 0 | BA41: 0 | BB41: 0 | BC41: 0 | BF41: 0 | BG41: 0 | BH41: 0 | BK41: 0 | BL41: 0 | BM41: 0 | BO41: 36 | BP41: 0 | BQ41: 0 | BR41: 0 | BS41: 0 | BT41: 0 | BU41: 1 | BV41: 0 | BW41: 0 | BX41: 0
A42: 36 | B42: Ulrichsen | C42: Daniel Krüger | D42: Ready | E42: 21 | F42: 2 | J42: 29 | K42: 22 | Q42: 21 | AB42: 0 | AC42: 0 | AD42: 0 | AG42: 0 | AH42: 0 | AI42: 0 | AK42: 29 | AL42: 2 | AM42: 5 | AN42: 7 | AP42: 22 | AQ42: 9 | AR42: 5 | AS42: 14 | AV42: 0 | AW42: 0 | AX42: 0 | BA42: 0 | BB42: 0 | BC42: 0 | BF42: 0 | BG42: 0 | BH42: 0 | BK42: 0 | BL42: 0 | BM42: 0 | BO42: 37 | BP42: 0 | BQ42: 0 | BR42: 0 | BS42: 0 | BT42: 0 | BU42: 0 | BV42: 0 | BW42: 1 | BX42: 0
A43: 39 | B43: Nyman | C43: Carl Axel | D43: Kjelsås | E43: 19 | F43: 1 | I43: 17 | Q43: 19 | AB43: 0 | AC43: 0 | AD43: 0 | AF43: 17 | AG43: 14 | AH43: 5 | AI43: 19 | AL43: 0 | AM43: 0 | AN43: 0 | AQ43: 0 | AR43: 0 | AS43: 0 | AV43: 0 | AW43: 0 | AX43: 0 | BA43: 0 | BB43: 0 | BC43: 0 | BF43: 0 | BG43: 0 | BH43: 0 | BK43: 0 | BL43: 0 | BM43: 0 | BO43: 38 | BP43: 0 | BQ43: 0 | BR43: 0 | BS43: 0 | BT43: 0 | BU43: 0 | BV43: 0 | BW43: 0 | BX43: 1
A44: 39 | B44: Skirstad | C44: Jacob | D44: Ready | E44: 19 | F44: 2 | I44: dsq | J44: 22 | Q44: 19 | AB44: 0 | AC44: 0 | AD44: 0 | AF44: dsq | AG44: 0 | AH44: 5 | AI44: 5 | AK44: 22 | AL44: 9 | AM44: 5 | AN44: 14 | AQ44: 0 | AR44: 0 | AS44: 0 | AV44: 0 | AW44: 0 | AX44: 0 | BA44: 0 | BB44: 0 | BC44: 0 | BF44: 0 | BG44: 0 | BH44: 0 | BK44: 0 | BL44: 0 | BM44: 0 | BO44: 39 | BP44: 0 | BQ44: 0 | BR44: 0 | BS44: 0 | BT44: 0 | BU44: 0 | BV44: 0 | BW44: 0 | BX44: 1
A45: 41 | B45: Christiansen | C45: Arthur Åstasund | D45: IRS | E45: 18 | F45: 1 | H45: 18 | Q45: 18 | AA45: 18 | AB45: 13 | AC45: 5 | AD45: 18 | AG45: 0 | AH45: 0 | AI45: 0 | AL45: 0 | AM45: 0 | AN45: 0 | AQ45: 0 | AR45: 0 | AS45: 0 | AV45: 0 | AW45: 0 | AX45: 0 | BA45: 0 | BB45: 0 | BC45: 0 | BF45: 0 | BG45: 0 | BH45: 0 | BK45: 0 | BL45: 0 | BM45: 0 | BO45: 40 | BP45: 0 | BQ45: 0 | BR45: 0 | BS45: 0 | BT45: 0 | BU45: 0 | BV45: 0 | BW45: 1 | BX45: 0
A46: 42 | B46: Gaarder | C46: Oskar Jølle | D46: HSIL | E46: 16 | F46: 1 | J46: 20 | Q46: 16 | AB46: 0 | AC46: 0 | AD46: 0 | AG46: 0 | AH46: 0 | AI46: 0 | AK46: 20 | AL46: 11 | AM46: 5 | AN46: 16 | AQ46: 0 | AR46: 0 | AS46: 0 | AV46: 0 | AW46: 0 | AX46: 0 | BA46: 0 | BB46: 0 | BC46: 0 | BF46: 0 | BG46: 0 | BH46: 0 | BK46: 0 | BL46: 0 | BM46: 0 | BO46: 41 | BP46: 0 | BQ46: 0 | BR46: 0 | BS46: 0 | BT46: 0 | BU46: 0 | BV46: 1 | BW46: 0 | BX46: 0
A47: 43 | B47: Trondsen | C47: Kristian Arnstad | D47: Heming | E47: 15 | F47: 1 | J47: 21 | Q47: 15 | AB47: 0 | AC47: 0 | AD47: 0 | AG47: 0 | AH47: 0 | AI47: 0 | AK47: 21 | AL47: 10 | AM47: 5 | AN47: 15 | AQ47: 0 | AR47: 0 | AS47: 0 | AV47: 0 | AW47: 0 | AX47: 0 | BA47: 0 | BB47: 0 | BC47: 0 | BF47: 0 | BG47: 0 | BH47: 0 | BK47: 0 | BL47: 0 | BM47: 0 | BO47: 42 | BP47: 0 | BQ47: 0 | BR47: 0 | BS47: 0 | BT47: 0 | BU47: 0 | BV47: 1 | BW47: 0 | BX47: 0
A48: 44 | B48: Eriksson | C48: Peder | D48: Try | E48: 14 | F48: 2 | I48: dsq | K48: 27 | Q48: 14 | AB48: 0 | AC48: 0 | AD48: 0 | AF48: dsq | AG48: 0 | AH48: 5 | AI48: 5 | AL48: 0 | AM48: 0 | AN48: 0 | AP48: 27 | AQ48: 4 | AR48: 5 | AS48: 9 | AV48: 0 | AW48: 0 | AX48: 0 | BA48: 0 | BB48: 0 | BC48: 0 | BF48: 0 | BG48: 0 | BH48: 0 | BK48: 0 | BL48: 0 | BM48: 0 | BO48: 43 | BP48: 0 | BQ48: 0 | BR48: 0 | BS48: 0 | BT48: 0 | BU48: 0 | BV48: 0 | BW48: 1 | BX48: 0
A49: 45 | B49: Vodal | C49: Christian Folkenborg | D49: Heming | E49: 12 | F49: 1 | J49: 24 | Q49: 12 | AB49: 0 | AC49: 0 | AD49: 0 | AG49: 0 | AH49: 0 | AI49: 0 | AK49: 24 | AL49: 7 | AM49: 5 | AN49: 12 | AQ49: 0 | AR49: 0 | AS49: 0 | AV49: 0 | AW49: 0 | AX49: 0 | BA49: 0 | BB49: 0 | BC49: 0 | BF49: 0 | BG49: 0 | BH49: 0 | BK49: 0 | BL49: 0 | BM49: 0 | BO49: 44 | BP49: 0 | BQ49: 0 | BR49: 0 | BS49: 0 | BT49: 0 | BU49: 0 | BV49: 0 | BW49: 1 | BX49: 0
A50: 46 | B50: Ring | C50: Simon Lae | D50: Njård | E50: 11 | F50: 2 | J50: 38 | K50: 30 | Q50: 11 | AB50: 0 | AC50: 0 | AD50: 0 | AG50: 0 | AH50: 0 | AI50: 0 | AK50: 38 | AL50: 0 | AM50: 5 | AN50: 5 | AP50: 30 | AQ50: 1 | AR50: 5 | AS50: 6 | AV50: 0 | AW50: 0 | AX50: 0 | BA50: 0 | BB50: 0 | BC50: 0 | BF50: 0 | BG50: 0 | BH50: 0 | BK50: 0 | BL50: 0 | BM50: 0 | BO50: 45 | BP50: 0 | BQ50: 0 | BR50: 0 | BS50: 0 | BT50: 0 | BU50: 0 | BV50: 0 | BW50: 0 | BX50: 1
A51: 47 | B51: Sundal | C51: Nicolay Neuberth | D51: HSIL | E51: 8 | F51: 1 | J51: 28 | Q51: 8 | AB51: 0 | AC51: 0 | AD51: 0 | AG51: 0 | AH51: 0 | AI51: 0 | AK51: 28 | AL51: 3 | AM51: 5 | AN51: 8 | AQ51: 0 | AR51: 0 | AS51: 0 | AV51: 0 | AW51: 0 | AX51: 0 | BA51: 0 | BB51: 0 | BC51: 0 | BF51: 0 | BG51: 0 | BH51: 0 | BK51: 0 | BL51: 0 | BM51: 0 | BO51: 46 | BP51: 0 | BQ51: 0 | BR51: 0 | BS51: 0 | BT51: 0 | BU51: 0 | BV51: 0 | BW51: 1 | BX51: 0
A52: 48 | B52: Bergh | C52: Odin | D52: Ljan | E52: 5 | F52: 1 | I52: dsq | Q52: 5 | AB52: 0 | AC52: 0 | AD52: 0 | AF52: dsq | AG52: 0 | AH52: 5 | AI52: 5 | AL52: 0 | AM52: 0 | AN52: 0 | AQ52: 0 | AR52: 0 | AS52: 0 | AV52: 0 | AW52: 0 | AX52: 0 | BA52: 0 | BB52: 0 | BC52: 0 | BF52: 0 | BG52: 0 | BH52: 0 | BK52: 0 | BL52: 0 | BM52: 0 | BO52: 47 | BP52: 0 | BQ52: 0 | BR52: 0 | BS52: 0 | BT52: 0 | BU52: 0 | BV52: 0 | BW52: 0 | BX52: 1
A53: 48 | B53: Ofstad | C53: Lukas | D53: Ljan | E53: 5 | F53: 1 | I53: dsq | Q53: 5 | AB53: 0 | AC53: 0 | AD53: 0 | AF53: dsq | AG53: 0 | AH53: 5 | AI53: 5 | AL53: 0 | AM53: 0 | AN53: 0 | AQ53: 0 | AR53: 0 | AS53: 0 | AV53: 0 | AW53: 0 | AX53: 0 | BA53: 0 | BB53: 0 | BC53: 0 | BF53: 0 | BG53: 0 | BH53: 0 | BK53: 0 | BL53: 0 | BM53: 0 | BO53: 48 | BP53: 0 | BQ53: 0 | BR53: 0 | BS53: 0 | BT53: 0 | BU53: 0 | BV53: 0 | BW53: 1 | BX53: 0
A54: 48 | B54: Skard | C54: Edvard | D54: Ljan | E54: 5 | F54: 1 | I54: dsq | Q54: 5 | AB54: 0 | AC54: 0 | AD54: 0 | AF54: dsq | AG54: 0 | AH54: 5 | AI54: 5 | AL54: 0 | AM54: 0 | AN54: 0 | AQ54: 0 | AR54: 0 | AS54: 0 | AV54: 0 | AW54: 0 | AX54: 0 | BA54: 0 | BB54: 0 | BC54: 0 | BF54: 0 | BG54: 0 | BH54: 0 | BK54: 0 | BL54: 0 | BM54: 0 | BO54: 49 | BP54: 0 | BQ54: 0 | BR54: 0 | BS54: 0 | BT54: 0 | BU54: 0 | BV54: 0 | BW54: 0 | BX54: 1
A55: 48 | B55: Lad | C55: Lukas Ofstad | D55: Ljan | E55: 5 | F55: 1 | J55: 32 | Q55: 5 | AB55: 0 | AC55: 0 | AD55: 0 | AG55: 0 | AH55: 0 | AI55: 0 | AK55: 32 | AL55: 0 | AM55: 5 | AN55: 5 | AQ55: 0 | AR55: 0 | AS55: 0 | AV55: 0 | AW55: 0 | AX55: 0 | BA55: 0 | BB55: 0 | BC55: 0 | BF55: 0 | BG55: 0 | BH55: 0 | BK55: 0 | BL55: 0 | BM55: 0 | BO55: 50 | BP55: 0 | BQ55: 0 | BR55: 0 | BS55: 0 | BT55: 0 | BU55: 0 | BV55: 0 | BW55: 0 | BX55: 1
A56: 48 | B56: Pavolas | C56: Paulius | D56: HSIL | E56: 5 | F56: 1 | J56: 34 | Q56: 5 | AB56: 0 | AC56: 0 | AD56: 0 | AG56: 0 | AH56: 0 | AI56: 0 | AK56: 34 | AL56: 0 | AM56: 5 | AN56: 5 | AQ56: 0 | AR56: 0 | AS56: 0 | AV56: 0 | AW56: 0 | AX56: 0 | BA56: 0 | BB56: 0 | BC56: 0 | BF56: 0 | BG56: 0 | BH56: 0 | BK56: 0 | BL56: 0 | BM56: 0 | BO56: 51 | BP56: 0 | BQ56: 0 | BR56: 0 | BS56: 0 | BT56: 0 | BU56: 0 | BV56: 0 | BW56: 0 | BX56: 1

Sheet Forside 2017
A1: Resultatliste Oslo Cup 2017
A2: Etter 5 av 8 renn
A5: - Oslo Cup arrangeres av Oslo Skikrets i samarbeid med IRS, Heming, Ready, Njård, HSIL og Kjelsås
A6: - 8 renn, arrangert av de samarbeidende klubbene, inngår i Oslo Cup
A7: - Det konkurreres i separate årsklasser, J11, G11, J12 og G12
A8: - Sammenlagtresultatene beregnes med World Cup poeng + deltakerpoeng.
A9: - De fire beste resultatene er tellende sammenlagt, men alle deltakerpoengene teller med i totalresultatet
A10: - Premiering av de tre beste sammenlagt i hver klasse
A13: Poengsystem:
A14: - World Cup poeng for plasseringer (100 poeng for seier, 80 for andre plass osv).
A15: - De fire beste resultatene er tellende i sammendraget
A16: - Det gis 5 deltakerpoeng pr. renn, uanhengig av resultat og om resultatet er tellende i sammendraget
A19: Forklaring på overskriften i resultatlistene:
A20: - Plass = plassering i rennet
A21: - Res. = resultatpoeng etter World Cup skala
A22: - Del. = deltakerpoeng, 5 poeng for deltakelse
A23: - Tot. = totalpoeng for rennet, sum av resultatpoeng og deltakerpoeng
A24: - Resultater/poeng som ikke er tellende for de som har kjørt flere enn fire renn er markert/skravert med grått

Sheet J11 2017
A1: Resultatliste Oslo Cup 2017 - Jenter 11 år | AQ1: -----Telenor Arena Cup----
A2: ='Forside 2017'!A2 -> Etter 5 av 8 renn
H3: IRS Rennet | I3: Ljan Rennet | J3: Njård Rennet | K3: Ready Rennet | L3: Telenor Arena Cup | M3: Euro-tecfarten | N3: Oslo Alpinfestival SL | O3: Oslo Alpinfestival SSL | R3: IRS Rennet | S3: Ljan Rennet | T3: Njård Rennet | U3: Ready Rennet | V3: Telenor Arena Cup | W3: Euro-tecfarten | X3: Oslo Alpinfestival SL | Y3: Oslo Alpinfestival SSL | AA3: --------IRS Rennet---------- | AF3: ----------Ljan Rennet--------- | AK3: --------Njård Rennet---------- | AP3: --------Ready Rennet--------- | AU3: -----Telenor Arena Cup---- | AZ3: ------Euro-tecfarten-------- | BE3: ---Oslo Alpinfestival SL--- | BJ3: ---Oslo Alpinfestival SSL---
F4: Antall | H4: 2016-02-04 | I4: 2016-02-05 | J4: 2016-02-10 | K4: 2016-02-11 | L4: 2016-02-15 | M4: 2016-03-01 | N4: 2017-03-11 | O4: 2016-03-12 | Q4: Poeng | R4: 2016-02-04 | S4: 2016-02-05 | T4: 2016-02-10 | U4: 2016-02-11 | V4: 2016-02-15 | W4: 2016-03-01 | X4: 2017-03-11 | Y4: 2016-03-12 | AB4: --------Poeng-------- | AG4: --------Poeng-------- | AL4: -------Poeng--------- | AQ4: -------Poeng--------- | AV4: -------Poeng--------- | BA4: -------Poeng--------- | BF4: -------Poeng--------- | BK4: -------Poeng--------- | BQ4: Løpere med | BR4: Løpere med | BS4: Løpere med | BT4: Løpere med | BU4: Løpere med | BV4: Løpere med | BW4: Løpere med
A5: Plass | B5: Etternavn | C5: Fornavn | D5: Klubb | E5: Poeng | F5: renn | H5: ------------------------------Plassering i rennene--------------------------------- | Q5: brutto | R5: ----------------Resultatpoeng hvis mer enn 4 renn---------------- | AA5: Plass | AB5: Res. | AC5: Del. | AD5: Tot. | AF5: Plass | AG5: Res. | AH5: Del. | AI5: Tot. | AK5: Plass | AL5: Res. | AM5: Del. | AN5: Tot. | AP5: Plass | AQ5: Res. | AR5: Del. | AS5: Tot. | AU5: Plass | AV5: Res. | AW5: Del. | AX5: Tot. | AZ5: Plass | BA5: Res. | BB5: Del. | BC5: Tot. | BE5: Plass | BF5: Res. | BG5: Del. | BH5: Tot. | BJ5: Plass | BK5: Res. | BL5: Del. | BM5: Tot. | BQ5: 8 renn | BR5: 7 renn | BS5: 6 renn | BT5: 5 renn | BU5: 4 renn | BV5: 3 renn | BW5: kun 1 renn
A6: 1 | B6: Rasmussen | C6: Cornelia Nystrøm | D6: Heming | E6: =Q6-V6 -> 385 | F6: =COUNT(AC6,AH6,AM6,AR6,AW6,BB6,BG6,BL6) -> 5 | H6: =IF(AA6="","",AA6) -> 2 | I6: =IF(AF6="","",AF6) -> 1 | J6: =IF(AK6="","",AK6) -> 2 | K6: =IF(AP6="","",AP6) -> 1 | L6: =IF(AU6="","",AU6) -> 2 | M6: =IF(AZ6="","",AZ6) ->  | N6: =IF(BE6="","",BE6) ->  | O6: =IF(BJ6="","",BJ6) ->  | Q6: =AD6+AI6+AN6+AS6+AX6+BC6+BH6 -> 465 | R6: =IF($F6>=5,IF(AB6="","",AB6),"") -> 80 | S6: =IF($F6>=5,IF(AG6="","",AG6),"") -> 100 | T6: =IF($F6>=5,IF(AL6="","",AL6),"") -> 80 | U6: =IF($F6>=5,IF(AQ6="","",AQ6),"") -> 100 | V6: =IF($F6>=5,IF(AV6="","",AV6),"") -> 80 | W6: =IF($F6>=5,IF(BA6="","",BA6),"") ->  | X6: =IF($F6>=5,IF(BF6="","",BF6),"") ->  | Y6: =IF($F6>=5,IF(BK6="","",BK6),"") ->  | AA6: 2 | AB6: 80 | AC6: 5 | AD6: =AB6+AC6 -> 85 | AF6: 1 | AG6: 100 | AH6: 5 | AI6: =AG6+AH6 -> 105 | AK6: 2 | AL6: 80 | AM6: 5 | AN6: =AL6+AM6 -> 85 | AP6: 1 | AQ6: 100 | AR6: 5 | AS6: =AQ6+AR6 -> 105 | AU6: 2 | AV6: 80 | AW6: 5 | AX6: =AV6+AW6 -> 85 | BC6: =BA6+BB6 -> 0 | BH6: =BF6+BG6 -> 0 | BM6: =BK6+BL6 -> 0 | BO6: 1 | BP6: 100 | BQ6: =IF($F6=7,1,0) -> 0 | BR6: =IF($F6=6,1,0) -> 0 | BS6: =IF($F6=5,1,0) -> 1 | BT6: =IF($F6=4,1,0) -> 0 | BU6: =IF($F6=3,1,0) -> 0 | BV6: =IF($F6=2,1,0) -> 0 | BW6: =IF($F6=1,1,0) -> 0
A7: =IF(E7<E6,BO7,A6) -> 2 | B7: Frederiksen | C7: Charlotte Løvenskiold | D7: Ready | E7: =Q7 -> 241 | F7: 5 | H7: DSQ | I7: 7 | J7: 3 | K7: 3 | L7: 3 | Q7: 241 | R7: 0 | S7: 36 | T7: 60 | U7: 60 | V7: 60 | AA7: DSQ | AB7: 0 | AC7: 5 | AD7: 5 | AF7: 7 | AG7: 36 | AH7: 5 | AI7: 41 | AK7: 3 | AL7: 60 | AM7: 5 | AN7: 65 | AP7: 3 | AQ7: 60 | AR7: 5 | AS7: 65 | AU7: 3 | AV7: 60 | AW7: 5 | AX7: 65 | BC7: 0 | BH7: 0 | BM7: 0 | BO7: 2 | BP7: 80 | BQ7: =IF($F7=7,1,0) -> 0 | BR7: =IF($F7=6,1,0) -> 0 | BS7: =IF($F7=5,1,0) -> 1 | BT7: =IF($F7=4,1,0) -> 0 | BU7: =IF($F7=3,1,0) -> 0 | BV7: =IF($F7=2,1,0) -> 0 | BW7: =IF($F7=1,1,0) -> 0
A8: 3 | B8: Thorsby | C8: Pernille | D8: Heming | E8: =Q8-V8 -> 232 | F8: 5 | H8: 5 | I8: 2 | J8: 8 | K8: 4 | L8: 13 | Q8: 252 | R8: 45 | S8: 80 | T8: 32 | U8: 50 | V8: 20 | AA8: 5 | AB8: 45 | AC8: 5 | AD8: 50 | AF8: 2 | AG8: 80 | AH8: 5 | AI8: 85 | AK8: 8 | AL8: 32 | AM8: 5 | AN8: 37 | AP8: 4 | AQ8: 50 | AR8: 5 | AS8: 55 | AU8: 13 | AV8: 20 | AW8: 5 | AX8: 25 | BC8: 0 | BH8: 0 | BM8: 0 | BO8: 3 | BP8: 60 | BQ8: 0 | BR8: 0 | BS8: 1 | BT8: 0 | BU8: 0 | BV8: 0 | BW8: 0
A9: 4 | B9: Finn-Hansen | C9: Nora | D9: Heming | E9: =Q9-V9 -> 230 | F9: 5 | H9: 4 | I9: 3 | J9: 4 | K9: 5 | L9: 9 | Q9: 259 | R9: 50 | S9: 60 | T9: 50 | U9: 45 | V9: 29 | AA9: 4 | AB9: 50 | AC9: 5 | AD9: 55 | AF9: 3 | AG9: 60 | AH9: 5 | AI9: 65 | AK9: 4 | AL9: 50 | AM9: 5 | AN9: 55 | AP9: 5 | AQ9: 45 | AR9: 5 | AS9: 50 | AU9: 9 | AV9: 29 | AW9: 5 | AX9: 34 | BC9: 0 | BH9: 0 | BM9: 0 | BO9: 4 | BP9: 50 | BQ9: 0 | BR9: 0 | BS9: 1 | BT9: 0 | BU9: 0 | BV9: 0 | BW9: 0
A10: 5 | B10: Rasmussen | C10: Maisen Holst | D10: Stabæk | E10: =Q10 -> 210 | F10: 2 | J10: 1 | L10: 1 | Q10: 210 | AD10: 0 | AI10: 0 | AK10: 1 | AL10: 100 | AM10: 5 | AN10: 105 | AS10: 0 | AU10: 1 | AV10: 100 | AW10: 5 | AX10: 105 | BC10: 0 | BH10: 0 | BM10: 0 | BO10: 5 | BP10: 45 | BQ10: 0 | BR10: 0 | BS10: 0 | BT10: 0 | BU10: 0 | BV10: 1 | BW10: 0
A11: 6 | B11: Alsos | C11: Synne | D11: Ready | E11: =Q11 -> 199 | F11: 5 | H11: 7 | I11: 4 | J11: 10 | K11: 7 | L11: 10 | Q11: 199 | R11: 36 | S11: 50 | T11: 26 | U11: 36 | V11: 26 | AA11: 7 | AB11: 36 | AC11: 5 | AD11: 41 | AF11: 4 | AG11: 50 | AH11: 5 | AI11: 55 | AK11: 10 | AL11: 26 | AM11: 5 | AN11: 31 | AP11: 7 | AQ11: 36 | AR11: 5 | AS11: 41 | AU11: 10 | AV11: 26 | AW11: 5 | AX11: 31 | BC11: 0 | BH11: 0 | BM11: 0 | BO11: 6 | BP11: 40 | BQ11: 0 | BR11: 0 | BS11: 1 | BT11: 0 | BU11: 0 | BV11: 0 | BW11: 0
A12: 7 | B12: Hemme Granerud | C12: Cornelie | D12: Ljan | E12: =Q12-V12 -> 186 | F12: 5 | H12: 6 | I12: 5 | J12: 7 | K12: 6 | L12: 11 | Q12: 210 | R12: 40 | S12: 45 | T12: 36 | U12: 40 | V12: 24 | AA12: 6 | AB12: 40 | AC12: 5 | AD12: 45 | AF12: 5 | AG12: 45 | AH12: 5 | AI12: 50 | AK12: 7 | AL12: 36 | AM12: 5 | AN12: 41 | AP12: 6 | AQ12: 40 | AR12: 5 | AS12: 45 | AU12: 11 | AV12: 24 | AW12: 5 | AX12: 29 | BC12: 0 | BH12: 0 | BM12: 0 | BO12: 7 | BP12: 36 | BQ12: 0 | BR12: 0 | BS12: 1 | BT12: 0 | BU12: 0 | BV12: 0 | BW12: 0
A13: 8 | B13: Aardal | C13: Mina | D13: NeRo | E13: =Q13 -> 147 | F13: 3 | H13: 3 | J13: 6 | L13: 8 | Q13: =AD13+AI13+AN13+AS13+AX13+BC13+BH13+BM13 -> 147 | AA13: 3 | AB13: 60 | AC13: 5 | AD13: 65 | AI13: 0 | AK13: 6 | AL13: 40 | AM13: 5 | AN13: 45 | AS13: 0 | AU13: 8 | AV13: 32 | AW13: 5 | AX13: 37 | BC13: 0 | BH13: 0 | BM13: 0 | BO13: 8 | BP13: 32 | BQ13: 0 | BR13: 0 | BS13: 0 | BT13: 0 | BU13: 1 | BV13: 0 | BW13: 0
A14: 9 | B14: Aandahl | C14: Nicola | D14: Ready | E14: 140 | F14: 3 | J14: 5 | K14: 2 | L14: DNF | M14: =IF(AU14="","",AU14) -> DNF | N14: =IF(AZ14="","",AZ14) ->  | O14: =IF(BE14="","",BE14) ->  | Q14: =AD14+AI14+AN14+AS14+AX14+BC14+BH14 -> 140 | AD14: 0 | AI14: 0 | AK14: 5 | AL14: 45 | AM14: 5 | AN14: 50 | AP14: 2 | AQ14: 80 | AR14: 5 | AS14: 85 | AU14: DNF | AV14: 0 | AW14: 5 | AX14: 5 | BC14: 0 | BH14: 0 | BM14: 0 | BO14: 9 | BP14: 29 | BQ14: 0 | BR14: 0 | BS14: 0 | BT14: 0 | BU14: 1 | BV14: 0 | BW14: 0
A15: 10 | B15: Pechhacker | C15: Julia | D15: Lillehammer | E15: 105 | F15: 1 | H15: 1 | M15: =IF(AZ15="","",AZ15) ->  | N15: =IF(BE15="","",BE15) ->  | O15: =IF(BJ15="","",BJ15) ->  | Q15: 105 | AA15: 1 | AB15: 100 | AC15: 5 | AD15: 105 | AI15: 0 | AN15: 0 | AS15: 0 | AX15: 0 | BC15: 0 | BH15: 0 | BM15: 0 | BO15: 10 | BP15: 26 | BQ15: 0 | BR15: 0 | BS15: 0 | BT15: 0 | BU15: 0 | BV15: 0 | BW15: 1
A16: 11 | B16: Øye | C16: Alva Østnes | D16: IRS | E16: 98 | F16: 3 | H16: 9 | I16: 6 | L16: 17 | M16: =IF(AU16="","",AU16) -> 17 | N16: =IF(AZ16="","",AZ16) ->  | O16: =IF(BE16="","",BE16) ->  | Q16: 98 | AA16: 9 | AB16: 29 | AC16: 5 | AD16: 34 | AF16: 6 | AG16: 40 | AH16: 5 | AI16: 45 | AN16: 0 | AS16: 0 | AU16: 17 | AV16: 14 | AW16: 5 | AX16: 19 | BC16: 0 | BH16: 0 | BM16: 0 | BO16: 11 | BP16: 24 | BQ16: 0 | BR16: 0 | BS16: 0 | BT16: 0 | BU16: 1 | BV16: 0 | BW16: 0
A17: 12 | B17: Swenson | C17: Lily | D17: Ljan | E17: 94 | F17: 3 | H17: 10 | J17: 11 | K17: 9 | M17: =IF(AU17="","",AU17) ->  | N17: =IF(AZ17="","",AZ17) ->  | O17: =IF(BE17="","",BE17) ->  | Q17: 94 | AA17: 10 | AB17: 26 | AC17: 5 | AD17: 31 | AI17: 0 | AK17: 11 | AL17: 24 | AM17: 5 | AN17: 29 | AP17: 9 | AQ17: 29 | AR17: 5 | AS17: 34 | AX17: 0 | BC17: 0 | BH17: 0 | BM17: 0 | BO17: 12 | BP17: 22 | BQ17: 0 | BR17: 0 | BS17: 0 | BT17: 0 | BU17: 1 | BV17: 0 | BW17: 0
A18: 13 | B18: Solhusløkk | C18: Carina | D18: IRS | E18: 76 | F18: 4 | H18: DSQ | J18: 13 | K18: 10 | L18: 21 | M18: =IF(AZ18="","",AZ18) ->  | N18: =IF(BE18="","",BE18) ->  | O18: =IF(BJ18="","",BJ18) ->  | Q18: 76 | AA18: DSQ | AB18: 0 | AC18: 5 | AD18: 5 | AI18: 0 | AK18: 13 | AL18: 20 | AM18: 5 | AN18: 25 | AP18: 10 | AQ18: 26 | AR18: 5 | AS18: 31 | AU18: 21 | AV18: 10 | AW18: 5 | AX18: 15 | BC18: 0 | BH18: 0 | BM18: 0 | BO18: 13 | BP18: 20 | BQ18: 0 | BR18: 0 | BS18: 0 | BT18: 1 | BU18: 0 | BV18: 0 | BW18: 0
A19: 14 | B19: Kristensen | C19: Mathilde | D19: Njård | E19: 68 | F19: 3 | J19: 14 | K19: 11 | L19: 20 | M19: =IF(AU19="","",AU19) -> 20 | N19: =IF(AZ19="","",AZ19) ->  | O19: =IF(BE19="","",BE19) ->  | Q19: 68 | AD19: 0 | AI19: 0 | AK19: 14 | AL19: 18 | AM19: 5 | AN19: 23 | AP19: 11 | AQ19: 24 | AR19: 5 | AS19: 29 | AU19: 20 | AV19: 11 | AW19: 5 | AX19: 16 | BC19: 0 | BH19: 0 | BM19: 0 | BO19: 14 | BP19: 18 | BQ19: =IF($F18=7,1,0) -> 0 | BR19: =IF($F18=6,1,0) -> 0 | BS19: =IF($F18=5,1,0) -> 0 | BT19: =IF($F18=4,1,0) -> 1 | BU19: =IF($F18=3,1,0) -> 0 | BV19: =IF($F18=2,1,0) -> 0 | BW19: =IF($F18=1,1,0) -> 0
A20: 14 | B20: Talén | C20: Henriette | D20: Heming | E20: 68 | F20: 3 | I20: 10 | J20: 16 | L20: 19 | M20: =IF(AZ20="","",AZ20) ->  | N20: =IF(BE20="","",BE20) ->  | O20: =IF(BJ20="","",BJ20) ->  | Q20: 68 | AD20: 0 | AF20: 10 | AG20: 26 | AH20: 5 | AI20: 31 | AK20: 16 | AL20: 15 | AM20: 5 | AN20: 20 | AS20: 0 | AU20: 19 | AV20: 12 | AW20: 5 | AX20: 17 | BC20: 0 | BH20: 0 | BM20: 0 | BO20: 15 | BP20: 16 | BQ20: =IF($F19=7,1,0) -> 0 | BR20: =IF($F19=6,1,0) -> 0 | BS20: =IF($F19=5,1,0) -> 0 | BT20: =IF($F19=4,1,0) -> 0 | BU20: =IF($F19=3,1,0) -> 1 | BV20: =IF($F19=2,1,0) -> 0 | BW20: =IF($F19=1,1,0) -> 0
A21: 16 | B21: Dynna | C21: Nathalie | D21: IRS | E21: 56 | F21: 4 | H21: DSQ | I21: DSQ | J21: 17 | K21: 12 | M21: =IF(AZ21="","",AZ21) ->  | N21: =IF(BE21="","",BE21) ->  | O21: =IF(BJ21="","",BJ21) ->  | Q21: 56 | AA21: DSQ | AB21: 0 | AC21: 5 | AD21: 5 | AF21: DSQ | AG21: 0 | AH21: 5 | AI21: 5 | AK21: 17 | AL21: 14 | AM21: 5 | AN21: 19 | AP21: 12 | AQ21: 22 | AR21: 5 | AS21: 27 | AX21: 0 | BC21: 0 | BH21: 0 | BM21: 0 | BO21: 16 | BP21: 15 | BQ21: =IF($F20=7,1,0) -> 0 | BR21: =IF($F20=6,1,0) -> 0 | BS21: =IF($F20=5,1,0) -> 0 | BT21: =IF($F20=4,1,0) -> 0 | BU21: =IF($F20=3,1,0) -> 1 | BV21: =IF($F20=2,1,0) -> 0 | BW21: =IF($F20=1,1,0) -> 0
A22: 17 | B22: Norstrand | C22: Nicolaine | D22: Heming | E22: 55 | F22: 1 | L22: =IF(AQ22="","",AQ22) ->  | M22: =IF(AU22="","",AU22) -> 4 | N22: =IF(AZ22="","",AZ22) ->  | O22: =IF(BE22="","",BE22) ->  | Q22: 55 | R22: =IF($F13>=5,IF(AB22="","",AB22),"") ->  | S22: =IF($F13>=5,IF(AG22="","",AG22),"") ->  | T22: =IF($F13>=5,IF(AL22="","",AL22),"") ->  | U22: =IF($F13>=5,IF(AQ22="","",AQ22),"") ->  | V22: =IF($F13>=5,IF(AR22="","",AR22),"") ->  | W22: =IF($F13>=5,IF(AV22="","",AV22),"") ->  | X22: =IF($F13>=5,IF(BA22="","",BA22),"") ->  | Y22: =IF($F13>=5,IF(BF22="","",BF22),"") ->  | AD22: 0 | AI22: 0 | AN22: 0 | AS22: 0 | AU22: 4 | AV22: 50 | AW22: 5 | AX22: 55 | BC22: 0 | BH22: 0 | BM22: 0 | BO22: 17 | BP22: 14 | BQ22: =IF($F20=7,1,0) -> 0 | BR22: =IF($F20=6,1,0) -> 0 | BS22: =IF($F20=5,1,0) -> 0 | BT22: =IF($F20=4,1,0) -> 0 | BU22: =IF($F20=3,1,0) -> 1 | BV22: =IF($F20=2,1,0) -> 0 | BW22: =IF($F20=1,1,0) -> 0
A23: 18 | B23: Hamran | C23: Helga | D23: Kjelsås | E23: 54 | F23: 2 | I23: 11 | K23: 13 | L23: =IF(AU23="","",AU23) ->  | M23: =IF(AU23="","",AU23) ->  | N23: =IF(AZ23="","",AZ23) ->  | O23: =IF(BE23="","",BE23) ->  | Q23: 54 | R23: =IF($F23>=5,IF(AB23="","",AB23),"") ->  | S23: =IF($F23>=5,IF(AG23="","",AG23),"") ->  | T23: =IF($F23>=5,IF(AL23="","",AL23),"") ->  | U23: =IF($F23>=5,IF(AQ23="","",AQ23),"") ->  | V23: =IF($F23>=5,IF(AV23="","",AV23),"") ->  | W23: =IF($F23>=5,IF(BA23="","",BA23),"") ->  | X23: =IF($F23>=5,IF(BF23="","",BF23),"") ->  | Y23: =IF($F23>=5,IF(BK23="","",BK23),"") ->  | AD23: 0 | AF23: 11 | AG23: 24 | AH23: 5 | AI23: 29 | AN23: 0 | AP23: 13 | AQ23: 20 | AR23: 5 | AS23: 25 | AX23: 0 | BC23: 0 | BH23: 0 | BM23: 0 | BO23: 18 | BP23: 13 | BQ23: =IF($F21=7,1,0) -> 0 | BR23: =IF($F21=6,1,0) -> 0 | BS23: =IF($F21=5,1,0) -> 0 | BT23: =IF($F21=4,1,0) -> 1 | BU23: =IF($F21=3,1,0) -> 0 | BV23: =IF($F21=2,1,0) -> 0 | BW23: =IF($F21=1,1,0) -> 0
A24: 19 | B24: Hoel | C24: Hermine Owesen | D24: Heming | E24: 50 | F24: 1 | L24: =IF(AQ24="","",AQ24) ->  | M24: =IF(AU24="","",AU24) -> 5 | N24: =IF(AZ24="","",AZ24) ->  | O24: =IF(BE24="","",BE24) ->  | Q24: 50 | R24: =IF($F15>=5,IF(AB24="","",AB24),"") ->  | S24: =IF($F15>=5,IF(AG24="","",AG24),"") ->  | T24: =IF($F15>=5,IF(AL24="","",AL24),"") ->  | U24: =IF($F15>=5,IF(AQ24="","",AQ24),"") ->  | V24: =IF($F15>=5,IF(AR24="","",AR24),"") ->  | W24: =IF($F15>=5,IF(AV24="","",AV24),"") ->  | X24: =IF($F15>=5,IF(BA24="","",BA24),"") ->  | Y24: =IF($F15>=5,IF(BF24="","",BF24),"") ->  | AD24: 0 | AI24: 0 | AN24: 0 | AS24: 0 | AU24: 5 | AV24: 45 | AW24: 5 | AX24: 50 | BC24: 0 | BH24: 0 | BM24: 0 | BO24: 19 | BP24: 12 | BQ24: =IF($F22=7,1,0) -> 0 | BR24: =IF($F22=6,1,0) -> 0 | BS24: =IF($F22=5,1,0) -> 0 | BT24: =IF($F22=4,1,0) -> 0 | BU24: =IF($F22=3,1,0) -> 0 | BV24: =IF($F22=2,1,0) -> 0 | BW24: =IF($F22=1,1,0) -> 1
A25: 20 | B25: Braathen | C25: Selma Georigia | D25: Stabæk | E25: 45 | F25: 1 | L25: =IF(AQ25="","",AQ25) ->  | M25: =IF(AU25="","",AU25) -> 6 | N25: =IF(AZ25="","",AZ25) ->  | O25: =IF(BE25="","",BE25) ->  | Q25: 45 | R25: =IF($F16>=5,IF(AB25="","",AB25),"") ->  | S25: =IF($F16>=5,IF(AG25="","",AG25),"") ->  | T25: =IF($F16>=5,IF(AL25="","",AL25),"") ->  | U25: =IF($F16>=5,IF(AQ25="","",AQ25),"") ->  | V25: =IF($F16>=5,IF(AR25="","",AR25),"") ->  | W25: =IF($F16>=5,IF(AV25="","",AV25),"") ->  | X25: =IF($F16>=5,IF(BA25="","",BA25),"") ->  | Y25: =IF($F16>=5,IF(BF25="","",BF25),"") ->  | AD25: 0 | AI25: 0 | AN25: 0 | AS25: 0 | AU25: 6 | AV25: 40 | AW25: 5 | AX25: 45 | BC25: 0 | BH25: 0 | BM25: 0 | BO25: 20 | BP25: 11 | BQ25: =IF($F23=7,1,0) -> 0 | BR25: =IF($F23=6,1,0) -> 0 | BS25: =IF($F23=5,1,0) -> 0 | BT25: =IF($F23=4,1,0) -> 0 | BU25: =IF($F23=3,1,0) -> 0 | BV25: =IF($F23=2,1,0) -> 1 | BW25: =IF($F23=1,1,0) -> 0
A26: 21 | B26: Rustad | C26: Petronella G | D26: Njård | E26: 44 | F26: 3 | H26: DSQ | J26: 15 | L26: =IF(AU26="","",AU26) -> 18 | M26: =IF(AZ26="","",AZ26) ->  | N26: =IF(BE26="","",BE26) ->  | O26: =IF(BJ26="","",BJ26) ->  | Q26: 44 | R26: =IF($F26>=5,IF(AB26="","",AB26),"") ->  | S26: =IF($F26>=5,IF(AG26="","",AG26),"") ->  | T26: =IF($F26>=5,IF(AL26="","",AL26),"") ->  | U26: =IF($F26>=5,IF(AQ26="","",AQ26),"") ->  | V26: =IF($F26>=5,IF(AV26="","",AV26),"") ->  | W26: =IF($F26>=5,IF(BA26="","",BA26),"") ->  | X26: =IF($F26>=5,IF(BF26="","",BF26),"") ->  | Y26: =IF($F26>=5,IF(BK26="","",BK26),"") ->  | AA26: DSQ | AB26: 0 | AC26: 5 | AD26: 5 | AI26: 0 | AK26: 15 | AL26: 16 | AM26: 5 | AN26: 21 | AS26: 0 | AU26: 18 | AV26: 13 | AW26: 5 | AX26: 18 | BC26: 0 | BH26: 0 | BM26: 0 | BO26: 21 | BP26: 10 | BQ26: =IF($F24=7,1,0) -> 0 | BR26: =IF($F24=6,1,0) -> 0 | BS26: =IF($F24=5,1,0) -> 0 | BT26: =IF($F24=4,1,0) -> 0 | BU26: =IF($F24=3,1,0) -> 0 | BV26: =IF($F24=2,1,0) -> 0 | BW26: =IF($F24=1,1,0) -> 1
A27: 22 | B27: Sartz-Lunde | C27: Emily | D27: Heming | E27: 41 | F27: 1 | L27: =IF(AQ27="","",AQ27) ->  | M27: =IF(AU27="","",AU27) -> 7 | N27: =IF(AZ27="","",AZ27) ->  | O27: =IF(BE27="","",BE27) ->  | Q27: 41 | R27: =IF($F18>=5,IF(AB27="","",AB27),"") ->  | S27: =IF($F18>=5,IF(AG27="","",AG27),"") ->  | T27: =IF($F18>=5,IF(AL27="","",AL27),"") ->  | U27: =IF($F18>=5,IF(AQ27="","",AQ27),"") ->  | V27: =IF($F18>=5,IF(AR27="","",AR27),"") ->  | W27: =IF($F18>=5,IF(AV27="","",AV27),"") ->  | X27: =IF($F18>=5,IF(BA27="","",BA27),"") ->  | Y27: =IF($F18>=5,IF(BF27="","",BF27),"") ->  | AD27: 0 | AI27: 0 | AN27: 0 | AS27: 0 | AU27: 7 | AV27: 36 | AW27: 5 | AX27: 41 | BC27: 0 | BH27: 0 | BM27: 0 | BO27: 22 | BP27: 9 | BQ27: 0 | BR27: 0 | BS27: 0 | BT27: 0 | BU27: 0 | BV27: 0 | BW27: 1
A28: 23 | B28: Zimmer | C28: Lisa | D28: IRS | E28: 39 | F28: 2 | I28: DSQ | J28: 9 | L28: =IF(AU28="","",AU28) ->  | M28: =IF(AZ28="","",AZ28) ->  | N28: =IF(BE28="","",BE28) ->  | O28: =IF(BJ28="","",BJ28) ->  | Q28: 39 | R28: =IF($F28>=5,IF(AB28="","",AB28),"") ->  | S28: =IF($F28>=5,IF(AG28="","",AG28),"") ->  | T28: =IF($F28>=5,IF(AL28="","",AL28),"") ->  | U28: =IF($F28>=5,IF(AQ28="","",AQ28),"") ->  | V28: =IF($F28>=5,IF(AV28="","",AV28),"") ->  | W28: =IF($F28>=5,IF(BA28="","",BA28),"") ->  | X28: =IF($F28>=5,IF(BF28="","",BF28),"") ->  | Y28: =IF($F28>=5,IF(BK28="","",BK28),"") ->  | AD28: 0 | AF28: DSQ | AG28: 0 | AH28: 5 | AI28: 5 | AK28: 9 | AL28: 29 | AM28: 5 | AN28: 34 | AS28: 0 | AX28: 0 | BC28: 0 | BH28: 0 | BM28: 0 | BO28: 23 | BP28: 8 | BQ28: 0 | BR28: 0 | BS28: 0 | BT28: 0 | BU28: 1 | BV28: 0 | BW28: 0
A29: 24 | B29: Teigen | C29: Cassandra | D29: Nannestad | E29: 37 | F29: 1 | H29: 8 | M29: =IF(AZ29="","",AZ29) ->  | N29: =IF(BE29="","",BE29) ->  | O29: =IF(BJ29="","",BJ29) ->  | Q29: 37 | AA29: 8 | AB29: 32 | AC29: 5 | AD29: 37 | AI29: 0 | AN29: 0 | AS29: 0 | AX29: 0 | BC29: 0 | BH29: 0 | BM29: 0 | BO29: 24 | BP29: 7 | BQ29: =IF($F24=7,1,0) -> 0 | BR29: =IF($F24=6,1,0) -> 0 | BS29: =IF($F24=5,1,0) -> 0 | BT29: =IF($F24=4,1,0) -> 0 | BU29: =IF($F24=3,1,0) -> 0 | BV29: =IF($F24=2,1,0) -> 0 | BW29: =IF($F24=1,1,0) -> 1
A30: 24 | B30: Sandal | C30: Jenny Bye | D30: Ljan | E30: 37 | F30: 1 | I30: 8 | M30: =IF(AZ30="","",AZ30) ->  | N30: =IF(BE30="","",BE30) ->  | O30: =IF(BJ30="","",BJ30) ->  | Q30: 37 | AD30: 0 | AF30: 8 | AG30: 32 | AH30: 5 | AI30: 37 | AN30: 0 | AS30: 0 | AX30: 0 | BC30: 0 | BH30: 0 | BM30: 0 | BO30: 25 | BP30: 6 | BQ30: =IF($F25=7,1,0) -> 0 | BR30: =IF($F25=6,1,0) -> 0 | BS30: =IF($F25=5,1,0) -> 0 | BT30: =IF($F25=4,1,0) -> 0 | BU30: =IF($F25=3,1,0) -> 0 | BV30: =IF($F25=2,1,0) -> 0 | BW30: =IF($F25=1,1,0) -> 1
A31: 24 | B31: Roos | C31: Elisabeth | D31: TRY | E31: 37 | F31: 1 | K31: 8 | M31: =IF(AU31="","",AU31) ->  | N31: =IF(AZ31="","",AZ31) ->  | O31: =IF(BE31="","",BE31) ->  | Q31: 37 | AD31: 0 | AI31: 0 | AN31: 0 | AP31: 8 | AQ31: 32 | AR31: 5 | AS31: 37 | AX31: 0 | BC31: 0 | BH31: 0 | BM31: 0 | BO31: 26 | BP31: 5 | BQ31: =IF($F26=7,1,0) -> 0 | BR31: =IF($F26=6,1,0) -> 0 | BS31: =IF($F26=5,1,0) -> 0 | BT31: =IF($F26=4,1,0) -> 0 | BU31: =IF($F26=3,1,0) -> 1 | BV31: =IF($F26=2,1,0) -> 0 | BW31: =IF($F26=1,1,0) -> 0
A32: 27 | B32: Rabben | C32: Ella Dahle | D32: Ljan | E32: 34 | F32: 1 | I32: 9 | M32: =IF(AZ32="","",AZ32) ->  | N32: =IF(BE32="","",BE32) ->  | O32: =IF(BJ32="","",BJ32) ->  | Q32: 34 | AD32: 0 | AF32: 9 | AG32: 29 | AH32: 5 | AI32: 34 | AN32: 0 | AS32: 0 | AX32: 0 | BC32: 0 | BH32: 0 | BM32: 0 | BO32: 27 | BP32: 4 | BQ32: =IF($F26=7,1,0) -> 0 | BR32: =IF($F26=6,1,0) -> 0 | BS32: =IF($F26=5,1,0) -> 0 | BT32: =IF($F26=4,1,0) -> 0 | BU32: =IF($F26=3,1,0) -> 1 | BV32: =IF($F26=2,1,0) -> 0 | BW32: =IF($F26=1,1,0) -> 0
A33: 28 | B33: Bjørnstad | C33: Erika Scheid | D33: IRS | E33: 29 | F33: 1 | H33: 11 | M33: =IF(AZ33="","",AZ33) ->  | N33: =IF(BE33="","",BE33) ->  | O33: =IF(BJ33="","",BJ33) ->  | Q33: 29 | AA33: 11 | AB33: 24 | AC33: 5 | AD33: 29 | AI33: 0 | AN33: 0 | AS33: 0 | AX33: 0 | BC33: 0 | BH33: 0 | BM33: 0 | BO33: 28 | BP33: 3 | BQ33: =IF($F27=7,1,0) -> 0 | BR33: =IF($F27=6,1,0) -> 0 | BS33: =IF($F27=5,1,0) -> 0 | BT33: =IF($F27=4,1,0) -> 0 | BU33: =IF($F27=3,1,0) -> 0 | BV33: =IF($F27=2,1,0) -> 0 | BW33: =IF($F27=1,1,0) -> 1
A34: 29 | B34: Brækken | C34: Eili | D34: IRS | E34: 27 | F34: 1 | H34: 12 | M34: =IF(AZ34="","",AZ34) ->  | N34: =IF(BE34="","",BE34) ->  | O34: =IF(BJ34="","",BJ34) ->  | Q34: 27 | AA34: 12 | AB34: 22 | AC34: 5 | AD34: 27 | AI34: 0 | AN34: 0 | AS34: 0 | AX34: 0 | BC34: 0 | BH34: 0 | BM34: 0 | BO34: 29 | BP34: 2 | BQ34: 0 | BR34: 0 | BS34: 0 | BT34: 0 | BU34: 0 | BV34: 1 | BW34: 0
A35: 29 | B35: Solheim | C35: Cornelia Margrethe Lysne | D35: Njård | E35: 27 | F35: 1 | J35: 12 | M35: =IF(AU35="","",AU35) ->  | N35: =IF(AZ35="","",AZ35) ->  | O35: =IF(BE35="","",BE35) ->  | Q35: 27 | AD35: 0 | AI35: 0 | AK35: 12 | AL35: 22 | AM35: 5 | AN35: 27 | AS35: 0 | AX35: 0 | BC35: =BA35+BB35 -> 0 | BH35: =BF35+BG35 -> 0 | BM35: =BK35+BL35 -> 0 | BO35: 30 | BP35: 1 | BQ35: 0 | BR35: 0 | BS35: 0 | BT35: 0 | BU35: 0 | BV35: 0 | BW35: 1
A36: 29 | B36: Horgen | C36: Alexandra Astrup | D36: Heming | E36: 27 | F36: 1 | L36: =IF(AQ36="","",AQ36) ->  | M36: =IF(AU36="","",AU36) -> 12 | N36: =IF(AZ36="","",AZ36) ->  | O36: =IF(BE36="","",BE36) ->  | Q36: 27 | V36: =IF($F36>=5,IF(AR36="","",AR36),"") ->  | W36: =IF($F36>=5,IF(AV36="","",AV36),"") ->  | X36: =IF($F36>=5,IF(BA36="","",BA36),"") ->  | Y36: =IF($F36>=5,IF(BF36="","",BF36),"") ->  | AD36: 0 | AI36: 0 | AN36: 0 | AS36: 0 | AU36: 12 | AV36: 22 | AW36: 5 | AX36: 27 | BC36: 0 | BH36: 0 | BM36: 0 | BO36: 31 | BQ36: =IF($F27=7,1,0) -> 0 | BR36: =IF($F27=6,1,0) -> 0 | BS36: =IF($F27=5,1,0) -> 0 | BT36: =IF($F27=4,1,0) -> 0 | BU36: =IF($F27=3,1,0) -> 0 | BV36: =IF($F27=2,1,0) -> 0 | BW36: =IF($F27=1,1,0) -> 1
A37: 32 | B37: Mortensen | C37: Christina | D37: LIL Alpin | E37: 23 | F37: 1 | L37: =IF(AU37="","",AU37) -> 14 | M37: =IF(AU37="","",AU37) -> 14 | N37: =IF(AZ37="","",AZ37) ->  | O37: =IF(BE37="","",BE37) ->  | Q37: 23 | V37: =IF($F37>=5,IF(AV37="","",AV37),"") ->  | W37: =IF($F37>=5,IF(BA37="","",BA37),"") ->  | X37: =IF($F37>=5,IF(BF37="","",BF37),"") ->  | Y37: =IF($F37>=5,IF(BK37="","",BK37),"") ->  | AD37: 0 | AI37: 0 | AN37: 0 | AS37: 0 | AU37: 14 | AV37: 18 | AW37: 5 | AX37: 23 | BC37: 0 | BH37: 0 | BM37: 0 | BO37: 32 | BQ37: 0 | BR37: 0 | BS37: 0 | BT37: 0 | BU37: 0 | BV37: 1 | BW37: 0
A38: 33 | B38: Wessel Ass | C38: Camilla | D38: Heming | E38: 21 | F38: 1 | L38: =IF(AQ38="","",AQ38) ->  | M38: =IF(AU38="","",AU38) -> 15 | N38: =IF(AZ38="","",AZ38) ->  | O38: =IF(BE38="","",BE38) ->  | Q38: 21 | V38: =IF($F38>=5,IF(AR38="","",AR38),"") ->  | W38: =IF($F38>=5,IF(AV38="","",AV38),"") ->  | X38: =IF($F38>=5,IF(BA38="","",BA38),"") ->  | Y38: =IF($F38>=5,IF(BF38="","",BF38),"") ->  | AD38: 0 | AI38: 0 | AN38: 0 | AS38: 0 | AU38: 15 | AV38: 16 | AW38: 5 | AX38: 21 | BC38: 0 | BH38: 0 | BM38: 0 | BO38: 33 | BQ38: 0 | BR38: 0 | BS38: 0 | BT38: 0 | BU38: 0 | BV38: 0 | BW38: 1
A39: 34 | B39: Benjamin-Wormdal | C39: Sarah Louise | D39: Heming | E39: 20 | F39: 1 | L39: =IF(AQ39="","",AQ39) ->  | M39: =IF(AU39="","",AU39) -> 16 | N39: =IF(AZ39="","",AZ39) ->  | O39: =IF(BE39="","",BE39) ->  | Q39: 20 | R39: =IF($F30>=5,IF(AB39="","",AB39),"") ->  | S39: =IF($F30>=5,IF(AG39="","",AG39),"") ->  | T39: =IF($F30>=5,IF(AL39="","",AL39),"") ->  | U39: =IF($F30>=5,IF(AQ39="","",AQ39),"") ->  | V39: =IF($F30>=5,IF(AR39="","",AR39),"") ->  | W39: =IF($F30>=5,IF(AV39="","",AV39),"") ->  | X39: =IF($F30>=5,IF(BA39="","",BA39),"") ->  | Y39: =IF($F30>=5,IF(BF39="","",BF39),"") ->  | AD39: 0 | AI39: 0 | AN39: 0 | AS39: 0 | AU39: 16 | AV39: 15 | AW39: 5 | AX39: 20 | BC39: 0 | BH39: 0 | BM39: 0 | BO39: 34 | BQ39: 0 | BR39: 0 | BS39: 0 | BT39: 0 | BU39: 0 | BV39: 0 | BW39: 1
A40: 35 | B40: Høgebøl | C40: Ella Louise | D40: Heming | E40: 18 | F40: 1 | J40: 18 | L40: =IF(AU40="","",AU40) ->  | M40: =IF(AZ40="","",AZ40) ->  | N40: =IF(BE40="","",BE40) ->  | O40: =IF(BJ40="","",BJ40) ->  | Q40: 18 | R40: =IF($F40>=5,IF(AB40="","",AB40),"") ->  | S40: =IF($F40>=5,IF(AG40="","",AG40),"") ->  | T40: =IF($F40>=5,IF(AL40="","",AL40),"") ->  | U40: =IF($F40>=5,IF(AQ40="","",AQ40),"") ->  | V40: =IF($F40>=5,IF(AV40="","",AV40),"") ->  | W40: =IF($F40>=5,IF(BA40="","",BA40),"") ->  | X40: =IF($F40>=5,IF(BF40="","",BF40),"") ->  | Y40: =IF($F40>=5,IF(BK40="","",BK40),"") ->  | AD40: 0 | AI40: 0 | AK40: 18 | AL40: 13 | AM40: 5 | AN40: 18 | AS40: 0 | AX40: 0 | BC40: 0 | BH40: 0 | BM40: 0 | BO40: 35 | BQ40: 0 | BR40: 0 | BS40: 0 | BT40: 0 | BU40: 0 | BV40: 0 | BW40: 1
A41: 36 | B41: Oustad | C41: Mina Foronda | D41: Nannestad | E41: 5 | F41: 1 | H41: DSQ | L41: =IF(AU41="","",AU41) ->  | M41: =IF(AZ41="","",AZ41) ->  | N41: =IF(BE41="","",BE41) ->  | O41: =IF(BJ41="","",BJ41) ->  | Q41: 5 | R41: =IF($F41>=5,IF(AB41="","",AB41),"") ->  | S41: =IF($F41>=5,IF(AG41="","",AG41),"") ->  | T41: =IF($F41>=5,IF(AL41="","",AL41),"") ->  | U41: =IF($F41>=5,IF(AQ41="","",AQ41),"") ->  | V41: =IF($F41>=5,IF(AV41="","",AV41),"") ->  | W41: =IF($F41>=5,IF(BA41="","",BA41),"") ->  | X41: =IF($F41>=5,IF(BF41="","",BF41),"") ->  | Y41: =IF($F41>=5,IF(BK41="","",BK41),"") ->  | AA41: DSQ | AB41: 0 | AC41: 5 | AD41: 5 | AI41: 0 | AN41: 0 | AS41: 0 | AX41: 0 | BC41: 0 | BH41: 0 | BM41: 0 | BO41: 36 | BQ41: 0 | BR41: 0 | BS41: 0 | BT41: 0 | BU41: 0 | BV41: 0 | BW41: 1
A42: 36 | B42: Piene Skard | C42: Caroline | D42: Heming | E42: 5 | F42: 1 | L42: =IF(AQ42="","",AQ42) ->  | M42: =IF(AU42="","",AU42) -> DNF | N42: =IF(AZ42="","",AZ42) ->  | O42: =IF(BE42="","",BE42) ->  | Q42: 5 | R42: =IF($F42>=5,IF(AB42="","",AB42),"") ->  | S42: =IF($F42>=5,IF(AG42="","",AG42),"") ->  | T42: =IF($F42>=5,IF(AL42="","",AL42),"") ->  | U42: =IF($F42>=5,IF(AQ42="","",AQ42),"") ->  | V42: =IF($F42>=5,IF(AR42="","",AR42),"") ->  | W42: =IF($F42>=5,IF(AV42="","",AV42),"") ->  | X42: =IF($F42>=5,IF(BA42="","",BA42),"") ->  | Y42: =IF($F42>=5,IF(BF42="","",BF42),"") ->  | AD42: 0 | AI42: 0 | AN42: 0 | AS42: 0 | AU42: DNF | AV42: 0 | AW42: 5 | AX42: 5 | BC42: 0 | BH42: 0 | BM42: 0 | BO42: 37 | BQ42: 0 | BR42: 0 | BS42: 0 | BT42: 0 | BU42: 0 | BV42: 0 | BW42: 1
H43: =IF(AA43="","",AA43) ->  | I43: =IF(AF43="","",AF43) ->  | J43: =IF(AK43="","",AK43) ->  | K43: =IF(AP43="","",AP43) ->  | M43: =IF(AU43="","",AU43) ->  | N43: =IF(AZ43="","",AZ43) ->  | O43: =IF(BE43="","",BE43) ->  | Q43: =AD43+AI43+AN43+AS43+AX43+BC43+BH43 -> 0 | R43: =IF($F34>=5,IF(AB43="","",AB43),"") ->  | S43: =IF($F34>=5,IF(AG43="","",AG43),"") ->  | T43: =IF($F34>=5,IF(AL43="","",AL43),"") ->  | U43: =IF($F34>=5,IF(AQ43="","",AQ43),"") ->  | W43: =IF($F34>=5,IF(AV43="","",AV43),"") ->  | X43: =IF($F34>=5,IF(BA43="","",BA43),"") ->  | Y43: =IF($F34>=5,IF(BF43="","",BF43),"") ->  | AD43: =AB43+AC43 -> 0 | AI43: =AG43+AH43 -> 0 | AN43: =AL43+AM43 -> 0 | AS43: =AQ43+AR43 -> 0 | AX43: =AV43+AW43 -> 0 | BC43: 0 | BH43: 0 | BM43: 0 | BO43: 38 | BQ43: 0 | BR43: 0 | BS43: 0 | BT43: 0 | BU43: 0 | BV43: 0 | BW43: 1
Q44: 0 | AD44: 0 | AI44: 0 | AN44: 0 | AS44: 0 | AX44: 0 | BC44: 0 | BH44: 0 | BM44: 0 | BO44: 39 | BQ44: 0 | BR44: 0 | BS44: 0 | BT44: 0 | BU44: 0 | BV44: 0 | BW44: 1
Q45: 0 | AD45: 0 | AI45: 0 | AN45: 0 | AS45: 0 | AX45: 0 | BC45: 0 | BH45: 0 | BM45: 0 | BO45: 40 | BQ45: 0 | BR45: 0 | BS45: 0 | BT45: 0 | BU45: 0 | BV45: 0 | BW45: 1
Q46: 0 | AD46: 0 | AI46: 0 | AN46: 0 | AS46: 0 | AX46: 0 | BC46: 0 | BH46: 0 | BM46: 0 | BO46: 41 | BQ46: 0 | BR46: 0 | BS46: 0 | BT46: 0 | BU46: 0 | BV46: 0 | BW46: 1
Q47: 0 | AD47: 0 | AI47: 0 | AN47: 0 | AS47: 0 | AX47: 0 | BC47: 0 | BH47: 0 | BM47: 0 | BO47: 42 | BQ47: 0 | BR47: 0 | BS47: 0 | BT47: 0 | BU47: 0 | BV47: 0 | BW47: 1
Q48: 0 | AD48: 0 | AI48: 0 | AN48: 0 | AS48: 0 | AX48: 0 | BC48: 0 | BH48: 0 | BM48: 0 | BO48: 43 | BQ48: 0 | BR48: 0 | BS48: 0 | BT48: 0 | BU48: 0 | BV48: 0 | BW48: 1
Q49: 0 | AD49: 0 | AI49: 0 | AN49: 0 | AS49: 0 | AX49: 0 | BC49: 0 | BH49: 0 | BM49: 0 | BO49: 44 | BQ49: 0 | BR49: 0 | BS49: 0 | BT49: 0 | BU49: 0 | BV49: 0 | BW49: 1
Q50: 0 | AD50: 0 | AI50: 0 | AN50: 0 | AS50: 0 | AX50: 0 | BC50: 0 | BH50: 0 | BM50: 0 | BO50: 45 | BQ50: 0 | BR50: 0 | BS50: 0 | BT50: 0 | BU50: 0 | BV50: 0 | BW50: 1
K51: =IF(AP51="","",AP51) ->  | Q51: 0 | AD51: 0 | AI51: 0 | AN51: 0 | AS51: 0 | AX51: 0 | BC51: 0 | BH51: 0 | BM51: 0 | BO51: 46 | BQ51: 0 | BR51: 0 | BS51: 0 | BT51: 0 | BU51: 0 | BV51: 0 | BW51: 1
Q52: 0 | AD52: 0 | AI52: 0 | AN52: 0 | AS52: 0 | AX52: 0 | BC52: 0 | BH52: 0 | BM52: 0 | BO52: 47 | BQ52: 0 | BR52: 0 | BS52: 0 | BT52: 0 | BU52: 0 | BV52: 0 | BW52: 0
Q53: 0 | AD53: 0 | AI53: 0 | AN53: 0 | AS53: 0 | AX53: 0 | BC53: 0 | BH53: 0 | BM53: 0 | BO53: 48 | BQ53: 0 | BR53: 0 | BS53: 0 | BT53: 0 | BU53: 0 | BV53: 0 | BW53: 0

Sheet G11 2017
A1: Resultatliste Oslo Cup 2017 - Gutter 11 år
A2: ='Forside 2017'!A2 -> Etter 5 av 8 renn
H3: IRS Rennet | I3: Ljan Rennet | J3: Njård Rennet | K3: Ready Rennet | L3: Telenor Arena Cup | M3: Euro-tecfarten | N3: Oslo Alpinfestival SL | O3: Oslo Alpinfestival SSL | R3: IRS Rennet | S3: Ljan Rennet | T3: Njård Rennet | U3: Ready Rennet | V3: Telenor Arena Cup | W3: Euro-tecfarten | X3: Oslo Alpinfestival SL | Y3: Oslo Alpinfestival SSL | AA3: --------IRS Rennet---------- | AF3: ----------Ljan Rennet--------- | AK3: --------Njård Rennet---------- | AP3: --------Ready Rennet--------- | AU3: -----Telenor Arena Cup---- | AZ3: ------Euro-tecfarten-------- | BE3: ---Oslo Alpinfestival SL--- | BJ3: ---Oslo Alpinfestival SSL---
F4: Antall | H4: 2016-02-04 | I4: 2016-02-05 | J4: 2016-02-10 | K4: 2016-02-11 | L4: 2016-02-15 | M4: 2016-03-01 | N4: 2017-03-11 | O4: 2016-03-12 | Q4: Poeng | R4: 2016-02-04 | S4: 2016-02-05 | T4: 2016-02-10 | U4: 2016-02-11 | V4: 2016-02-15 | W4: 2016-03-01 | X4: 2017-03-11 | Y4: 2016-03-12 | AB4: --------Poeng-------- | AG4: --------Poeng-------- | AL4: -------Poeng--------- | AQ4: -------Poeng--------- | AV4: -------Poeng--------- | BA4: -------Poeng--------- | BF4: -------Poeng--------- | BK4: -------Poeng--------- | BQ4: Løpere med | BR4: Løpere med | BS4: Løpere med | BT4: Løpere med | BU4: Løpere med | BV4: Løpere med | BW4: Løpere med
A5: Plass | B5: Etternavn | C5: Fornavn | D5: Klubb | E5: Poeng | F5: renn | H5: ------------------------------Plassering i rennene--------------------------------- | Q5: brutto | R5: ----------------Resultatpoeng hvis mer enn 4 renn---------------- | AA5: Plass | AB5: Res. | AC5: Del. | AD5: Tot. | AF5: Plass | AG5: Res. | AH5: Del. | AI5: Tot. | AK5: Plass | AL5: Res. | AM5: Del. | AN5: Tot. | AP5: Plass | AQ5: Res. | AR5: Del. | AS5: Tot. | AU5: Plass | AV5: Res. | AW5: Del. | AX5: Tot. | AZ5: Plass | BA5: Res. | BB5: Del. | BC5: Tot. | BE5: Plass | BF5: Res. | BG5: Del. | BH5: Tot. | BJ5: Plass | BK5: Res. | BL5: Del. | BM5: Tot. | BQ5: 8 renn | BR5: 7 renn | BS5: 6 renn | BT5: 5 renn | BU5: 4 renn | BV5: 3 renn | BW5: kun 1 renn
A6: 1 | B6: Polmar | C6: Ola Skaar | D6: Heming | E6: =Q6-T6 -> 405 | F6: =COUNT(AC6,AH6,AM6,AR6,AW6,BB6,BG6,BL6) -> 5 | H6: =IF(AA6="","",AA6) -> 1 | I6: =IF(AF6="","",AF6) -> 1 | J6: =IF(AK6="","",AK6) -> 2 | K6: =IF(AP6="","",AP6) -> 2 | L6: =IF(AU6="","",AU6) -> 1 | M6: =IF(AZ6="","",AZ6) ->  | N6: =IF(BE6="","",BE6) ->  | O6: =IF(BJ6="","",BJ6) ->  | Q6: =AD6+AI6+AN6+AS6+AX6+BC6+BH6 -> 485 | R6: =IF($F6>=5,IF(AB6="","",AB6),"") -> 100 | S6: =IF($F6>=5,IF(AG6="","",AG6),"") -> 100 | T6: =IF($F6>=5,IF(AL6="","",AL6),"") -> 80 | U6: =IF($F6>=5,IF(AQ6="","",AQ6),"") -> 80 | V6: =IF($F6>=5,IF(AV6="","",AV6),"") -> 100 | W6: =IF($F6>=5,IF(BA6="","",BA6),"") ->  | X6: =IF($F6>=5,IF(BF6="","",BF6),"") ->  | Y6: =IF($F6>=5,IF(BK6="","",BK6),"") ->  | AA6: 1 | AB6: 100 | AC6: 5 | AD6: =AB6+AC6 -> 105 | AF6: 1 | AG6: 100 | AH6: 5 | AI6: =AG6+AH6 -> 105 | AK6: 2 | AL6: 80 | AM6: 5 | AN6: =AL6+AM6 -> 85 | AP6: 2 | AQ6: 80 | AR6: 5 | AS6: =AQ6+AR6 -> 85 | AU6: 1 | AV6: 100 | AW6: 5 | AX6: =AV6+AW6 -> 105 | BC6: =BA6+BB6 -> 0 | BH6: =BF6+BG6 -> 0 | BM6: =BK6+BL6 -> 0 | BO6: 1 | BP6: 100 | BQ6: =IF($F6=7,1,0) -> 0 | BR6: =IF($F6=6,1,0) -> 0 | BS6: =IF($F6=5,1,0) -> 1 | BT6: =IF($F6=4,1,0) -> 0 | BU6: =IF($F6=3,1,0) -> 0 | BV6: =IF($F6=2,1,0) -> 0 | BW6: =IF($F6=1,1,0) -> 0
A7: =IF(E7<E6,BO7,A6) -> 2 | B7: Spone | C7: Fabian | D7: Heming | E7: =Q7-V7 -> 280 | F7: 5 | H7: 2 | I7: 3 | J7: 1 | K7: 16 | L7: 27 | N7: =IF(BE7="","",BE7) ->  | O7: =IF(BJ7="","",BJ7) ->  | Q7: 284 | R7: 80 | S7: 60 | T7: 100 | U7: 15 | V7: 4 | AA7: 2 | AB7: 80 | AC7: 5 | AD7: 85 | AF7: 3 | AG7: 60 | AH7: 5 | AI7: 65 | AK7: 1 | AL7: 100 | AM7: 5 | AN7: 105 | AP7: 16 | AQ7: 15 | AR7: 5 | AS7: 20 | AU7: 27 | AV7: 4 | AW7: 5 | AX7: 9 | BC7: 0 | BH7: 0 | BM7: 0 | BO7: 2 | BP7: 80 | BQ7: =IF($F7=7,1,0) -> 0 | BR7: =IF($F7=6,1,0) -> 0 | BS7: =IF($F7=5,1,0) -> 1 | BT7: =IF($F7=4,1,0) -> 0 | BU7: =IF($F7=3,1,0) -> 0 | BV7: =IF($F7=2,1,0) -> 0 | BW7: =IF($F7=1,1,0) -> 0
A8: 3 | B8: Ekjord | C8: Oskar Gedde-dahl | D8: Heming | E8: =Q8 -> 252 | F8: 4 | H8: 8 | J8: 6 | K8: 1 | L8: 3 | N8: =IF(BE8="","",BE8) ->  | O8: =IF(BJ8="","",BJ8) ->  | Q8: 252 | AA8: 8 | AB8: 32 | AC8: 5 | AD8: 37 | AI8: 0 | AK8: 6 | AL8: 40 | AM8: 5 | AN8: 45 | AP8: 1 | AQ8: 100 | AR8: 5 | AS8: 105 | AU8: 3 | AV8: 60 | AW8: 5 | AX8: 65 | BC8: 0 | BH8: 0 | BM8: 0 | BO8: 3 | BP8: 60 | BQ8: 0 | BR8: 0 | BS8: 0 | BT8: 1 | BU8: 0 | BV8: 0 | BW8: 0
A9: 4 | B9: Wroll-Evensen | C9: Mikkel | D9: Heming | E9: =Q9 -> 217 | F9: 4 | I9: 2 | J9: 5 | K9: 4 | L9: 12 | N9: =IF(BE9="","",BE9) ->  | O9: =IF(BJ9="","",BJ9) ->  | Q9: 217 | AD9: 0 | AF9: 2 | AG9: 80 | AH9: 5 | AI9: 85 | AK9: 5 | AL9: 45 | AM9: 5 | AN9: 50 | AP9: 4 | AQ9: 50 | AR9: 5 | AS9: 55 | AU9: 12 | AV9: 22 | AW9: 5 | AX9: 27 | BC9: 0 | BH9: 0 | BM9: 0 | BO9: 4 | BP9: 50 | BQ9: 0 | BR9: 0 | BS9: 0 | BT9: 1 | BU9: 0 | BV9: 0 | BW9: 0
A10: 5 | B10: Hiorth | C10: Felix | D10: Heming | E10: =Q10-T10 -> 216 | F10: 5 | H10: 3 | I10: 4 | J10: 8 | K10: 7 | L10: 5 | N10: =IF(AZ10="","",AZ10) ->  | O10: =IF(BE10="","",BE10) ->  | Q10: 248 | R10: 60 | S10: 50 | T10: 32 | U10: 36 | V10: 45 | AA10: 3 | AB10: 60 | AC10: 5 | AD10: 65 | AF10: 4 | AG10: 50 | AH10: 5 | AI10: 55 | AK10: 8 | AL10: 32 | AM10: 5 | AN10: 37 | AP10: 7 | AQ10: 36 | AR10: 5 | AS10: 41 | AU10: 5 | AV10: 45 | AW10: 5 | AX10: 50 | BC10: 0 | BH10: 0 | BM10: 0 | BO10: 5 | BP10: 45 | BQ10: 0 | BR10: 0 | BS10: 1 | BT10: 0 | BU10: 0 | BV10: 0 | BW10: 0
A11: 6 | B11: Engell | C11: Martin | D11: Kjelsås | E11: =Q11-T11 -> 187 | F11: 5 | H11: 6 | I11: 5 | J11: 15 | K11: 5 | L11: 8 | N11: =IF(BE11="","",BE11) ->  | O11: =IF(BJ11="","",BJ11) ->  | Q11: 203 | R11: 40 | S11: 45 | T11: 16 | U11: 45 | V11: 32 | AA11: 6 | AB11: 40 | AC11: 5 | AD11: 45 | AF11: 5 | AG11: 45 | AH11: 5 | AI11: 50 | AK11: 15 | AL11: 16 | AM11: 5 | AN11: 21 | AP11: 5 | AQ11: 45 | AR11: 5 | AS11: 50 | AU11: 8 | AV11: 32 | AW11: 5 | AX11: 37 | BC11: 0 | BH11: 0 | BM11: 0 | BO11: 6 | BP11: 40 | BQ11: 0 | BR11: 0 | BS11: 1 | BT11: 0 | BU11: 0 | BV11: 0 | BW11: 0
A12: 7 | B12: Halvorsen | C12: Mathias | D12: Heming | E12: =Q12 -> 151 | F12: 5 | H12: 4 | I12: DSQ | J12: 7 | K12: 6 | L12: DSQ | Q12: 151 | R12: 50 | S12: 0 | T12: 36 | U12: 40 | V12: 0 | AA12: 4 | AB12: 50 | AC12: 5 | AD12: 55 | AF12: DSQ | AG12: 0 | AH12: 5 | AI12: 5 | AK12: 7 | AL12: 36 | AM12: 5 | AN12: 41 | AP12: 6 | AQ12: 40 | AR12: 5 | AS12: 45 | AU12: DSQ | AV12: 0 | AW12: 5 | AX12: 5 | BC12: 0 | BH12: 0 | BM12: 0 | BO12: 7 | BP12: 36 | BQ12: 0 | BR12: 0 | BS12: 1 | BT12: 0 | BU12: 0 | BV12: 0 | BW12: 0
A13: 8 | B13: Friis Rølles | C13: Axel | D13: Ready | E13: =Q13 -> 145 | F13: 5 | H13: DSQ | I13: DSQ | J13: 3 | K13: 3 | L13: 39 | Q13: 145 | R13: 0 | S13: 0 | T13: 60 | U13: 60 | V13: 0 | AA13: DSQ | AB13: 0 | AC13: 5 | AD13: 5 | AF13: DSQ | AG13: 0 | AH13: 5 | AI13: 5 | AK13: 3 | AL13: 60 | AM13: 5 | AN13: 65 | AP13: 3 | AQ13: 60 | AR13: 5 | AS13: 65 | AU13: 39 | AV13: 0 | AW13: 5 | AX13: 5 | BC13: 0 | BH13: 0 | BM13: 0 | BO13: 8 | BP13: 32 | BQ13: 0 | BR13: 0 | BS13: 1 | BT13: 0 | BU13: 0 | BV13: 0 | BW13: 0
A14: 9 | B14: Skirstad | C14: Jacob | D14: Ready | E14: =Q14-V14 -> 143 | F14: 5 | H14: 7 | I14: 8 | J14: 14 | K14: 8 | L14: 30 | Q14: 144 | R14: 36 | S14: 32 | T14: 18 | U14: 32 | V14: 1 | AA14: 7 | AB14: 36 | AC14: 5 | AD14: 41 | AF14: 8 | AG14: 32 | AH14: 5 | AI14: 37 | AK14: 14 | AL14: 18 | AM14: 5 | AN14: 23 | AP14: 8 | AQ14: 32 | AR14: 5 | AS14: 37 | AU14: 30 | AV14: 1 | AW14: 5 | AX14: 6 | BC14: 0 | BH14: 0 | BM14: 0 | BO14: 9 | BP14: 29 | BQ14: 0 | BR14: 0 | BS14: 1 | BT14: 0 | BU14: 0 | BV14: 0 | BW14: 0
A15: 10 | B15: Brevik | C15: Magnus | D15: Ljan | E15: =Q15-S15 -> 136 | F15: 5 | H15: 12 | I15: 21 | J15: 9 | K15: 21 | L15: 4 | Q15: 146 | R15: 22 | S15: 10 | T15: 29 | U15: 10 | V15: 50 | AA15: 12 | AB15: 22 | AC15: 5 | AD15: 27 | AF15: 21 | AG15: 10 | AH15: 5 | AI15: 15 | AK15: 9 | AL15: 29 | AM15: 5 | AN15: 34 | AP15: 21 | AQ15: 10 | AR15: 5 | AS15: 15 | AU15: 4 | AV15: 50 | AW15: 5 | AX15: 55 | BC15: 0 | BH15: 0 | BM15: 0 | BO15: 10 | BP15: 26 | BQ15: 0 | BR15: 0 | BS15: 1 | BT15: 0 | BU15: 0 | BV15: 0 | BW15: 0
A16: 11 | B16: Reiersen | C16: Fredrik | D16: Ready | E16: =Q16 -> 118 | F16: 4 | H16: 15 | I16: 6 | J16: 12 | L16: 13 | Q16: 118 | AA16: 15 | AB16: 16 | AC16: 5 | AD16: 21 | AF16: 6 | AG16: 40 | AH16: 5 | AI16: 45 | AK16: 12 | AL16: 22 | AM16: 5 | AN16: 27 | AS16: 0 | AU16: 13 | AV16: 20 | AW16: 5 | AX16: 25 | BC16: 0 | BH16: 0 | BM16: 0 | BO16: 11 | BP16: 24 | BQ16: 0 | BR16: 0 | BS16: 0 | BT16: 1 | BU16: 0 | BV16: 0 | BW16: 0
A17: 12 | B17: Graff-Sponheim | C17: Felix | D17: Heming | E17: 113 | F17: 5 | H17: 29 | I17: 7 | J17: 31 | K17: 11 | L17: 10 | Q17: 113 | R17: 2 | S17: 36 | T17: 0 | U17: 24 | V17: 26 | AA17: 29 | AB17: 2 | AC17: 5 | AD17: 7 | AF17: 7 | AG17: 36 | AH17: 5 | AI17: 41 | AK17: 31 | AL17: 0 | AM17: 5 | AN17: 5 | AP17: 11 | AQ17: 24 | AR17: 5 | AS17: 29 | AU17: 10 | AV17: 26 | AW17: 5 | AX17: 31 | BC17: 0 | BH17: 0 | BM17: 0 | BO17: 12 | BP17: 22 | BQ17: 0 | BR17: 0 | BS17: 1 | BT17: 0 | BU17: 0 | BV17: 0 | BW17: 0
A18: 13 | B18: Lødemel | C18: Nikolai | D18: Heming | E18: 109 | F18: 4 | H18: 5 | J18: 16 | K18: 9 | L18: 37 | Q18: 109 | AA18: 5 | AB18: 45 | AC18: 5 | AD18: 50 | AI18: 0 | AK18: 16 | AL18: 15 | AM18: 5 | AN18: 20 | AP18: 9 | AQ18: 29 | AR18: 5 | AS18: 34 | AU18: 37 | AV18: 0 | AW18: 5 | AX18: 5 | BC18: 0 | BH18: 0 | BM18: 0 | BO18: 13 | BP18: 20 | BQ18: 0 | BR18: 0 | BS18: 0 | BT18: 1 | BU18: 0 | BV18: 0 | BW18: 0
A19: 14 | B19: Strauss | C19: Mikkel | D19: Ready | E19: 104 | F19: 4 | H19: 13 | J19: 11 | K19: 20 | L19: 9 | Q19: 104 | AA19: 13 | AB19: 20 | AC19: 5 | AD19: 25 | AI19: 0 | AK19: 11 | AL19: 24 | AM19: 5 | AN19: 29 | AP19: 20 | AQ19: 11 | AR19: 5 | AS19: 16 | AU19: 9 | AV19: 29 | AW19: 5 | AX19: 34 | BC19: 0 | BH19: 0 | BM19: 0 | BO19: 14 | BP19: 18 | BQ19: =IF($F18=7,1,0) -> 0 | BR19: =IF($F18=6,1,0) -> 0 | BS19: =IF($F18=5,1,0) -> 0 | BT19: =IF($F18=4,1,0) -> 1 | BU19: =IF($F18=3,1,0) -> 0 | BV19: =IF($F18=2,1,0) -> 0 | BW19: =IF($F18=1,1,0) -> 0
A20: 15 | B20: Lødemel | C20: Espen Alexander | D20: Heming | E20: 99 | F20: 4 | H20: 9 | J20: 10 | K20: 17 | L20: 21 | Q20: 99 | AA20: 9 | AB20: 29 | AC20: 5 | AD20: 34 | AI20: 0 | AK20: 10 | AL20: 26 | AM20: 5 | AN20: 31 | AP20: 17 | AQ20: 14 | AR20: 5 | AS20: 19 | AU20: 21 | AV20: 10 | AW20: 5 | AX20: 15 | BC20: 0 | BH20: 0 | BM20: 0 | BO20: 15 | BP20: 16 | BQ20: =IF($F19=7,1,0) -> 0 | BR20: =IF($F19=6,1,0) -> 0 | BS20: =IF($F19=5,1,0) -> 0 | BT20: =IF($F19=4,1,0) -> 1 | BU20: =IF($F19=3,1,0) -> 0 | BV20: =IF($F19=2,1,0) -> 0 | BW20: =IF($F19=1,1,0) -> 0
A21: 16 | B21: Arnesen | C21: Lukas Jones | D21: Heming | E21: 94 | F21: 4 | I21: 9 | J21: 17 | K21: 10 | L21: 26 | Q21: 94 | AD21: 0 | AF21: 9 | AG21: 29 | AH21: 5 | AI21: 34 | AK21: 17 | AL21: 14 | AM21: 5 | AN21: 19 | AP21: 10 | AQ21: 26 | AR21: 5 | AS21: 31 | AU21: 26 | AV21: 5 | AW21: 5 | AX21: 10 | BC21: 0 | BH21: 0 | BM21: 0 | BO21: 16 | BP21: 15 | BQ21: =IF($F20=7,1,0) -> 0 | BR21: =IF($F20=6,1,0) -> 0 | BS21: =IF($F20=5,1,0) -> 0 | BT21: =IF($F20=4,1,0) -> 1 | BU21: =IF($F20=3,1,0) -> 0 | BV21: =IF($F20=2,1,0) -> 0 | BW21: =IF($F20=1,1,0) -> 0
A22: 17 | B22: Rygh | C22: Ole Marius | D22: Ready | E22: 88 | F22: 5 | H22: 22 | I22: DSQ | J22: 19 | K22: 14 | L22: 11 | Q22: 88 | R22: 9 | S22: 0 | T22: 12 | U22: 18 | V22: 24 | AA22: 22 | AB22: 9 | AC22: 5 | AD22: 14 | AF22: DSQ | AG22: 0 | AH22: 5 | AI22: 5 | AK22: 19 | AL22: 12 | AM22: 5 | AN22: 17 | AP22: 14 | AQ22: 18 | AR22: 5 | AS22: 23 | AU22: 11 | AV22: 24 | AW22: 5 | AX22: 29 | BC22: 0 | BH22: 0 | BM22: 0 | BO22: 17 | BP22: 14 | BQ22: =IF($F20=7,1,0) -> 0 | BR22: =IF($F20=6,1,0) -> 0 | BS22: =IF($F20=5,1,0) -> 0 | BT22: =IF($F20=4,1,0) -> 1 | BU22: =IF($F20=3,1,0) -> 0 | BV22: =IF($F20=2,1,0) -> 0 | BW22: =IF($F20=1,1,0) -> 0
A23: 18 | B23: Kihle | C23: Jacob Lunde | D23: Kjelsås | E23: 87 | F23: 4 | H23: 16 | I23: 12 | J23: 21 | K23: 13 | Q23: 87 | AA23: 16 | AB23: 15 | AC23: 5 | AD23: 20 | AF23: 12 | AG23: 22 | AH23: 5 | AI23: 27 | AK23: 21 | AL23: 10 | AM23: 5 | AN23: 15 | AP23: 13 | AQ23: 20 | AR23: 5 | AS23: 25 | AX23: 0 | BC23: 0 | BH23: 0 | BM23: 0 | BO23: 18 | BP23: 13 | BQ23: =IF($F21=7,1,0) -> 0 | BR23: =IF($F21=6,1,0) -> 0 | BS23: =IF($F21=5,1,0) -> 0 | BT23: =IF($F21=4,1,0) -> 1 | BU23: =IF($F21=3,1,0) -> 0 | BV23: =IF($F21=2,1,0) -> 0 | BW23: =IF($F21=1,1,0) -> 0
A24: 19 | B24: Yngland | C24: Teo Borge | D24: Stabæk | E24: 85 | F24: 1 | L24: 2 | Q24: 85 | AD24: 0 | AI24: 0 | AN24: 0 | AS24: 0 | AU24: 2 | AV24: 80 | AW24: 5 | AX24: 85 | BC24: 0 | BH24: 0 | BM24: 0 | BO24: 19 | BP24: 12 | BQ24: =IF($F22=7,1,0) -> 0 | BR24: =IF($F22=6,1,0) -> 0 | BS24: =IF($F22=5,1,0) -> 1 | BT24: =IF($F22=4,1,0) -> 0 | BU24: =IF($F22=3,1,0) -> 0 | BV24: =IF($F22=2,1,0) -> 0 | BW24: =IF($F22=1,1,0) -> 0
A25: 20 | B25: Oksvik | C25: Sander August | D25: IRS | E25: 70 | F25: 3 | H25: 14 | I25: 12 | L25: 16 | Q25: 70 | AA25: 14 | AB25: 18 | AC25: 5 | AD25: 23 | AF25: 12 | AG25: 22 | AH25: 5 | AI25: 27 | AN25: 0 | AS25: 0 | AU25: 16 | AV25: 15 | AW25: 5 | AX25: 20 | BC25: 0 | BH25: 0 | BM25: 0 | BO25: 20 | BP25: 11 | BQ25: =IF($F23=7,1,0) -> 0 | BR25: =IF($F23=6,1,0) -> 0 | BS25: =IF($F23=5,1,0) -> 0 | BT25: =IF($F23=4,1,0) -> 1 | BU25: =IF($F23=3,1,0) -> 0 | BV25: =IF($F23=2,1,0) -> 0 | BW25: =IF($F23=1,1,0) -> 0
A26: 21 | B26: Hovind Nuila | C26: Adrian Rafael | D26: Ljan | E26: =Q26-T26 -> 65 | F26: 5 | H26: 24 | I26: 11 | J26: 28 | K26: 22 | L26: 34 | Q26: 68 | R26: 7 | S26: 24 | T26: 3 | U26: 9 | V26: 0 | AA26: 24 | AB26: 7 | AC26: 5 | AD26: 12 | AF26: 11 | AG26: 24 | AH26: 5 | AI26: 29 | AK26: 28 | AL26: 3 | AM26: 5 | AN26: 8 | AP26: 22 | AQ26: 9 | AR26: 5 | AS26: 14 | AU26: 34 | AV26: 0 | AW26: 5 | AX26: 5 | BC26: 0 | BH26: 0 | BM26: 0 | BO26: 21 | BP26: 10 | BQ26: =IF($F24=7,1,0) -> 0 | BR26: =IF($F24=6,1,0) -> 0 | BS26: =IF($F24=5,1,0) -> 0 | BT26: =IF($F24=4,1,0) -> 0 | BU26: =IF($F24=3,1,0) -> 0 | BV26: =IF($F24=2,1,0) -> 0 | BW26: =IF($F24=1,1,0) -> 1
A27: 22 | B27: Cock | C27: William | D27: Heming | E27: =Q27 -> 63 | F27: 3 | J27: 18 | K27: 12 | L27: 18 | Q27: 63 | AD27: 0 | AI27: 0 | AK27: 18 | AL27: 13 | AM27: 5 | AN27: 18 | AP27: 12 | AQ27: 22 | AR27: 5 | AS27: 27 | AU27: 18 | AV27: 13 | AW27: 5 | AX27: 18 | BC27: 0 | BH27: 0 | BM27: 0 | BO27: 22 | BP27: 9 | BQ27: 0 | BR27: 0 | BS27: 0 | BT27: 0 | BU27: 1 | BV27: 0 | BW27: 0
A28: 23 | B28: Lacoste | C28: Felix | D28: Ready | E28: =Q28-V28 -> 62 | F28: 5 | H28: 26 | I28: 17 | J28: 26 | K28: 18 | L28: 28 | N28: =IF(AZ28="","",AZ28) ->  | O28: =IF(BE28="","",BE28) ->  | Q28: 65 | R28: 5 | S28: 14 | T28: 5 | U28: 13 | V28: 3 | AA28: 26 | AB28: 5 | AC28: 5 | AD28: 10 | AF28: 17 | AG28: 14 | AH28: 5 | AI28: 19 | AK28: 26 | AL28: 5 | AM28: 5 | AN28: 10 | AP28: 18 | AQ28: 13 | AR28: 5 | AS28: 18 | AU28: 28 | AV28: 3 | AW28: 5 | AX28: 8 | BC28: 0 | BH28: 0 | BM28: 0 | BO28: 23 | BP28: 8 | BQ28: 0 | BR28: 0 | BS28: 1 | BT28: 0 | BU28: 0 | BV28: 0 | BW28: 0
A29: 24 | B29: Vodal | C29: Christian Folkenborg | D29: Heming | E29: =Q29 -> 57 | F29: 3 | H29: 11 | I29: DSQ | L29: 14 | N29: =IF(BE29="","",BE29) ->  | O29: =IF(BJ29="","",BJ29) ->  | Q29: 57 | AA29: 11 | AB29: 24 | AC29: 5 | AD29: 29 | AF29: DSQ | AG29: 0 | AH29: 5 | AI29: 5 | AN29: 0 | AS29: 0 | AU29: 14 | AV29: 18 | AW29: 5 | AX29: 23 | BC29: 0 | BH29: 0 | BM29: 0 | BO29: 24 | BP29: 7 | BQ29: =IF($F24=7,1,0) -> 0 | BR29: =IF($F24=6,1,0) -> 0 | BS29: =IF($F24=5,1,0) -> 0 | BT29: =IF($F24=4,1,0) -> 0 | BU29: =IF($F24=3,1,0) -> 0 | BV29: =IF($F24=2,1,0) -> 0 | BW29: =IF($F24=1,1,0) -> 1
A30: 25 | B30: Furuseth | C30: Nicolai Mathias | D30: Ullensaker | E30: 55 | F30: 1 | J30: 4 | N30: =IF(BE30="","",BE30) ->  | O30: =IF(BJ30="","",BJ30) ->  | Q30: 55 | AD30: 0 | AI30: 0 | AK30: 4 | AL30: 50 | AM30: 5 | AN30: 55 | AS30: 0 | AX30: 0 | BC30: 0 | BH30: 0 | BM30: 0 | BO30: 25 | BP30: 6 | BQ30: =IF($F25=7,1,0) -> 0 | BR30: =IF($F25=6,1,0) -> 0 | BS30: =IF($F25=5,1,0) -> 0 | BT30: =IF($F25=4,1,0) -> 0 | BU30: =IF($F25=3,1,0) -> 1 | BV30: =IF($F25=2,1,0) -> 0 | BW30: =IF($F25=1,1,0) -> 0
A31: 26 | B31: Gaarder | C31: Oskar Jølle | D31: HSIL | E31: 47 | F31: 2 | I31: 10 | J31: 20 | N31: =IF(BE31="","",BE31) ->  | O31: =IF(BJ31="","",BJ31) ->  | Q31: 47 | AD31: 0 | AF31: 10 | AG31: 26 | AH31: 5 | AI31: 31 | AK31: 20 | AL31: 11 | AM31: 5 | AN31: 16 | AS31: 0 | AX31: 0 | BC31: 0 | BH31: 0 | BM31: 0 | BO31: 26 | BP31: 5 | BQ31: =IF($F26=7,1,0) -> 0 | BR31: =IF($F26=6,1,0) -> 0 | BS31: =IF($F26=5,1,0) -> 1 | BT31: =IF($F26=4,1,0) -> 0 | BU31: =IF($F26=3,1,0) -> 0 | BV31: =IF($F26=2,1,0) -> 0 | BW31: =IF($F26=1,1,0) -> 0
A32: 27 | B32: Johannessen | C32: Oscar Løkke | D32: Njård | E32: 46 | F32: 5 | H32: 30 | I32: 15 | J32: 35 | K32: 27 | L32: 38 | N32: =IF(AZ32="","",AZ32) ->  | O32: =IF(BE32="","",BE32) ->  | Q32: 46 | R32: 1 | S32: 16 | T32: 0 | U32: 4 | V32: 0 | AA32: 30 | AB32: 1 | AC32: 5 | AD32: 6 | AF32: 15 | AG32: 16 | AH32: 5 | AI32: 21 | AK32: 35 | AL32: 0 | AM32: 5 | AN32: 5 | AP32: 27 | AQ32: 4 | AR32: 5 | AS32: 9 | AU32: 38 | AV32: 0 | AW32: 5 | AX32: 5 | BC32: 0 | BH32: 0 | BM32: 0 | BO32: 27 | BP32: 4 | BQ32: =IF($F26=7,1,0) -> 0 | BR32: =IF($F26=6,1,0) -> 0 | BS32: =IF($F26=5,1,0) -> 1 | BT32: =IF($F26=4,1,0) -> 0 | BU32: =IF($F26=3,1,0) -> 0 | BV32: =IF($F26=2,1,0) -> 0 | BW32: =IF($F26=1,1,0) -> 0
A33: 27 | B33: Trondsen | C33: Kristian Arnstad | D33: Heming | E33: 46 | F33: 4 | H33: 18 | I33: DSQ | J33: 27 | L33: 22 | N33: =IF(BE33="","",BE33) ->  | O33: =IF(BJ33="","",BJ33) ->  | Q33: 46 | AA33: 18 | AB33: 13 | AC33: 5 | AD33: 18 | AF33: DSQ | AG33: 0 | AH33: 5 | AI33: 5 | AK33: 27 | AL33: 4 | AM33: 5 | AN33: 9 | AS33: 0 | AU33: 22 | AV33: 9 | AW33: 5 | AX33: 14 | BC33: 0 | BH33: 0 | BM33: 0 | BO33: 28 | BP33: 3 | BQ33: =IF($F27=7,1,0) -> 0 | BR33: =IF($F27=6,1,0) -> 0 | BS33: =IF($F27=5,1,0) -> 0 | BT33: =IF($F27=4,1,0) -> 0 | BU33: =IF($F27=3,1,0) -> 1 | BV33: =IF($F27=2,1,0) -> 0 | BW33: =IF($F27=1,1,0) -> 0
A34: 29 | B34: Axelsen | C34: Kristian Andenæs | D34: Stabæk | E34: 45 | F34: 1 | L34: 6 | Q34: 45 | AD34: 0 | AI34: 0 | AN34: 0 | AS34: 0 | AU34: 6 | AV34: 40 | AW34: 5 | AX34: 45 | BC34: 0 | BH34: 0 | BM34: 0 | BO34: 29 | BP34: 2 | BQ34: 0 | BR34: 0 | BS34: 1 | BT34: 0 | BU34: 0 | BV34: 0 | BW34: 0
A35: 30 | B35: Ofstad Lad | C35: Lukas | D35: Ljan | E35: 44 | F35: 5 | H35: DSQ | I35: 19 | J35: 32 | K35: 24 | L35: 36 | Q35: 44 | R35: 0 | S35: 12 | T35: 0 | U35: 7 | V35: 0 | AA35: DSQ | AB35: 0 | AC35: 5 | AD35: 5 | AF35: 19 | AG35: 12 | AH35: 5 | AI35: 17 | AK35: 32 | AL35: 0 | AM35: 5 | AN35: 5 | AP35: 24 | AQ35: 7 | AR35: 5 | AS35: 12 | AU35: 36 | AV35: 0 | AW35: 5 | AX35: 5 | BC35: 0 | BH35: 0 | BM35: 0 | BO35: 30 | BP35: 1 | BQ35: 0 | BR35: 0 | BS35: 0 | BT35: 0 | BU35: 1 | BV35: 0 | BW35: 0
A36: 30 | B36: Forberg | C36: Ludvig | D36: Heming | E36: 44 | F36: 3 | J36: 24 | K36: 15 | L36: 25 | Q36: 44 | AD36: 0 | AI36: 0 | AK36: 24 | AL36: 7 | AM36: 5 | AN36: 12 | AP36: 15 | AQ36: 16 | AR36: 5 | AS36: 21 | AU36: 25 | AV36: 6 | AW36: 5 | AX36: 11 | BC36: 0 | BH36: 0 | BM36: 0 | BO36: 31 | BQ36: =IF($F27=7,1,0) -> 0 | BR36: =IF($F27=6,1,0) -> 0 | BS36: =IF($F27=5,1,0) -> 0 | BT36: =IF($F27=4,1,0) -> 0 | BU36: =IF($F27=3,1,0) -> 1 | BV36: =IF($F27=2,1,0) -> 0 | BW36: =IF($F27=1,1,0) -> 0
A37: 30 | B37: Sundborn | C37: William | D37: Heming | E37: 44 | F37: 2 | J37: 12 | L37: 19 | Q37: 44 | AD37: 0 | AI37: 0 | AK37: 12 | AL37: 22 | AM37: 5 | AN37: 27 | AS37: 0 | AU37: 19 | AV37: 12 | AW37: 5 | AX37: 17 | BC37: 0 | BH37: 0 | BM37: 0 | BO37: 32 | BQ37: 0 | BR37: 0 | BS37: 1 | BT37: 0 | BU37: 0 | BV37: 0 | BW37: 0
A38: 33 | B38: Espe | C38: Alexander | D38: Heming | E38: 41 | F38: =COUNT(AC38,AH38,AM38,AR38,AW38,BB38,BG38,BL38) -> 1 | H38: =IF(AA38="","",AA38) ->  | I38: =IF(AF38="","",AF38) ->  | J38: =IF(AK38="","",AK38) ->  | K38: =IF(AP38="","",AP38) ->  | L38: =IF(AU38="","",AU38) -> 7 | M38: =IF(AZ38="","",AZ38) ->  | Q38: 41 | R38: =IF($F38>=5,IF(AB38="","",AB38),"") ->  | S38: =IF($F38>=5,IF(AG38="","",AG38),"") ->  | T38: =IF($F38>=5,IF(AL38="","",AL38),"") ->  | U38: =IF($F38>=5,IF(AQ38="","",AQ38),"") ->  | V38: =IF($F38>=5,IF(AV38="","",AV38),"") ->  | W38: =IF($F38>=5,IF(BA38="","",BA38),"") ->  | X38: =IF($F38>=5,IF(BF38="","",BF38),"") ->  | Y38: =IF($F38>=5,IF(BK38="","",BK38),"") ->  | AD38: =AB38+AC38 -> 0 | AI38: =AG38+AH38 -> 0 | AN38: =AL38+AM38 -> 0 | AS38: =AQ38+AR38 -> 0 | AU38: 7 | AV38: 36 | AW38: 5 | AX38: =AV38+AW38 -> 41 | BC38: =BA38+BB38 -> 0 | BH38: =BF38+BG38 -> 0 | BM38: =BK38+BL38 -> 0 | BO38: 33 | BQ38: 0 | BR38: 0 | BS38: 0 | BT38: 0 | BU38: 1 | BV38: 0 | BW38: 0
A39: 34 | B39: Dannevig | C39: Torbjørn | D39: Ready | E39: 40 | F39: 5 | H39: DSQ | I39: DSQ | J39: 23 | K39: DNF | L39: 24 | Q39: 40 | R39: 0 | S39: 0 | T39: 8 | U39: 0 | V39: 7 | AA39: DSQ | AB39: 0 | AC39: 5 | AD39: 5 | AF39: DSQ | AG39: 0 | AH39: 5 | AI39: 5 | AK39: 23 | AL39: 8 | AM39: 5 | AN39: 13 | AP39: DNF | AQ39: 0 | AR39: 5 | AS39: 5 | AU39: 24 | AV39: 7 | AW39: 5 | AX39: 12 | BC39: 0 | BH39: 0 | BM39: 0 | BO39: 34 | BQ39: 0 | BR39: 0 | BS39: 0 | BT39: 0 | BU39: 0 | BV39: 0 | BW39: 1
A40: 35 | B40: Heide | C40: William | D40: Heming | E40: 39 | F40: 2 | I40: 14 | L40: 20 | Q40: 39 | AD40: 0 | AF40: 14 | AG40: 18 | AH40: 5 | AI40: 23 | AN40: 0 | AS40: 0 | AU40: 20 | AV40: 11 | AW40: 5 | AX40: 16 | BC40: 0 | BH40: 0 | BM40: 0 | BO40: 35 | BQ40: 0 | BR40: 0 | BS40: 0 | BT40: 0 | BU40: 0 | BV40: 1 | BW40: 0
A41: 36 | B41: Astad | C41: Sjur Torvald Roberts | D41: Kjelsås | E41: 37 | F41: 4 | H41: 21 | I41: DSQ | J41: 30 | K41: 25 | Q41: 37 | AA41: 21 | AB41: 10 | AC41: 5 | AD41: 15 | AF41: DSQ | AG41: 0 | AH41: 5 | AI41: 5 | AK41: 30 | AL41: 1 | AM41: 5 | AN41: 6 | AP41: 25 | AQ41: 6 | AR41: 5 | AS41: 11 | AX41: 0 | BC41: 0 | BH41: 0 | BM41: 0 | BO41: 36 | BQ41: 0 | BR41: 0 | BS41: 1 | BT41: 0 | BU41: 0 | BV41: 0 | BW41: 0
A42: 37 | B42: Sandengen | C42: Falk Vike | D42: Njård | E42: 36 | F42: 5 | H42: DSQ | I42: 20 | J42: 38 | K42: 31 | L42: 40 | Q42: 36 | R42: 0 | S42: 11 | T42: 0 | U42: 0 | V42: 0 | AA42: DSQ | AB42: 0 | AC42: 5 | AD42: 5 | AF42: 20 | AG42: 11 | AH42: 5 | AI42: 16 | AK42: 38 | AL42: 0 | AM42: 5 | AN42: 5 | AP42: 31 | AQ42: 0 | AR42: 5 | AS42: 5 | AU42: 40 | AV42: 0 | AW42: 5 | AX42: 5 | BC42: 0 | BH42: 0 | BM42: 0 | BO42: 37 | BQ42: 0 | BR42: 0 | BS42: 0 | BT42: 1 | BU42: 0 | BV42: 0 | BW42: 0
A43: 38 | B43: Svensen | C43: Felix Granum | D43: Ljan | E43: 35 | F43: 4 | H43: 28 | J43: 33 | K43: 19 | L43: 31 | Q43: 35 | AA43: 28 | AB43: 3 | AC43: 5 | AD43: 8 | AI43: 0 | AK43: 33 | AL43: 0 | AM43: 5 | AN43: 5 | AP43: 19 | AQ43: 12 | AR43: 5 | AS43: 17 | AU43: 31 | AV43: 0 | AW43: 5 | AX43: 5 | BC43: 0 | BH43: 0 | BM43: 0 | BO43: 38 | BQ43: 0 | BR43: 0 | BS43: 0 | BT43: 0 | BU43: 0 | BV43: 0 | BW43: 1
A44: 39 | B44: Holter | C44: Nikolai Kristian | D44: Rælingen | E44: 31 | F44: 1 | H44: 10 | Q44: 31 | AA44: 10 | AB44: 26 | AC44: 5 | AD44: 31 | AI44: 0 | AN44: 0 | AS44: 0 | AX44: 0 | BC44: 0 | BH44: 0 | BM44: 0 | BO44: 39 | BQ44: 0 | BR44: 0 | BS44: 1 | BT44: 0 | BU44: 0 | BV44: 0 | BW44: 0
A45: 40 | B45: Horntvedt | C45: Oliver | D45: Ljan | E45: 26 | F45: 3 | H45: DSQ | I45: 22 | K45: 29 | Q45: 26 | AA45: DSQ | AB45: 0 | AC45: 5 | AD45: 5 | AF45: 22 | AG45: 9 | AH45: 5 | AI45: 14 | AN45: 0 | AP45: 29 | AQ45: 2 | AR45: 5 | AS45: 7 | AX45: 0 | BC45: 0 | BH45: 0 | BM45: 0 | BO45: 40 | BQ45: 0 | BR45: 0 | BS45: 0 | BT45: 0 | BU45: 1 | BV45: 0 | BW45: 0
A46: 41 | B46: Pappos | C46: Nikolas | D46: Heming | E46: 25 | F46: 3 | J46: 29 | K46: 23 | L46: 33 | Q46: 25 | AD46: 0 | AI46: 0 | AK46: 29 | AL46: 2 | AM46: 5 | AN46: 7 | AP46: 23 | AQ46: 8 | AR46: 5 | AS46: 13 | AU46: 33 | AV46: 0 | AW46: 5 | AX46: 5 | BC46: 0 | BH46: 0 | BM46: 0 | BO46: 41 | BQ46: 0 | BR46: 0 | BS46: 0 | BT46: 0 | BU46: 0 | BV46: 1 | BW46: 0
A47: 41 | B47: Vedal | C47: Kristoffer | D47: Heming | E47: 25 | F47: 2 | I47: 16 | L47: 35 | Q47: 25 | AD47: 0 | AF47: 16 | AG47: 15 | AH47: 5 | AI47: 20 | AN47: 0 | AS47: 0 | AU47: 35 | AV47: 0 | AW47: 5 | AX47: 5 | BC47: 0 | BH47: 0 | BM47: 0 | BO47: 42 | BQ47: 0 | BR47: 0 | BS47: 0 | BT47: 0 | BU47: 0 | BV47: 0 | BW47: 1
A48: 43 | B48: Lydersen | C48: Morten Dyrstad | D48: Kjelsås | E48: 24 | F48: 2 | J48: 25 | L48: 23 | Q48: 24 | AD48: 0 | AI48: 0 | AK48: 25 | AL48: 6 | AM48: 5 | AN48: 11 | AS48: 0 | AU48: 23 | AV48: 8 | AW48: 5 | AX48: 13 | BC48: 0 | BH48: 0 | BM48: 0 | BO48: 43 | BQ48: 0 | BR48: 0 | BS48: 1 | BT48: 0 | BU48: 0 | BV48: 0 | BW48: 0
A49: 44 | B49: Rafaelsen | C49: Olav Einar | D49: Ljan | E49: 23 | F49: 2 | I49: 18 | J49: DNF | Q49: 23 | AD49: 0 | AF49: 18 | AG49: 13 | AH49: 5 | AI49: 18 | AK49: DNF | AL49: 0 | AM49: 5 | AN49: 5 | AS49: 0 | AX49: 0 | BC49: 0 | BH49: 0 | BM49: 0 | BO49: 44 | BQ49: 0 | BR49: 0 | BS49: 0 | BT49: 0 | BU49: 0 | BV49: 1 | BW49: 0
A50: 45 | B50: Astrup | C50: Felix | D50: Heming | E50: 21 | F50: 1 | L50: 15 | Q50: 21 | AD50: 0 | AI50: 0 | AN50: 0 | AS50: 0 | AU50: 15 | AV50: 16 | AW50: 5 | AX50: 21 | BC50: 0 | BH50: 0 | BM50: 0 | BO50: 45 | BQ50: 0 | BR50: 0 | BS50: 0 | BT50: 1 | BU50: 0 | BV50: 0 | BW50: 0
A51: 46 | B51: Bengtson | C51: Nicolai | D51: Heming | E51: 19 | F51: 1 | L51: 17 | Q51: 19 | AD51: 0 | AI51: 0 | AN51: 0 | AS51: 0 | AU51: 17 | AV51: 14 | AW51: 5 | AX51: 19 | BC51: 0 | BH51: 0 | BM51: 0 | BO51: 46 | BQ51: 0 | BR51: 0 | BS51: 1 | BT51: 0 | BU51: 0 | BV51: 0 | BW51: 0
A52: 46 | B52: Noer | C52: Kristoffer | D52: Rælingen | E52: 19 | F52: 1 | H52: 17 | Q52: 19 | AA52: 17 | AB52: 14 | AC52: 5 | AD52: 19 | AI52: 0 | AN52: 0 | AS52: 0 | AX52: 0 | BC52: 0 | BH52: 0 | BM52: 0 | BO52: 47 | BQ52: 0 | BR52: 0 | BS52: 0 | BT52: 1 | BU52: 0 | BV52: 0 | BW52: 0
A53: 48 | B53: Olafsen Eriksson | C53: Peder | D53: TRY | E53: 18 | F53: 3 | J53: 34 | K53: 28 | L53: DSQ | Q53: 18 | AD53: 0 | AI53: 0 | AK53: 34 | AL53: 0 | AM53: 5 | AN53: 5 | AP53: 28 | AQ53: 3 | AR53: 5 | AS53: 8 | AU53: DSQ | AV53: 0 | AW53: 5 | AX53: 5 | BC53: 0 | BH53: 0 | BM53: 0 | BO53: 48 | BQ53: 0 | BR53: 0 | BS53: 0 | BT53: 0 | BU53: 0 | BV53: 0 | BW53: 1
A54: 49 | B54: Andersen | C54: Fredrik | D54: NeRo | E54: 17 | F54: 1 | H54: 19 | Q54: =AD54+AI54+AN54+AS54+AX54+BC54+BH54+BM54 -> 17 | AA54: 19 | AB54: 12 | AC54: 5 | AD54: 17 | AI54: 0 | AN54: 0 | AS54: 0 | AX54: 0 | BC54: 0 | BH54: 0 | BM54: 0 | BO54: 49
A55: 50 | B55: Skalstad | C55: Gabriel Maximus Lorang | D55: Kjelsås | E55: 16 | F55: 1 | H55: 20 | Q55: =AD55+AI55+AN55+AS55+AX55+BC55+BH55 -> 16 | AA55: 20 | AB55: 11 | AC55: 5 | AD55: 16 | AI55: 0 | AN55: 0 | AS55: 0 | AX55: 0 | BC55: 0 | BH55: 0 | BM55: 0 | BO55: 50
A56: 51 | B56: Meland | C56: Jonas | D56: HSIL | E56: 14 | F56: 1 | J56: 22 | Q56: 14 | AD56: 0 | AI56: 0 | AK56: 22 | AL56: 9 | AM56: 5 | AN56: 14 | AS56: 0 | AX56: 0 | BC56: 0 | BH56: 0 | BM56: 0 | BO56: 51
A57: 52 | B57: Moen | C57: Jacob | D57: IRS | E57: 13 | F57: 1 | H57: 23 | Q57: 13 | AA57: 23 | AB57: 8 | AC57: 5 | AD57: 13 | AI57: 0 | AN57: 0 | AS57: 0 | AX57: 0 | BC57: 0 | BH57: 0 | BM57: 0 | BO57: 52
A58: 53 | B58: Fleischer | C58: Ulrich | D58: Heming | E58: 12 | F58: 2 | I58: DSQ | L58: 29 | Q58: 12 | AD58: 0 | AF58: DSQ | AG58: 0 | AH58: 5 | AI58: 5 | AN58: 0 | AS58: 0 | AU58: 29 | AV58: 2 | AW58: 5 | AX58: 7 | BC58: 0 | BH58: 0 | BM58: 0 | BO58: 53
A59: 54 | B59: Thorstensen | C59: Magnus | D59: Njård | E59: 11 | F59: 2 | J59: 37 | K59: 30 | Q59: 11 | AD59: 0 | AI59: 0 | AK59: 37 | AL59: 0 | AM59: 5 | AN59: 5 | AP59: 30 | AQ59: 1 | AR59: 5 | AS59: 6 | AX59: 0 | BC59: 0 | BH59: 0 | BM59: 0 | BO59: 54
A60: 54 | B60: Christiansen | C60: Arthur Åstasund | D60: IRS | E60: 11 | F60: 1 | H60: 25 | Q60: 11 | AA60: 25 | AB60: 6 | AC60: 5 | AD60: 11 | AI60: 0 | AN60: 0 | AS60: 0 | AX60: 0 | BC60: 0 | BH60: 0 | BM60: 0 | BO60: 55
A61: 56 | B61: Larsen | C61: Bendik Stangebye | D61: Njård | E61: 10 | F61: 2 | J61: 36 | L61: 41 | Q61: 10 | AD61: 0 | AI61: 0 | AK61: 36 | AL61: 0 | AM61: 5 | AN61: 5 | AS61: 0 | AU61: 41 | AV61: 0 | AW61: 5 | AX61: 5 | BC61: 0 | BH61: 0 | BM61: 0 | BO61: 56
A62: 56 | B62: Berg | C62: Odin | D62: Ljan | E62: 10 | F62: 1 | K62: 26 | Q62: 10 | AD62: 0 | AI62: 0 | AN62: 0 | AP62: 26 | AQ62: 5 | AR62: 5 | AS62: 10 | AX62: 0 | BC62: 0 | BH62: 0 | BM62: 0 | BO62: 57
A63: 58 | B63: Hellerud | C63: Lars | D63: Ullensaker | E63: 9 | F63: 1 | H63: 27 | Q63: 9 | AA63: 27 | AB63: 4 | AC63: 5 | AD63: 9 | AI63: 0 | AN63: 0 | AS63: 0 | AX63: 0 | BC63: 0 | BH63: 0 | BM63: 0 | BO63: 58
A64: 59 | B64: Amundsen | C64: Axel Røsberg | D64: Heming | E64: 5 | F64: 1 | L64: 32 | Q64: 5 | AD64: 0 | AI64: 0 | AN64: 0 | AS64: 0 | AU64: 32 | AV64: 0 | AW64: 5 | AX64: 5 | BC64: 0 | BH64: 0 | BM64: 0 | BO64: 59
A65: 59 | B65: Enoksen | C65: Elias | D65: IRS | E65: 5 | F65: 1 | H65: DSQ | Q65: 5 | AA65: DSQ | AB65: 0 | AC65: 5 | AD65: 5 | AI65: 0 | AN65: 0 | AS65: 0 | AX65: 0 | BC65: 0 | BH65: 0 | BM65: 0 | BO65: 60
A66: 59 | B66: Linberg | C66: Ulrik Fjeldavlie | D66: Lillehammer | E66: 5 | F66: 1 | H66: DSQ | Q66: 5 | AA66: DSQ | AB66: 0 | AC66: 5 | AD66: 5 | AI66: 0 | AN66: 0 | AS66: 0 | AX66: 0 | BC66: 0 | BH66: 0 | BM66: 0 | BO66: 61
A67: 0 | B67: Lunde | C67: Jacob | D67: Kjelsås | E67: 0 | F67: 0 | Q67: 0 | AD67: 0 | AI67: 0 | AN67: 0 | AS67: 0 | AX67: 0 | BC67: 0 | BH67: 0 | BM67: 0
A68: 0 | B68: Torpe | C68: Alexander Berg | D68: Stabæk | E68: 0 | F68: 0 | Q68: 0 | AD68: 0 | AI68: 0 | AN68: 0 | AS68: 0 | AX68: 0 | BC68: 0 | BH68: 0 | BM68: 0
A69: 0 | B69: Linna | C69: Simon Maximillian | D69: Heming | E69: 0 | F69: 0 | Q69: 0 | AD69: 0 | AI69: 0 | AN69: 0 | AS69: 0 | AX69: 0 | BC69: 0 | BH69: 0 | BM69: 0
Q70: 0 | AD70: =AB70+AC70 -> 0 | AI70: =AG70+AH70 -> 0 | AN70: =AL70+AM70 -> 0 | AS70: =AQ70+AR70 -> 0 | AX70: =AV70+AW70 -> 0 | BC70: =BA70+BB70 -> 0 | BH70: =BF70+BG70 -> 0 | BM70: =BK70+BL70 -> 0
H71: =IF(AA71="","",AA71) ->  | I71: =IF(AF71="","",AF71) ->  | J71: =IF(AK71="","",AK71) ->  | K71: =IF(AP71="","",AP71) ->  | L71: =IF(AU71="","",AU71) ->  | M71: =IF(AZ71="","",AZ71) ->  | N71: =IF(BE71="","",BE71) ->  | O71: =IF(BJ71="","",BJ71) ->  | Q71: =AD71+AI71+AN71+AS71+AX71+BC71+BH71 -> 0 | R71: =IF($F71>=5,IF(AB71="","",AB71),"") ->  | S71: =IF($F71>=5,IF(AG71="","",AG71),"") ->  | T71: =IF($F71>=5,IF(AL71="","",AL71),"") ->  | U71: =IF($F71>=5,IF(AQ71="","",AQ71),"") ->  | V71: =IF($F71>=5,IF(AV71="","",AV71),"") ->  | W71: =IF($F71>=5,IF(BA71="","",BA71),"") ->  | X71: =IF($F71>=5,IF(BF71="","",BF71),"") ->  | Y71: =IF($F71>=5,IF(BK71="","",BK71),"") ->  | AD71: =AB71+AC71 -> 0 | AI71: =AG71+AH71 -> 0 | AN71: =AL71+AM71 -> 0 | AS71: =AQ71+AR71 -> 0 | AX71: =AV71+AW71 -> 0 | BC71: =BA71+BB71 -> 0 | BH71: =BF71+BG71 -> 0 | BM71: =BK71+BL71 -> 0
Q72: 0 | AD72: 0 | AI72: 0 | AN72: 0 | AS72: 0 | AX72: 0 | BC72: 0 | BH72: 0 | BM72: 0

Sheet J12 2017
A1: Resultatliste Oslo Cup 2017 - Jenter 12 år
A2: ='Forside 2017'!A2 -> Etter 5 av 8 renn
H3: IRS Rennet | I3: Ljan Rennet | J3: Njård Rennet | K3: Ready Rennet | L3: Telenor Arena Cup | M3: Euro-tecfarten | N3: Oslo Alpinfestival SL | O3: Oslo Alpinfestival SSL | R3: IRS Rennet | S3: Ljan Rennet | T3: Njård Rennet | U3: Ready Rennet | V3: Telenor Arena Cup | W3: Euro-tecfarten | X3: Oslo Alpinfestival SL | Y3: Oslo Alpinfestival SSL | AA3: --------IRS Rennet---------- | AF3: ----------Ljan Rennet--------- | AK3: --------Njård Rennet---------- | AP3: --------Ready Rennet--------- | AU3: -----Telenor Arena Cup---- | AZ3: ------Euro-tecfarten-------- | BE3: ---Oslo Alpinfestival SL--- | BJ3: ---Oslo Alpinfestival SSL---
F4: Antall | H4: 2016-02-04 | I4: 2016-02-05 | J4: 2016-02-10 | K4: 2016-02-11 | L4: 2016-02-15 | M4: 2016-03-01 | N4: 2017-03-11 | O4: 2016-03-12 | Q4: Poeng | R4: 2016-02-04 | S4: 2016-02-05 | T4: 2016-02-10 | U4: 2016-02-11 | V4: 2016-02-15 | W4: 2016-03-01 | X4: 2017-03-11 | Y4: 2016-03-12 | AB4: --------Poeng-------- | AG4: --------Poeng-------- | AL4: -------Poeng--------- | AQ4: -------Poeng--------- | AV4: -------Poeng--------- | BA4: -------Poeng--------- | BF4: -------Poeng--------- | BK4: -------Poeng--------- | BQ4: Løpere med | BR4: Løpere med | BS4: Løpere med | BT4: Løpere med | BU4: Løpere med | BV4: Løpere med | BW4: Løpere med
A5: Plass | B5: Etternavn | C5: Fornavn | D5: Klubb | E5: Poeng | F5: renn | H5: ------------------------------Plassering i rennene--------------------------------- | Q5: brutto | R5: ----------------Resultatpoeng hvis mer enn 4 renn---------------- | AA5: Plass | AB5: Res. | AC5: Del. | AD5: Tot. | AF5: Plass | AG5: Res. | AH5: Del. | AI5: Tot. | AK5: Plass | AL5: Res. | AM5: Del. | AN5: Tot. | AP5: Plass | AQ5: Res. | AR5: Del. | AS5: Tot. | AU5: Plass | AV5: Res. | AW5: Del. | AX5: Tot. | AZ5: Plass | BA5: Res. | BB5: Del. | BC5: Tot. | BE5: Plass | BF5: Res. | BG5: Del. | BH5: Tot. | BJ5: Plass | BK5: Res. | BL5: Del. | BM5: Tot. | BQ5: 8 renn | BR5: 7 renn | BS5: 6 renn | BT5: 5 renn | BU5: 4 renn | BV5: 3 renn | BW5: kun 1 renn
A6: 1 | B6: Flåm | C6: Amalie Skottun | D6: Harestua | E6: =Q6-V6 -> 405 | F6: =COUNT(AC6,AH6,AM6,AR6,AW6,BB6,BG6,BL6) -> 5 | H6: =IF(AA6="","",AA6) -> 2 | I6: =IF(AF6="","",AF6) -> 1 | J6: =IF(AK6="","",AK6) -> 1 | K6: =IF(AP6="","",AP6) -> 1 | L6: =IF(AU6="","",AU6) -> 18 | M6: =IF(AZ6="","",AZ6) ->  | N6: =IF(BE6="","",BE6) ->  | O6: =IF(BJ6="","",BJ6) ->  | Q6: =AD6+AI6+AN6+AS6+AX6+BC6+BH6 -> 418 | R6: =IF($F6>=5,IF(AB6="","",AB6),"") -> 80 | S6: =IF($F6>=5,IF(AG6="","",AG6),"") -> 100 | T6: =IF($F6>=5,IF(AL6="","",AL6),"") -> 100 | U6: =IF($F6>=5,IF(AQ6="","",AQ6),"") -> 100 | V6: =IF($F6>=5,IF(AV6="","",AV6),"") -> 13 | W6: =IF($F6>=5,IF(BA6="","",BA6),"") ->  | X6: =IF($F6>=5,IF(BF6="","",BF6),"") ->  | Y6: =IF($F6>=5,IF(BK6="","",BK6),"") ->  | AA6: 2 | AB6: 80 | AC6: 5 | AD6: =AB6+AC6 -> 85 | AF6: 1 | AG6: 100 | AH6: 5 | AI6: =AG6+AH6 -> 105 | AK6: 1 | AL6: 100 | AM6: 5 | AN6: =AL6+AM6 -> 105 | AP6: 1 | AQ6: 100 | AR6: 5 | AS6: =AQ6+AR6 -> 105 | AU6: 18 | AV6: 13 | AW6: 5 | AX6: =AV6+AW6 -> 18 | BC6: =BA6+BB6 -> 0 | BH6: =BF6+BG6 -> 0 | BM6: =BK6+BL6 -> 0 | BO6: 1 | BP6: 100 | BQ6: =IF($F6=7,1,0) -> 0 | BR6: =IF($F6=6,1,0) -> 0 | BS6: =IF($F6=5,1,0) -> 1 | BT6: =IF($F6=4,1,0) -> 0 | BU6: =IF($F6=3,1,0) -> 0 | BV6: =IF($F6=2,1,0) -> 0 | BW6: =IF($F6=1,1,0) -> 0
A7: =IF(E7<E6,BO7,A6) -> 2 | B7: Grimkelsrud | C7: Elisabet | D7: Kjelsås | E7: =Q7-T7 -> 335 | F7: 5 | H7: 1 | I7: 2 | J7: 6 | K7: 4 | L7: 2 | Q7: 375 | R7: 100 | S7: 80 | T7: 40 | U7: 50 | V7: 80 | AA7: 1 | AB7: 100 | AC7: 5 | AD7: 105 | AF7: 2 | AG7: 80 | AH7: 5 | AI7: 85 | AK7: 6 | AL7: 40 | AM7: 5 | AN7: 45 | AP7: 4 | AQ7: 50 | AR7: 5 | AS7: 55 | AU7: 2 | AV7: 80 | AW7: 5 | AX7: 85 | BC7: 0 | BH7: 0 | BM7: 0 | BO7: 2 | BP7: 80 | BQ7: =IF($F7=7,1,0) -> 0 | BR7: =IF($F7=6,1,0) -> 0 | BS7: =IF($F7=5,1,0) -> 1 | BT7: =IF($F7=4,1,0) -> 0 | BU7: =IF($F7=3,1,0) -> 0 | BV7: =IF($F7=2,1,0) -> 0 | BW7: =IF($F7=1,1,0) -> 0
A8: 3 | B8: Bugge | C8: Mathilde | D8: Ready | E8: =Q8-R8 -> 275 | F8: 5 | H8: 4 | I8: 4 | J8: 3 | K8: 2 | L8: 3 | Q8: 325 | R8: 50 | S8: 50 | T8: 60 | U8: 80 | V8: 60 | AA8: 4 | AB8: 50 | AC8: 5 | AD8: 55 | AF8: 4 | AG8: 50 | AH8: 5 | AI8: 55 | AK8: 3 | AL8: 60 | AM8: 5 | AN8: 65 | AP8: 2 | AQ8: 80 | AR8: 5 | AS8: 85 | AU8: 3 | AV8: 60 | AW8: 5 | AX8: 65 | BC8: 0 | BH8: 0 | BM8: 0 | BO8: 3 | BP8: 60 | BQ8: 0 | BR8: 0 | BS8: 1 | BT8: 0 | BU8: 0 | BV8: 0 | BW8: 0
A9: 4 | B9: Dietrichson | C9: Iben | D9: Ready | E9: =Q9-U9 -> 235 | F9: 5 | H9: 3 | I9: 3 | J9: 5 | K9: 6 | L9: 5 | Q9: 275 | R9: 60 | S9: 60 | T9: 45 | U9: 40 | V9: 45 | AA9: 3 | AB9: 60 | AC9: 5 | AD9: 65 | AF9: 3 | AG9: 60 | AH9: 5 | AI9: 65 | AK9: 5 | AL9: 45 | AM9: 5 | AN9: 50 | AP9: 6 | AQ9: 40 | AR9: 5 | AS9: 45 | AU9: 5 | AV9: 45 | AW9: 5 | AX9: 50 | BC9: 0 | BH9: 0 | BM9: 0 | BO9: 4 | BP9: 50 | BQ9: 0 | BR9: 0 | BS9: 1 | BT9: 0 | BU9: 0 | BV9: 0 | BW9: 0
A10: 5 | B10: Kristiansen | C10: Vilde Lovise | D10: IRS | E10: =Q10-V10 -> 161 | F10: 5 | H10: 8 | I10: 6 | J10: 8 | K10: 8 | L10: 9 | Q10: 190 | R10: 32 | S10: 40 | T10: 32 | U10: 32 | V10: 29 | AA10: 8 | AB10: 32 | AC10: 5 | AD10: 37 | AF10: 6 | AG10: 40 | AH10: 5 | AI10: 45 | AK10: 8 | AL10: 32 | AM10: 5 | AN10: 37 | AP10: 8 | AQ10: 32 | AR10: 5 | AS10: 37 | AU10: 9 | AV10: 29 | AW10: 5 | AX10: 34 | BC10: 0 | BH10: 0 | BM10: 0 | BO10: 5 | BP10: 45 | BQ10: 0 | BR10: 0 | BS10: 1 | BT10: 0 | BU10: 0 | BV10: 0 | BW10: 0
A11: 5 | B11: Sandvin | C11: Eva | D11: Kjelsås | E11: =Q11 -> 161 | F11: 4 | H11: 5 | I11: DSQ | J11: 7 | K11: 3 | Q11: 161 | AA11: 5 | AB11: 45 | AC11: 5 | AD11: 50 | AF11: DSQ | AG11: 0 | AH11: 5 | AI11: 5 | AK11: 7 | AL11: 36 | AM11: 5 | AN11: 41 | AP11: 3 | AQ11: 60 | AR11: 5 | AS11: 65 | AX11: 0 | BC11: 0 | BH11: 0 | BM11: 0 | BO11: 6 | BP11: 40 | BQ11: 0 | BR11: 0 | BS11: 0 | BT11: 1 | BU11: 0 | BV11: 0 | BW11: 0
A12: 7 | B12: Brodwall | C12: Emilie Rønnestad | D12: Stabæk | E12: =Q12 -> 160 | F12: 2 | J12: 4 | L12: 1 | M12: =IF(AU12="","",AU12) -> 1 | N12: =IF(AZ12="","",AZ12) ->  | O12: =IF(BE12="","",BE12) ->  | Q12: 160 | AD12: 0 | AI12: 0 | AK12: 4 | AL12: 50 | AM12: 5 | AN12: 55 | AS12: 0 | AU12: 1 | AV12: 100 | AW12: 5 | AX12: 105 | BC12: 0 | BH12: 0 | BM12: 0 | BO12: 7 | BP12: 36 | BQ12: 0 | BR12: 0 | BS12: 0 | BT12: 0 | BU12: 0 | BV12: 1 | BW12: 0
A13: 8 | B13: Lyså | C13: Amalie Bugge | D13: Ready | E13: =Q13-T13 -> 135 | F13: 5 | H13: 10 | I13: 8 | J13: 17 | K13: 10 | L13: 10 | M13: =IF(AZ13="","",AZ13) ->  | N13: =IF(BE13="","",BE13) ->  | O13: =IF(BJ13="","",BJ13) ->  | Q13: 149 | R13: 26 | S13: 32 | T13: 14 | U13: 26 | V13: 26 | AA13: 10 | AB13: 26 | AC13: 5 | AD13: 31 | AF13: 8 | AG13: 32 | AH13: 5 | AI13: 37 | AK13: 17 | AL13: 14 | AM13: 5 | AN13: 19 | AP13: 10 | AQ13: 26 | AR13: 5 | AS13: 31 | AU13: 10 | AV13: 26 | AW13: 5 | AX13: 31 | BC13: 0 | BH13: 0 | BM13: 0 | BO13: 8 | BP13: 32 | BQ13: 0 | BR13: 0 | BS13: 1 | BT13: 0 | BU13: 0 | BV13: 0 | BW13: 0
A14: 9 | B14: Flydal | C14: Vilde | D14: Heming | E14: =Q14-U14 -> 130 | F14: 5 | H14: 13 | I14: 5 | J14: 12 | K14: 16 | L14: 14 | M14: =IF(AZ14="","",AZ14) ->  | N14: =IF(BE14="","",BE14) ->  | O14: =IF(BJ14="","",BJ14) ->  | Q14: 145 | R14: 20 | S14: 45 | T14: 22 | U14: 15 | V14: 18 | AA14: 13 | AB14: 20 | AC14: 5 | AD14: 25 | AF14: 5 | AG14: 45 | AH14: 5 | AI14: 50 | AK14: 12 | AL14: 22 | AM14: 5 | AN14: 27 | AP14: 16 | AQ14: 15 | AR14: 5 | AS14: 20 | AU14: 14 | AV14: 18 | AW14: 5 | AX14: 23 | BC14: 0 | BH14: 0 | BM14: 0 | BO14: 9 | BP14: 29 | BQ14: 0 | BR14: 0 | BS14: 1 | BT14: 0 | BU14: 0 | BV14: 0 | BW14: 0
A15: 10 | B15: Wrage | C15: Paulina Rønning | D15: Heming | E15: =Q15 -> 128 | F15: 4 | H15: 6 | J15: 16 | K15: 9 | L15: 11 | M15: =IF(AZ15="","",AZ15) ->  | N15: =IF(BE15="","",BE15) ->  | O15: =IF(BJ15="","",BJ15) ->  | Q15: 128 | AA15: 6 | AB15: 40 | AC15: 5 | AD15: 45 | AI15: 0 | AK15: 16 | AL15: 15 | AM15: 5 | AN15: 20 | AP15: 9 | AQ15: 29 | AR15: 5 | AS15: 34 | AU15: 11 | AV15: 24 | AW15: 5 | AX15: 29 | BC15: 0 | BH15: 0 | BM15: 0 | BO15: 10 | BP15: 26 | BQ15: 0 | BR15: 0 | BS15: 0 | BT15: 1 | BU15: 0 | BV15: 0 | BW15: 0
A16: 11 | B16: Røsjorde | C16: Mira Sjøvik | D16: Kjelsås | E16: 121 | F16: 5 | H16: DSQ | I16: DSQ | J16: 11 | K16: 7 | L16: 7 | M16: =IF(AU16="","",AU16) -> 7 | N16: =IF(AZ16="","",AZ16) ->  | O16: =IF(BE16="","",BE16) ->  | Q16: 121 | R16: 0 | S16: 0 | T16: 24 | U16: 36 | V16: 36 | AA16: DSQ | AB16: 0 | AC16: 5 | AD16: 5 | AF16: DSQ | AG16: 0 | AH16: 5 | AI16: 5 | AK16: 11 | AL16: 24 | AM16: 5 | AN16: 29 | AP16: 7 | AQ16: 36 | AR16: 5 | AS16: 41 | AU16: 7 | AV16: 36 | AW16: 5 | AX16: 41 | BC16: 0 | BH16: 0 | BM16: 0 | BO16: 11 | BP16: 24 | BQ16: 0 | BR16: 0 | BS16: 1 | BT16: 0 | BU16: 0 | BV16: 0 | BW16: 0
A17: 12 | B17: Gurholt | C17: Ida Kristine | D17: Njård | E17: 115 | F17: 5 | H17: 11 | I17: DSQ | J17: 15 | K17: 14 | L17: 8 | M17: =IF(AZ17="","",AZ17) ->  | N17: =IF(BE17="","",BE17) ->  | O17: =IF(BJ17="","",BJ17) ->  | Q17: 115 | R17: 24 | S17: 0 | T17: 16 | U17: 18 | V17: 32 | AA17: 11 | AB17: 24 | AC17: 5 | AD17: 29 | AF17: DSQ | AG17: 0 | AH17: 5 | AI17: 5 | AK17: 15 | AL17: 16 | AM17: 5 | AN17: 21 | AP17: 14 | AQ17: 18 | AR17: 5 | AS17: 23 | AU17: 8 | AV17: 32 | AW17: 5 | AX17: 37 | BC17: 0 | BH17: 0 | BM17: 0 | BO17: 12 | BP17: 22 | BQ17: 0 | BR17: 0 | BS17: 1 | BT17: 0 | BU17: 0 | BV17: 0 | BW17: 0
A18: 13 | B18: Roed | C18: Elphi Haukenes | D18: Heming | E18: 103 | F18: 3 | H18: 7 | J18: 9 | L18: 12 | M18: =IF(AZ18="","",AZ18) ->  | N18: =IF(BE18="","",BE18) ->  | O18: =IF(BJ18="","",BJ18) ->  | Q18: 103 | AA18: 7 | AB18: 36 | AC18: 6 | AD18: 42 | AI18: 0 | AK18: 9 | AL18: 29 | AM18: 5 | AN18: 34 | AS18: 0 | AU18: 12 | AV18: 22 | AW18: 5 | AX18: 27 | BC18: 0 | BH18: 0 | BM18: 0 | BO18: 13 | BP18: 20 | BQ18: 0 | BR18: 0 | BS18: 0 | BT18: 0 | BU18: 1 | BV18: 0 | BW18: 0
A19: 14 | B19: Wurschmidt | C19: Elise | D19: Heming | E19: 97 | F19: 5 | H19: 15 | I19: 10 | J19: DNF | K19: 15 | L19: 17 | M19: =IF(AZ19="","",AZ19) ->  | N19: =IF(BE19="","",BE19) ->  | O19: =IF(BJ19="","",BJ19) ->  | Q19: 97 | R19: 16 | S19: 26 | T19: 0 | U19: 16 | V19: 14 | AA19: 15 | AB19: 16 | AC19: 5 | AD19: 21 | AF19: 10 | AG19: 26 | AH19: 5 | AI19: 31 | AK19: DNF | AL19: 0 | AM19: 5 | AN19: 5 | AP19: 15 | AQ19: 16 | AR19: 5 | AS19: 21 | AU19: 17 | AV19: 14 | AW19: 5 | AX19: 19 | BC19: 0 | BH19: 0 | BM19: 0 | BO19: 14 | BP19: 18 | BQ19: =IF($F18=7,1,0) -> 0 | BR19: =IF($F18=6,1,0) -> 0 | BS19: =IF($F18=5,1,0) -> 0 | BT19: =IF($F18=4,1,0) -> 0 | BU19: =IF($F18=3,1,0) -> 1 | BV19: =IF($F18=2,1,0) -> 0 | BW19: =IF($F18=1,1,0) -> 0
A20: 15 | B20: Naustdal | C20: Elise | D20: Kjelsås | E20: 86 | F20: 3 | H20: 9 | K20: 12 | L20: 13 | M20: =IF(AZ20="","",AZ20) ->  | N20: =IF(BE20="","",BE20) ->  | O20: =IF(BJ20="","",BJ20) ->  | Q20: 86 | AA20: 9 | AB20: 29 | AC20: 5 | AD20: 34 | AI20: 0 | AN20: 0 | AP20: 12 | AQ20: 22 | AR20: 5 | AS20: 27 | AU20: 13 | AV20: 20 | AW20: 5 | AX20: 25 | BC20: 0 | BH20: 0 | BM20: 0 | BO20: 15 | BP20: 16 | BQ20: =IF($F19=7,1,0) -> 0 | BR20: =IF($F19=6,1,0) -> 0 | BS20: =IF($F19=5,1,0) -> 1 | BT20: =IF($F19=4,1,0) -> 0 | BU20: =IF($F19=3,1,0) -> 0 | BV20: =IF($F19=2,1,0) -> 0 | BW20: =IF($F19=1,1,0) -> 0
A21: 16 | B21: Olesen | C21: Linnea Vie | D21: Stabæk | E21: 85 | F21: 1 | J21: 2 | L21: =IF(AQ21="","",AQ21) ->  | M21: =IF(AU21="","",AU21) ->  | N21: =IF(AZ21="","",AZ21) ->  | O21: =IF(BE21="","",BE21) ->  | Q21: 85 | V21: =IF($F21>=5,IF(AR21="","",AR21),"") ->  | W21: =IF($F21>=5,IF(AV21="","",AV21),"") ->  | X21: =IF($F21>=5,IF(BA21="","",BA21),"") ->  | Y21: =IF($F21>=5,IF(BF21="","",BF21),"") ->  | AD21: 0 | AI21: 0 | AK21: 2 | AL21: 80 | AM21: 5 | AN21: 85 | AS21: 0 | AX21: 0 | BC21: 0 | BH21: 0 | BM21: 0 | BO21: 16 | BP21: 15 | BQ21: =IF($F20=7,1,0) -> 0 | BR21: =IF($F20=6,1,0) -> 0 | BS21: =IF($F20=5,1,0) -> 0 | BT21: =IF($F20=4,1,0) -> 0 | BU21: =IF($F20=3,1,0) -> 1 | BV21: =IF($F20=2,1,0) -> 0 | BW21: =IF($F20=1,1,0) -> 0
A22: 17 | B22: Haakensen | C22: Hedda | D22: Kjelsås | E22: 83 | F22: 4 | H22: 14 | J22: DNF | K22: 5 | L22: =IF(AU22="","",AU22) -> DNF | M22: =IF(AZ22="","",AZ22) ->  | N22: =IF(BE22="","",BE22) ->  | O22: =IF(BJ22="","",BJ22) ->  | Q22: 83 | V22: =IF($F22>=5,IF(AV22="","",AV22),"") ->  | W22: =IF($F22>=5,IF(BA22="","",BA22),"") ->  | X22: =IF($F22>=5,IF(BF22="","",BF22),"") ->  | Y22: =IF($F22>=5,IF(BK22="","",BK22),"") ->  | AA22: 14 | AB22: 18 | AC22: 5 | AD22: 23 | AI22: 0 | AK22: DNF | AL22: 0 | AM22: 5 | AN22: 5 | AP22: 5 | AQ22: 45 | AR22: 5 | AS22: 50 | AU22: DNF | AV22: 0 | AW22: 5 | AX22: 5 | BC22: 0 | BH22: 0 | BM22: 0 | BO22: 17 | BP22: 14 | BQ22: =IF($F20=7,1,0) -> 0 | BR22: =IF($F20=6,1,0) -> 0 | BS22: =IF($F20=5,1,0) -> 0 | BT22: =IF($F20=4,1,0) -> 0 | BU22: =IF($F20=3,1,0) -> 1 | BV22: =IF($F20=2,1,0) -> 0 | BW22: =IF($F20=1,1,0) -> 0
A23: 18 | B23: Briseid-Bødtker | C23: Mia | D23: Heming | E23: 72 | F23: 2 | H23: 12 | L23: =IF(AU23="","",AU23) -> 6 | M23: =IF(AZ23="","",AZ23) ->  | N23: =IF(BE23="","",BE23) ->  | O23: =IF(BJ23="","",BJ23) ->  | Q23: =AD23+AI23+AN23+AS23+AX23+BC23+BH23+BM23 -> 72 | V23: =IF($F23>=5,IF(AV23="","",AV23),"") ->  | W23: =IF($F23>=5,IF(BA23="","",BA23),"") ->  | X23: =IF($F23>=5,IF(BF23="","",BF23),"") ->  | Y23: =IF($F23>=5,IF(BK23="","",BK23),"") ->  | AA23: 12 | AB23: 22 | AC23: 5 | AD23: 27 | AI23: 0 | AN23: 0 | AS23: 0 | AU23: 6 | AV23: 40 | AW23: 5 | AX23: 45 | BC23: 0 | BH23: 0 | BM23: 0 | BO23: 18 | BP23: 13 | BQ23: =IF($F21=7,1,0) -> 0 | BR23: =IF($F21=6,1,0) -> 0 | BS23: =IF($F21=5,1,0) -> 0 | BT23: =IF($F21=4,1,0) -> 0 | BU23: =IF($F21=3,1,0) -> 0 | BV23: =IF($F21=2,1,0) -> 0 | BW23: =IF($F21=1,1,0) -> 1
A24: 19 | B24: Briskelid | C24: Cornelia | D24: Heming | E24: 69 | F24: 3 | J24: 14 | K24: 13 | L24: =IF(AU24="","",AU24) -> 15 | M24: =IF(AZ24="","",AZ24) ->  | N24: =IF(BE24="","",BE24) ->  | O24: =IF(BJ24="","",BJ24) ->  | Q24: =AD24+AI24+AN24+AS24+AX24+BC24+BH24 -> 69 | V24: =IF($F24>=5,IF(AV24="","",AV24),"") ->  | W24: =IF($F24>=5,IF(BA24="","",BA24),"") ->  | X24: =IF($F24>=5,IF(BF24="","",BF24),"") ->  | Y24: =IF($F24>=5,IF(BK24="","",BK24),"") ->  | AD24: 0 | AI24: 0 | AK24: 14 | AL24: 18 | AM24: 5 | AN24: 23 | AP24: 13 | AQ24: 20 | AR24: 5 | AS24: 25 | AU24: 15 | AV24: 16 | AW24: 5 | AX24: 21 | BC24: 0 | BH24: 0 | BM24: 0 | BO24: 19 | BP24: 12 | BQ24: =IF($F22=7,1,0) -> 0 | BR24: =IF($F22=6,1,0) -> 0 | BS24: =IF($F22=5,1,0) -> 0 | BT24: =IF($F22=4,1,0) -> 1 | BU24: =IF($F22=3,1,0) -> 0 | BV24: =IF($F22=2,1,0) -> 0 | BW24: =IF($F22=1,1,0) -> 0
A25: 20 | B25: Folkvord | C25: Rikke | D25: HSIL | E25: 65 | F25: 2 | I25: 9 | J25: 10 | L25: =IF(AU25="","",AU25) ->  | M25: =IF(AZ25="","",AZ25) ->  | N25: =IF(BE25="","",BE25) ->  | O25: =IF(BJ25="","",BJ25) ->  | Q25: 65 | V25: =IF($F25>=5,IF(AV25="","",AV25),"") ->  | W25: =IF($F25>=5,IF(BA25="","",BA25),"") ->  | X25: =IF($F25>=5,IF(BF25="","",BF25),"") ->  | Y25: =IF($F25>=5,IF(BK25="","",BK25),"") ->  | AD25: 0 | AF25: 9 | AG25: 29 | AH25: 5 | AI25: 34 | AK25: 10 | AL25: 26 | AM25: 5 | AN25: 31 | AS25: 0 | AX25: 0 | BC25: 0 | BH25: 0 | BM25: 0 | BO25: 20 | BP25: 11 | BQ25: =IF($F23=7,1,0) -> 0 | BR25: =IF($F23=6,1,0) -> 0 | BS25: =IF($F23=5,1,0) -> 0 | BT25: =IF($F23=4,1,0) -> 0 | BU25: =IF($F23=3,1,0) -> 0 | BV25: =IF($F23=2,1,0) -> 1 | BW25: =IF($F23=1,1,0) -> 0
A26: 21 | B26: Andersen | C26: Julie Kahrs | D26: BSK | E26: 55 | F26: 1 | L26: =IF(AQ26="","",AQ26) ->  | M26: =IF(AU26="","",AU26) -> 4 | N26: =IF(AZ26="","",AZ26) ->  | O26: =IF(BE26="","",BE26) ->  | Q26: 55 | V26: =IF($F26>=5,IF(AR26="","",AR26),"") ->  | W26: =IF($F26>=5,IF(AV26="","",AV26),"") ->  | X26: =IF($F26>=5,IF(BA26="","",BA26),"") ->  | Y26: =IF($F26>=5,IF(BF26="","",BF26),"") ->  | AD26: 0 | AI26: 0 | AN26: 0 | AS26: 0 | AU26: 4 | AV26: 50 | AW26: 5 | AX26: 55 | BC26: 0 | BH26: 0 | BM26: 0 | BO26: 21 | BP26: 10 | BQ26: =IF($F24=7,1,0) -> 0 | BR26: =IF($F24=6,1,0) -> 0 | BS26: =IF($F24=5,1,0) -> 0 | BT26: =IF($F24=4,1,0) -> 0 | BU26: =IF($F24=3,1,0) -> 1 | BV26: =IF($F24=2,1,0) -> 0 | BW26: =IF($F24=1,1,0) -> 0
A27: 22 | B27: Dahl | C27: Pauline | D27: Ljan | E27: 41 | F27: 1 | I27: 7 | L27: =IF(AU27="","",AU27) ->  | M27: =IF(AU27="","",AU27) ->  | N27: =IF(AZ27="","",AZ27) ->  | O27: =IF(BE27="","",BE27) ->  | Q27: 41 | V27: =IF($F27>=5,IF(AV27="","",AV27),"") ->  | W27: =IF($F27>=5,IF(BA27="","",BA27),"") ->  | X27: =IF($F27>=5,IF(BF27="","",BF27),"") ->  | Y27: =IF($F27>=5,IF(BK27="","",BK27),"") ->  | AD27: 0 | AF27: 7 | AG27: 36 | AH27: 5 | AI27: 41 | AN27: 0 | AS27: 0 | AX27: 0 | BC27: 0 | BH27: 0 | BM27: 0 | BO27: 22 | BP27: 9 | BQ27: 0 | BR27: 0 | BS27: 0 | BT27: 0 | BU27: 0 | BV27: 1 | BW27: 0
A28: 23 | B28: Ellingsen | C28: Mia Synnøve | D28: NeRo | E28: 39 | F28: 2 | H28: 17 | L28: 16 | M28: =IF(AZ28="","",AZ28) ->  | N28: =IF(BE28="","",BE28) ->  | O28: =IF(BJ28="","",BJ28) ->  | Q28: 39 | AA28: 17 | AB28: 14 | AC28: 5 | AD28: 19 | AI28: 0 | AN28: 0 | AS28: 0 | AU28: 16 | AV28: 15 | AW28: 5 | AX28: 20 | BC28: 0 | BH28: 0 | BM28: 0 | BO28: 23 | BP28: 8 | BQ28: 0 | BR28: 0 | BS28: 0 | BT28: 0 | BU28: 0 | BV28: 0 | BW28: 1
A29: 24 | B29: Placht | C29: Thadea Martine | D29: Kjelsås | E29: 29 | F29: 1 | I29: 11 | M29: =IF(AZ29="","",AZ29) ->  | N29: =IF(BE29="","",BE29) ->  | O29: =IF(BJ29="","",BJ29) ->  | Q29: 29 | AD29: 0 | AF29: 11 | AG29: 24 | AH29: 5 | AI29: 29 | AN29: 0 | AS29: 0 | AX29: 0 | BC29: 0 | BH29: 0 | BM29: 0 | BO29: 24 | BP29: 7 | BQ29: =IF($F24=7,1,0) -> 0 | BR29: =IF($F24=6,1,0) -> 0 | BS29: =IF($F24=5,1,0) -> 0 | BT29: =IF($F24=4,1,0) -> 0 | BU29: =IF($F24=3,1,0) -> 1 | BV29: =IF($F24=2,1,0) -> 0 | BW29: =IF($F24=1,1,0) -> 0
A30: 24 | B30: Skavik | C30: Thea Skogheim | D30: Heming | E30: 29 | F30: 1 | K30: 11 | M30: =IF(AZ30="","",AZ30) ->  | N30: =IF(BE30="","",BE30) ->  | O30: =IF(BJ30="","",BJ30) ->  | Q30: 29 | AD30: 0 | AI30: 0 | AN30: 0 | AP30: 11 | AQ30: 24 | AR30: 5 | AS30: 29 | AX30: 0 | BC30: 0 | BH30: 0 | BM30: 0 | BO30: 25 | BP30: 6 | BQ30: =IF($F25=7,1,0) -> 0 | BR30: =IF($F25=6,1,0) -> 0 | BS30: =IF($F25=5,1,0) -> 0 | BT30: =IF($F25=4,1,0) -> 0 | BU30: =IF($F25=3,1,0) -> 0 | BV30: =IF($F25=2,1,0) -> 1 | BW30: =IF($F25=1,1,0) -> 0
A31: 26 | B31: Trondsen | C31: Marie Arnstad | D31: Heming | E31: 25 | F31: 1 | J31: 13 | M31: =IF(AU31="","",AU31) ->  | N31: =IF(AZ31="","",AZ31) ->  | O31: =IF(BE31="","",BE31) ->  | Q31: 25 | AD31: 0 | AI31: 0 | AK31: 13 | AL31: 20 | AM31: 5 | AN31: 25 | AS31: 0 | AX31: 0 | BC31: 0 | BH31: 0 | BM31: 0 | BO31: 26 | BP31: 5 | BQ31: =IF($F26=7,1,0) -> 0 | BR31: =IF($F26=6,1,0) -> 0 | BS31: =IF($F26=5,1,0) -> 0 | BT31: =IF($F26=4,1,0) -> 0 | BU31: =IF($F26=3,1,0) -> 0 | BV31: =IF($F26=2,1,0) -> 0 | BW31: =IF($F26=1,1,0) -> 1
A32: 27 | B32: Pedersen | C32: Thea | D32: Ullensaker | E32: 20 | F32: 1 | H32: 16 | M32: =IF(AZ32="","",AZ32) ->  | N32: =IF(BE32="","",BE32) ->  | O32: =IF(BJ32="","",BJ32) ->  | Q32: 20 | AA32: 16 | AB32: 15 | AC32: 5 | AD32: 20 | AI32: 0 | AN32: 0 | AS32: 0 | AX32: 0 | BC32: 0 | BH32: 0 | BM32: 0 | BO32: 27 | BP32: 4 | BQ32: =IF($F26=7,1,0) -> 0 | BR32: =IF($F26=6,1,0) -> 0 | BS32: =IF($F26=5,1,0) -> 0 | BT32: =IF($F26=4,1,0) -> 0 | BU32: =IF($F26=3,1,0) -> 0 | BV32: =IF($F26=2,1,0) -> 0 | BW32: =IF($F26=1,1,0) -> 1
A33: 28 | B33: Westrum | C33: Suzanne Paulette Leirvik | D33: Njård | E33: 17 | F33: 1 | L33: =IF(AQ33="","",AQ33) ->  | M33: =IF(AU33="","",AU33) -> 19 | N33: =IF(AZ33="","",AZ33) ->  | O33: =IF(BE33="","",BE33) ->  | Q33: 17 | V33: =IF($F33>=5,IF(AR33="","",AR33),"") ->  | W33: =IF($F33>=5,IF(AV33="","",AV33),"") ->  | X33: =IF($F33>=5,IF(BA33="","",BA33),"") ->  | Y33: =IF($F33>=5,IF(BF33="","",BF33),"") ->  | AD33: 0 | AI33: 0 | AN33: 0 | AS33: 0 | AU33: 19 | AV33: 12 | AW33: 5 | AX33: 17 | BC33: 0 | BH33: 0 | BM33: 0 | BO33: 28 | BP33: 3 | BQ33: =IF($F27=7,1,0) -> 0 | BR33: =IF($F27=6,1,0) -> 0 | BS33: =IF($F27=5,1,0) -> 0 | BT33: =IF($F27=4,1,0) -> 0 | BU33: =IF($F27=3,1,0) -> 0 | BV33: =IF($F27=2,1,0) -> 0 | BW33: =IF($F27=1,1,0) -> 1
A34: 29 | B34: Sylvester-Davik | C34: Madeleine | D34: Tertnes | E34: 5 | F34: 1 | J34: DNF | L34: =IF(AU34="","",AU34) ->  | Q34: 5 | V34: =IF($F34>=5,IF(AV34="","",AV34),"") ->  | W34: =IF($F34>=5,IF(BA34="","",BA34),"") ->  | X34: =IF($F34>=5,IF(BF34="","",BF34),"") ->  | Y34: =IF($F34>=5,IF(BK34="","",BK34),"") ->  | AD34: 0 | AI34: 0 | AK34: DNF | AL34: 0 | AM34: 5 | AN34: 5 | AS34: 0 | AX34: 0 | BC34: 0 | BH34: 0 | BM34: 0 | BO34: 29 | BP34: 2 | BQ34: 0 | BR34: 0 | BS34: 0 | BT34: 0 | BU34: 0 | BV34: 1 | BW34: 0
A35: 29 | B35: Sylvester-Davik | C35: Pia | D35: Tertnes | E35: 5 | F35: 1 | J35: DNF | L35: =IF(AQ35="","",AQ35) ->  | Q35: 5 | V35: =IF($F35>=5,IF(AV35="","",AV35),"") ->  | W35: =IF($F35>=5,IF(BA35="","",BA35),"") ->  | X35: =IF($F35>=5,IF(BF35="","",BF35),"") ->  | Y35: =IF($F35>=5,IF(BK35="","",BK35),"") ->  | AD35: 0 | AI35: 0 | AK35: DNF | AL35: 0 | AM35: 5 | AN35: 5 | AS35: 0 | AX35: 0 | BC35: 0 | BH35: 0 | BM35: 0 | BO35: 30 | BP35: 1 | BQ35: 0 | BR35: 0 | BS35: 0 | BT35: 0 | BU35: 0 | BV35: 0 | BW35: 1
A36: 29 | B36: Larsen | C36: Kornelia Wang | D36: LIL Alpin | E36: 5 | F36: 1 | K36: DNF | L36: =IF(AU36="","",AU36) ->  | Q36: 5 | V36: =IF($F36>=5,IF(AV36="","",AV36),"") ->  | W36: =IF($F36>=5,IF(BA36="","",BA36),"") ->  | X36: =IF($F36>=5,IF(BF36="","",BF36),"") ->  | Y36: =IF($F36>=5,IF(BK36="","",BK36),"") ->  | AD36: 0 | AI36: 0 | AN36: 0 | AP36: DNF | AQ36: 0 | AR36: 5 | AS36: 5 | AX36: 0 | BC36: 0 | BH36: 0 | BM36: 0 | BO36: 31 | BQ36: =IF($F27=7,1,0) -> 0 | BR36: =IF($F27=6,1,0) -> 0 | BS36: =IF($F27=5,1,0) -> 0 | BT36: =IF($F27=4,1,0) -> 0 | BU36: =IF($F27=3,1,0) -> 0 | BV36: =IF($F27=2,1,0) -> 0 | BW36: =IF($F27=1,1,0) -> 1
A37: 29 | B37: Greibrokk | C37: Mathilde | D37: Stabæk | E37: 5 | F37: 1 | L37: =IF(AQ37="","",AQ37) ->  | M37: DNF | Q37: 5 | R37: =IF($F28>=5,IF(AB37="","",AB37),"") ->  | S37: =IF($F28>=5,IF(AG37="","",AG37),"") ->  | T37: =IF($F28>=5,IF(AL37="","",AL37),"") ->  | U37: =IF($F28>=5,IF(AQ37="","",AQ37),"") ->  | V37: =IF($F28>=5,IF(AR37="","",AR37),"") ->  | W37: =IF($F28>=5,IF(AV37="","",AV37),"") ->  | X37: =IF($F28>=5,IF(BA37="","",BA37),"") ->  | Y37: =IF($F28>=5,IF(BF37="","",BF37),"") ->  | AD37: 0 | AI37: 0 | AN37: 0 | AS37: 0 | AU37: DNF | AV37: 0 | AW37: 5 | AX37: 5 | BC37: 0 | BH37: 0 | BM37: 0 | BO37: 32 | BQ37: 0 | BR37: 0 | BS37: 0 | BT37: 0 | BU37: 0 | BV37: 1 | BW37: 0
A38: 33 | B38: Sandal | C38: Jenny Bye | D38: Ljan | E38: 0 | F38: 0 | L38: =IF(AU38="","",AU38) ->  | Q38: 0 | R38: =IF($F38>=5,IF(AB38="","",AB38),"") ->  | S38: =IF($F38>=5,IF(AG38="","",AG38),"") ->  | T38: =IF($F38>=5,IF(AL38="","",AL38),"") ->  | U38: =IF($F38>=5,IF(AQ38="","",AQ38),"") ->  | V38: =IF($F38>=5,IF(AV38="","",AV38),"") ->  | W38: =IF($F38>=5,IF(BA38="","",BA38),"") ->  | X38: =IF($F38>=5,IF(BF38="","",BF38),"") ->  | Y38: =IF($F38>=5,IF(BK38="","",BK38),"") ->  | AD38: 0 | AI38: 0 | AN38: 0 | AS38: 0 | AX38: 0 | BC38: 0 | BH38: 0 | BM38: 0 | BO38: 33 | BQ38: 0 | BR38: 0 | BS38: 0 | BT38: 0 | BU38: 0 | BV38: 0 | BW38: 1
H39: =IF(AA39="","",AA39) ->  | I39: =IF(AF39="","",AF39) ->  | J39: =IF(AK39="","",AK39) ->  | K39: =IF(AP39="","",AP39) ->  | M39: =IF(AU39="","",AU39) ->  | N39: =IF(AZ39="","",AZ39) ->  | O39: =IF(BE39="","",BE39) ->  | Q39: =AD39+AI39+AN39+AS39+AX39+BC39+BH39 -> 0 | R39: =IF($F30>=5,IF(AB39="","",AB39),"") ->  | S39: =IF($F30>=5,IF(AG39="","",AG39),"") ->  | T39: =IF($F30>=5,IF(AL39="","",AL39),"") ->  | U39: =IF($F30>=5,IF(AQ39="","",AQ39),"") ->  | W39: =IF($F30>=5,IF(AV39="","",AV39),"") ->  | X39: =IF($F30>=5,IF(BA39="","",BA39),"") ->  | Y39: =IF($F30>=5,IF(BF39="","",BF39),"") ->  | AD39: =AB39+AC39 -> 0 | AI39: =AG39+AH39 -> 0 | AN39: =AL39+AM39 -> 0 | AS39: =AQ39+AR39 -> 0 | AX39: =AV39+AW39 -> 0 | BC39: =BA39+BB39 -> 0 | BH39: =BF39+BG39 -> 0 | BM39: =BK39+BL39 -> 0 | BO39: 34 | BQ39: 0 | BR39: 0 | BS39: 0 | BT39: 0 | BU39: 0 | BV39: 0 | BW39: 1
Q40: 0 | AD40: 0 | AI40: 0 | AN40: 0 | AS40: 0 | AX40: 0 | BC40: 0 | BH40: 0 | BM40: 0 | BO40: 35 | BQ40: 0 | BR40: 0 | BS40: 0 | BT40: 0 | BU40: 0 | BV40: 0 | BW40: 1
Q41: 0 | AD41: 0 | AI41: 0 | AN41: 0 | AS41: 0 | AX41: 0 | BC41: 0 | BH41: 0 | BM41: 0 | BO41: 36 | BQ41: 0 | BR41: 0 | BS41: 0 | BT41: 0 | BU41: 0 | BV41: 0 | BW41: 1
Q42: 0 | AD42: 0 | AI42: 0 | AN42: 0 | AS42: 0 | AX42: 0 | BC42: 0 | BH42: 0 | BM42: 0 | BO42: 37 | BQ42: 0 | BR42: 0 | BS42: 0 | BT42: 0 | BU42: 0 | BV42: 0 | BW42: 1
Q43: 0 | AD43: 0 | AI43: 0 | AN43: 0 | AS43: 0 | AX43: 0 | BC43: 0 | BH43: 0 | BM43: 0 | BO43: 38 | BQ43: 0 | BR43: 0 | BS43: 0 | BT43: 0 | BU43: 0 | BV43: 0 | BW43: 1
Q44: 0 | AD44: 0 | AI44: 0 | AN44: 0 | AS44: 0 | AX44: 0 | BC44: 0 | BH44: 0 | BM44: 0 | BO44: 39 | BQ44: 0 | BR44: 0 | BS44: 0 | BT44: 0 | BU44: 0 | BV44: 0 | BW44: 1
Q45: 0 | AD45: 0 | AI45: 0 | AN45: 0 | AS45: 0 | AX45: 0 | BC45: 0 | BH45: 0 | BM45: 0 | BO45: 40 | BQ45: 0 | BR45: 0 | BS45: 0 | BT45: 0 | BU45: 0 | BV45: 0 | BW45: 1
Q46: 0 | AD46: 0 | AI46: 0 | AN46: 0 | AS46: 0 | AX46: 0 | BC46: 0 | BH46: 0 | BM46: 0 | BO46: 41 | BQ46: 0 | BR46: 0 | BS46: 0 | BT46: 0 | BU46: 0 | BV46: 0 | BW46: 1
Q47: 0 | AD47: 0 | AI47: 0 | AN47: 0 | AS47: 0 | AX47: 0 | BC47: 0 | BH47: 0 | BM47: 0 | BO47: 42 | BQ47: 0 | BR47: 0 | BS47: 0 | BT47: 0 | BU47: 0 | BV47: 0 | BW47: 0
Q48: 0 | AD48: 0 | AI48: 0 | AN48: 0 | AS48: 0 | AX48: 0 | BC48: 0 | BH48: 0 | BM48: 0 | BO48: 43 | BQ48: 0 | BR48: 0 | BS48: 0 | BT48: 0 | BU48: 0 | BV48: 0 | BW48: 0
Q49: 0 | AD49: 0 | AI49: 0 | AN49: 0 | AS49: 0 | AX49: 0 | BC49: 0 | BH49: 0 | BM49: 0 | BO49: 44 | BQ49: 0 | BR49: 0 | BS49: 0 | BT49: 0 | BU49: 0 | BV49: 0 | BW49: 0
Q50: 0 | AD50: 0 | AI50: 0 | AN50: 0 | AS50: 0 | AX50: 0 | BC50: 0 | BH50: 0 | BM50: 0 | BO50: 45 | BQ50: 0 | BR50: 0 | BS50: 0 | BT50: 0 | BU50: 0 | BV50: 0 | BW50: 0
K51: =IF(AP51="","",AP51) ->  | Q51: 0 | AD51: 0 | AI51: 0 | AN51: 0 | AS51: 0 | AX51: 0 | BC51: 0 | BH51: 0 | BM51: 0 | BO51: 46 | BQ51: 0 | BR51: 0 | BS51: 0 | BT51: 0 | BU51: 0 | BV51: 0 | BW51: 0
Q52: 0 | AD52: 0 | AI52: 0 | AN52: 0 | AS52: 0 | AX52: 0 | BC52: 0 | BH52: 0 | BM52: 0 | BO52: 47 | BQ52: 0 | BR52: 0 | BS52: 0 | BT52: 0 | BU52: 0 | BV52: 0 | BW52: 0
Q53: 0 | AD53: 0 | AI53: 0 | AN53: 0 | AS53: 0 | AX53: 0 | BC53: 0 | BH53: 0 | BM53: 0 | BO53: 48 | BQ53: 0 | BR53: 0 | BS53: 0 | BT53: 0 | BU53: 0 | BV53: 0 | BW53: 0

Sheet G12 2017
A1: Resultatliste Oslo Cup 2017 - Gutter 12 år
A2: ='Forside 2017'!A2 -> Etter 5 av 8 renn
H3: IRS Rennet | I3: Ljan Rennet | J3: Njård Rennet | K3: Ready Rennet | L3: Telenor Arena Cup | M3: Euro-tecfarten | N3: Oslo Alpinfestival SL | O3: Oslo Alpinfestival SSL | R3: IRS Rennet | S3: Ljan Rennet | T3: Njård Rennet | U3: Ready Rennet | V3: Telenor Arena Cup | W3: Euro-tecfarten | X3: Oslo Alpinfestival SL | Y3: Oslo Alpinfestival SSL | AA3: --------IRS Rennet---------- | AF3: ----------Ljan Rennet--------- | AK3: --------Njård Rennet---------- | AP3: --------Ready Rennet--------- | AU3: -----Telenor Arena Cup---- | AZ3: ------Euro-tecfarten-------- | BE3: ---Oslo Alpinfestival SL--- | BJ3: ---Oslo Alpinfestival SSL---
F4: Antall | H4: 2016-02-04 | I4: 2016-02-05 | J4: 2016-02-10 | K4: 2016-02-11 | L4: 2016-02-15 | M4: 2016-03-01 | N4: 2017-03-11 | O4: 2016-03-12 | Q4: Poeng | R4: 2016-02-04 | S4: 2016-02-05 | T4: 2016-02-10 | U4: 2016-02-11 | V4: 2016-02-15 | W4: 2016-03-01 | X4: 2017-03-11 | Y4: 2016-03-12 | AB4: --------Poeng-------- | AG4: --------Poeng-------- | AL4: -------Poeng--------- | AQ4: -------Poeng--------- | AV4: -------Poeng--------- | BA4: -------Poeng--------- | BF4: -------Poeng--------- | BK4: -------Poeng--------- | BQ4: Løpere med | BR4: Løpere med | BS4: Løpere med | BT4: Løpere med | BU4: Løpere med | BV4: Løpere med | BW4: Løpere med
A5: Plass | B5: Etternavn | C5: Fornavn | D5: Klubb | E5: Poeng | F5: renn | H5: ------------------------------Plassering i rennene--------------------------------- | Q5: brutto | R5: ----------------Resultatpoeng hvis mer enn 4 renn---------------- | AA5: Plass | AB5: Res. | AC5: Del. | AD5: Tot. | AF5: Plass | AG5: Res. | AH5: Del. | AI5: Tot. | AK5: Plass | AL5: Res. | AM5: Del. | AN5: Tot. | AP5: Plass | AQ5: Res. | AR5: Del. | AS5: Tot. | AU5: Plass | AV5: Res. | AW5: Del. | AX5: Tot. | AZ5: Plass | BA5: Res. | BB5: Del. | BC5: Tot. | BE5: Plass | BF5: Res. | BG5: Del. | BH5: Tot. | BJ5: Plass | BK5: Res. | BL5: Del. | BM5: Tot. | BQ5: 8 renn | BR5: 7 renn | BS5: 6 renn | BT5: 5 renn | BU5: 4 renn | BV5: 3 renn | BW5: kun 1 renn
A6: 1 | B6: Fosseidbråten | C6: Joakim | D6: Ready | E6: =Q6-R6 -> 365 | F6: =COUNT(AC6,AH6,AM6,AR6,AW6,BB6,BG6,BL6) -> 5 | H6: =IF(AA6="","",AA6) -> 14 | I6: =IF(AF6="","",AF6) -> 2 | J6: =IF(AK6="","",AK6) -> 1 | K6: =IF(AP6="","",AP6) -> 1 | L6: =IF(AU6="","",AU6) -> 3 | M6: =IF(AZ6="","",AZ6) ->  | N6: =IF(BE6="","",BE6) ->  | O6: =IF(BJ6="","",BJ6) ->  | Q6: =AD6+AI6+AN6+AS6+AX6+BC6+BH6 -> 383 | R6: =IF($F6>=5,IF(AB6="","",AB6),"") -> 18 | S6: =IF($F6>=5,IF(AG6="","",AG6),"") -> 80 | T6: =IF($F6>=5,IF(AL6="","",AL6),"") -> 100 | U6: =IF($F6>=5,IF(AQ6="","",AQ6),"") -> 100 | V6: =IF($F6>=5,IF(AV6="","",AV6),"") -> 60 | W6: =IF($F6>=5,IF(BA6="","",BA6),"") ->  | X6: =IF($F6>=5,IF(BF6="","",BF6),"") ->  | Y6: =IF($F6>=5,IF(BK6="","",BK6),"") ->  | AA6: 14 | AB6: 18 | AC6: 5 | AD6: =AB6+AC6 -> 23 | AF6: 2 | AG6: 80 | AH6: 5 | AI6: =AG6+AH6 -> 85 | AK6: 1 | AL6: 100 | AM6: 5 | AN6: =AL6+AM6 -> 105 | AP6: 1 | AQ6: 100 | AR6: 5 | AS6: =AQ6+AR6 -> 105 | AU6: 3 | AV6: 60 | AW6: 5 | AX6: =AV6+AW6 -> 65 | BC6: =BA6+BB6 -> 0 | BH6: =BF6+BG6 -> 0 | BM6: =BK6+BL6 -> 0 | BO6: 1 | BP6: 100 | BQ6: =IF($F6=7,1,0) -> 0 | BR6: =IF($F6=6,1,0) -> 0 | BS6: =IF($F6=5,1,0) -> 1 | BT6: =IF($F6=4,1,0) -> 0 | BU6: =IF($F6=3,1,0) -> 0 | BV6: =IF($F6=2,1,0) -> 0 | BW6: =IF($F6=1,1,0) -> 0
A7: =IF(E7<E6,BO7,A6) -> 1 | B7: Ulrichsen Vigsnæs | C7: Victor | D7: Heming | E7: =Q7-R7 -> 365 | F7: 5 | H7: 13 | I7: 1 | J7: 2 | K7: 2 | L7: 2 | Q7: =AD7+AI7+AN7+AS7+AX7+BC7+BH7 -> 385 | R7: 20 | S7: 100 | T7: 80 | U7: 80 | V7: 80 | AA7: 13 | AB7: 20 | AC7: 5 | AD7: 25 | AF7: 1 | AG7: 100 | AH7: 5 | AI7: 105 | AK7: 2 | AL7: 80 | AM7: 5 | AN7: 85 | AP7: 2 | AQ7: 80 | AR7: 5 | AS7: 85 | AU7: 2 | AV7: 80 | AW7: 5 | AX7: 85 | BC7: 0 | BH7: 0 | BM7: 0 | BO7: 2 | BP7: 80 | BQ7: =IF($F7=7,1,0) -> 0 | BR7: =IF($F7=6,1,0) -> 0 | BS7: =IF($F7=5,1,0) -> 1 | BT7: =IF($F7=4,1,0) -> 0 | BU7: =IF($F7=3,1,0) -> 0 | BV7: =IF($F7=2,1,0) -> 0 | BW7: =IF($F7=1,1,0) -> 0
A8: 3 | B8: Fredriksen | C8: Mathias | D8: Heming | E8: =Q8 -> 237 | F8: 5 | H8: 1 | I8: DSQ | J8: 4 | K8: 12 | L8: 6 | Q8: =AD8+AI8+AN8+AS8+AX8+BC8+BH8 -> 237 | R8: 100 | S8: 0 | T8: 50 | U8: 22 | V8: 40 | AA8: 1 | AB8: 100 | AC8: 5 | AD8: 105 | AF8: DSQ | AG8: 0 | AH8: 5 | AI8: 5 | AK8: 4 | AL8: 50 | AM8: 5 | AN8: 55 | AP8: 12 | AQ8: 22 | AR8: 5 | AS8: 27 | AU8: 6 | AV8: 40 | AW8: 5 | AX8: 45 | BC8: 0 | BH8: 0 | BM8: 0 | BO8: 3 | BP8: 60 | BQ8: 0 | BR8: 0 | BS8: 1 | BT8: 0 | BU8: 0 | BV8: 0 | BW8: 0
A9: 4 | B9: Østrøm | C9: Christoffer | D9: Heming | E9: =Q9-T9 -> 234 | F9: 5 | H9: 2 | I9: 3 | J9: 10 | K9: 6 | L9: 9 | Q9: =AD9+AI9+AN9+AS9+AX9+BC9+BH9 -> 260 | R9: 80 | S9: 60 | T9: 26 | U9: 40 | V9: 29 | AA9: 2 | AB9: 80 | AC9: 5 | AD9: 85 | AF9: 3 | AG9: 60 | AH9: 5 | AI9: 65 | AK9: 10 | AL9: 26 | AM9: 5 | AN9: 31 | AP9: 6 | AQ9: 40 | AR9: 5 | AS9: 45 | AU9: 9 | AV9: 29 | AW9: 5 | AX9: 34 | BC9: 0 | BH9: 0 | BM9: 0 | BO9: 4 | BP9: 50 | BQ9: 0 | BR9: 0 | BS9: 1 | BT9: 0 | BU9: 0 | BV9: 0 | BW9: 0
A10: 5 | B10: Bakkevig | C10: Rasmus | D10: Heming | E10: =Q10-S10 -> 231 | F10: 5 | H10: 10 | I10: 13 | J10: 3 | K10: 13 | L10: 1 | Q10: =AD10+AI10+AN10+AS10+AX10+BC10+BH10+BM10 -> 251 | R10: 26 | S10: 20 | T10: 60 | U10: 20 | V10: 100 | AA10: 10 | AB10: 26 | AC10: 5 | AD10: 31 | AF10: 13 | AG10: 20 | AH10: 5 | AI10: 25 | AK10: 3 | AL10: 60 | AM10: 5 | AN10: 65 | AP10: 13 | AQ10: 20 | AR10: 5 | AS10: 25 | AU10: 1 | AV10: 100 | AW10: 5 | AX10: 105 | BC10: 0 | BH10: 0 | BM10: 0 | BO10: 5 | BP10: 45 | BQ10: 0 | BR10: 0 | BS10: 1 | BT10: 0 | BU10: 0 | BV10: 0 | BW10: 0
A11: 6 | B11: Solheim | C11: Erik Lund | D11: Ready | E11: =Q11-V11 -> 225 | F11: 5 | H11: 4 | I11: 4 | J11: 6 | K11: 3 | L11: 14 | Q11: =AD11+AI11+AN11+AS11+AX11+BC11+BH11 -> 243 | R11: 50 | S11: 50 | T11: 40 | U11: 60 | V11: 18 | AA11: 4 | AB11: 50 | AC11: 5 | AD11: 55 | AF11: 4 | AG11: 50 | AH11: 5 | AI11: 55 | AK11: 6 | AL11: 40 | AM11: 5 | AN11: 45 | AP11: 3 | AQ11: 60 | AR11: 5 | AS11: 65 | AU11: 14 | AV11: 18 | AW11: 5 | AX11: 23 | BC11: 0 | BH11: 0 | BM11: 0 | BO11: 6 | BP11: 40 | BQ11: 0 | BR11: 0 | BS11: 1 | BT11: 0 | BU11: 0 | BV11: 0 | BW11: 0
A12: 7 | B12: Nergaard | C12: Sverre | D12: Heming | E12: =Q12 -> 191 | F12: 5 | H12: 6 | I12: DSQ | J12: 6 | K12: 4 | L12: 7 | Q12: 191 | R12: 40 | S12: 0 | T12: 40 | U12: 50 | V12: 36 | AA12: 6 | AB12: 40 | AC12: 5 | AD12: 45 | AF12: DSQ | AG12: 0 | AH12: 5 | AI12: 5 | AK12: 6 | AL12: 40 | AM12: 5 | AN12: 45 | AP12: 4 | AQ12: 50 | AR12: 5 | AS12: 55 | AU12: 7 | AV12: 36 | AW12: 5 | AX12: 41 | BC12: 0 | BH12: 0 | BM12: 0 | BO12: 7 | BP12: 36 | BQ12: 0 | BR12: 0 | BS12: 1 | BT12: 0 | BU12: 0 | BV12: 0 | BW12: 0
A13: 8 | B13: Lorentzen | C13: Carl Axel | D13: Heming | E13: =Q13 -> 171 | F13: 5 | H13: 3 | I13: DSQ | J13: 5 | K13: 9 | L13: 8 | Q13: 171 | R13: 60 | S13: 0 | T13: 45 | U13: 9 | V13: 32 | AA13: 3 | AB13: 60 | AC13: 5 | AD13: 65 | AF13: DSQ | AG13: 0 | AH13: 5 | AI13: 5 | AK13: 5 | AL13: 45 | AM13: 5 | AN13: 50 | AP13: 9 | AQ13: 9 | AR13: 5 | AS13: 14 | AU13: 8 | AV13: 32 | AW13: 5 | AX13: 37 | BC13: 0 | BH13: 0 | BM13: 0 | BO13: 8 | BP13: 32 | BQ13: 0 | BR13: 0 | BS13: 1 | BT13: 0 | BU13: 0 | BV13: 0 | BW13: 0
A14: 9 | B14: Buchardt | C14: Aksel | D14: Heming | E14: =Q14 -> 166 | F14: 4 | H14: 8 | I14: 6 | J14: 9 | K14: 5 | Q14: 166 | AA14: 8 | AB14: 32 | AC14: 5 | AD14: 37 | AF14: 6 | AG14: 40 | AH14: 5 | AI14: 45 | AK14: 9 | AL14: 29 | AM14: 5 | AN14: 34 | AP14: 5 | AQ14: 45 | AR14: 5 | AS14: 50 | AX14: 0 | BC14: 0 | BH14: 0 | BM14: 0 | BO14: 9 | BP14: 29 | BQ14: 0 | BR14: 0 | BS14: 0 | BT14: 1 | BU14: 0 | BV14: 0 | BW14: 0
A15: 10 | B15: Torrissen | C15: Philip Ingulstad | D15: Kjelsås | E15: =Q15-T15 -> 131 | F15: 5 | H15: 11 | I15: 7 | J15: 15 | K15: 11 | L15: 12 | N15: =IF(AZ15="","",AZ15) ->  | O15: =IF(BE15="","",BE15) ->  | Q15: 147 | R15: 24 | S15: 36 | T15: 16 | U15: 24 | V15: 22 | AA15: 11 | AB15: 24 | AC15: 5 | AD15: 29 | AF15: 7 | AG15: 36 | AH15: 5 | AI15: 41 | AK15: 15 | AL15: 16 | AM15: 5 | AN15: 21 | AP15: 11 | AQ15: 24 | AR15: 5 | AS15: 29 | AU15: 12 | AV15: 22 | AW15: 5 | AX15: 27 | BC15: 0 | BH15: 0 | BM15: 0 | BO15: 10 | BP15: 26 | BQ15: 0 | BR15: 0 | BS15: 1 | BT15: 0 | BU15: 0 | BV15: 0 | BW15: 0
A16: 11 | B16: Maaø | C16: Filippo Fregosi | D16: IRS | E16: =Q16 -> 119 | F16: 5 | H16: 9 | I16: 5 | J16: 13 | K16: DNF | L16: DNF | N16: =IF(BE16="","",BE16) ->  | O16: =IF(BJ16="","",BJ16) ->  | Q16: 119 | R16: 29 | S16: 45 | T16: 20 | U16: 0 | V16: 0 | AA16: 9 | AB16: 29 | AC16: 5 | AD16: 34 | AF16: 5 | AG16: 45 | AH16: 5 | AI16: 50 | AK16: 13 | AL16: 20 | AM16: 5 | AN16: 25 | AP16: DNF | AQ16: 0 | AR16: 5 | AS16: 5 | AU16: DNF | AV16: 0 | AW16: 5 | AX16: 5 | BC16: 0 | BH16: 0 | BM16: 0 | BO16: 11 | BP16: 24 | BQ16: 0 | BR16: 0 | BS16: 1 | BT16: 0 | BU16: 0 | BV16: 0 | BW16: 0
A17: 12 | B17: Gjetsund | C17: Eivind | D17: Heming | E17: 97 | F17: 3 | J17: 11 | K17: 8 | L17: 10 | N17: =IF(AZ17="","",AZ17) ->  | O17: =IF(BE17="","",BE17) ->  | Q17: 97 | AD17: 0 | AI17: 0 | AK17: 11 | AL17: 24 | AM17: 5 | AN17: 29 | AP17: 8 | AQ17: 32 | AR17: 5 | AS17: 37 | AU17: 10 | AV17: 26 | AW17: 5 | AX17: 31 | BC17: 0 | BH17: 0 | BM17: 0 | BO17: 12 | BP17: 22 | BQ17: 0 | BR17: 0 | BS17: 0 | BT17: 0 | BU17: 1 | BV17: 0 | BW17: 0
A18: 13 | B18: Holst | C18: Marcus Normann | D18: Kjelsås | E18: 83 | F18: 5 | H18: DSQ | I18: DSQ | J18: 12 | K18: 7 | L18: DNF | N18: =IF(BE18="","",BE18) ->  | O18: =IF(BJ18="","",BJ18) ->  | Q18: 83 | R18: 0 | S18: 0 | T18: 22 | U18: 36 | V18: 0 | AA18: DSQ | AB18: 0 | AC18: 5 | AD18: 5 | AF18: DSQ | AG18: 0 | AH18: 5 | AI18: 5 | AK18: 12 | AL18: 22 | AM18: 5 | AN18: 27 | AP18: 7 | AQ18: 36 | AR18: 5 | AS18: 41 | AU18: DNF | AV18: 0 | AW18: 5 | AX18: 5 | BC18: 0 | BH18: 0 | BM18: 0 | BO18: 13 | BP18: 20 | BQ18: 0 | BR18: 0 | BS18: 1 | BT18: 0 | BU18: 0 | BV18: 0 | BW18: 0
A19: 14 | B19: Schei | C19: Viktor | D19: IRS | E19: 77 | F19: 3 | I19: 8 | K19: 10 | L19: 11 | N19: =IF(BE19="","",BE19) ->  | O19: =IF(BJ19="","",BJ19) ->  | Q19: 77 | AD19: 0 | AF19: 8 | AG19: 32 | AH19: 5 | AI19: 37 | AN19: 0 | AP19: 10 | AQ19: 6 | AR19: 5 | AS19: 11 | AU19: 11 | AV19: 24 | AW19: 5 | AX19: 29 | BC19: 0 | BH19: 0 | BM19: 0 | BO19: 14 | BP19: 18 | BQ19: =IF($F18=7,1,0) -> 0 | BR19: =IF($F18=6,1,0) -> 0 | BS19: =IF($F18=5,1,0) -> 1 | BT19: =IF($F18=4,1,0) -> 0 | BU19: =IF($F18=3,1,0) -> 0 | BV19: =IF($F18=2,1,0) -> 0 | BW19: =IF($F18=1,1,0) -> 0
A20: 15 | B20: Nordklev | C20: Ola | D20: Heming | E20: 70 | F20: 2 | H20: 7 | I20: 11 | N20: =IF(BE20="","",BE20) ->  | O20: =IF(BJ20="","",BJ20) ->  | Q20: 70 | AA20: 7 | AB20: 36 | AC20: 5 | AD20: 41 | AF20: 11 | AG20: 24 | AH20: 5 | AI20: 29 | AN20: 0 | AS20: 0 | AX20: 0 | BC20: 0 | BH20: 0 | BM20: 0 | BO20: 15 | BP20: 16 | BQ20: =IF($F19=7,1,0) -> 0 | BR20: =IF($F19=6,1,0) -> 0 | BS20: =IF($F19=5,1,0) -> 0 | BT20: =IF($F19=4,1,0) -> 0 | BU20: =IF($F19=3,1,0) -> 1 | BV20: =IF($F19=2,1,0) -> 0 | BW20: =IF($F19=1,1,0) -> 0
A21: 16 | B21: Pedersen | C21: Sondre | D21: Ullensaker | E21: 58 | F21: 2 | H21: 12 | I21: 10 | N21: =IF(BE21="","",BE21) ->  | O21: =IF(BJ21="","",BJ21) ->  | Q21: 58 | AA21: 12 | AB21: 22 | AC21: 5 | AD21: 27 | AF21: 10 | AG21: 26 | AH21: 5 | AI21: 31 | AN21: 0 | AS21: 0 | AX21: 0 | BC21: 0 | BH21: 0 | BM21: 0 | BO21: 16 | BP21: 15 | BQ21: =IF($F20=7,1,0) -> 0 | BR21: =IF($F20=6,1,0) -> 0 | BS21: =IF($F20=5,1,0) -> 0 | BT21: =IF($F20=4,1,0) -> 0 | BU21: =IF($F20=3,1,0) -> 0 | BV21: =IF($F20=2,1,0) -> 1 | BW21: =IF($F20=1,1,0) -> 0
A22: 17 | B22: Lunder | C22: Peder | D22: Stabæk | E22: 55 | F22: 1 | L22: 4 | N22: =IF(AZ22="","",AZ22) ->  | O22: =IF(BE22="","",BE22) ->  | Q22: 55 | AD22: 0 | AI22: 0 | AN22: 0 | AS22: 0 | AU22: 4 | AV22: 50 | AW22: 5 | AX22: 55 | BC22: 0 | BH22: 0 | BM22: 0 | BO22: 17 | BP22: 14 | BQ22: =IF($F20=7,1,0) -> 0 | BR22: =IF($F20=6,1,0) -> 0 | BS22: =IF($F20=5,1,0) -> 0 | BT22: =IF($F20=4,1,0) -> 0 | BU22: =IF($F20=3,1,0) -> 0 | BV22: =IF($F20=2,1,0) -> 1 | BW22: =IF($F20=1,1,0) -> 0
A23: 18 | B23: Brandt | C23: Kasper | D23: Heming | E23: 53 | F23: 3 | J23: 14 | K23: DNF | L23: 13 | N23: =IF(BE23="","",BE23) ->  | O23: =IF(BJ23="","",BJ23) ->  | Q23: 53 | AD23: 0 | AI23: 0 | AK23: 14 | AL23: 18 | AM23: 5 | AN23: 23 | AP23: DNF | AQ23: 0 | AR23: 5 | AS23: 5 | AU23: 13 | AV23: 20 | AW23: 5 | AX23: 25 | BC23: 0 | BH23: 0 | BM23: 0 | BO23: 18 | BP23: 13 | BQ23: =IF($F21=7,1,0) -> 0 | BR23: =IF($F21=6,1,0) -> 0 | BS23: =IF($F21=5,1,0) -> 0 | BT23: =IF($F21=4,1,0) -> 0 | BU23: =IF($F21=3,1,0) -> 0 | BV23: =IF($F21=2,1,0) -> 1 | BW23: =IF($F21=1,1,0) -> 0
A24: 19 | B24: Cappelen Mazzocchi | C24: Mats | D24: Heming | E24: 50 | F24: 1 | H24: 5 | N24: =IF(BE24="","",BE24) ->  | O24: =IF(BJ24="","",BJ24) ->  | Q24: 50 | AA24: 5 | AB24: 45 | AC24: 5 | AD24: 50 | AI24: 0 | AN24: 0 | AS24: 0 | AX24: 0 | BC24: 0 | BH24: 0 | BM24: 0 | BO24: 19 | BP24: 12 | BQ24: =IF($F22=7,1,0) -> 0 | BR24: =IF($F22=6,1,0) -> 0 | BS24: =IF($F22=5,1,0) -> 0 | BT24: =IF($F22=4,1,0) -> 0 | BU24: =IF($F22=3,1,0) -> 0 | BV24: =IF($F22=2,1,0) -> 0 | BW24: =IF($F22=1,1,0) -> 1
A25: 19 | B25: Bengston | C25: Sebastian | D25: Heming | E25: 50 | F25: 1 | L25: 5 | N25: =IF(AZ25="","",AZ25) ->  | O25: =IF(BE25="","",BE25) ->  | Q25: 50 | AD25: 0 | AI25: 0 | AN25: 0 | AS25: 0 | AU25: 5 | AV25: 45 | AW25: 5 | AX25: 50 | BC25: 0 | BH25: 0 | BM25: 0 | BO25: 20 | BP25: 11 | BQ25: =IF($F23=7,1,0) -> 0 | BR25: =IF($F23=6,1,0) -> 0 | BS25: =IF($F23=5,1,0) -> 0 | BT25: =IF($F23=4,1,0) -> 0 | BU25: =IF($F23=3,1,0) -> 1 | BV25: =IF($F23=2,1,0) -> 0 | BW25: =IF($F23=1,1,0) -> 0
A26: 21 | B26: Rasmussen | C26: Jonathan Holst | D26: Stabæk | E26: 37 | F26: 1 | J26: 8 | N26: =IF(BE26="","",BE26) ->  | O26: =IF(BJ26="","",BJ26) ->  | Q26: 37 | AD26: 0 | AI26: 0 | AK26: 8 | AL26: 32 | AM26: 5 | AN26: 37 | AS26: 0 | AX26: 0 | BC26: 0 | BH26: 0 | BM26: 0 | BO26: 21 | BP26: 10 | BQ26: =IF($F24=7,1,0) -> 0 | BR26: =IF($F24=6,1,0) -> 0 | BS26: =IF($F24=5,1,0) -> 0 | BT26: =IF($F24=4,1,0) -> 0 | BU26: =IF($F24=3,1,0) -> 0 | BV26: =IF($F24=2,1,0) -> 0 | BW26: =IF($F24=1,1,0) -> 1
A27: 22 | B27: Hassel | C27: Anton | D27: Kjelsås | E27: 31 | F27: 1 | I27: 9 | N27: =IF(BE27="","",BE27) ->  | O27: =IF(BJ27="","",BJ27) ->  | Q27: 31 | AD27: 0 | AF27: 9 | AG27: 26 | AH27: 5 | AI27: 31 | AN27: 0 | AS27: 0 | AX27: 0 | BC27: 0 | BH27: 0 | BM27: 0 | BO27: 22 | BP27: 9 | BQ27: 0 | BR27: 0 | BS27: 0 | BT27: 0 | BU27: 0 | BV27: 0 | BW27: 1
A28: 23 | B28: Gras | C28: Nicolas | D28: Ljan | E28: 27 | F28: 1 | I28: 12 | N28: =IF(BE28="","",BE28) ->  | O28: =IF(BJ28="","",BJ28) ->  | Q28: 27 | AD28: 0 | AF28: 12 | AG28: 22 | AH28: 5 | AI28: 27 | AN28: 0 | AS28: 0 | AX28: 0 | BC28: 0 | BH28: 0 | BM28: 0 | BO28: 23 | BP28: 8 | BQ28: 0 | BR28: 0 | BS28: 0 | BT28: 0 | BU28: 0 | BV28: 0 | BW28: 1
A29: 24 | B29: Ellefsen | C29: Nicolay | D29: Ljan | E29: 23 | F29: 1 | I29: 14 | M29: =IF(AU29="","",AU29) ->  | N29: =IF(AZ29="","",AZ29) ->  | O29: =IF(BE29="","",BE29) ->  | Q29: 23 | AD29: 0 | AF29: 14 | AG29: 18 | AH29: 5 | AI29: 23 | AN29: 0 | AS29: 0 | AX29: 0 | BC29: 0 | BH29: 0 | BM29: 0 | BO29: 24 | BP29: 7 | BQ29: =IF($F24=7,1,0) -> 0 | BR29: =IF($F24=6,1,0) -> 0 | BS29: =IF($F24=5,1,0) -> 0 | BT29: =IF($F24=4,1,0) -> 0 | BU29: =IF($F24=3,1,0) -> 0 | BV29: =IF($F24=2,1,0) -> 0 | BW29: =IF($F24=1,1,0) -> 1
A30: 25 | B30: Sellæg | C30: Johannes | D30: Ready | E30: 5 | F30: 1 | H30: DNF | M30: =IF(AZ30="","",AZ30) ->  | N30: =IF(BE30="","",BE30) ->  | O30: =IF(BJ30="","",BJ30) ->  | Q30: 5 | AA30: DNF | AB30: 0 | AC30: 5 | AD30: 5 | AI30: 0 | AN30: 0 | AS30: 0 | AX30: 0 | BC30: 0 | BH30: 0 | BM30: 0 | BO30: 25 | BP30: 6 | BQ30: =IF($F25=7,1,0) -> 0 | BR30: =IF($F25=6,1,0) -> 0 | BS30: =IF($F25=5,1,0) -> 0 | BT30: =IF($F25=4,1,0) -> 0 | BU30: =IF($F25=3,1,0) -> 0 | BV30: =IF($F25=2,1,0) -> 0 | BW30: =IF($F25=1,1,0) -> 1
A31: 25 | B31: Opsann | C31: Didrik Kalland | D31: IRS | E31: 5 | F31: 1 | H31: DSQ | M31: =IF(AZ31="","",AZ31) ->  | N31: =IF(BE31="","",BE31) ->  | O31: =IF(BJ31="","",BJ31) ->  | Q31: 5 | AA31: DSQ | AB31: 0 | AC31: 5 | AD31: 5 | AI31: 0 | AN31: 0 | AS31: 0 | AX31: 0 | BC31: 0 | BH31: 0 | BM31: 0 | BO31: 26 | BP31: 5 | BQ31: =IF($F26=7,1,0) -> 0 | BR31: =IF($F26=6,1,0) -> 0 | BS31: =IF($F26=5,1,0) -> 0 | BT31: =IF($F26=4,1,0) -> 0 | BU31: =IF($F26=3,1,0) -> 0 | BV31: =IF($F26=2,1,0) -> 0 | BW31: =IF($F26=1,1,0) -> 1
H32: =IF(AA32="","",AA32) ->  | I32: =IF(AF32="","",AF32) ->  | J32: =IF(AK32="","",AK32) ->  | K32: =IF(AP32="","",AP32) ->  | L32: =IF(AU32="","",AU32) ->  | M32: =IF(AU32="","",AU32) ->  | N32: =IF(AZ32="","",AZ32) ->  | O32: =IF(BE32="","",BE32) ->  | Q32: =AD32+AI32+AN32+AS32+AX32+BC32+BH32 -> 0 | R32: =IF($F32>=5,IF(AB32="","",AB32),"") ->  | S32: =IF($F32>=5,IF(AG32="","",AG32),"") ->  | T32: =IF($F32>=5,IF(AL32="","",AL32),"") ->  | U32: =IF($F32>=5,IF(AQ32="","",AQ32),"") ->  | V32: =IF($F32>=5,IF(AV32="","",AV32),"") ->  | W32: =IF($F32>=5,IF(BA32="","",BA32),"") ->  | X32: =IF($F32>=5,IF(BF32="","",BF32),"") ->  | Y32: =IF($F32>=5,IF(BK32="","",BK32),"") ->  | AD32: =AB32+AC32 -> 0 | AI32: =AG32+AH32 -> 0 | AN32: =AL32+AM32 -> 0 | AS32: =AQ32+AR32 -> 0 | AX32: =AV32+AW32 -> 0 | BC32: =BA32+BB32 -> 0 | BH32: =BF32+BG32 -> 0 | BM32: =BK32+BL32 -> 0 | BO32: 27 | BP32: 4 | BQ32: =IF($F26=7,1,0) -> 0 | BR32: =IF($F26=6,1,0) -> 0 | BS32: =IF($F26=5,1,0) -> 0 | BT32: =IF($F26=4,1,0) -> 0 | BU32: =IF($F26=3,1,0) -> 0 | BV32: =IF($F26=2,1,0) -> 0 | BW32: =IF($F26=1,1,0) -> 1
Q33: 0 | AD33: 0 | AI33: 0 | AN33: 0 | AS33: 0 | AX33: 0 | BC33: 0 | BH33: 0 | BM33: 0 | BO33: 28 | BP33: 3 | BQ33: =IF($F27=7,1,0) -> 0 | BR33: =IF($F27=6,1,0) -> 0 | BS33: =IF($F27=5,1,0) -> 0 | BT33: =IF($F27=4,1,0) -> 0 | BU33: =IF($F27=3,1,0) -> 0 | BV33: =IF($F27=2,1,0) -> 0 | BW33: =IF($F27=1,1,0) -> 1
Q34: 0 | AD34: 0 | AI34: 0 | AN34: 0 | AS34: 0 | AX34: 0 | BC34: 0 | BH34: 0 | BM34: 0 | BO34: 29 | BP34: 2 | BQ34: 0 | BR34: 0 | BS34: 0 | BT34: 0 | BU34: 0 | BV34: 0 | BW34: 1
K35: =IF(AP35="","",AP35) ->  | Q35: 0 | W35: =IF($F35>=5,IF(AV35="","",AV35),"") ->  | X35: =IF($F35>=5,IF(BA35="","",BA35),"") ->  | Y35: =IF($F35>=5,IF(BF35="","",BF35),"") ->  | AD35: 0 | AI35: 0 | AN35: 0 | AS35: 0 | AX35: 0 | BC35: 0 | BH35: 0 | BM35: 0 | BO35: 30 | BP35: 1 | BQ35: 0 | BR35: 0 | BS35: 0 | BT35: 0 | BU35: 0 | BV35: 0 | BW35: 1
Q36: 0 | U36: =IF($F36>=5,IF(AQ36="","",AQ36),"") ->  | AD36: 0 | AI36: 0 | AN36: 0 | AS36: 0 | AX36: 0 | BC36: 0 | BH36: 0 | BM36: 0 | BO36: 31 | BQ36: =IF($F27=7,1,0) -> 0 | BR36: =IF($F27=6,1,0) -> 0 | BS36: =IF($F27=5,1,0) -> 0 | BT36: =IF($F27=4,1,0) -> 0 | BU36: =IF($F27=3,1,0) -> 0 | BV36: =IF($F27=2,1,0) -> 0 | BW36: =IF($F27=1,1,0) -> 1
Q37: 0 | AD37: 0 | AI37: 0 | AN37: 0 | AS37: 0 | AX37: 0 | BC37: 0 | BH37: 0 | BM37: 0 | BO37: 32 | BQ37: 0 | BR37: 0 | BS37: 0 | BT37: 0 | BU37: 0 | BV37: 0 | BW37: 1
Q38: 0 | R38: =IF($F29>=5,IF(AB38="","",AB38),"") ->  | S38: =IF($F29>=5,IF(AG38="","",AG38),"") ->  | T38: =IF($F29>=5,IF(AL38="","",AL38),"") ->  | U38: =IF($F29>=5,IF(AQ38="","",AQ38),"") ->  | W38: =IF($F29>=5,IF(AV38="","",AV38),"") ->  | X38: =IF($F29>=5,IF(BA38="","",BA38),"") ->  | Y38: =IF($F29>=5,IF(BF38="","",BF38),"") ->  | AD38: 0 | AI38: 0 | AN38: 0 | AS38: 0 | AX38: 0 | BC38: 0 | BH38: 0 | BM38: 0 | BO38: 33 | BQ38: 0 | BR38: 0 | BS38: 0 | BT38: 0 | BU38: 0 | BV38: 0 | BW38: 1
Q39: 0 | AD39: 0 | AI39: 0 | AN39: 0 | AS39: 0 | AX39: 0 | BC39: 0 | BH39: 0 | BM39: 0 | BO39: 34 | BQ39: 0 | BR39: 0 | BS39: 0 | BT39: 0 | BU39: 0 | BV39: 0 | BW39: 1
Q40: 0 | AD40: 0 | AI40: 0 | AN40: 0 | AS40: 0 | AX40: 0 | BC40: 0 | BH40: 0 | BM40: 0 | BO40: 35 | BQ40: 0 | BR40: 0 | BS40: 0 | BT40: 0 | BU40: 0 | BV40: 0 | BW40: 1
Q41: 0 | AD41: 0 | AI41: 0 | AN41: 0 | AS41: 0 | AX41: 0 | BC41: 0 | BH41: 0 | BM41: 0 | BO41: 36 | BQ41: 0 | BR41: 0 | BS41: 0 | BT41: 0 | BU41: 0 | BV41: 0 | BW41: 0
Q42: 0 | AD42: 0 | AI42: 0 | AN42: 0 | AS42: 0 | AX42: 0 | BC42: 0 | BH42: 0 | BM42: 0 | BO42: 37 | BQ42: 0 | BR42: 0 | BS42: 0 | BT42: 0 | BU42: 0 | BV42: 0 | BW42: 0
Q43: 0 | AD43: 0 | AI43: 0 | AN43: 0 | AS43: 0 | AX43: 0 | BC43: 0 | BH43: 0 | BM43: 0 | BO43: 38 | BQ43: 0 | BR43: 0 | BS43: 0 | BT43: 0 | BU43: 0 | BV43: 0 | BW43: 0
Q44: 0 | AD44: 0 | AI44: 0 | AN44: 0 | AS44: 0 | AX44: 0 | BC44: 0 | BH44: 0 | BM44: 0 | BO44: 39 | BQ44: 0 | BR44: 0 | BS44: 0 | BT44: 0 | BU44: 0 | BV44: 0 | BW44: 0
Q45: 0 | AD45: 0 | AI45: 0 | AN45: 0 | AS45: 0 | AX45: 0 | BC45: 0 | BH45: 0 | BM45: 0 | BO45: 40 | BQ45: 0 | BR45: 0 | BS45: 0 | BT45: 0 | BU45: 0 | BV45: 0 | BW45: 0
Q46: 0 | AD46: 0 | AI46: 0 | AN46: 0 | AS46: 0 | AX46: 0 | BC46: 0 | BH46: 0 | BM46: 0 | BO46: 41 | BQ46: 0 | BR46: 0 | BS46: 0 | BT46: 0 | BU46: 0 | BV46: 0 | BW46: 0
Q47: 0 | AD47: 0 | AI47: 0 | AN47: 0 | AS47: 0 | AX47: 0 | BC47: 0 | BH47: 0 | BM47: 0 | BO47: 42 | BQ47: 0 | BR47: 0 | BS47: 0 | BT47: 0 | BU47: 0 | BV47: 0 | BW47: 0
Q48: 0 | AD48: 0 | AI48: 0 | AN48: 0 | AS48: 0 | AX48: 0 | BC48: 0 | BH48: 0 | BM48: 0 | BO48: 43 | BQ48: 0 | BR48: 0 | BS48: 0 | BT48: 0 | BU48: 0 | BV48: 0 | BW48: 0
Q49: 0 | AD49: 0 | AI49: 0 | AN49: 0 | AS49: 0 | AX49: 0 | BC49: 0 | BH49: 0 | BM49: 0 | BO49: 44 | BQ49: 0 | BR49: 0 | BS49: 0 | BT49: 0 | BU49: 0 | BV49: 0 | BW49: 0
Q50: 0 | AD50: 0 | AI50: 0 | AN50: 0 | AS50: 0 | AX50: 0 | BC50: 0 | BH50: 0 | BM50: 0 | BO50: 45 | BQ50: 0 | BR50: 0 | BS50: 0 | BT50: 0 | BU50: 0 | BV50: 0 | BW50: 0
K51: =IF(AP51="","",AP51) ->  | Q51: 0 | AD51: 0 | AI51: 0 | AN51: 0 | AS51: 0 | AX51: 0 | BC51: 0 | BH51: 0 | BM51: 0 | BO51: 46 | BQ51: 0 | BR51: 0 | BS51: 0 | BT51: 0 | BU51: 0 | BV51: 0 | BW51: 0
Q52: 0 | AD52: 0 | AI52: 0 | AN52: 0 | AS52: 0 | AX52: 0 | BC52: 0 | BH52: 0 | BM52: 0 | BO52: 47 | BQ52: 0 | BR52: 0 | BS52: 0 | BT52: 0 | BU52: 0 | BV52: 0 | BW52: 0
Q53: 0 | AD53: 0 | AI53: 0 | AN53: 0 | AS53: 0 | AX53: 0 | BC53: 0 | BH53: 0 | BM53: 0 | BO53: 48 | BQ53: 0 | BR53: 0 | BS53: 0 | BT53: 0 | BU53: 0 | BV53: 0 | BW53: 0

Sheet Oslo Skikrets 2017
A1: Resultatliste Oslo Cup 2017 - Jenter 11 år
A2: Etter 5 av 8 renn
H3: IRS Rennet | I3: Ljan Rennet | J3: Njård Rennet | K3: Ready Rennet | L3: Telenor Arena Cup | M3: Euro-tecfarten | N3: Oslo Alpinfestival SL | O3: Oslo Alpinfestival SSL | R3: IRS Rennet | S3: Ljan Rennet | T3: Njård Rennet | U3: Ready Rennet | V3: Telenor Arena Cup | W3: Euro-tecfarten | X3: Oslo Alpinfestival SL | Y3: Oslo Alpinfestival SSL | AA3: --------IRS Rennet---------- | AF3: ----------Ljan Rennet--------- | AK3: --------Njård Rennet---------- | AP3: --------Ready Rennet--------- | AU3: -----Telenor Arena Cup---- | AZ3: ------Euro-tecfarten-------- | BE3: ---Oslo Alpinfestival SL--- | BJ3: ---Oslo Alpinfestival SSL---
F4: Antall | H4: 2016-02-04 | I4: 2016-02-05 | J4: 2016-02-10 | K4: 2016-02-11 | L4: 2016-02-15 | M4: 2016-03-01 | N4: 2017-03-11 | O4: 2016-03-12 | Q4: Poeng | R4: 2016-02-04 | S4: 2016-02-05 | T4: 2016-02-10 | U4: 2016-02-11 | V4: 2016-02-15 | W4: 2016-03-01 | X4: 2017-03-11 | Y4: 2016-03-12 | AB4: --------Poeng-------- | AG4: --------Poeng-------- | AL4: -------Poeng--------- | AQ4: -------Poeng--------- | AV4: -------Poeng--------- | BA4: -------Poeng--------- | BF4: -------Poeng--------- | BK4: -------Poeng---------
A5: Plass | B5: Etternavn | C5: Fornavn | D5: Klubb | E5: Poeng | F5: renn | H5: ------------------------------Plassering i rennene--------------------------------- | Q5: brutto | R5: ----------------Resultatpoeng hvis mer enn 4 renn---------------- | AA5: Plass | AB5: Res. | AC5: Del. | AD5: Tot. | AF5: Plass | AG5: Res. | AH5: Del. | AI5: Tot. | AK5: Plass | AL5: Res. | AM5: Del. | AN5: Tot. | AP5: Plass | AQ5: Res. | AR5: Del. | AS5: Tot. | AU5: Plass | AV5: Res. | AW5: Del. | AX5: Tot. | AZ5: Plass | BA5: Res. | BB5: Del. | BC5: Tot. | BE5: Plass | BF5: Res. | BG5: Del. | BH5: Tot. | BJ5: Plass | BK5: Res. | BL5: Del. | BM5: Tot.
A6: 1 | B6: Rasmussen | C6: Cornelia Nystrøm | D6: Heming | E6: =Q6-V6 -> 385 | F6: =COUNT(AC6,AH6,AM6,AR6,AW6,BB6,BG6,BL6) -> 5 | H6: =IF(AA6="","",AA6) -> 2 | I6: =IF(AF6="","",AF6) -> 1 | J6: =IF(AK6="","",AK6) -> 2 | K6: =IF(AP6="","",AP6) -> 1 | L6: =IF(AU6="","",AU6) -> 2 | M6: =IF(AZ6="","",AZ6) ->  | N6: =IF(BE6="","",BE6) ->  | O6: =IF(BJ6="","",BJ6) ->  | Q6: =AD6+AI6+AN6+AS6+AX6+BC6+BH6 -> 465 | R6: =IF($F6>=5,IF(AB6="","",AB6),"") -> 80 | S6: =IF($F6>=5,IF(AG6="","",AG6),"") -> 100 | T6: =IF($F6>=5,IF(AL6="","",AL6),"") -> 80 | U6: =IF($F6>=5,IF(AQ6="","",AQ6),"") -> 100 | V6: =IF($F6>=5,IF(AV6="","",AV6),"") -> 80 | W6: =IF($F6>=5,IF(BA6="","",BA6),"") ->  | X6: =IF($F6>=5,IF(BF6="","",BF6),"") ->  | Y6: =IF($F6>=5,IF(BK6="","",BK6),"") ->  | AA6: 2 | AB6: 80 | AC6: 5 | AD6: =AB6+AC6 -> 85 | AF6: 1 | AG6: 100 | AH6: 5 | AI6: =AG6+AH6 -> 105 | AK6: 2 | AL6: 80 | AM6: 5 | AN6: =AL6+AM6 -> 85 | AP6: 1 | AQ6: 100 | AR6: 5 | AS6: =AQ6+AR6 -> 105 | AU6: 2 | AV6: 80 | AW6: 5 | AX6: =AV6+AW6 -> 85 | BC6: =BA6+BB6 -> 0 | BH6: =BF6+BG6 -> 0 | BM6: =BK6+BL6 -> 0
A7: 2 | B7: Frederiksen | C7: Charlotte Løvenskiold | D7: Ready | E7: =Q7 -> 241 | F7: 5 | H7: DSQ | I7: 7 | J7: 3 | K7: 3 | L7: 3 | Q7: 241 | R7: 0 | S7: 36 | T7: 60 | U7: 60 | V7: 60 | AA7: DSQ | AB7: 0 | AC7: 5 | AD7: 5 | AF7: 7 | AG7: 36 | AH7: 5 | AI7: 41 | AK7: 3 | AL7: 60 | AM7: 5 | AN7: 65 | AP7: 3 | AQ7: 60 | AR7: 5 | AS7: 65 | AU7: 3 | AV7: 60 | AW7: 5 | AX7: 65 | BC7: 0 | BH7: 0 | BM7: 0
A8: 3 | B8: Thorsby | C8: Pernille | D8: Heming | E8: =Q8-V8 -> 232 | F8: 5 | H8: 5 | I8: 2 | J8: 8 | K8: 4 | L8: 13 | Q8: 252 | R8: 45 | S8: 80 | T8: 32 | U8: 50 | V8: 20 | AA8: 5 | AB8: 45 | AC8: 5 | AD8: 50 | AF8: 2 | AG8: 80 | AH8: 5 | AI8: 85 | AK8: 8 | AL8: 32 | AM8: 5 | AN8: 37 | AP8: 4 | AQ8: 50 | AR8: 5 | AS8: 55 | AU8: 13 | AV8: 20 | AW8: 5 | AX8: 25 | BC8: 0 | BH8: 0 | BM8: 0
A9: 4 | B9: Finn-Hansen | C9: Nora | D9: Heming | E9: =Q9-V9 -> 230 | F9: 5 | H9: 4 | I9: 3 | J9: 4 | K9: 5 | L9: 9 | Q9: 259 | R9: 50 | S9: 60 | T9: 50 | U9: 45 | V9: 29 | AA9: 4 | AB9: 50 | AC9: 5 | AD9: 55 | AF9: 3 | AG9: 60 | AH9: 5 | AI9: 65 | AK9: 4 | AL9: 50 | AM9: 5 | AN9: 55 | AP9: 5 | AQ9: 45 | AR9: 5 | AS9: 50 | AU9: 9 | AV9: 29 | AW9: 5 | AX9: 34 | BC9: 0 | BH9: 0 | BM9: 0
A10: 5 | B10: Rasmussen | C10: Maisen Holst | D10: Stabæk | E10: =Q10 -> 210 | F10: 2 | J10: 1 | L10: 1 | Q10: 210 | AD10: 0 | AI10: 0 | AK10: 1 | AL10: 100 | AM10: 5 | AN10: 105 | AS10: 0 | AU10: 1 | AV10: 100 | AW10: 5 | AX10: 105 | BC10: 0 | BH10: 0 | BM10: 0
A11: 6 | B11: Alsos | C11: Synne | D11: Ready | E11: =Q11 -> 199 | F11: 5 | H11: 7 | I11: 4 | J11: 10 | K11: 7 | L11: 10 | Q11: 199 | R11: 36 | S11: 50 | T11: 26 | U11: 36 | V11: 26 | AA11: 7 | AB11: 36 | AC11: 5 | AD11: 41 | AF11: 4 | AG11: 50 | AH11: 5 | AI11: 55 | AK11: 10 | AL11: 26 | AM11: 5 | AN11: 31 | AP11: 7 | AQ11: 36 | AR11: 5 | AS11: 41 | AU11: 10 | AV11: 26 | AW11: 5 | AX11: 31 | BC11: 0 | BH11: 0 | BM11: 0
A12: 7 | B12: Hemme Granerud | C12: Cornelie | D12: Ljan | E12: =Q12-V12 -> 186 | F12: 5 | H12: 6 | I12: 5 | J12: 7 | K12: 6 | L12: 11 | Q12: 210 | R12: 40 | S12: 45 | T12: 36 | U12: 40 | V12: 24 | AA12: 6 | AB12: 40 | AC12: 5 | AD12: 45 | AF12: 5 | AG12: 45 | AH12: 5 | AI12: 50 | AK12: 7 | AL12: 36 | AM12: 5 | AN12: 41 | AP12: 6 | AQ12: 40 | AR12: 5 | AS12: 45 | AU12: 11 | AV12: 24 | AW12: 5 | AX12: 29 | BC12: 0 | BH12: 0 | BM12: 0
A13: 8 | B13: Aardal | C13: Mina | D13: NeRo | E13: =Q13 -> 147 | F13: 3 | H13: 3 | J13: 6 | L13: 8 | Q13: =AD13+AI13+AN13+AS13+AX13+BC13+BH13+BM13 -> 147 | AA13: 3 | AB13: 60 | AC13: 5 | AD13: 65 | AI13: 0 | AK13: 6 | AL13: 40 | AM13: 5 | AN13: 45 | AS13: 0 | AU13: 8 | AV13: 32 | AW13: 5 | AX13: 37 | BC13: 0 | BH13: 0 | BM13: 0
A14: 9 | B14: Aandahl | C14: Nicola | D14: Ready | E14: 140 | F14: 3 | J14: 5 | K14: 2 | L14: DNF | N14: =IF(AZ14="","",AZ14) ->  | O14: =IF(BE14="","",BE14) ->  | Q14: =AD14+AI14+AN14+AS14+AX14+BC14+BH14 -> 140 | AD14: 0 | AI14: 0 | AK14: 5 | AL14: 45 | AM14: 5 | AN14: 50 | AP14: 2 | AQ14: 80 | AR14: 5 | AS14: 85 | AU14: DNF | AV14: 0 | AW14: 5 | AX14: 5 | BC14: 0 | BH14: 0 | BM14: 0
A15: 10 | B15: Pechhacker | C15: Julia | D15: Lillehammer | E15: 105 | F15: 1 | H15: 1 | N15: =IF(BE15="","",BE15) ->  | O15: =IF(BJ15="","",BJ15) ->  | Q15: 105 | AA15: 1 | AB15: 100 | AC15: 5 | AD15: 105 | AI15: 0 | AN15: 0 | AS15: 0 | AX15: 0 | BC15: 0 | BH15: 0 | BM15: 0
A16: 11 | B16: Øye | C16: Alva Østnes | D16: IRS | E16: 98 | F16: 3 | H16: 9 | I16: 6 | L16: 17 | N16: =IF(AZ16="","",AZ16) ->  | O16: =IF(BE16="","",BE16) ->  | Q16: 98 | AA16: 9 | AB16: 29 | AC16: 5 | AD16: 34 | AF16: 6 | AG16: 40 | AH16: 5 | AI16: 45 | AN16: 0 | AS16: 0 | AU16: 17 | AV16: 14 | AW16: 5 | AX16: 19 | BC16: 0 | BH16: 0 | BM16: 0
A17: 12 | B17: Swenson | C17: Lily | D17: Ljan | E17: 94 | F17: 3 | H17: 10 | J17: 11 | K17: 9 | M17: =IF(AU17="","",AU17) ->  | N17: =IF(AZ17="","",AZ17) ->  | O17: =IF(BE17="","",BE17) ->  | Q17: 94 | AA17: 10 | AB17: 26 | AC17: 5 | AD17: 31 | AI17: 0 | AK17: 11 | AL17: 24 | AM17: 5 | AN17: 29 | AP17: 9 | AQ17: 29 | AR17: 5 | AS17: 34 | AX17: 0 | BC17: 0 | BH17: 0 | BM17: 0
A18: 13 | B18: Solhusløkk | C18: Carina | D18: IRS | E18: 76 | F18: 4 | H18: DSQ | J18: 13 | K18: 10 | L18: 21 | M18: =IF(AZ18="","",AZ18) ->  | N18: =IF(BE18="","",BE18) ->  | O18: =IF(BJ18="","",BJ18) ->  | Q18: 76 | AA18: DSQ | AB18: 0 | AC18: 5 | AD18: 5 | AI18: 0 | AK18: 13 | AL18: 20 | AM18: 5 | AN18: 25 | AP18: 10 | AQ18: 26 | AR18: 5 | AS18: 31 | AU18: 21 | AV18: 10 | AW18: 5 | AX18: 15 | BC18: 0 | BH18: 0 | BM18: 0
A19: 14 | B19: Kristensen | C19: Mathilde | D19: Njård | E19: 68 | F19: 3 | J19: 14 | K19: 11 | L19: 20 | M19: =IF(AZ19="","",AZ19) ->  | N19: =IF(AZ19="","",AZ19) ->  | O19: =IF(BE19="","",BE19) ->  | Q19: 68 | AD19: 0 | AI19: 0 | AK19: 14 | AL19: 18 | AM19: 5 | AN19: 23 | AP19: 11 | AQ19: 24 | AR19: 5 | AS19: 29 | AU19: 20 | AV19: 11 | AW19: 5 | AX19: 16 | BC19: 0 | BH19: 0 | BM19: 0
A20: =IF(E20<E19,BO20,A19) -> 14 | B20: Talén | C20: Henriette | D20: Heming | E20: 68 | F20: 3 | I20: 10 | J20: 16 | L20: 19 | M20: =IF(AZ20="","",AZ20) ->  | N20: =IF(BE20="","",BE20) ->  | O20: =IF(BJ20="","",BJ20) ->  | Q20: 68 | AD20: 0 | AF20: 10 | AG20: 26 | AH20: 5 | AI20: 31 | AK20: 16 | AL20: 15 | AM20: 5 | AN20: 20 | AS20: 0 | AU20: 19 | AV20: 12 | AW20: 5 | AX20: 17 | BC20: 0 | BH20: 0 | BM20: 0
A21: 16 | B21: Dynna | C21: Nathalie | D21: IRS | E21: 56 | F21: 4 | H21: DSQ | I21: DSQ | J21: 17 | K21: 12 | M21: =IF(AZ21="","",AZ21) ->  | N21: =IF(BE21="","",BE21) ->  | O21: =IF(BJ21="","",BJ21) ->  | Q21: 56 | AA21: DSQ | AB21: 0 | AC21: 5 | AD21: 5 | AF21: DSQ | AG21: 0 | AH21: 5 | AI21: 5 | AK21: 17 | AL21: 14 | AM21: 5 | AN21: 19 | AP21: 12 | AQ21: 22 | AR21: 5 | AS21: 27 | AX21: 0 | BC21: 0 | BH21: 0 | BM21: 0
A22: 17 | B22: Norstrand | C22: Nicolaine | D22: Heming | E22: 55 | F22: 1 | L22: =IF(AQ22="","",AQ22) ->  | M22: =IF(AZ22="","",AZ22) ->  | N22: =IF(AZ22="","",AZ22) ->  | O22: =IF(BE22="","",BE22) ->  | Q22: 55 | R22: =IF($F13>=5,IF(AB22="","",AB22),"") ->  | S22: =IF($F13>=5,IF(AG22="","",AG22),"") ->  | T22: =IF($F13>=5,IF(AL22="","",AL22),"") ->  | U22: =IF($F13>=5,IF(AQ22="","",AQ22),"") ->  | V22: =IF($F13>=5,IF(AR22="","",AR22),"") ->  | W22: =IF($F13>=5,IF(AV22="","",AV22),"") ->  | X22: =IF($F13>=5,IF(BA22="","",BA22),"") ->  | Y22: =IF($F13>=5,IF(BF22="","",BF22),"") ->  | AD22: 0 | AI22: 0 | AN22: 0 | AS22: 0 | AU22: 4 | AV22: 50 | AW22: 5 | AX22: 55 | BC22: 0 | BH22: 0 | BM22: 0
A23: 18 | B23: Hamran | C23: Helga | D23: Kjelsås | E23: 54 | F23: 2 | I23: 11 | K23: 13 | L23: =IF(AU23="","",AU23) ->  | M23: =IF(AU23="","",AU23) ->  | N23: =IF(AZ23="","",AZ23) ->  | O23: =IF(BE23="","",BE23) ->  | Q23: 54 | R23: =IF($F23>=5,IF(AB23="","",AB23),"") ->  | S23: =IF($F23>=5,IF(AG23="","",AG23),"") ->  | T23: =IF($F23>=5,IF(AL23="","",AL23),"") ->  | U23: =IF($F23>=5,IF(AQ23="","",AQ23),"") ->  | V23: =IF($F23>=5,IF(AV23="","",AV23),"") ->  | W23: =IF($F23>=5,IF(BA23="","",BA23),"") ->  | X23: =IF($F23>=5,IF(BF23="","",BF23),"") ->  | Y23: =IF($F23>=5,IF(BK23="","",BK23),"") ->  | AD23: 0 | AF23: 11 | AG23: 24 | AH23: 5 | AI23: 29 | AN23: 0 | AP23: 13 | AQ23: 20 | AR23: 5 | AS23: 25 | AX23: 0 | BC23: 0 | BH23: 0 | BM23: 0
A24: 19 | B24: Hoel | C24: Hermine Owesen | D24: Heming | E24: 50 | F24: 1 | L24: =IF(AQ24="","",AQ24) ->  | M24: =IF(AZ24="","",AZ24) ->  | N24: =IF(AZ24="","",AZ24) ->  | O24: =IF(BE24="","",BE24) ->  | Q24: 50 | R24: =IF($F15>=5,IF(AB24="","",AB24),"") ->  | S24: =IF($F15>=5,IF(AG24="","",AG24),"") ->  | T24: =IF($F15>=5,IF(AL24="","",AL24),"") ->  | U24: =IF($F15>=5,IF(AQ24="","",AQ24),"") ->  | V24: =IF($F15>=5,IF(AR24="","",AR24),"") ->  | W24: =IF($F15>=5,IF(AV24="","",AV24),"") ->  | X24: =IF($F15>=5,IF(BA24="","",BA24),"") ->  | Y24: =IF($F15>=5,IF(BF24="","",BF24),"") ->  | AD24: 0 | AI24: 0 | AN24: 0 | AS24: 0 | AU24: 5 | AV24: 45 | AW24: 5 | AX24: 50 | BC24: 0 | BH24: 0 | BM24: 0
A25: 20 | B25: Braathen | C25: Selma Georigia | D25: Stabæk | E25: 45 | F25: 1 | L25: =IF(AQ25="","",AQ25) ->  | N25: =IF(AZ25="","",AZ25) ->  | O25: =IF(BE25="","",BE25) ->  | Q25: 45 | R25: =IF($F16>=5,IF(AB25="","",AB25),"") ->  | S25: =IF($F16>=5,IF(AG25="","",AG25),"") ->  | T25: =IF($F16>=5,IF(AL25="","",AL25),"") ->  | U25: =IF($F16>=5,IF(AQ25="","",AQ25),"") ->  | V25: =IF($F16>=5,IF(AR25="","",AR25),"") ->  | W25: =IF($F16>=5,IF(AV25="","",AV25),"") ->  | X25: =IF($F16>=5,IF(BA25="","",BA25),"") ->  | Y25: =IF($F16>=5,IF(BF25="","",BF25),"") ->  | AD25: 0 | AI25: 0 | AN25: 0 | AS25: 0 | AU25: 6 | AV25: 40 | AW25: 5 | AX25: 45 | BC25: 0 | BH25: 0 | BM25: 0
A26: 21 | B26: Rustad | C26: Petronella G | D26: Njård | E26: 44 | F26: 3 | H26: DSQ | J26: 15 | L26: =IF(AU26="","",AU26) -> 18 | N26: =IF(BE26="","",BE26) ->  | O26: =IF(BJ26="","",BJ26) ->  | Q26: 44 | R26: =IF($F26>=5,IF(AB26="","",AB26),"") ->  | S26: =IF($F26>=5,IF(AG26="","",AG26),"") ->  | T26: =IF($F26>=5,IF(AL26="","",AL26),"") ->  | U26: =IF($F26>=5,IF(AQ26="","",AQ26),"") ->  | V26: =IF($F26>=5,IF(AV26="","",AV26),"") ->  | W26: =IF($F26>=5,IF(BA26="","",BA26),"") ->  | X26: =IF($F26>=5,IF(BF26="","",BF26),"") ->  | Y26: =IF($F26>=5,IF(BK26="","",BK26),"") ->  | AA26: DSQ | AB26: 0 | AC26: 5 | AD26: 5 | AI26: 0 | AK26: 15 | AL26: 16 | AM26: 5 | AN26: 21 | AS26: 0 | AU26: 18 | AV26: 13 | AW26: 5 | AX26: 18 | BC26: 0 | BH26: 0 | BM26: 0
A27: 22 | B27: Sartz-Lunde | C27: Emily | D27: Heming | E27: 41 | F27: 1 | L27: =IF(AQ27="","",AQ27) ->  | N27: =IF(AZ27="","",AZ27) ->  | O27: =IF(BE27="","",BE27) ->  | Q27: 41 | R27: =IF($F18>=5,IF(AB27="","",AB27),"") ->  | S27: =IF($F18>=5,IF(AG27="","",AG27),"") ->  | T27: =IF($F18>=5,IF(AL27="","",AL27),"") ->  | U27: =IF($F18>=5,IF(AQ27="","",AQ27),"") ->  | V27: =IF($F18>=5,IF(AR27="","",AR27),"") ->  | W27: =IF($F18>=5,IF(AV27="","",AV27),"") ->  | X27: =IF($F18>=5,IF(BA27="","",BA27),"") ->  | Y27: =IF($F18>=5,IF(BF27="","",BF27),"") ->  | AD27: 0 | AI27: 0 | AN27: 0 | AS27: 0 | AU27: 7 | AV27: 36 | AW27: 5 | AX27: 41 | BC27: 0 | BH27: 0 | BM27: 0
A28: 23 | B28: Zimmer | C28: Lisa | D28: IRS | E28: 39 | F28: 2 | I28: DSQ | J28: 9 | L28: =IF(AU28="","",AU28) ->  | N28: =IF(BE28="","",BE28) ->  | O28: =IF(BJ28="","",BJ28) ->  | Q28: 39 | R28: =IF($F28>=5,IF(AB28="","",AB28),"") ->  | S28: =IF($F28>=5,IF(AG28="","",AG28),"") ->  | T28: =IF($F28>=5,IF(AL28="","",AL28),"") ->  | U28: =IF($F28>=5,IF(AQ28="","",AQ28),"") ->  | V28: =IF($F28>=5,IF(AV28="","",AV28),"") ->  | W28: =IF($F28>=5,IF(BA28="","",BA28),"") ->  | X28: =IF($F28>=5,IF(BF28="","",BF28),"") ->  | Y28: =IF($F28>=5,IF(BK28="","",BK28),"") ->  | AD28: 0 | AF28: DSQ | AG28: 0 | AH28: 5 | AI28: 5 | AK28: 9 | AL28: 29 | AM28: 5 | AN28: 34 | AS28: 0 | AX28: 0 | BC28: 0 | BH28: 0 | BM28: 0
A29: 24 | B29: Teigen | C29: Cassandra | D29: Nannestad | E29: 37 | F29: 1 | H29: 8 | N29: =IF(BE29="","",BE29) ->  | O29: =IF(BJ29="","",BJ29) ->  | Q29: 37 | AA29: 8 | AB29: 32 | AC29: 5 | AD29: 37 | AI29: 0 | AN29: 0 | AS29: 0 | AX29: 0 | BC29: 0 | BH29: 0 | BM29: 0
A30: 24 | B30: Sandal | C30: Jenny Bye | D30: Ljan | E30: 37 | F30: 1 | I30: 8 | N30: =IF(BE30="","",BE30) ->  | O30: =IF(BJ30="","",BJ30) ->  | Q30: 37 | AD30: 0 | AF30: 8 | AG30: 32 | AH30: 5 | AI30: 37 | AN30: 0 | AS30: 0 | AX30: 0 | BC30: 0 | BH30: 0 | BM30: 0
A31: 24 | B31: Roos | C31: Elisabeth | D31: TRY | E31: 37 | F31: 1 | K31: 8 | M31: =IF(AU31="","",AU31) ->  | N31: =IF(AZ31="","",AZ31) ->  | O31: =IF(BE31="","",BE31) ->  | Q31: 37 | AD31: 0 | AI31: 0 | AN31: 0 | AP31: 8 | AQ31: 32 | AR31: 5 | AS31: 37 | AX31: 0 | BC31: 0 | BH31: 0 | BM31: 0
A32: 27 | B32: Rabben | C32: Ella Dahle | D32: Ljan | E32: 34 | F32: 1 | I32: 9 | M32: =IF(AZ32="","",AZ32) ->  | N32: =IF(BE32="","",BE32) ->  | O32: =IF(BJ32="","",BJ32) ->  | Q32: 34 | AD32: 0 | AF32: 9 | AG32: 29 | AH32: 5 | AI32: 34 | AN32: 0 | AS32: 0 | AX32: 0 | BC32: 0 | BH32: 0 | BM32: 0
A33: 28 | B33: Bjørnstad | C33: Erika Scheid | D33: IRS | E33: 29 | F33: 1 | H33: 11 | M33: =IF(AZ33="","",AZ33) ->  | N33: =IF(BE33="","",BE33) ->  | O33: =IF(BJ33="","",BJ33) ->  | Q33: 29 | AA33: 11 | AB33: 24 | AC33: 5 | AD33: 29 | AI33: 0 | AN33: 0 | AS33: 0 | AX33: 0 | BC33: 0 | BH33: 0 | BM33: 0
A34: 29 | B34: Brækken | C34: Eili | D34: IRS | E34: 27 | F34: 1 | H34: 12 | M34: =IF(AZ34="","",AZ34) ->  | N34: =IF(BE34="","",BE34) ->  | O34: =IF(BJ34="","",BJ34) ->  | Q34: 27 | AA34: 12 | AB34: 22 | AC34: 5 | AD34: 27 | AI34: 0 | AN34: 0 | AS34: 0 | AX34: 0 | BC34: 0 | BH34: 0 | BM34: 0
A35: 29 | B35: Solheim | C35: Cornelia Margrethe Lysne | D35: Njård | E35: 27 | F35: 1 | J35: 12 | M35: =IF(AU35="","",AU35) ->  | N35: =IF(AZ35="","",AZ35) ->  | O35: =IF(BE35="","",BE35) ->  | Q35: 27 | AD35: 0 | AI35: 0 | AK35: 12 | AL35: 22 | AM35: 5 | AN35: 27 | AS35: 0 | AX35: 0 | BC35: 0 | BH35: 0 | BM35: 0
